Workbook

Sheet Simulación
B7: SIMULADOR CRÉDITO HIPOTECARIO
L8: =TODAY() -> 2022-03-15
S11: 5
S12: 6
S13: 7
S14: 8
S15: 9
Q16: NO | S16: 10
Q17: SI | S17: 11
D18: =IF('Parametro Destino'!I4<'Parametro Destino'!I3,"PLAZO MENOR AL MINIMO POSIBLE",IF(AND(R23=5,H25>1000000),"Distinto a Asalariado el Monto Máx. para Remodelación es de $1,000,000",IF(H29>1000000,"Distinto a Asalariado el Monto Máx. para Remodelación es de $1,000,000",IF(L23>'Parametro Destino'!C6,"EL AFORO SUPERA AL MÁXIMO PARA EL PRODUCTO",IF(H25<'Parametro Destino'!C9,"EL MONTO ES MENOR AL MINIMO PARA EL PRODUCTO",IF(PLAZO_SIMULACION>'Parametro Destino'!C10,"EL PLAZO SELECCIONADO SUPERA AL MÁXIMO POR PRODUCTO", "DATOS DEL CRÉDITO")))))) -> DATOS DEL CRÉDITO | R18: =IF(OR(H21="TERRENO"),"",0.079) -> 0.079 | S18: 12
R19: =IF(OR(H21="TERRENO"),P26,"") ->  | S19: 13
R20: =IF(OR(H21="TERRENO"),"",0.079) -> 0.079 | S20: 14
E21: DESTINO DEL CRÉDITO: | H21: SUSTITUCION | J21: NÓMINA AFIRME | L21: NO | R21: =IF(OR(H21="TERRENO"),"",8.9%) -> 0.089 | S21: 15
E22: =IF(R23=8,"VALOR VIVIENDA DE CREDITO",IF(OR(R23=4,R23=6),"ADEUDO ACTUAL:","")) -> ADEUDO ACTUAL: | M22: =IF(M23="","","Máximo") ->  | R22: =IF(OR(H21="TERRENO"),"",0.099) -> 0.099 | S22: =IF(OR($R$23=9,$L$25=7.9%),"",16) -> 16
E23: =IF(R23=8,"VALOR DE LA VIVIENDA ADICIONAL:","VALOR DE VIVIENDA:") -> VALOR DE VIVIENDA: | H23: 5000000 | J23: FINANCIAMIENTO | L23: =IF(R23=8,H25/(H23+H22),H25/H23) -> 0.2 | M23: =IF(D18="EL AFORO SUPERA AL MÁXIMO PARA EL PRODUCTO",'Parametro Destino'!C6,"") ->  | R23: ='Parametro Destino'!C2 -> 4 | S23: =IF(OR($R$23=9,$L$25=7.9%),"",17) -> 17
E24: =IF(R23=3,"Disponible por Infonavit","") ->  | L24: =IF(R23=5,"*","") ->  | R24: =IF(OR(R23=4,R23=6), "MEJORA","") -> MEJORA | S24: =IF(OR($R$23=9,$L$25=7.9%),"",18) -> 18
E25: IMPORTE DEL CRÉDITO: | H25: 1000000 | I25: =IF(H25>5000000,"Verificar Aforo Max","") ->  | J25: TASA DE INTERÉS | L25: 0.089 | S25: =IF(OR($R$23=9,$L$25=7.9%),"",19) -> 19
I26: =H23*0.6 -> 3000000 | L26: =IF(OR(L25=7.9%,L25=9.55%,L25=9.2%),"*","") ->  | P26: =IF(AND(H21="TERRENO",L27>5),9.55%,IF(L27=5,9.2%)) -> FALSE | S26: =IF(OR($R$23=9,$L$25=7.9%),"",20) -> 20
E27: =IF(OR(R23=7,R23=10),"PROYECTO DE CONSTRUCCIÓN:","") ->  | J27: PLAZO EN AÑOS: | L27: 14
L28: 17
E29: =IF(R23=6,"PRESUPUESTO DE REMODELACIÓN","") ->  | J29: GASTOS DE ESCRITURACIÓN % | L29: 0.03
E30: =IF(R23=5,"*Para Asalariado 40% monto max $2.5 mdp, para PFAE Aforo Máx. 30% monto max $1mdp","") -> 
E31: =IF(L25=7.9%,"*AFORO MAX 60% y solo aplica Adq Tradicional y Sustitución","") ->  | J31: =IF(R23=4,"¿APLICA COMO MEJORA?",IF(R23=6,"¿APLICA COMO MEJORA + REMODELACION?","")) -> ¿APLICA COMO MEJORA? | L31: NO
E32: =IF(L25=9.55%,"*Tasa 9.55% solo aplica a Terreno en plazos de 6 hasta 15 años",IF(L25=9.2%,"*Tasa 9.20% solo aplica a Terreno plazo 5 años","")) -> 
D34: RESUMEN DE CREDITO
G37: Monto de Crédito | K37: ='Tabla Crec'!C9 -> 1000000 | P37: =IF(L31="NO",0,0) -> 0
G38: =IF(K38<0,"Financiamiento de Gastos","Enganche") -> Enganche | K38: =IF(OR(R23=4,R23=5,R23=7,R23=6),0,IF(OR(R23=4),H22-K37,IF(R23=3,H23-H24-K37,IF(R23=8,H22-K37,H23-K37-H24)))) -> 0 | P38: SI
G39: Gastos Notariales (Aprox)* | K39: ='Parametro Destino'!F7 -> 30000 | P39: NO
G40: Comisión de apertura: | K40: ='Parametro Destino'!C8*Simulación!K37 -> 10000
G41: Avalúo (no incluye IVA): | K41: ='Parametro Destino'!F6 -> 12500
G42: =IF(L23>79.99%,"Trámite CUV","") ->  | K42: =IF(L23>79.99%,260*1.16,"") -> 
G43: * presupuesto del Notario
G44: DESEMBOLSO INICIAL: | K44: =SUM(K38:K43) -> 52500
I46: TASA DE INTERÉS | J46: =L25 -> 0.089
I47: FIJOS | K47: CRECIENTES**** | Q47: H21="terreno"
G48: Tasa de Interés inicial por Pago puntual | I48: =L25 -> 0.089 | K48: =L25 -> 0.089
G49: CAT | I49: ='Tabla Fijo'!M4 -> 0.1242059035 | K49: ='Tabla Crec'!M4 -> 0.1225426975
G51: Amortización: | I51: ='Tabla Fijo'!D9 -> 2891.003793 | K51: ='Tabla Crec'!D9 -> 1293.906045
G52: Intereses: | I52: ='Tabla Fijo'!F9 -> 7416.666667 | K52: ='Tabla Crec'!F9 -> 7416.666667
G53: Seguro de vida: | I53: ='Tabla Fijo'!I9 -> 800 | K53: ='Tabla Crec'!I9 -> 800
G54: Seguro de daños: | I54: ='Tabla Fijo'!J9 -> 346.5641667 | K54: ='Tabla Crec'!J9 -> 346.5641667
G55: Seguro de Desempleo y Contenidos: | I55: ='Tabla Fijo'!K9 -> 201.6371026 | K55: ='Tabla Crec'!K9 -> 185.9855446
G56: Comisión Mensual | I56: ='Tabla Fijo'!L9 -> 299 | K56: ='Tabla Crec'!L9 -> 299
G57: Iva de comisión de Admon y Seg. | I57: ='Tabla Fijo'!M9 -> 135.5522031 | K57: ='Tabla Crec'!M9 -> 133.0479538
G58: PAGO MENSUAL APROXIMADO: | I58: =SUM(I51:I57) -> 12090.42393 | J58: =IF('Parametro Destino'!I4<'Parametro Destino'!I3,'Parametro Destino'!I5,"") ->  | K58: =SUM(K51:K57) -> 10475.17038 | L58: Mensualidad a: | M58: ='Parametro Destino'!F5 -> 15
B65: *En ADQUISICIÓN Los Notariales son estimados y dependen de la Entidad Federativa - Presupuesto del Notario deben incluir impuestos y derechos, gastos y honorarios. | P65: =H25+P37 -> 1000000
B66: *En SUSTITUCIÓN, los Honorarios Notariales los cubre el Banco durante esta promoción siempre y cuando sea con Notaria del Padron Campaña Sustitución | P66: ='Parametro Destino'!C7 -> 4500000
B67: *En SUSTITUCIÓN, los Gastos de Escrituración (impuestos, derechos, gastos) pueden ser financiados o serán cubiertos por el cliente | P67: =IF(L31="SI",MAX(P68,P70),MIN(P68,P70)) -> 4500000
B68: **La autorización del crédito y condiciones financieras depende de la documentación e información presentada para su evaluación. | P68: =IF('Parametro Destino'!C2=8,'Parametro Destino'!F3,MIN((H23*'Parametro Destino'!C6),'Parametro Destino'!F2,'Parametro Destino'!C7)) -> 4500000
B69: **La presente es de carácter informativa, no representa oferta por parte del Grupo Financiero Afirme y se encuentra sujeta a cambio sin previo aviso
P70: =IF(L31="si",(P68+P37),P68) -> 4500000
B71: **** El esquema de pagos crecientes solo aplica a 15 y 20 años, para destino de Terreno solo 10 y 15 años. | M71: BAF-040-0310-22 | P71: =IF(R23=4,MIN(H22+P37,P68),IF(R23=3,MIN(P67,P66),IF(R23=8,MIN(P68,P70),P70))) -> 0

Sheet Parametro Destino (hidden)
I1: ,O,SI(Y(TASACREC=9.9%,Q8=20),"0.07%","2.40%")
B2: DESTINO | C2: =VLOOKUP(Simulación!H21,'Parametro Destino'!B13:E22,4,) -> 4 | D2: SI(Simulación!H21='Parametro Destino'!B13,1,SI(Simulación!H21='Parametro Destino'!B14,2,SI(Simulación!H21='Parametro Destino'!B15,3,SI(Simulación!H21='Parametro Destino'!B16,4,SI(Simulación!H21='Parametro Destino'!B17,5,SI(Simulación!H21='Parametro Destino'!B18,6,SI(Simulación!H21='Parametro Destino'!B19,7,SI(Simulación!H21='Parametro Destino'!B20,8,9)))))))) | E2: MONTO MAX COFI | F2: =(Simulación!H23*1.08)-Simulación!H24 -> 5400000
B3: PRODUCTO | C3: =IF(AND(Simulación!L25=8.9%,Simulación!L21="si"),2,IF(Simulación!L25=8.9%,1,2)) -> 1 | D3: , =SI(Y(Simulación!L25=8.9%,Simulación!L21="si"),2,SI(Simulación!L25=8.9%,1,2)) | E3: MONTO MAX TU CASA 2 | F3: =(Simulación!H22+Simulación!H23)*'Parametro Destino'!C6 -> 4500000 | H3: PLAZO MINIMO | I3: =IF(C3=1,5,5) -> 5
B4: VALOR CONSTRUCCION | C4: =MIN((Simulación!H23*0.7),Simulación!H27) -> 3500000 | E4: PLAZO FIJOS | F4: =IF(I4<I3,I3,IF(C3=2,MIN(20,PLAZO_SIMULACION),MIN(PLAZO_SIMULACION,20))) -> 14 | H4: PLAZO SELECCIONADO | I4: =PLAZO_SIMULACION -> 14
B5: AFORO REAL | C5: =Simulación!L23 -> 0.2 | E5: PLAZO CRECIENTES | F5: =IF(C2=9,IF(F4<=10,10,IF(F4<=15,15,"N/A")),IF(F4<=15,15,IF(F4<=20,20,"N/A"))) -> 15 | H5: LEYENDA PLAZO | I5: =IF(I3=5,"Plazo Min 5 años","Plazo Min 3 años") -> Plazo Min 5 años
B6: AFORO MAXIMO | C6: =MIN(I8:I9) -> 0.9 | E6: COSTO DEL AVALUO | F6: =J28 -> 12500 | H6: NOMINA AFIRME | I6: =Simulación!L21 -> NO
B7: MONTO MAX POR AFORO | C7: =IF(Simulación!R23=6,MIN((Simulación!H23*0.4),MIN(F8,2500000))+Simulación!H22,IF(C2=8,F3,IF(C2=7,MIN(Simulación!H27,(Simulación!H23*0.7)),IF(C2=3, MIN((Simulación!H23*'Parametro Destino'!C6),(F2)),C6*Simulación!H23)))) -> 4500000 | E7: GASTOS NOTARIALES | F7: =IF( OR(Simulación!R23=4,Simulación!R23=5,Simulación!R23=6,Simulación!R23=7), Simulación!L29*Simulación!K37, IF(Simulación!R23=8, Simulación!H22*Simulación!L29, Simulación!H23*Simulación!L29)) -> 30000 | H7: MEJORA | I7: =Simulación!L31 -> NO | K7: 0.079 | L7: =60% -> 0.6
B8: COMISION APLICABLE | C8: =VLOOKUP(C2,A13:D22,4) -> 0.01 | E8: REMODELACION | F8: =Simulación!H29 -> 0 | H8: AFORO MONTO | I8: =IF(I10<G18,H19,IF(I10<G17,H18,IF(I10<G16,H17,IF(I10<G15,H16,H15)))) -> 1 | K8: 0.089 | L8: =M8 -> 0.7 | M8: =IF(AND(Simulación!L21="NO"),70%,90%) -> 0.7
B9: MONTO MIN POR TASA | C9: =IF(C3=1,200000,200000) -> 200000 | E9: ,=SI(Y($C$2=4,I7="SI"),0.9,0.9) | H9: AFORO X PRODUCTO | I9: =VLOOKUP(C2,A13:D22,3) -> 0.9 | K9: 0.099 | L9: 0.9
B10: PLAZO MAXIMO POR TASA | C10: =IF(C2=9,15,20) -> 20 | E10: =VLOOKUP(I11,K7:L9,2) -> 0.7 | H10: SOLICITADO | I10: =Simulación!H25 -> 1000000 | M10: , =SI(Y(Simulación!L25=8.9%,Simulación!h21="SUSTITUCION"),90%,SI(Simulación!L25=8.9%,Simulación!h21="ADQUISICION"))
F11: =IF($I$11=7.9%,60%,90%) -> 0.9 | H11: TASA | I11: =Simulación!L25 -> 0.089
B12: DESTINO | C12: AFORO | D12: COMISION POR APERTURA
A13: 1 | B13: ADQUISICION | C13: =E10 -> 0.7 | D13: =IF(AND(I6="SI",I11=8.9%),0%,1%) -> 0.01 | E13: 1
A14: 2 | B14: APOYO INFONAVIT | C14: =E10 -> 0.7 | D14: =IF(AND(I6="SI",I11=8.9%),0%,1%) -> 0.01 | E14: 2 | F14: TABLA DE AFOROS POR MONTO DE CREDITO | J14: 2.2.6. Esquema Aforo al 90% Adquisición Vivienda Nueva
A15: 3 | B15: COFINAVIT | C15: =E10 -> 0.7 | D15: =IF(AND(I6="SI",I11=8.9%),0%,1%) -> 0.01 | E15: 3 | F15: Mayor de | G15: 8000000 | H15: 1 | J15: Monto solicitado total<= $3MM=90%
A16: 4 | B16: SUSTITUCION | C16: =F11 -> 0.9 | D16: =IF(I11=8.9%,1%,IF(I7="SI",0%,1%)) -> 0.01 | E16: 4 | F16: Mayor de | G16: 7000000 | H16: 1 | J16: Monto solicitado total>= $3MM=80%
A17: 5 | B17: REMODELACION | C17: =IF($C$3=1,0.4,0.4) -> 0.4 | D17: =IF(AND(I6="SI",I11=8.9%),0%,1%) -> 0.01 | E17: 5 | F17: Mayor de | G17: 7000000 | H17: 1
A18: 6 | C18: =IF(AND($C$2=6,I7="SI"),0.7,0.8) -> 0.8 | D18: =IF(AND(I6="SI",I11=8.9%),0%,1%) -> 0.01 | E18: 6 | F18: Mayor de | G18: 5000000 | H18: 1
A19: 7 | B19: CONSTRUCCION | C19: 0.7 | D19: =IF(AND(I6="SI",I11=8.9%),0%,1%) -> 0.01 | E19: 7 | F19: Menor a | G19: 6000000 | H19: 1
A20: 8 | C20: =IF($C$3=1,0.6999,0.8) -> 0.6999 | D20: =IF(AND(I6="SI",I11=8.9%),0%,1%) -> 0.01 | E20: 8
A21: 9 | B21: TERRENO | C21: 0.7 | D21: 0.01 | E21: 9
A22: 10 | C22: 0.7 | D22: 0.01 | E22: 10
I24: Valor de Vivienda | J24: =IF(Simulación!R23=8,(Simulación!H22+Simulación!H23),Simulación!H23) -> 5000000
I25: Factor | J25: =+IF(J24<=E31,F31,IF(J24<=E32,F32,IF(J24<=E33,F33,IF(J24<=E34,F34,IF(J24<=E35,F35,"Se Cotiza"))))) -> 2.5
B26: ADQUISICION | I26: Minimo | J26: =+IF(J24<=E31,G31,IF(J24<=E32,G32,IF(J24<=E33,G33,IF(J24<=E34,G34,IF(J24<=E35,G35,"Se Cotiza"))))) -> 3000
B27: APOYO INFONAVIT | I27: Calculo | J27: =IF((J24*J25/1000)<J26,J26,(J24*J25/1000)) -> 12500
B28: COFINAVIT | I28: Resultado | J28: =IF(J26="Se Cotiza", "Se Cotiza",J27) -> 12500
B29: SUSTITUCION
B30: REMODELACION | E30: TABLA DE COSTOS AVALUO
B31: CONSTRUCCION | E31: 1000000 | F31: 3 | G31: 2000
B32: TERRENO | E32: 5000000 | F32: 2.5 | G32: 3000
E33: 10000000 | F33: 2 | G33: 12500
E34: 20000000 | F34: 1.75 | G34: 20000
E35: 100000000 | F35: 1.5 | G35: 30000
D49: SI(Q9=8.55%,D15,SI(Q9=8.90%,D16,SI(Q9=9.90%,D17)))

Sheet Parametros Crec (hidden)
B2: Esquema | C2: Tasa Base | D2: Tasa Pago Puntual | E2: % Diminución de Tasa | F2: Incremento Tasa Crecientes | G2: Inc Amort 20 años | H2: Inc Amort 15 años | I2: Incremento Amort 1 | L2: Destinos | N2: Suma de Ingresos | P2: Excedente Pago Puntual
L3: ADQUISICIÓN | N3: SI | P3: MENOS CUOTA
B4: 0.0955 | C4: 0.0955 | D4: 0.0955 | E4: =C4-D4 -> 0 | F4: 0 | G4: 0.012 | H4: 0.023 | I4: =IF(PLAZO_ANIOS>=20,G4,H4) -> 0.023 | L4: REMODELACIÓN | N4: NO | P4: MENOS PLAZO
B5: 0.089 | C5: =B5 -> 0.089 | D5: =C5 -> 0.089 | E5: 0 | F5: 0 | G5: 0.012 | H5: 0.023 | I5: =IF(PLAZO_ANIOS>=15,H5,G5) -> 0.012 | L5: CONSTRUCCIÓN
B6: 0.099 | C6: 0.099 | D6: 0.099 | E6: =C6-D6 -> 0 | F6: 0 | G6: 0.0007 | H6: 0.024 | I6: =IF(PLAZO_ANIOS>=20,G6,H6) -> 0.024 | L6: SUSTITUCIÓN
L7: ADQ/REM
B8: Parámetros Tasas de Intrerés | L8: SUST/REM | P8: PLAZO SELECCIONADO | Q8: ='Parametro Destino'!I4 -> 14
B9: Tasa Anual Base | C9: =Q9 -> 0.089 | P9: tasa | Q9: ='Parametro Destino'!I11 -> 0.089
B10: % Disminución de Tasa | C10: 0
B11: Meses Beneficio Pago Puntual | C11: 12 | P11: ,O,SI(Y(TASACREC=9.9%,Q8=20),"0.07%","2.40%")
B12: Meses Incremento Tasa Crecientes | C12: 60 | E12: Esquemas Pago Puntual | G12: SI(Q9=8.55%,D15,SI(Q9=8.90%,D16,SI(Q9=9.90%,D17))) | P12: =IF(Q9=8.9%,D16,D17) -> 2.30%
G13: Tramite Patrimonial 9.3 | I13: Solo fijos
B14: Parámetros Esquema Pagos Crecientes | G14: Trámite 9.8 | I14: Fijos/Crecientes | N14: terr a 15
B15: Icremento Tasa | C15: 0 | D15: =IF(AND(TASACREC=9.55%,Q8>10),"2.5%","3%") -> 3% | G15: Trámite Ordinario 10.55 | I15: Fijos/Crecientes | N15: terr a 10
B16: Incremento Amort | C16: =IF(Q9=9.55%,D15,IF(Q9=8.9%,D16,IF(Q9=9.9%,D17))) -> 2.30% | D16: =IF(AND(TASACREC=8.9%,Q8>15),"1.2%","2.30%") -> 2.30% | E16: Tramites Especiales
B17: Meses incremento | C17: 12 | D17: =IF(AND(TASACREC=9.9%,Q8>15),"0.07%","2.40%") -> 2.40% | G17: Pemex
G18: Villacero
B19: Parámetros Seguro Vida (Saldo Deudor) | G19: Muncipios
B20: Factor Seg. Deudor | C20: 0.0008 | E20: Terrenos
G21: Tradicional
B22: Parámetros Seguro de Daños | E22: Esquema | G22: Villacero
B23: Factor Seg. Daños | C23: =IF(E23="TERRENO",0,1.1) -> 1.1 | E23: =Simulación!H21 -> SUSTITUCION
B24: Factor Seg. Daños Final | C24: =FACT_SEGURO_DANIOSCREC * 1.0802 / 12000 -> 9.901833333e-05
B25: Factor Ajuste Seg Daños | C25: 0.7
B26: Suma Aseg. Calculada | C26: =VALOR_INMUEBLECREC * FACTOR_AJSTE_SEG_DAÑCREC -> 3500000
B27: Suma Aseg. Final | C27: =IF(SUMA_ASEG_AVALUOCREC > 0, SUMA_ASEG_AVALUOCREC, SUMA_ASEG_CALCCREC) -> 3500000
B28: Seguro Daños | C28: =SUMA_ASEGURADA_DAÑOSCREC * FACTOR_SEG_DANIOS_FINCREC -> 346.5641667
B30: Parámetro Seguro Desempleo
B31: Factor Seguro Desempleo | C31: =IF(SUMA_INGRESOSCREC= "SI", 0.0098, 0.0057) -> 0.0098
B32: Seguro Interiores | C32: =IF(E23="TERRENO",0,(98/(1+IVA))) -> 84.48275862
B34: Parámetros Costo de Avalúo
B35: Factor Avalúo | C35: =D35/1000 -> 0.0025 | D35: ='Parametro Destino'!J25 -> 2.5
B36: Honorarios Avalúo | C36: 0
B38: Parámetros Comisión Administración
B39: Mto. Comisión Admon. | C39: 299
B41: Otros Parámetros
B42: Frecuencia Pago | C42: MENSUAL
B43: Dias Capital | C43: 30
B44: % IVA | C44: 0.16

Sheet Parametros Fijo (hidden)
B2: Esquema | C2: Tasa Base | D2: Tasa Pago Puntual | E2: % Diminución de Tasa | F2: Incremento Tasa Crecientes | G2: Inc Amort1 | H2: Inc Amort2 | I2: Incremento Amort 1 | L2: Destinos | N2: Suma de Ingresos | P2: Excedente Pago Puntual
B3: PP Pagos Fijos 9.3% | C3: 0.093 | D3: 0.088 | E3: =C3-D3 -> 0.005 | F3: 0 | G3: N/A | H3: N/A | I3: 0 | L3: ADQUISICIÓN | N3: SI | P3: MENOS CUOTA
B4: 0.079 | C4: 0.079 | D4: 0.079 | E4: =C4-D4 -> 0 | F4: 0 | G4: N/A | H4: N/A | I4: 0 | L4: REMODELACIÓN | N4: NO | P4: MENOS PLAZO
B5: ='Parametro Destino'!I11 -> 0.089 | C5: =B5 -> 0.089 | D5: =B5 -> 0.089 | E5: 0 | F5: 0 | G5: N/A | H5: N/A | I5: 0 | L5: CONSTRUCCIÓN
B6: 0.099 | C6: 0.099 | D6: 0.099 | E6: =C6-D6 -> 0 | F6: 0 | G6: N/A | H6: N/A | I6: 0 | L6: SUSTITUCIÓN
L7: ADQ/REM
B8: Parámetros Tasas de Intrerés | L8: SUST/REM
B9: Tasa Anual Base | C9: =B5 -> 0.089
B10: % Disminución de Tasa | C10: =VLOOKUP(ESQUEMA, B3:I6, 4,FALSE) -> 0
B11: Meses Beneficio Pago Puntual | C11: 12
B12: Meses Incremento Tasa Crecientes | C12: 60 | E12: Esquemas Pago Puntual
G13: Tramite Patrimonial 9.3 | I13: Solo fijos
B14: Parámetros Esquema Pagos Crecientes | G14: Trámite 9.8 | I14: Fijos/Crecientes
B15: Icremento Tasa | C15: =VLOOKUP(ESQUEMA, B3:I6, 5,FALSE) -> 0 | G15: Trámite Ordinario 10.55 | I15: Fijos/Crecientes
B16: Incremento Amort | C16: =VLOOKUP(ESQUEMA, B3:I6, 8,FALSE) -> 0 | E16: Tramites Especiales
B17: Meses incremento | C17: 12 | G17: Pemex
G18: Villacero
B19: Parámetros Seguro Vida (Saldo Deudor) | G19: Muncipios
B20: Factor Seg. Deudor | C20: 0.0008 | E20: Terrenos
G21: Tradicional
B22: Parámetros Seguro de Daños | E22: Esquema | G22: Villacero
B23: Factor Seg. Daños | C23: =IF(E23="TERRENO",0,1.1) -> 1.1 | E23: =Simulación!H21 -> SUSTITUCION
B24: Factor Seg. Daños Final | C24: =FACT_SEGURO_DANIOS * 1.0802 / 12000 -> 9.901833333e-05
B25: Factor Ajuste Seg Daños | C25: 0.7
B26: Suma Aseg. Calculada | C26: =VALOR_INMUEBLE * FACTOR_AJSTE_SEG_DAÑ -> 3500000
B27: Suma Aseg. Final | C27: =IF(SUMA_ASEG_AVALUO > 0, SUMA_ASEG_AVALUO, SUMA_ASEG_CALC) -> 3500000
B28: Seguro Daños | C28: =SUMA_ASEGURADA_DAÑOS * FACTOR_SEG_DANIOS_FIN -> 346.5641667
B30: Parámetro Seguro Desempleo
B31: Factor Seguro Desempleo | C31: =IF(SUMA_INGRESOS= "SI", 0.0098, 0.0057) -> 0.0098
B32: Seguro Interiores | C32: =IF(E23="TERRENO",0,(98/(1+IVA))) -> 84.48275862
B34: Parámetros Costo de Avalúo
B35: Factor Avalúo | C35: =D35/1000 -> 0.0025 | D35: ='Parametro Destino'!J25 -> 2.5
B36: Honorarios Avalúo | C36: 0
B38: Parámetros Comisión Administración
B39: Mto. Comisión Admon. | C39: 299
B41: Otros Parámetros
B42: Frecuencia Pago | C42: MENSUAL
B43: Dias Capital | C43: 30
B44: % IVA | C44: 0.16

Sheet Tabla Amortización Fijo (hidden)
B1: Tabla de Amortización >> Hipotecario >> Tasas Pagos Puntuales>>Cuotas Fijas
B3: Monto Solicitado | C3: Plazo años | D3: Plazo Meses | E3: Tipo | F3: ¿Cómo aplicar el Beneficio PP? | G3: Suma de Ingresos | H3: Esquema | J3: Total Financiado | K3: % Comisión Apert | L3: Comisión Apertura | M3: CAT
B4: =IF( OR('Parametro Destino'!C2=8,'Parametro Destino'!C2=3,'Parametro Destino'!C2=4), MIN('Parametro Destino'!F3,Simulación!H25), MIN(Simulación!H25,'Parametro Destino'!C7,'Parametro Destino'!F2)) -> 1000000 | C4: ='Parametro Destino'!F4 -> 14 | D4: =PLAZO_ANIOS*12 -> 168 | E4: ADQUISICIÓN | F4: 0 | G4: SI | H4: =Simulación!L25 -> 0.089 | J4: =MTO_SOLICITADO -> 1000000 | K4: 0.01 | L4: =COMISION_APERT *TOTAL_FINANCIADO -> 10000 | M4: =(1+IRR(AJ13:AJ259,0))^(360/30)-1 -> 0.1242059035
B6: Valor Inmueble | C6: Presupuesto Construcción | D6: Valor Inmueble actual | E6: Suma Asegurada Daños | J6: Base Avalúo | K6: Costo Avaluo Base | L6: Subtotal Avalúo (Base + Honorarios) | M6: IVA Avalúo | N6: Total Avalúo
B7: =Simulación!H23 -> 5000000 | C7: 1000000 | D7: 2000000 | E7: =VALOR_INMUEBLE*0.7 -> 3500000 | J7: =IF(DESTINO ="CONSTRUCCIÓN", IF(VALOR_INMUEB_ACT> 0, VALOR_INMUEB_ACT, VALOR_INMUEBLE-PRES_CONSTRUCCION), VALOR_INMUEBLE) -> 5000000 | K7: =MTO_BASE_AVALUO*FACTOR_AVALUO -> 12500 | L7: =MTO_AVALUO + HONORARIOS_AVALUO -> 12500 | M7: =SUBTOT_AVALUO * IVA -> 2000 | N7: =SUBTOT_AVALUO + IVA_AVALUO -> 14500
B9: Fecha Apertura | C9: Fecha 1er Pago | K9: Suma Inversos | L9: Cuota Nivelada Base | AJ9: Monto Inicial CAT
B10: =Simulación!L8 -> 2022-03-15 | C10: =IF(DAY(FECHA_APERTURA)<= 19, DATE(YEAR(DATE(YEAR(FECHA_APERTURA),MONTH(FECHA_APERTURA)+2,)), MONTH(DATE(YEAR(FECHA_APERTURA),MONTH(FECHA_APERTURA)+2,)), 4), DATE(YEAR(DATE(YEAR(FECHA_APERTURA),MONTH(FECHA_APERTURA)+3,)), MONTH(DATE(YEAR(FECHA_APERTURA),MONTH(FECHA_APERTURA)+3,)), 4)) -> 2022-04-04 | K10: =SUMIF(B14:B259, CONCATENATE("<",PLAZO),K14:K259) -> 90.02787791 | L10: =J4/K10 -> 11107.67046 | AJ10: =MTO_SOLICITADO - MTO_COMISION_APERT - SUBTOT_AVALUO -> 977500
B12: Pago | C12: Fecha | D12: Dias Reales | E12: Tasa Periodo | F12: Prorrateo | G12: Potencia | H12: Inverso | I12: Aplica Incremento | J12: Ajuste | K12: Inverso Ajuste | L12: Cuota Nivelada Periodo | M12: Saldo | N12: Capital | O12: Interés (Dias Reales) | P12: Comision | Q12: IVA Comisión | R12: Seguro Daños | S12: IVA Seguro Daños | T12: Seguro Vida | U12: Seguro Interiores | V12: IVA Seguro Interiores | W12: Seguro Desempleo | X12: IVA Seguro Desempleo | Y12: Total a Pagar Ordinario | Z12: Tasa Pago Puntual | AA12: Saldo Pago Puntual | AB12: Capital Pago Puntual | AC12: Interés | AD12: Seguro Vida Pago Puntual | AE12: Total Pago Puntual | AF12: Aportación Capital Pago Puntual | AG12: Prepago | AH12: Total a Pagar Pago Puntual | AJ12: Total CAT
AJ13: =AJ10*-1 -> -977500
B14: 0 | C14: =IF(B14=0,FECHA_1ER_PAGO,DATE(YEAR(C13),MONTH(C13)+2,)) -> 2022-04-04 | D14: =IF(B14=0,C14-B10+1, C14-C13) -> 21 | E14: =ESQUEMA -> 0.089 | F14: =1 + D14 * E14 / 360 + FACTOR_SEG_DEUD -> 1.005991667 | G14: =IF(B14 = 0, 0, IF(G13=0, F14, G13 * F14 )) -> 0 | H14: =IF(G14=0, 0, 1/G14) -> 0 | I14: =MOD(B14, MESES_INC)=0 -> TRUE | J14: =IF(B14=0, 1, IF(I14,J12*(1+INCREMENTO),J12)) -> 1 | K14: =H14*J14 -> 0 | L14: =CUOTA_INIT*J14 -> 11107.67046 | M14: =IF(B14=0,TOTAL_FINANCIADO, M12-N12) -> 1000000 | N14: =IF(B14=0, 0, L14-O14-T14) -> 0 | O14: =M14 * D14 * E14 /360 -> 5191.666667 | P14: =COMISION_AMORT -> 299 | Q14: =P14*IVA -> 47.84 | R14: =SEGURO_DAÑOS_MENS -> 346.5641667 | S14: =R14*IVA -> 55.45026667 | T14: =M14 * FACTOR_SEG_DEUD -> 800 | U14: =SEGURO_INTERIORES -> 84.48275862 | V14: =U14*IVA -> 13.51724138 | W14: =SUM(N14:V14) * FACTOR_SEG_DESEMPLEO -> 67.01750678 | X14: =W14*IVA -> 10.72280108 | Y14: =IF(B14>=PLAZO, 0, SUM(N14:X14)) -> 6916.261408 | Z14: =ESQUEMA -> 0.089 | AA14: =IF(B14=0,TOTAL_FINANCIADO, MAX(ROUND(AA13-N13-AF13-AG13,2), 0)) -> 1000000 | AB14: =MIN(AA14,N14) -> 0 | AC14: =AA14 * D14 * Z14 /360 -> 5191.666667 | AD14: =AA14 * FACTOR_SEG_DEUD -> 800 | AE14: =IF(AA14>0, AB14+AC14+AD14+P14+Q14+R14+S14+U14+V14+W14+X14, 0) -> 6916.261408 | AF14: =IF(ACCION_EXCEDENTE_PP="MENOS PLAZO", IF(AA14>N14, ROUND(Y14-AE14, 2), 0), 0) -> 0 | AG14: ='Tabla Fijo'!E8+'Tabla Fijo'!H8 -> 0 | AH14: =AE14+AF14 -> 6916.261408 | AJ14: =IF(AA14> 0,AB14+AC14+AD14+P14+R14+U14+W14, 0) -> 6788.731099
B15: 1 | C15: =IF(B15=0,FECHA_1ER_PAGO,DATE(YEAR(C14),MONTH(C14)+1,4)) -> 2022-05-04 | D15: =IF(B15=0,C15-C10+1, C15-C14) -> 30 | E15: =IF(B15=0,TASA,IF(B15=MESES_INC_TASA,E14+INCREMENTO_TASA,E14)) -> 0.089 | F15: 1.008216667 | G15: =IF(B15 = 0, 0, IF(G14=0, F15, G14 * F15 )) -> 1.008216667 | H15: =IF(G15=0, 0, 1/G15) -> 0.9918502967 | I15: FALSE | J15: =IF(B15=0, 1, IF(I15,J14*(1+INCREMENTO),J14)) -> 1 | K15: 0.9918502967 | L15: 11107.67046 | M15: =IF(B15=0,TOTAL_FINANCIADO, M14-N14) -> 1000000 | N15: =IF(B15=0, 0, L15-O15-T15) -> 2891.003793 | O15: =M15 * D15 * E15 /360 -> 7416.666667 | P15: 299 | Q15: 47.84 | R15: =SEGURO_DAÑOS_MENS -> 346.5641667 | S15: 55.45026667 | T15: =M15 * FACTOR_SEG_DEUD -> 800 | U15: 84.48275862 | V15: 13.51724138 | W15: =SUM(N15:V15) * FACTOR_SEG_DESEMPLEO -> 117.154344 | X15: 18.74469503 | Y15: 12090.42393 | Z15: 0.089 | AA15: 1000000 | AB15: 2891.003793 | AC15: =AA15 * D15 * Z15 /360 -> 7416.666667 | AD15: 800 | AE15: =IF(AA15>0, AB15+AC15+AD15+P15+Q15+R15+S15+U15+V15+W15+X15, 0) -> 12090.42393 | AF15: 0 | AG15: ='Tabla Fijo'!E9+'Tabla Fijo'!H9 -> 0 | AH15: =AE15+AF15 -> 12090.42393 | AJ15: =IF(AA15> 0,AB15+AC15+AD15+P15+R15+U15+W15, 0) -> 11954.87173
B16: 2 | C16: 2022-06-04 | D16: =IF(B16=0,C16-'Parametros Fijo'!C9+1, C16-C15) -> 31 | E16: 0.089 | F16: 1.008463889 | G16: 1.016750101 | H16: 0.9835258433 | I16: FALSE | J16: 1 | K16: 0.9835258433 | L16: 11107.67046 | M16: 997108.9962 | N16: =IF(B16=0, 0, L16-O16-T16) -> 2668.250706 | O16: 7641.732557 | P16: 299 | Q16: 47.84 | R16: 346.5641667 | S16: 55.45026667 | T16: 797.687197 | U16: 84.48275862 | V16: 13.51724138 | W16: 117.154344 | X16: 18.74469503 | Y16: 12090.42393 | Z16: 0.089 | AA16: 997109 | AB16: =MIN(AA16,N16) -> 2668.250706 | AC16: 7641.732586 | AD16: 797.6872 | AE16: 12090.42396 | AF16: 0 | AG16: ='Tabla Fijo'!E10+'Tabla Fijo'!H10 -> 0 | AH16: =AE16+AF16 -> 12090.42396 | AJ16: 11954.87176
B17: 3 | C17: 2022-07-04 | D17: =IF(B17=0,C17-'Parametros Fijo'!C15+1, C17-C16) -> 30 | E17: 0.089 | F17: 1.008216667 | G17: 1.025104397 | H17: 0.9755103995 | I17: FALSE | J17: 1 | K17: 0.9755103995 | L17: 11107.67046 | M17: 994440.7455 | N17: 2936.682334 | O17: 7375.435529 | P17: 299 | Q17: 47.84 | R17: 346.5641667 | S17: 55.45026667 | T17: 795.5525964 | U17: 84.48275862 | V17: 13.51724138 | W17: 117.154344 | X17: 18.74469503 | Y17: 12090.42393 | Z17: 0.089 | AA17: 994440.75 | AB17: 2936.682334 | AC17: 7375.435563 | AD17: 795.5526 | AE17: 12090.42397 | AF17: 0 | AG17: ='Tabla Fijo'!E11+'Tabla Fijo'!H11 -> 0 | AH17: 12090.42397 | AJ17: 11954.87177
B18: 4 | C18: 2022-08-04 | D18: =IF(B18=0,C18-'Parametros Fijo'!C16+1, C18-C17) -> 31 | E18: 0.089 | F18: 1.008463889 | G18: 1.033780767 | H18: 0.9673230844 | I18: FALSE | J18: 1 | K18: 0.9673230844 | L18: 11107.67046 | M18: 991504.0632 | N18: 2715.690236 | O18: 7598.776973 | P18: 299 | Q18: 47.84 | R18: 346.5641667 | S18: 55.45026667 | T18: 793.2032505 | U18: 84.48275862 | V18: 13.51724138 | W18: 117.154344 | X18: 18.74469503 | Y18: 12090.42393 | Z18: 0.089 | AA18: 991504.07 | AB18: 2715.690236 | AC18: 7598.777025 | AD18: 793.203256 | AE18: 12090.42399 | AF18: 0 | AG18: ='Tabla Fijo'!E12+'Tabla Fijo'!H12 -> 0 | AH18: 12090.42399 | AJ18: 11954.87179
B19: 5 | C19: 2022-09-04 | D19: =IF(B19=0,C19-#REF!+1, C19-C18) -> 31 | E19: 0.089 | F19: 1.008463889 | G19: 1.042530572 | H19: 0.9592044842 | I19: FALSE | J19: 1 | K19: 0.9592044842 | L19: 11107.67046 | M19: 988788.3729 | N19: 2738.675537 | O19: 7577.964225 | P19: 299 | Q19: 47.84 | R19: 346.5641667 | S19: 55.45026667 | T19: 791.0306983 | U19: 84.48275862 | V19: 13.51724138 | W19: 117.154344 | X19: 18.74469503 | Y19: 12090.42393 | Z19: 0.089 | AA19: 988788.38 | AB19: 2738.675537 | AC19: 7577.964279 | AD19: 791.030704 | AE19: 12090.42399 | AF19: 0 | AG19: ='Tabla Fijo'!E13+'Tabla Fijo'!H13 -> 0 | AH19: 12090.42399 | AJ19: 11954.87179
B20: 6 | C20: 2022-10-04 | D20: =IF(B20=0,C20-C12+1, C20-C19) -> 30 | E20: 0.089 | F20: 1.008216667 | G20: 1.051096699 | H20: 0.9513872523 | I20: FALSE | J20: 1 | K20: 0.9513872523 | L20: 11107.67046 | M20: 986049.6974 | N20: 3005.628779 | O20: 7313.201922 | P20: 299 | Q20: 47.84 | R20: 346.5641667 | S20: 55.45026667 | T20: 788.8397579 | U20: 84.48275862 | V20: 13.51724138 | W20: 117.154344 | X20: 18.74469503 | Y20: 12090.42393 | Z20: 0.089 | AA20: 986049.7 | AB20: 3005.628779 | AC20: 7313.201942 | AD20: 788.83976 | AE20: 12090.42395 | AF20: 0 | AG20: ='Tabla Fijo'!E14+'Tabla Fijo'!H14 -> 0 | AH20: 12090.42395 | AJ20: 11954.87175
B21: 7 | C21: 2022-11-04 | D21: 31 | E21: 0.089 | F21: 1.008463889 | G21: 1.059993064 | H21: 0.9434023992 | I21: FALSE | J21: 1 | K21: 0.9434023992 | L21: 11107.67046 | M21: 983044.0686 | N21: 2787.29469 | O21: =M21 * D21 * E21 /360 -> 7533.940515 | P21: 299 | Q21: 47.84 | R21: 346.5641667 | S21: 55.45026667 | T21: 786.4352549 | U21: 84.48275862 | V21: 13.51724138 | W21: 117.154344 | X21: 18.74469503 | Y21: 12090.42393 | Z21: 0.089 | AA21: 983044.07 | AB21: 2787.29469 | AC21: 7533.940525 | AD21: 786.435256 | AE21: 12090.42394 | AF21: 0 | AG21: ='Tabla Fijo'!E15+'Tabla Fijo'!H15 -> 0 | AH21: 12090.42394 | AJ21: 11954.87174
B22: 8 | C22: 2022-12-04 | D22: 30 | E22: 0.089 | F22: 1.008216667 | G22: 1.068702674 | H22: 0.9357139496 | I22: FALSE | J22: 1 | K22: 0.9357139496 | L22: 11107.67046 | M22: 980256.7739 | N22: 3053.227301 | O22: 7270.23774 | P22: 299 | Q22: 47.84 | R22: 346.5641667 | S22: 55.45026667 | T22: 784.2054191 | U22: 84.48275862 | V22: 13.51724138 | W22: 117.154344 | X22: 18.74469503 | Y22: 12090.42393 | Z22: 0.089 | AA22: 980256.78 | AB22: 3053.227301 | AC22: 7270.237785 | AD22: 784.205424 | AE22: 12090.42398 | AF22: 0 | AG22: ='Tabla Fijo'!E16+'Tabla Fijo'!H16 -> 0 | AH22: 12090.42398 | AJ22: 11954.87178
B23: 9 | C23: 2023-01-04 | D23: 31 | E23: 0.089 | F23: 1.008463889 | G23: 1.077748055 | H23: 0.9278606402 | I23: FALSE | J23: =IF(B23=0, 1, IF(I23,J22*(1+INCREMENTO),J22)) -> 1 | K23: 0.9278606402 | L23: 11107.67046 | M23: 977203.5466 | N23: 2836.728219 | O23: 7489.179403 | P23: 299 | Q23: 47.84 | R23: 346.5641667 | S23: 55.45026667 | T23: 781.7628373 | U23: 84.48275862 | V23: 13.51724138 | W23: 117.154344 | X23: 18.74469503 | Y23: 12090.42393 | Z23: 0.089 | AA23: 977203.55 | AB23: 2836.728219 | AC23: 7489.179429 | AD23: 781.76284 | AE23: 12090.42396 | AF23: 0 | AG23: ='Tabla Fijo'!E17+'Tabla Fijo'!H17 -> 0 | AH23: 12090.42396 | AJ23: 11954.87176
B24: 10 | C24: 2023-02-04 | D24: 31 | E24: 0.089 | F24: 1.008463889 | G24: 1.086869994 | H24: 0.9200732425 | I24: FALSE | J24: 1 | K24: 0.9200732425 | L24: 11107.67046 | M24: 974366.8184 | N24: 2860.737972 | O24: 7467.439033 | P24: 299 | Q24: 47.84 | R24: 346.5641667 | S24: 55.45026667 | T24: 779.4934547 | U24: 84.48275862 | V24: 13.51724138 | W24: 117.154344 | X24: 18.74469503 | Y24: 12090.42393 | Z24: 0.089 | AA24: 974366.82 | AB24: 2860.737972 | AC24: 7467.439046 | AD24: 779.493456 | AE24: 12090.42395 | AF24: 0 | AG24: ='Tabla Fijo'!E18+'Tabla Fijo'!H18 -> 0 | AH24: 12090.42395 | AJ24: 11954.87174
B25: 11 | C25: 2023-03-04 | D25: 28 | E25: 0.089 | F25: 1.007722222 | G25: 1.095263046 | H25: 0.9130226785 | I25: FALSE | J25: 1 | K25: 0.9130226785 | L25: 11107.67046 | M25: 971506.0804 | N25: 3605.484616 | O25: 6724.980979 | P25: 299 | Q25: 47.84 | R25: 346.5641667 | S25: 55.45026667 | T25: 777.2048643 | U25: 84.48275862 | V25: 13.51724138 | W25: 117.154344 | X25: 18.74469503 | Y25: 12090.42393 | Z25: 0.089 | AA25: 971506.08 | AB25: 3605.484616 | AC25: 6724.980976 | AD25: 777.204864 | AE25: 12090.42393 | AF25: 0 | AG25: ='Tabla Fijo'!E19+'Tabla Fijo'!H19 -> 0 | AH25: 12090.42393 | AJ25: 11954.87173
B26: 12 | C26: 2023-04-04 | D26: 31 | E26: 0.089 | F26: 1.008463889 | G26: 1.104533231 | H26: 0.9053598136 | I26: TRUE | J26: 1 | K26: 0.9053598136 | L26: 11107.67046 | M26: 967900.5958 | N26: 2915.467361 | O26: 7417.882622 | P26: 299 | Q26: 47.84 | R26: 346.5641667 | S26: 55.45026667 | T26: 774.3204767 | U26: 84.48275862 | V26: 13.51724138 | W26: 117.154344 | X26: 18.74469503 | Y26: 12090.42393 | Z26: 0.089 | AA26: 967900.6 | AB26: 2915.467361 | AC26: 7417.882654 | AD26: 774.32048 | AE26: 12090.42397 | AF26: 0 | AG26: ='Tabla Fijo'!E20+'Tabla Fijo'!H20 -> 0 | AH26: 12090.42397 | AJ26: 11954.87176
B27: 13 | C27: 2023-05-04 | D27: 30 | E27: 0.089 | F27: 1.008216667 | G27: 1.113608812 | H27: 0.8979813998 | I27: FALSE | J27: 1 | K27: 0.8979813998 | L27: 11107.67046 | M27: 964985.1285 | N27: 3178.709321 | O27: 7156.973036 | P27: 299 | Q27: 47.84 | R27: 346.5641667 | S27: 55.45026667 | T27: 771.9881028 | U27: 84.48275862 | V27: 13.51724138 | W27: 117.154344 | X27: 18.74469503 | Y27: 12090.42393 | Z27: 0.089 | AA27: 964985.13 | AB27: 3178.709321 | AC27: 7156.973048 | AD27: 771.988104 | AE27: 12090.42394 | AF27: 0 | AG27: ='Tabla Fijo'!E21+'Tabla Fijo'!H21 -> 0 | AH27: 12090.42394 | AJ27: 11954.87174
B28: 14 | C28: 2023-06-04 | D28: 31 | E28: 0.089 | F28: 1.008463889 | G28: 1.123034273 | H28: 0.8904447742 | I28: FALSE | J28: 1 | K28: 0.8904447742 | L28: 11107.67046 | M28: 961806.4191 | N28: 2967.047796 | O28: 7371.177529 | P28: 299 | Q28: 47.84 | R28: 346.5641667 | S28: 55.45026667 | T28: 769.4451353 | U28: 84.48275862 | V28: 13.51724138 | W28: 117.154344 | X28: 18.74469503 | Y28: 12090.42393 | Z28: 0.089 | AA28: 961806.42 | AB28: 2967.047796 | AC28: 7371.177536 | AD28: 769.445136 | AE28: 12090.42394 | AF28: 0 | AG28: ='Tabla Fijo'!E22+'Tabla Fijo'!H22 -> 0 | AH28: 12090.42394 | AJ28: 11954.87174
B29: 15 | C29: 2023-07-04 | D29: 30 | E29: 0.089 | F29: 1.008216667 | G29: 1.132261872 | H29: 0.8831879135 | I29: FALSE | J29: 1 | K29: 0.8831879135 | L29: 11107.67046 | M29: 958839.3713 | N29: 3229.206959 | O29: 7111.392004 | P29: 299 | Q29: 47.84 | R29: 346.5641667 | S29: 55.45026667 | T29: 767.0714971 | U29: 84.48275862 | V29: 13.51724138 | W29: 117.154344 | X29: 18.74469503 | Y29: 12090.42393 | Z29: 0.089 | AA29: 958839.37 | AB29: 3229.206959 | AC29: 7111.391994 | AD29: 767.071496 | AE29: 12090.42392 | AF29: 0 | AG29: ='Tabla Fijo'!E23+'Tabla Fijo'!H23 -> 0 | AH29: 12090.42392 | AJ29: 11954.87172
B30: 16 | C30: 2023-08-04 | D30: 31 | E30: 0.089 | F30: 1.008463889 | G30: 1.14184521 | H30: 0.8757754474 | I30: FALSE | J30: 1 | K30: 0.8757754474 | L30: 11107.67046 | M30: 955610.1644 | N30: 3019.492207 | O30: 7323.690121 | P30: 299 | Q30: 47.84 | R30: 346.5641667 | S30: 55.45026667 | T30: 764.4881315 | U30: 84.48275862 | V30: 13.51724138 | W30: 117.154344 | X30: 18.74469503 | Y30: 12090.42393 | Z30: 0.089 | AA30: 955610.16 | AB30: 3019.492207 | AC30: 7323.690087 | AD30: 764.488128 | AE30: 12090.42389 | AF30: 0 | AG30: ='Tabla Fijo'!E24+'Tabla Fijo'!H24 -> 0 | AH30: 12090.42389 | AJ30: 11954.87169
B31: 17 | C31: 2023-09-04 | D31: 31 | E31: 0.089 | F31: 1.008463889 | G31: 1.151509661 | H31: 0.8684251931 | I31: FALSE | J31: 1 | K31: 0.8684251931 | L31: 11107.67046 | M31: 952590.6722 | N31: 3045.048854 | O31: 7300.549068 | P31: 299 | Q31: 47.84 | R31: 346.5641667 | S31: 55.45026667 | T31: 762.0725377 | U31: 84.48275862 | V31: 13.51724138 | W31: 117.154344 | X31: 18.74469503 | Y31: 12090.42393 | Z31: 0.089 | AA31: 952590.67 | AB31: 3045.048854 | AC31: 7300.549051 | AD31: 762.072536 | AE31: 12090.42391 | AF31: 0 | AG31: ='Tabla Fijo'!E25+'Tabla Fijo'!H25 -> 0 | AH31: 12090.42391 | AJ31: 11954.87171
B32: 18 | C32: 2023-10-04 | D32: 30 | E32: 0.089 | F32: 1.008216667 | G32: 1.160971232 | H32: 0.8613477854 | I32: FALSE | J32: 1 | K32: 0.8613477854 | L32: 11107.67046 | M32: 949545.6233 | N32: 3305.570588 | O32: 7042.463373 | P32: 299 | Q32: 47.84 | R32: 346.5641667 | S32: 55.45026667 | T32: 759.6364987 | U32: 84.48275862 | V32: 13.51724138 | W32: 117.154344 | X32: 18.74469503 | Y32: 12090.42393 | Z32: 0.089 | AA32: 949545.62 | AB32: 3305.570588 | AC32: 7042.463348 | AD32: 759.636496 | AE32: 12090.4239 | AF32: 0 | AG32: ='Tabla Fijo'!E26+'Tabla Fijo'!H26 -> 0 | AH32: 12090.4239 | AJ32: 11954.8717
B33: 19 | C33: 2023-11-04 | D33: 31 | E33: 0.089 | F33: 1.008463889 | G33: 1.170797564 | H33: 0.8541186203 | I33: FALSE | J33: 1 | K33: 0.8541186203 | L33: 11107.67046 | M33: 946240.0527 | N33: 3098.799791 | O33: 7251.878626 | P33: 299 | Q33: 47.84 | R33: 346.5641667 | S33: 55.45026667 | T33: 756.9920422 | U33: 84.48275862 | V33: 13.51724138 | W33: 117.154344 | X33: 18.74469503 | Y33: 12090.42393 | Z33: 0.089 | AA33: 946240.05 | AB33: 3098.799791 | AC33: 7251.878605 | AD33: 756.99204 | AE33: 12090.42391 | AF33: 0 | AG33: ='Tabla Fijo'!E27+'Tabla Fijo'!H27 -> 0 | AH33: 12090.42391 | AJ33: 11954.87171
B34: 20 | C34: 2023-12-04 | D34: 30 | E34: 0.089 | F34: 1.008216667 | G34: 1.180417617 | H34: 0.847157807 | I34: FALSE | J34: 1 | K34: 0.847157807 | L34: 11107.67046 | M34: 943141.2529 | N34: 3358.193165 | O34: 6994.964293 | P34: 299 | Q34: 47.84 | R34: 346.5641667 | S34: 55.45026667 | T34: 754.5130024 | U34: 84.48275862 | V34: 13.51724138 | W34: 117.154344 | X34: 18.74469503 | Y34: 12090.42393 | Z34: 0.089 | AA34: 943141.25 | AB34: 3358.193165 | AC34: 6994.964271 | AD34: 754.513 | AE34: 12090.42391 | AF34: 0 | AG34: ='Tabla Fijo'!E28+'Tabla Fijo'!H28 -> 0 | AH34: 12090.42391 | AJ34: 11954.8717
B35: 21 | C35: 2024-01-04 | D35: 31 | E35: 0.089 | F35: 1.008463889 | G35: 1.190408541 | H35: 0.8400477363 | I35: FALSE | J35: 1 | K35: 0.8400477363 | L35: 11107.67046 | M35: 939783.0598 | N35: 3153.451062 | O35: 7202.39295 | P35: 299 | Q35: 47.84 | R35: 346.5641667 | S35: 55.45026667 | T35: 751.8264478 | U35: 84.48275862 | V35: 13.51724138 | W35: 117.154344 | X35: 18.74469503 | Y35: 12090.42393 | Z35: 0.089 | AA35: 939783.06 | AB35: 3153.451062 | AC35: 7202.392952 | AD35: 751.826448 | AE35: 12090.42393 | AF35: 0 | AG35: ='Tabla Fijo'!E29+'Tabla Fijo'!H29 -> 0 | AH35: 12090.42393 | AJ35: 11954.87173
B36: 22 | C36: 2024-02-04 | D36: 31 | E36: 0.089 | F36: 1.008463889 | G36: 1.200484026 | H36: 0.8329973394 | I36: FALSE | J36: 1 | K36: 0.8329973394 | L36: 11107.67046 | M36: 936629.6087 | N36: 3180.141521 | O36: 7178.225251 | P36: 299 | Q36: 47.84 | R36: 346.5641667 | S36: 55.45026667 | T36: 749.303687 | U36: 84.48275862 | V36: 13.51724138 | W36: 117.154344 | X36: 18.74469503 | Y36: 12090.42393 | Z36: 0.089 | AA36: 936629.61 | AB36: 3180.141521 | AC36: 7178.225261 | AD36: 749.303688 | AE36: 12090.42394 | AF36: 0 | AG36: ='Tabla Fijo'!E30+'Tabla Fijo'!H30 -> 0 | AH36: 12090.42394 | AJ36: 11954.87174
B37: 23 | C37: 2024-03-04 | D37: 29 | E37: 0.089 | F37: 1.007969444 | G37: 1.210051217 | H37: 0.8264113004 | I37: FALSE | J37: 1 | K37: 0.8264113004 | L37: 11107.67046 | M37: 933449.4672 | N37: 3668.596789 | O37: 6692.314097 | P37: 299 | Q37: 47.84 | R37: 346.5641667 | S37: 55.45026667 | T37: 746.7595738 | U37: 84.48275862 | V37: 13.51724138 | W37: 117.154344 | X37: 18.74469503 | Y37: 12090.42393 | Z37: 0.089 | AA37: 933449.47 | AB37: 3668.596789 | AC37: 6692.314117 | AD37: 746.759576 | AE37: 12090.42395 | AF37: 0 | AG37: ='Tabla Fijo'!E31+'Tabla Fijo'!H31 -> 0 | AH37: 12090.42395 | AJ37: 11954.87175
B38: 24 | C38: 2024-04-04 | D38: 31 | E38: 0.089 | F38: 1.008463889 | G38: 1.220292956 | H38: 0.8194753521 | I38: TRUE | J38: 1 | K38: 0.8194753521 | L38: 11107.67046 | M38: 929780.8704 | N38: 3238.108482 | O38: 7125.737282 | P38: 299 | Q38: 47.84 | R38: 346.5641667 | S38: 55.45026667 | T38: 743.8246963 | U38: 84.48275862 | V38: 13.51724138 | W38: 117.154344 | X38: 18.74469503 | Y38: 12090.42393 | Z38: 0.089 | AA38: 929780.87 | AB38: 3238.108482 | AC38: 7125.737279 | AD38: 743.824696 | AE38: 12090.42393 | AF38: 0 | AG38: ='Tabla Fijo'!E32+'Tabla Fijo'!H32 -> 0 | AH38: 12090.42393 | AJ38: 11954.87173
B39: 25 | C39: 2024-05-04 | D39: 30 | E39: 0.089 | F39: 1.008216667 | G39: 1.230319697 | H39: 0.8127968712 | I39: FALSE | J39: 1 | K39: 0.8127968712 | L39: 11107.67046 | M39: 926542.7619 | N39: 3494.577433 | O39: 6871.858818 | P39: 299 | Q39: 47.84 | R39: 346.5641667 | S39: 55.45026667 | T39: 741.2342095 | U39: 84.48275862 | V39: 13.51724138 | W39: 117.154344 | X39: 18.74469503 | Y39: 12090.42393 | Z39: 0.089 | AA39: 926542.76 | AB39: 3494.577433 | AC39: 6871.858803 | AD39: 741.234208 | AE39: 12090.42392 | AF39: 0 | AG39: ='Tabla Fijo'!E33+'Tabla Fijo'!H33 -> 0 | AH39: 12090.42392 | AJ39: 11954.87171
B40: 26 | C40: 2024-06-04 | D40: 31 | E40: 0.089 | F40: 1.008463889 | G40: 1.240732986 | H40: 0.8059751867 | I40: FALSE | J40: 1 | K40: 0.8059751867 | L40: 11107.67046 | M40: 923048.1845 | N40: 3295.093187 | O40: 7074.138725 | P40: 299 | Q40: 47.84 | R40: 346.5641667 | S40: 55.45026667 | T40: 738.4385476 | U40: 84.48275862 | V40: 13.51724138 | W40: 117.154344 | X40: 18.74469503 | Y40: 12090.42393 | Z40: 0.089 | AA40: 923048.18 | AB40: 3295.093187 | AC40: 7074.138691 | AD40: 738.438544 | AE40: 12090.42389 | AF40: 0 | AG40: ='Tabla Fijo'!E34+'Tabla Fijo'!H34 -> 0 | AH40: 12090.42389 | AJ40: 11954.87169
B41: 27 | C41: 2024-07-04 | D41: 30 | E41: 0.089 | F41: 1.008216667 | G41: 1.250927675 | H41: 0.7994067281 | I41: FALSE | J41: 1 | K41: 0.7994067281 | L41: 11107.67046 | M41: 919753.0913 | N41: 3550.365893 | O41: 6821.502094 | P41: 299 | Q41: 47.84 | R41: 346.5641667 | S41: 55.45026667 | T41: 735.802473 | U41: 84.48275862 | V41: 13.51724138 | W41: 117.154344 | X41: 18.74469503 | Y41: 12090.42393 | Z41: 0.089 | AA41: 919753.09 | AB41: 3550.365893 | AC41: 6821.502084 | AD41: 735.802472 | AE41: 12090.42392 | AF41: 0 | AG41: ='Tabla Fijo'!E35+'Tabla Fijo'!H35 -> 0 | AH41: 12090.42392 | AJ41: 11954.87172
B42: 28 | C42: 2024-08-04 | D42: 31 | E42: 0.089 | F42: 1.008463889 | G42: 1.261515388 | H42: 0.7926974252 | I42: FALSE | J42: 1 | K42: 0.7926974252 | L42: 11107.67046 | M42: 916202.7254 | N42: 3353.032392 | O42: 7021.675887 | P42: 299 | Q42: 47.84 | R42: 346.5641667 | S42: 55.45026667 | T42: 732.9621803 | U42: 84.48275862 | V42: 13.51724138 | W42: 117.154344 | X42: 18.74469503 | Y42: 12090.42393 | Z42: 0.089 | AA42: 916202.72 | AB42: 3353.032392 | AC42: 7021.675846 | AD42: 732.962176 | AE42: 12090.42389 | AF42: 0 | AG42: ='Tabla Fijo'!E36+'Tabla Fijo'!H36 -> 0 | AH42: 12090.42389 | AJ42: 11954.87168
B43: 29 | C43: 2024-09-04 | D43: 31 | E43: 0.089 | F43: 1.008463889 | G43: 1.272192714 | H43: 0.7860444324 | I43: FALSE | J43: 1 | K43: 0.7860444324 | L43: 11107.67046 | M43: 912849.693 | N43: 3381.412086 | O43: 6995.97862 | P43: 299 | Q43: 47.84 | R43: 346.5641667 | S43: 55.45026667 | T43: 730.2797544 | U43: 84.48275862 | V43: 13.51724138 | W43: 117.154344 | X43: 18.74469503 | Y43: 12090.42393 | Z43: 0.089 | AA43: 912849.69 | AB43: 3381.412086 | AC43: 6995.978596 | AD43: 730.279752 | AE43: 12090.42391 | AF43: 0 | AG43: ='Tabla Fijo'!E37+'Tabla Fijo'!H37 -> 0 | AH43: 12090.42391 | AJ43: 11954.8717
B44: 30 | C44: 2024-10-04 | D44: 30 | E44: 0.089 | F44: 1.008216667 | G44: 1.282645898 | H44: 0.7796384036 | I44: FALSE | J44: 1 | K44: 0.7796384036 | L44: 11107.67046 | M44: 909468.2809 | N44: 3634.872751 | O44: 6745.223084 | P44: 299 | Q44: 47.84 | R44: 346.5641667 | S44: 55.45026667 | T44: 727.5746247 | U44: 84.48275862 | V44: 13.51724138 | W44: 117.154344 | X44: 18.74469503 | Y44: 12090.42393 | Z44: 0.089 | AA44: 909468.28 | AB44: 3634.872751 | AC44: 6745.223077 | AD44: 727.574624 | AE44: 12090.42392 | AF44: 0 | AG44: ='Tabla Fijo'!E38+'Tabla Fijo'!H38 -> 0 | AH44: 12090.42392 | AJ44: 11954.87172
B45: 31 | C45: 2024-11-04 | D45: 31 | E45: 0.089 | F45: 1.008463889 | G45: 1.29350207 | H45: 0.7730950133 | I45: FALSE | J45: 1 | K45: 0.7730950133 | L45: 11107.67046 | M45: 905833.4082 | N45: 3440.797141 | O45: 6942.206592 | P45: 299 | Q45: 47.84 | R45: 346.5641667 | S45: 55.45026667 | T45: 724.6667265 | U45: 84.48275862 | V45: 13.51724138 | W45: 117.154344 | X45: 18.74469503 | Y45: 12090.42393 | Z45: 0.089 | AA45: 905833.41 | AB45: 3440.797141 | AC45: 6942.206606 | AD45: 724.666728 | AE45: 12090.42395 | AF45: 0 | AG45: ='Tabla Fijo'!E39+'Tabla Fijo'!H39 -> 0 | AH45: 12090.42395 | AJ45: 11954.87174
B46: 32 | C46: 2024-12-04 | D46: 30 | E46: 0.089 | F46: 1.008216667 | G46: 1.304130345 | H46: 0.7667945183 | I46: FALSE | J46: 1 | K46: 0.7667945183 | L46: 11107.67046 | M46: 902392.611 | N46: 3693.011172 | O46: 6692.745199 | P46: 299 | Q46: 47.84 | R46: 346.5641667 | S46: 55.45026667 | T46: 721.9140888 | U46: 84.48275862 | V46: 13.51724138 | W46: 117.154344 | X46: 18.74469503 | Y46: 12090.42393 | Z46: 0.089 | AA46: 902392.61 | AB46: 3693.011172 | AC46: 6692.745191 | AD46: 721.914088 | AE46: 12090.42392 | AF46: 0 | AG46: ='Tabla Fijo'!E40+'Tabla Fijo'!H40 -> 0 | AH46: 12090.42392 | AJ46: 11954.87172
B47: 33 | C47: 2025-01-04 | D47: 31 | E47: 0.089 | F47: 1.008463889 | G47: 1.31516836 | H47: 0.7603589249 | I47: FALSE | J47: 1 | K47: 0.7603589249 | L47: 11107.67046 | M47: 898699.5999 | N47: 3501.176902 | O47: 6887.533878 | P47: 299 | Q47: 47.84 | R47: 346.5641667 | S47: 55.45026667 | T47: 718.9596799 | U47: 84.48275862 | V47: 13.51724138 | W47: 117.154344 | X47: 18.74469503 | Y47: 12090.42393 | Z47: 0.089 | AA47: 898699.6 | AB47: 3501.176902 | AC47: 6887.533879 | AD47: 718.95968 | AE47: 12090.42393 | AF47: 0 | AG47: ='Tabla Fijo'!E41+'Tabla Fijo'!H41 -> 0 | AH47: 12090.42393 | AJ47: 11954.87173
B48: 34 | C48: 2025-02-04 | D48: 31 | E48: 0.089 | F48: 1.008463889 | G48: 1.326299799 | H48: 0.7539773444 | I48: FALSE | J48: 1 | K48: 0.7539773444 | L48: 11107.67046 | M48: 895198.423 | N48: 3530.810474 | O48: 6860.701247 | P48: 299 | Q48: 47.84 | R48: 346.5641667 | S48: 55.45026667 | T48: 716.1587384 | U48: 84.48275862 | V48: 13.51724138 | W48: 117.154344 | X48: 18.74469503 | Y48: 12090.42393 | Z48: 0.089 | AA48: 895198.42 | AB48: 3530.810474 | AC48: 6860.701224 | AD48: 716.158736 | AE48: 12090.42391 | AF48: 0 | AG48: ='Tabla Fijo'!E42+'Tabla Fijo'!H42 -> 0 | AH48: 12090.42391 | AJ48: 11954.8717
B49: 35 | C49: 2025-03-04 | D49: 28 | E49: 0.089 | F49: 1.007722222 | G49: 1.33654178 | H49: 0.748199581 | I49: FALSE | J49: 1 | K49: 0.748199581 | L49: 11107.67046 | M49: 891667.6125 | N49: 4222.015008 | O49: 6172.321362 | P49: 299 | Q49: 47.84 | R49: 346.5641667 | S49: 55.45026667 | T49: 713.33409 | U49: 84.48275862 | V49: 13.51724138 | W49: 117.154344 | X49: 18.74469503 | Y49: 12090.42393 | Z49: 0.089 | AA49: 891667.61 | AB49: 4222.015008 | AC49: 6172.321345 | AD49: 713.334088 | AE49: 12090.42391 | AF49: 0 | AG49: ='Tabla Fijo'!E43+'Tabla Fijo'!H43 -> 0 | AH49: 12090.42391 | AJ49: 11954.87171
B50: 36 | C50: 2025-04-04 | D50: 31 | E50: 0.089 | F50: 1.008463889 | G50: 1.347854121 | H50: 0.7419200521 | I50: TRUE | J50: 1 | K50: 0.7419200521 | L50: 11107.67046 | M50: 887445.5975 | N50: 3596.429528 | O50: 6801.284454 | P50: 299 | Q50: 47.84 | R50: 346.5641667 | S50: 55.45026667 | T50: 709.956478 | U50: 84.48275862 | V50: 13.51724138 | W50: 117.154344 | X50: 18.74469503 | Y50: 12090.42393 | Z50: 0.089 | AA50: 887445.59 | AB50: 3596.429528 | AC50: 6801.284397 | AD50: 709.956472 | AE50: 12090.42387 | AF50: 0 | AG50: ='Tabla Fijo'!E44+'Tabla Fijo'!H44 -> 0 | AH50: 12090.42387 | AJ50: 11954.87167
B51: 37 | C51: 2025-05-04 | D51: 30 | E51: 0.089 | F51: 1.008216667 | G51: 1.35892899 | H51: 0.7358736238 | I51: FALSE | J51: 1 | K51: 0.7358736238 | L51: 11107.67046 | M51: 883849.168 | N51: 3845.376463 | O51: 6555.214662 | P51: 299 | Q51: 47.84 | R51: 346.5641667 | S51: 55.45026667 | T51: 707.0793344 | U51: 84.48275862 | V51: 13.51724138 | W51: 117.154344 | X51: 18.74469503 | Y51: 12090.42393 | Z51: 0.089 | AA51: 883849.16 | AB51: 3845.376463 | AC51: 6555.214603 | AD51: 707.079328 | AE51: 12090.42387 | AF51: 0 | AG51: ='Tabla Fijo'!E45+'Tabla Fijo'!H45 -> 0 | AH51: 12090.42387 | AJ51: 11954.87166
B52: 38 | C52: 2025-06-04 | D52: =IF(B52=0,C52-C44+1, C52-C51) -> 31 | E52: 0.089 | F52: 1.008463889 | G52: 1.370430814 | H52: 0.7296975449 | I52: FALSE | J52: 1 | K52: 0.7296975449 | L52: 11107.67046 | M52: 880003.7915 | N52: 3659.416147 | O52: 6744.25128 | P52: 299 | Q52: 47.84 | R52: 346.5641667 | S52: 55.45026667 | T52: 704.0030332 | U52: 84.48275862 | V52: 13.51724138 | W52: 117.154344 | X52: 18.74469503 | Y52: 12090.42393 | Z52: 0.089 | AA52: 880003.78 | AB52: 3659.416147 | AC52: 6744.251192 | AD52: 704.003024 | AE52: 12090.42383 | AF52: 0 | AG52: ='Tabla Fijo'!E46+'Tabla Fijo'!H46 -> 0 | AH52: 12090.42383 | AJ52: 11954.87163
B53: 39 | C53: 2025-07-04 | D53: 30 | E53: 0.089 | F53: 1.008216667 | G53: 1.381691187 | H53: 0.7237507264 | I53: FALSE | J53: 1 | K53: 0.7237507264 | L53: 11107.67046 | M53: 876344.3753 | N53: 3907.040842 | O53: 6499.554117 | P53: 299 | Q53: 47.84 | R53: 346.5641667 | S53: 55.45026667 | T53: 701.0755003 | U53: 84.48275862 | V53: 13.51724138 | W53: 117.154344 | X53: 18.74469503 | Y53: 12090.42393 | Z53: 0.089 | AA53: 876344.36 | AB53: 3907.040842 | AC53: 6499.554003 | AD53: 701.075488 | AE53: 12090.42381 | AF53: 0 | AG53: ='Tabla Fijo'!E47+'Tabla Fijo'!H47 -> 0 | AH53: 12090.42381 | AJ53: 11954.8716
B54: 40 | C54: 2025-08-04 | D54: 31 | E54: 0.089 | F54: 1.008463889 | G54: 1.393385667 | H54: 0.7176763931 | I54: FALSE | J54: 1 | K54: 0.7176763931 | L54: 11107.67046 | M54: 872437.3345 | N54: 3723.457798 | O54: 6686.262794 | P54: 299 | Q54: 47.84 | R54: 346.5641667 | S54: 55.45026667 | T54: 697.9498676 | U54: 84.48275862 | V54: 13.51724138 | W54: 117.154344 | X54: 18.74469503 | Y54: 12090.42393 | Z54: 0.089 | AA54: 872437.32 | AB54: 3723.457798 | AC54: 6686.262683 | AD54: 697.949856 | AE54: 12090.42381 | AF54: 0 | AG54: ='Tabla Fijo'!E48+'Tabla Fijo'!H48 -> 0 | AH54: 12090.42381 | AJ54: 11954.87161
B55: 41 | C55: 2025-09-04 | D55: 31 | E55: 0.089 | F55: 1.008463889 | G55: 1.405179129 | H55: 0.7116530409 | I55: FALSE | J55: 1 | K55: 0.7116530409 | L55: 11107.67046 | M55: 868713.8767 | N55: 3754.972731 | O55: 6657.726627 | P55: 299 | Q55: 47.84 | R55: 346.5641667 | S55: 55.45026667 | T55: 694.9711014 | U55: 84.48275862 | V55: 13.51724138 | W55: 117.154344 | X55: 18.74469503 | Y55: 12090.42393 | Z55: 0.089 | AA55: 868713.86 | AB55: 3754.972731 | AC55: 6657.726499 | AD55: 694.971088 | AE55: 12090.42379 | AF55: 0 | AG55: ='Tabla Fijo'!E49+'Tabla Fijo'!H49 -> 0 | AH55: 12090.42379 | AJ55: 11954.87159
B56: 42 | C56: 2025-10-04 | D56: 30 | E56: 0.089 | F56: 1.008216667 | G56: 1.416725017 | H56: 0.7058532798 | I56: FALSE | J56: 1 | K56: 0.7058532798 | L56: 11107.67046 | M56: 864958.904 | N56: 4000.591465 | O56: 6415.111871 | P56: 299 | Q56: 47.84 | R56: 346.5641667 | S56: 55.45026667 | T56: 691.9671232 | U56: 84.48275862 | V56: 13.51724138 | W56: 117.154344 | X56: 18.74469503 | Y56: 12090.42393 | Z56: 0.089 | AA56: 864958.89 | AB56: 4000.591465 | AC56: 6415.111767 | AD56: 691.967112 | AE56: 12090.42382 | AF56: 0 | AG56: ='Tabla Fijo'!E50+'Tabla Fijo'!H50 -> 0 | AH56: 12090.42382 | AJ56: 11954.87161
B57: 43 | C57: 2025-11-04 | D57: 31 | E57: 0.089 | F57: 1.008463889 | G57: 1.42871602 | H57: 0.6999291571 | I57: FALSE | J57: 1 | K57: 0.6999291571 | L57: 11107.67046 | M57: 860958.3125 | N57: 3820.614965 | O57: 6598.288845 | P57: 299 | Q57: 47.84 | R57: 346.5641667 | S57: 55.45026667 | T57: 688.76665 | U57: 84.48275862 | V57: 13.51724138 | W57: 117.154344 | X57: 18.74469503 | Y57: 12090.42393 | Z57: 0.089 | AA57: 860958.3 | AB57: 3820.614965 | AC57: 6598.288749 | AD57: 688.76664 | AE57: 12090.42383 | AF57: 0 | AG57: ='Tabla Fijo'!E51+'Tabla Fijo'!H51 -> 0 | AH57: 12090.42383 | AJ57: 11954.87162
B58: 44 | C58: 2025-12-04 | D58: 30 | E58: 0.089 | F58: 1.008216667 | G58: 1.440455304 | H58: 0.6942249422 | I58: FALSE | J58: 1 | K58: 0.6942249422 | L58: 11107.67046 | M58: 857137.6975 | N58: 4064.855712 | O58: 6357.10459 | P58: 299 | Q58: 47.84 | R58: 346.5641667 | S58: 55.45026667 | T58: 685.710158 | U58: 84.48275862 | V58: 13.51724138 | W58: 117.154344 | X58: 18.74469503 | Y58: 12090.42393 | Z58: 0.089 | AA58: 857137.69 | AB58: 4064.855712 | AC58: 6357.104534 | AD58: 685.710152 | AE58: 12090.42387 | AF58: 0 | AG58: ='Tabla Fijo'!E52+'Tabla Fijo'!H52 -> 0 | AH58: 12090.42387 | AJ58: 11954.87167
B59: 45 | C59: 2026-01-04 | D59: 31 | E59: 0.089 | F59: 1.008463889 | G59: 1.452647157 | H59: 0.6883984145 | I59: FALSE | J59: 1 | K59: 0.6883984145 | L59: 11107.67046 | M59: 853072.8418 | N59: 3887.356712 | O59: 6537.855474 | P59: 299 | Q59: 47.84 | R59: 346.5641667 | S59: 55.45026667 | T59: 682.4582735 | U59: 84.48275862 | V59: 13.51724138 | W59: 117.154344 | X59: 18.74469503 | Y59: 12090.42393 | Z59: 0.089 | AA59: 853072.83 | AB59: 3887.356712 | AC59: 6537.855383 | AD59: 682.458264 | AE59: 12090.42383 | AF59: 0 | AG59: ='Tabla Fijo'!E53+'Tabla Fijo'!H53 -> 0 | AH59: 12090.42383 | AJ59: 11954.87163
B60: 46 | C60: 2026-02-04 | D60: 31 | E60: 0.089 | F60: 1.008463889 | G60: 1.464942202 | H60: 0.682620788 | I60: FALSE | J60: 1 | K60: 0.682620788 | L60: 11107.67046 | M60: 849185.4851 | N60: 3920.258868 | O60: 6508.063204 | P60: 299 | Q60: 47.84 | R60: 346.5641667 | S60: 55.45026667 | T60: 679.3483881 | U60: 84.48275862 | V60: 13.51724138 | W60: 117.154344 | X60: 18.74469503 | Y60: 12090.42393 | Z60: 0.089 | AA60: 849185.47 | AB60: 3920.258868 | AC60: 6508.063088 | AD60: 679.348376 | AE60: 12090.4238 | AF60: 0 | AG60: ='Tabla Fijo'!E54+'Tabla Fijo'!H54 -> 0 | AH60: 12090.4238 | AJ60: 11954.8716
B61: 47 | C61: 2026-03-04 | D61: 28 | E61: 0.089 | F61: 1.007722222 | G61: 1.476254811 | H61: 0.6773898332 | I61: FALSE | J61: 1 | K61: 0.6773898332 | L61: 11107.67046 | M61: 845265.2263 | N61: 4580.344546 | O61: 5851.113733 | P61: 299 | Q61: 47.84 | R61: 346.5641667 | S61: 55.45026667 | T61: 676.212181 | U61: 84.48275862 | V61: 13.51724138 | W61: 117.154344 | X61: 18.74469503 | Y61: 12090.42393 | Z61: 0.089 | AA61: 845265.21 | AB61: 4580.344546 | AC61: 5851.11362 | AD61: 676.212168 | AE61: 12090.42381 | AF61: 0 | AG61: ='Tabla Fijo'!E55+'Tabla Fijo'!H55 -> 0 | AH61: 12090.42381 | AJ61: 11954.8716
B62: 48 | C62: 2026-04-04 | D62: 31 | E62: 0.089 | F62: 1.008463889 | G62: 1.488749667 | H62: 0.6717046001 | I62: TRUE | J62: 1 | K62: 0.6717046001 | L62: 11107.67046 | M62: 840684.8817 | N62: 3992.20703 | O62: 6442.915524 | P62: 299 | Q62: 47.84 | R62: 346.5641667 | S62: 55.45026667 | T62: 672.5479054 | U62: 84.48275862 | V62: 13.51724138 | W62: 117.154344 | X62: 18.74469503 | Y62: 12090.42393 | Z62: 0.089 | AA62: 840684.87 | AB62: 3992.20703 | AC62: 6442.915434 | AD62: 672.547896 | AE62: 12090.42383 | AF62: 0 | AG62: ='Tabla Fijo'!E56+'Tabla Fijo'!H56 -> 0 | AH62: 12090.42383 | AJ62: 11954.87163
B63: 49 | C63: 2026-05-04 | D63: 30 | E63: 0.089 | F63: 1.008216667 | G63: 1.500982227 | H63: 0.6662304069 | I63: FALSE | J63: 1 | K63: 0.6662304069 | L63: 11107.67046 | M63: 836692.6747 | N63: 4232.845649 | O63: 6205.470671 | P63: 299 | Q63: 47.84 | R63: 346.5641667 | S63: 55.45026667 | T63: 669.3541397 | U63: 84.48275862 | V63: 13.51724138 | W63: 117.154344 | X63: 18.74469503 | Y63: 12090.42393 | Z63: 0.089 | AA63: 836692.66 | AB63: 4232.845649 | AC63: 6205.470562 | AD63: 669.354128 | AE63: 12090.42381 | AF63: 0 | AG63: ='Tabla Fijo'!E57+'Tabla Fijo'!H57 -> 0 | AH63: 12090.42381 | AJ63: 11954.87161
B64: 50 | C64: 2026-06-04 | D64: 31 | E64: 0.089 | F64: 1.008463889 | G64: 1.513686374 | H64: 0.6606388332 | I64: FALSE | J64: 1 | K64: 0.6606388332 | L64: 11107.67046 | M64: 832459.829 | N64: 4061.822962 | O64: 6379.879634 | P64: 299 | Q64: 47.84 | R64: 346.5641667 | S64: 55.45026667 | T64: 665.9678632 | U64: 84.48275862 | V64: 13.51724138 | W64: 117.154344 | X64: 18.74469503 | Y64: 12090.42393 | Z64: 0.089 | AA64: 832459.81 | AB64: 4061.822962 | AC64: 6379.879488 | AD64: 665.967848 | AE64: 12090.42377 | AF64: 0 | AG64: ='Tabla Fijo'!E58+'Tabla Fijo'!H58 -> 0 | AH64: 12090.42377 | AJ64: 11954.87157
B65: 51 | C65: 2026-07-04 | D65: 30 | E65: 0.089 | F65: 1.008216667 | G65: 1.52612383 | H65: 0.6552548228 | I65: FALSE | J65: 1 | K65: 0.6552548228 | L65: 11107.67046 | M65: 828398.0061 | N65: 4301.000177 | O65: 6143.951878 | P65: 299 | Q65: 47.84 | R65: 346.5641667 | S65: 55.45026667 | T65: 662.7184049 | U65: 84.48275862 | V65: 13.51724138 | W65: 117.154344 | X65: 18.74469503 | Y65: 12090.42393 | Z65: 0.089 | AA65: 828397.99 | AB65: 4301.000177 | AC65: 6143.951759 | AD65: 662.718392 | AE65: 12090.4238 | AF65: 0 | AG65: ='Tabla Fijo'!E59+'Tabla Fijo'!H59 -> 0 | AH65: 12090.4238 | AJ65: 11954.8716
B66: 52 | C66: 2026-08-04 | D66: 31 | E66: 0.089 | F66: 1.008463889 | G66: 1.539040773 | H66: 0.6497553655 | I66: FALSE | J66: 1 | K66: 0.6497553655 | L66: 11107.67046 | M66: 824097.0059 | N66: 4132.604968 | O66: 6315.787887 | P66: 299 | Q66: 47.84 | R66: 346.5641667 | S66: 55.45026667 | T66: 659.2776047 | U66: 84.48275862 | V66: 13.51724138 | W66: 117.154344 | X66: 18.74469503 | Y66: 12090.42393 | Z66: 0.089 | AA66: 824096.99 | AB66: 4132.604968 | AC66: 6315.787765 | AD66: 659.277592 | AE66: 12090.4238 | AF66: 0 | AG66: ='Tabla Fijo'!E60+'Tabla Fijo'!H60 -> 0 | AH66: 12090.4238 | AJ66: 11954.87159
B67: 53 | C67: 2026-09-04 | D67: 31 | E67: 0.089 | F67: 1.008463889 | G67: 1.552067043 | H67: 0.6443020645 | I67: FALSE | J67: 1 | K67: 0.6443020645 | L67: 11107.67046 | M67: 819964.4009 | N67: 4167.582877 | O67: 6284.116061 | P67: 299 | Q67: 47.84 | R67: 346.5641667 | S67: 55.45026667 | T67: 655.9715207 | U67: 84.48275862 | V67: 13.51724138 | W67: 117.154344 | X67: 18.74469503 | Y67: 12090.42393 | Z67: 0.089 | AA67: 819964.39 | AB67: 4167.582877 | AC67: 6284.115978 | AD67: 655.971512 | AE67: 12090.42384 | AF67: 0 | AG67: ='Tabla Fijo'!E61+'Tabla Fijo'!H61 -> 0 | AH67: 12090.42384 | AJ67: 11954.87164
B68: 54 | C68: 2026-10-04 | D68: 30 | E68: 0.089 | F68: 1.008216667 | G68: 1.564819861 | H68: 0.6390511938 | I68: FALSE | J68: 1 | K68: 0.6390511938 | L68: 11107.67046 | M68: 815796.818 | N68: 4404.539938 | O68: 6050.493067 | P68: 299 | Q68: 47.84 | R68: 346.5641667 | S68: 55.45026667 | T68: 652.6374544 | U68: 84.48275862 | V68: 13.51724138 | W68: 117.154344 | X68: 18.74469503 | Y68: 12090.42393 | Z68: 0.089 | AA68: 815796.81 | AB68: 4404.539938 | AC68: 6050.493008 | AD68: 652.637448 | AE68: 12090.42387 | AF68: 0 | AG68: ='Tabla Fijo'!E62+'Tabla Fijo'!H62 -> 0 | AH68: 12090.42387 | AJ68: 11954.87166
B69: 55 | C69: 2026-11-04 | D69: 31 | E69: 0.089 | F69: 1.008463889 | G69: 1.578064322 | H69: 0.6336877313 | I69: FALSE | J69: 1 | K69: 0.6336877313 | L69: 11107.67046 | M69: 811392.2781 | N69: 4240.136373 | O69: 6218.420265 | P69: 299 | Q69: 47.84 | R69: 346.5641667 | S69: 55.45026667 | T69: 649.1138225 | U69: 84.48275862 | V69: 13.51724138 | W69: 117.154344 | X69: 18.74469503 | Y69: 12090.42393 | Z69: 0.089 | AA69: 811392.27 | AB69: 4240.136373 | AC69: 6218.420203 | AD69: 649.113816 | AE69: 12090.42386 | AF69: 0 | AG69: ='Tabla Fijo'!E63+'Tabla Fijo'!H63 -> 0 | AH69: 12090.42386 | AJ69: 11954.87166
B70: 56 | C70: 2026-12-04 | D70: 30 | E70: 0.089 | F70: 1.008216667 | G70: 1.591030751 | H70: 0.6285233643 | I70: FALSE | J70: 1 | K70: 0.6285233643 | L70: 11107.67046 | M70: 807152.1417 | N70: 4475.570362 | O70: 5986.378385 | P70: 299 | Q70: 47.84 | R70: 346.5641667 | S70: 55.45026667 | T70: 645.7217134 | U70: 84.48275862 | V70: 13.51724138 | W70: 117.154344 | X70: 18.74469503 | Y70: 12090.42393 | Z70: 0.089 | AA70: 807152.13 | AB70: 4475.570362 | AC70: 5986.378298 | AD70: 645.721704 | AE70: 12090.42384 | AF70: 0 | AG70: ='Tabla Fijo'!E64+'Tabla Fijo'!H64 -> 0 | AH70: 12090.42384 | AJ70: 11954.87163
B71: 57 | C71: 2027-01-04 | D71: 31 | E71: 0.089 | F71: 1.008463889 | G71: 1.604497058 | H71: 0.6232482603 | I71: FALSE | J71: 1 | K71: 0.6232482603 | L71: 11107.67046 | M71: 802676.5714 | N71: 4313.905146 | O71: 6151.624057 | P71: 299 | Q71: 47.84 | R71: 346.5641667 | S71: 55.45026667 | T71: 642.1412571 | U71: 84.48275862 | V71: 13.51724138 | W71: 117.154344 | X71: 18.74469503 | Y71: 12090.42393 | Z71: 0.089 | AA71: 802676.56 | AB71: 4313.905146 | AC71: 6151.62397 | AD71: 642.141248 | AE71: 12090.42384 | AF71: 0 | AG71: ='Tabla Fijo'!E65+'Tabla Fijo'!H65 -> 0 | AH71: 12090.42384 | AJ71: 11954.87163
B72: 58 | C72: 2027-02-04 | D72: 31 | E72: 0.089 | F72: 1.008463889 | G72: 1.618077343 | H72: 0.6180174294 | I72: FALSE | J72: 1 | K72: 0.6180174294 | L72: 11107.67046 | M72: 798362.6662 | N72: 4350.41756 | O72: 6118.562767 | P72: 299 | Q72: 47.84 | R72: 346.5641667 | S72: 55.45026667 | T72: 638.690133 | U72: 84.48275862 | V72: 13.51724138 | W72: 117.154344 | X72: 18.74469503 | Y72: 12090.42393 | Z72: 0.089 | AA72: 798362.65 | AB72: 4350.41756 | AC72: 6118.562643 | AD72: 638.69012 | AE72: 12090.42379 | AF72: 0 | AG72: ='Tabla Fijo'!E66+'Tabla Fijo'!H66 -> 0 | AH72: 12090.42379 | AJ72: 11954.87159
B73: 59 | C73: 2027-03-04 | D73: 28 | E73: 0.089 | F73: 1.007722222 | G73: 1.630572496 | H73: 0.6132815331 | I73: FALSE | J73: 1 | K73: 0.6132815331 | L73: 11107.67046 | M73: 794012.2487 | N73: 4976.131428 | O73: 5496.329232 | P73: 299 | Q73: 47.84 | R73: 346.5641667 | S73: 55.45026667 | T73: 635.2097989 | U73: 84.48275862 | V73: 13.51724138 | W73: 117.154344 | X73: 18.74469503 | Y73: 12090.42393 | Z73: 0.089 | AA73: 794012.23 | AB73: 4976.131428 | AC73: 5496.329103 | AD73: 635.209784 | AE73: 12090.42379 | AF73: 0 | AG73: ='Tabla Fijo'!E67+'Tabla Fijo'!H67 -> 0 | AH73: 12090.42379 | AJ73: 11954.87158
B74: 60 | C74: 2027-04-04 | D74: 31 | E74: 0.089 | F74: 1.008463889 | G74: 1.64437348 | H74: 0.6081343515 | I74: TRUE | J74: 1 | K74: 0.6081343515 | L74: 11107.67046 | M74: 789036.1172 | N74: 4429.356434 | O74: 6047.085132 | P74: 299 | Q74: 47.84 | R74: 346.5641667 | S74: 55.45026667 | T74: 631.2288938 | U74: 84.48275862 | V74: 13.51724138 | W74: 117.154344 | X74: 18.74469503 | Y74: 12090.42393 | Z74: 0.089 | AA74: 789036.1 | AB74: 4429.356434 | AC74: 6047.085 | AD74: 631.22888 | AE74: 12090.42379 | AF74: 0 | AG74: ='Tabla Fijo'!E68+'Tabla Fijo'!H68 -> 0 | AH74: 12090.42379 | AJ74: 11954.87158
B75: 61 | C75: 2027-05-04 | D75: 30 | E75: 0.089 | F75: 1.008216667 | G75: 1.657884749 | H75: 0.603178237 | I75: FALSE | J75: 1 | K75: 0.603178237 | L75: 11107.67046 | M75: 784606.7608 | N75: 4660.818242 | O75: 5819.166809 | P75: 299 | Q75: 47.84 | R75: 346.5641667 | S75: 55.45026667 | T75: 627.6854086 | U75: 84.48275862 | V75: 13.51724138 | W75: 117.154344 | X75: 18.74469503 | Y75: 12090.42393 | Z75: 0.089 | AA75: 784606.74 | AB75: 4660.818242 | AC75: 5819.166655 | AD75: 627.685392 | AE75: 12090.42376 | AF75: 0 | AG75: ='Tabla Fijo'!E69+'Tabla Fijo'!H69 -> 0 | AH75: 12090.42376 | AJ75: 11954.87156
B76: 62 | C76: 2027-06-04 | D76: 31 | E76: 0.089 | F76: 1.008463889 | G76: 1.671916901 | H76: 0.5981158509 | I76: FALSE | J76: 1 | K76: 0.5981158509 | L76: 11107.67046 | M76: 779945.9426 | N76: 4506.294663 | O76: 5977.419043 | P76: 299 | Q76: 47.84 | R76: 346.5641667 | S76: 55.45026667 | T76: 623.956754 | U76: 84.48275862 | V76: 13.51724138 | W76: 117.154344 | X76: 18.74469503 | Y76: 12090.42393 | Z76: 0.089 | AA76: 779945.92 | AB76: 4506.294663 | AC76: 5977.41887 | AD76: 623.956736 | AE76: 12090.42374 | AF76: 0 | AG76: ='Tabla Fijo'!E70+'Tabla Fijo'!H70 -> 0 | AH76: 12090.42374 | AJ76: 11954.87154
B77: 63 | C77: 2027-07-04 | D77: 30 | E77: 0.089 | F77: 1.008216667 | G77: 1.685654485 | H77: 0.5932413842 | I77: FALSE | J77: 1 | K77: 0.5932413842 | L77: 11107.67046 | M77: 775439.6479 | N77: 4736.141353 | O77: 5751.177389 | P77: 299 | Q77: 47.84 | R77: 346.5641667 | S77: 55.45026667 | T77: 620.3517183 | U77: 84.48275862 | V77: 13.51724138 | W77: 117.154344 | X77: 18.74469503 | Y77: 12090.42393 | Z77: 0.089 | AA77: 775439.63 | AB77: 4736.141353 | AC77: 5751.177256 | AD77: 620.351704 | AE77: 12090.42378 | AF77: 0 | AG77: ='Tabla Fijo'!E71+'Tabla Fijo'!H71 -> 0 | AH77: 12090.42378 | AJ77: 11954.87158
B78: 64 | C78: 2027-08-04 | D78: 31 | E78: =IF(B78=0,TASA,IF(B78=MESES_INC_TASA,E77+INCREMENTO_TASA,E77)) -> 0.089 | F78: =1 + D78 * E78 / 360 + FACTOR_SEG_DEUD -> 1.008463889 | G78: 1.699921677 | H78: 0.5882623967 | I78: =MOD(B78, MESES_INC)=0 -> FALSE | J78: 1 | K78: =H78*J78 -> 0.5882623967 | L78: =CUOTA_INIT*J78 -> 11107.67046 | M78: 770703.5065 | N78: 4584.521614 | O78: =M78 * D78 * E78 /360 -> 5906.58604 | P78: =COMISION_AMORT -> 299 | Q78: =P78*IVA -> 47.84 | R78: =SEGURO_DAÑOS_MENS -> 346.5641667 | S78: =R78*IVA -> 55.45026667 | T78: =M78 * FACTOR_SEG_DEUD -> 616.5628052 | U78: =SEGURO_INTERIORES -> 84.48275862 | V78: =U78*IVA -> 13.51724138 | W78: =SUM(N78:V78) * FACTOR_SEG_DESEMPLEO -> 117.154344 | X78: =W78*IVA -> 18.74469503 | Y78: =IF(B78>=PLAZO, 0, SUM(N78:X78)) -> 12090.42393 | Z78: =ESQUEMA -> 0.089 | AA78: =IF(B78=0,TOTAL_FINANCIADO, MAX(ROUND(AA77-N77-AF77-AG77,2), 0)) -> 770703.49 | AB78: =MIN(AA78,N78) -> 4584.521614 | AC78: =AA78 * D78 * Z78 /360 -> 5906.585914 | AD78: =AA78 * FACTOR_SEG_DEUD -> 616.562792 | AE78: =IF(AA78>0, AB78+AC78+AD78+P78+Q78+R78+S78+U78+V78+W78+X78, 0) -> 12090.42379 | AF78: =IF(ACCION_EXCEDENTE_PP="MENOS PLAZO", IF(AA78>N78, ROUND(Y78-AE78, 2), 0), 0) -> 0 | AG78: ='Tabla Fijo'!E72+'Tabla Fijo'!H72 -> 0 | AH78: 12090.42379 | AJ78: =IF(AA78> 0,AB78+AC78+AD78+P78+R78+U78+W78, 0) -> 11954.87159
B79: 65 | C79: =IF(B79=0,FECHA_1ER_PAGO,DATE(YEAR(C78),MONTH(C78)+1,4)) -> 2027-09-04 | D79: =IF(B79=0,C79-C71+1, C79-C78) -> 31 | E79: 0.089 | F79: 1.008463889 | G79: =IF(B79 = 0, 0, IF(G78=0, F79, G78 * F79 )) -> 1.714309625 | H79: =IF(G79=0, 0, 1/G79) -> 0.583325197 | I79: FALSE | J79: =IF(B79=0, 1, IF(I79,J78*(1+INCREMENTO),J78)) -> 1 | K79: 0.583325197 | L79: 11107.67046 | M79: =IF(B79=0,TOTAL_FINANCIADO, M78-N78) -> 766118.9849 | N79: =IF(B79=0, 0, L79-O79-T79) -> 4623.324496 | O79: 5871.450776 | P79: 299 | Q79: 47.84 | R79: 346.5641667 | S79: 55.45026667 | T79: 612.8951879 | U79: 84.48275862 | V79: 13.51724138 | W79: 117.154344 | X79: 18.74469503 | Y79: 12090.42393 | Z79: 0.089 | AA79: 766118.97 | AB79: 4623.324496 | AC79: 5871.450662 | AD79: 612.895176 | AE79: 12090.42381 | AF79: 0 | AG79: ='Tabla Fijo'!E73+'Tabla Fijo'!H73 -> 0 | AH79: =AE79+AF79 -> 12090.42381 | AJ79: 11954.8716
B80: 66 | C80: 2027-10-04 | D80: 30 | E80: 0.089 | F80: 1.008216667 | G80: 1.728395536 | H80: 0.5785712697 | I80: FALSE | J80: 1 | K80: 0.5785712697 | L80: 11107.67046 | M80: 761495.6604 | N80: 4850.71445 | O80: 5647.759482 | P80: 299 | Q80: 47.84 | R80: 346.5641667 | S80: 55.45026667 | T80: 609.1965283 | U80: 84.48275862 | V80: 13.51724138 | W80: 117.154344 | X80: 18.74469503 | Y80: 12090.42393 | Z80: 0.089 | AA80: 761495.65 | AB80: 4850.71445 | AC80: 5647.759404 | AD80: 609.19652 | AE80: 12090.42385 | AF80: 0 | AG80: ='Tabla Fijo'!E74+'Tabla Fijo'!H74 -> 0 | AH80: 12090.42385 | AJ80: 11954.87164
B81: 67 | C81: 2027-11-04 | D81: 31 | E81: 0.089 | F81: 1.008463889 | G81: 1.743024484 | H81: 0.5737154063 | I81: FALSE | J81: 1 | K81: 0.5737154063 | L81: 11107.67046 | M81: 756644.946 | N81: 4703.511709 | O81: 5798.842794 | P81: 299 | Q81: 47.84 | R81: 346.5641667 | S81: 55.45026667 | T81: 605.3159568 | U81: 84.48275862 | V81: 13.51724138 | W81: 117.154344 | X81: 18.74469503 | Y81: 12090.42393 | Z81: 0.089 | AA81: 756644.94 | AB81: 4703.511709 | AC81: 5798.842749 | AD81: 605.315952 | AE81: 12090.42388 | AF81: 0 | AG81: ='Tabla Fijo'!E75+'Tabla Fijo'!H75 -> 0 | AH81: 12090.42388 | AJ81: 11954.87168
B82: 68 | C82: 2027-12-04 | D82: 30 | E82: 0.089 | F82: 1.008216667 | G82: 1.757346335 | H82: 0.569039796 | I82: FALSE | J82: 1 | K82: 0.569039796 | L82: 11107.67046 | M82: 751941.4343 | N82: 4929.218341 | O82: 5576.898971 | P82: 299 | Q82: 47.84 | R82: 346.5641667 | S82: 55.45026667 | T82: 601.5531474 | U82: 84.48275862 | V82: 13.51724138 | W82: 117.154344 | X82: 18.74469503 | Y82: 12090.42393 | Z82: 0.089 | AA82: 751941.43 | AB82: 4929.218341 | AC82: 5576.898939 | AD82: 601.553144 | AE82: 12090.4239 | AF82: 0 | AG82: ='Tabla Fijo'!E76+'Tabla Fijo'!H76 -> 0 | AH82: 12090.4239 | AJ82: 11954.87169
B83: 69 | C83: 2028-01-04 | D83: 31 | E83: 0.089 | F83: 1.008463889 | G83: 1.772220319 | H83: 0.5642639288 | I83: FALSE | J83: 1 | K83: 0.5642639288 | L83: 11107.67046 | M83: 747012.2159 | N83: 4785.042065 | O83: 5725.018622 | P83: 299 | Q83: 47.84 | R83: 346.5641667 | S83: 55.45026667 | T83: 597.6097727 | U83: 84.48275862 | V83: 13.51724138 | W83: 117.154344 | X83: 18.74469503 | Y83: 12090.42393 | Z83: 0.089 | AA83: 747012.21 | AB83: 4785.042065 | AC83: 5725.018576 | AD83: 597.609768 | AE83: 12090.42388 | AF83: 0 | AG83: ='Tabla Fijo'!E77+'Tabla Fijo'!H77 -> 0 | AH83: 12090.42388 | AJ83: 11954.87168
B84: 70 | C84: 2028-02-04 | D84: 31 | E84: 0.089 | F84: 1.008463889 | G84: 1.787220195 | H84: 0.5595281447 | I84: FALSE | J84: 1 | K84: 0.5595281447 | L84: 11107.67046 | M84: 742227.1739 | N84: 4825.54213 | O84: 5688.346591 | P84: 299 | Q84: 47.84 | R84: 346.5641667 | S84: 55.45026667 | T84: 593.7817391 | U84: 84.48275862 | V84: 13.51724138 | W84: 117.154344 | X84: 18.74469503 | Y84: 12090.42393 | Z84: 0.089 | AA84: 742227.17 | AB84: 4825.54213 | AC84: 5688.346561 | AD84: 593.781736 | AE84: 12090.4239 | AF84: 0 | AG84: ='Tabla Fijo'!E78+'Tabla Fijo'!H78 -> 0 | AH84: 12090.4239 | AJ84: 11954.8717
B85: 71 | C85: 2028-03-04 | D85: 29 | E85: 0.089 | F85: 1.007969444 | G85: 1.801463347 | H85: 0.5551042721 | I85: FALSE | J85: 1 | K85: 0.5551042721 | L85: 11107.67046 | M85: 737401.6317 | N85: 5230.989122 | O85: 5286.760032 | P85: 299 | Q85: 47.84 | R85: 346.5641667 | S85: 55.45026667 | T85: 589.9213054 | U85: 84.48275862 | V85: 13.51724138 | W85: 117.154344 | X85: 18.74469503 | Y85: 12090.42393 | Z85: 0.089 | AA85: 737401.63 | AB85: 5230.989122 | AC85: 5286.76002 | AD85: 589.921304 | AE85: 12090.42392 | AF85: 0 | AG85: ='Tabla Fijo'!E79+'Tabla Fijo'!H79 -> 0 | AH85: 12090.42392 | AJ85: 11954.87172
B86: 72 | C86: 2028-04-04 | D86: 31 | E86: 0.089 | F86: 1.008463889 | G86: 1.816710733 | H86: 0.5504453637 | I86: TRUE | J86: 1 | K86: 0.5504453637 | L86: 11107.67046 | M86: 732170.6426 | N86: 4910.659493 | O86: 5611.274453 | P86: 299 | Q86: 47.84 | R86: 346.5641667 | S86: 55.45026667 | T86: 585.7365141 | U86: 84.48275862 | V86: 13.51724138 | W86: 117.154344 | X86: 18.74469503 | Y86: 12090.42393 | Z86: 0.089 | AA86: 732170.64 | AB86: 4910.659493 | AC86: 5611.274433 | AD86: 585.736512 | AE86: 12090.42391 | AF86: 0 | AG86: ='Tabla Fijo'!E80+'Tabla Fijo'!H80 -> 0 | AH86: 12090.42391 | AJ86: 11954.87171
B87: 73 | C87: 2028-05-04 | D87: 30 | E87: 0.089 | F87: 1.008216667 | G87: 1.831638039 | H87: 0.5459593973 | I87: FALSE | J87: 1 | K87: 0.5459593973 | L87: 11107.67046 | M87: 727259.9831 | N87: 5132.017598 | O87: 5393.844875 | P87: 299 | Q87: 47.84 | R87: 346.5641667 | S87: 55.45026667 | T87: 581.8079865 | U87: 84.48275862 | V87: 13.51724138 | W87: 117.154344 | X87: 18.74469503 | Y87: 12090.42393 | Z87: 0.089 | AA87: 727259.98 | AB87: 5132.017598 | AC87: 5393.844852 | AD87: 581.807984 | AE87: 12090.42391 | AF87: 0 | AG87: ='Tabla Fijo'!E81+'Tabla Fijo'!H81 -> 0 | AH87: 12090.42391 | AJ87: 11954.8717
B88: 74 | C88: 2028-06-04 | D88: 31 | E88: 0.089 | F88: 1.008463889 | G88: 1.84714082 | H88: 0.5413772405 | I88: FALSE | J88: 1 | K88: 0.5413772405 | L88: 11107.67046 | M88: 722127.9655 | N88: 4995.659596 | O88: 5534.308491 | P88: 299 | Q88: 47.84 | R88: 346.5641667 | S88: 55.45026667 | T88: 577.7023724 | U88: 84.48275862 | V88: 13.51724138 | W88: 117.154344 | X88: 18.74469503 | Y88: 12090.42393 | Z88: 0.089 | AA88: 722127.96 | AB88: 4995.659596 | AC88: 5534.308449 | AD88: 577.702368 | AE88: 12090.42389 | AF88: 0 | AG88: ='Tabla Fijo'!E82+'Tabla Fijo'!H82 -> 0 | AH88: 12090.42389 | AJ88: 11954.87168
B89: 75 | C89: 2028-07-04 | D89: 30 | E89: 0.089 | F89: 1.008216667 | G89: 1.862318161 | H89: 0.5369651766 | I89: FALSE | J89: 1 | K89: 0.5369651766 | L89: 11107.67046 | M89: 717132.3059 | N89: 5215.233346 | O89: 5318.731269 | P89: 299 | Q89: 47.84 | R89: 346.5641667 | S89: 55.45026667 | T89: 573.7058447 | U89: 84.48275862 | V89: 13.51724138 | W89: 117.154344 | X89: 18.74469503 | Y89: 12090.42393 | Z89: 0.089 | AA89: 717132.3 | AB89: 5215.233346 | AC89: 5318.731225 | AD89: 573.70584 | AE89: 12090.42388 | AF89: 0 | AG89: ='Tabla Fijo'!E83+'Tabla Fijo'!H83 -> 0 | AH89: 12090.42388 | AJ89: 11954.87168
B90: 76 | C90: 2028-08-04 | D90: 31 | E90: 0.089 | F90: 1.008463889 | G90: 1.878080615 | H90: 0.532458507 | I90: FALSE | J90: 1 | K90: 0.532458507 | L90: 11107.67046 | M90: 711917.0726 | N90: 5082.083459 | O90: 5456.053342 | P90: 299 | Q90: 47.84 | R90: 346.5641667 | S90: 55.45026667 | T90: 569.5336581 | U90: 84.48275862 | V90: 13.51724138 | W90: 117.154344 | X90: 18.74469503 | Y90: 12090.42393 | Z90: 0.089 | AA90: 711917.07 | AB90: 5082.083459 | AC90: 5456.053323 | AD90: 569.533656 | AE90: 12090.42391 | AF90: 0 | AG90: ='Tabla Fijo'!E84+'Tabla Fijo'!H84 -> 0 | AH90: 12090.42391 | AJ90: 11954.87171
B91: 77 | C91: 2028-09-04 | D91: 31 | E91: 0.089 | F91: 1.008463889 | G91: 1.89397648 | H91: 0.5279896611 | I91: FALSE | J91: 1 | K91: 0.5279896611 | L91: 11107.67046 | M91: 706834.9891 | N91: 5125.097649 | O91: 5417.104819 | P91: 299 | Q91: 47.84 | R91: 346.5641667 | S91: 55.45026667 | T91: 565.4679913 | U91: 84.48275862 | V91: 13.51724138 | W91: 117.154344 | X91: 18.74469503 | Y91: 12090.42393 | Z91: 0.089 | AA91: 706834.99 | AB91: 5125.097649 | AC91: 5417.104826 | AD91: 565.467992 | AE91: 12090.42394 | AF91: 0 | AG91: ='Tabla Fijo'!E85+'Tabla Fijo'!H85 -> 0 | AH91: 12090.42394 | AJ91: 11954.87174
B92: 78 | C92: 2028-10-04 | D92: 30 | E92: 0.089 | F92: 1.008216667 | G92: 1.909538654 | H92: 0.5236867021 | I92: FALSE | J92: 1 | K92: 0.5236867021 | L92: 11107.67046 | M92: 701709.8915 | N92: 5341.954185 | O92: 5204.348362 | P92: 299 | Q92: 47.84 | R92: 346.5641667 | S92: 55.45026667 | T92: 561.3679132 | U92: 84.48275862 | V92: 13.51724138 | W92: 117.154344 | X92: 18.74469503 | Y92: 12090.42393 | Z92: 0.089 | AA92: 701709.89 | AB92: 5341.954185 | AC92: 5204.348351 | AD92: 561.367912 | AE92: 12090.42392 | AF92: 0 | AG92: ='Tabla Fijo'!E86+'Tabla Fijo'!H86 -> 0 | AH92: 12090.42392 | AJ92: 11954.87172
B93: 79 | C93: 2028-11-04 | D93: 31 | E93: 0.089 | F93: 1.008463889 | G93: 1.925700777 | H93: 0.5192914767 | I93: FALSE | J93: 1 | K93: 0.5192914767 | L93: 11107.67046 | M93: 696367.9373 | N93: 5213.689613 | O93: 5336.886497 | P93: 299 | Q93: 47.84 | R93: 346.5641667 | S93: 55.45026667 | T93: 557.0943498 | U93: 84.48275862 | V93: 13.51724138 | W93: 117.154344 | X93: 18.74469503 | Y93: 12090.42393 | Z93: 0.089 | AA93: 696367.94 | AB93: 5213.689613 | AC93: 5336.886518 | AD93: 557.094352 | AE93: 12090.42395 | AF93: 0 | AG93: ='Tabla Fijo'!E87+'Tabla Fijo'!H87 -> 0 | AH93: 12090.42395 | AJ93: 11954.87175
B94: 80 | C94: 2028-12-04 | D94: 30 | E94: 0.089 | F94: 1.008216667 | G94: 1.941523618 | H94: 0.5150594053 | I94: FALSE | J94: 1 | K94: 0.5150594053 | L94: 11107.67046 | M94: 691154.2477 | N94: 5428.686391 | O94: 5126.06067 | P94: 299 | Q94: 47.84 | R94: 346.5641667 | S94: 55.45026667 | T94: 552.9233981 | U94: 84.48275862 | V94: 13.51724138 | W94: 117.154344 | X94: 18.74469503 | Y94: 12090.42393 | Z94: 0.089 | AA94: 691154.25 | AB94: 5428.686391 | AC94: 5126.060688 | AD94: 552.9234 | AE94: 12090.42395 | AF94: 0 | AG94: ='Tabla Fijo'!E88+'Tabla Fijo'!H88 -> 0 | AH94: 12090.42395 | AJ94: 11954.87175
B95: 81 | C95: 2029-01-04 | D95: 31 | E95: 0.089 | F95: 1.008463889 | G95: 1.957956458 | H95: 0.5107365875 | I95: FALSE | J95: 1 | K95: 0.5107365875 | L95: 11107.67046 | M95: 685725.5613 | N95: 5303.765501 | O95: 5255.32451 | P95: 299 | Q95: 47.84 | R95: 346.5641667 | S95: 55.45026667 | T95: 548.580449 | U95: 84.48275862 | V95: 13.51724138 | W95: 117.154344 | X95: 18.74469503 | Y95: 12090.42393 | Z95: 0.089 | AA95: 685725.56 | AB95: 5303.765501 | AC95: 5255.3245 | AD95: 548.580448 | AE95: 12090.42392 | AF95: 0 | AG95: ='Tabla Fijo'!E89+'Tabla Fijo'!H89 -> 0 | AH95: 12090.42392 | AJ95: 11954.87172
B96: 82 | C96: 2029-02-04 | D96: 31 | E96: 0.089 | F96: 1.008463889 | G96: 1.974528384 | H96: 0.5064500506 | I96: FALSE | J96: 1 | K96: 0.5064500506 | L96: 11107.67046 | M96: 680421.7958 | N96: 5348.655983 | O96: 5214.67704 | P96: 299 | Q96: 47.84 | R96: 346.5641667 | S96: 55.45026667 | T96: 544.3374366 | U96: 84.48275862 | V96: 13.51724138 | W96: 117.154344 | X96: 18.74469503 | Y96: 12090.42393 | Z96: 0.089 | AA96: 680421.79 | AB96: 5348.655983 | AC96: 5214.676996 | AD96: 544.337432 | AE96: 12090.42388 | AF96: 0 | AG96: ='Tabla Fijo'!E90+'Tabla Fijo'!H90 -> 0 | AH96: 12090.42388 | AJ96: 11954.87168
B97: 83 | C97: 2029-03-04 | D97: 28 | E97: 0.089 | F97: 1.007722222 | G97: 1.989776131 | H97: 0.5025691003 | I97: FALSE | J97: 1 | K97: 0.5025691003 | L97: 11107.67046 | M97: 675073.1398 | N97: 5894.605658 | O97: 4673.00629 | P97: 299 | Q97: 47.84 | R97: 346.5641667 | S97: 55.45026667 | T97: 540.0585118 | U97: 84.48275862 | V97: 13.51724138 | W97: 117.154344 | X97: 18.74469503 | Y97: 12090.42393 | Z97: 0.089 | AA97: 675073.13 | AB97: 5894.605658 | AC97: 4673.006222 | AD97: 540.058504 | AE97: 12090.42386 | AF97: 0 | AG97: ='Tabla Fijo'!E91+'Tabla Fijo'!H91 -> 0 | AH97: 12090.42386 | AJ97: 11954.87165
B98: 84 | C98: 2029-04-04 | D98: 31 | E98: 0.089 | F98: 1.008463889 | G98: 2.006617375 | H98: 0.4983511119 | I98: TRUE | J98: 1 | K98: 0.4983511119 | L98: 11107.67046 | M98: 669178.5341 | N98: 5443.8177 | O98: 5128.509933 | P98: 299 | Q98: 47.84 | R98: 346.5641667 | S98: 55.45026667 | T98: 535.3428273 | U98: 84.48275862 | V98: 13.51724138 | W98: 117.154344 | X98: 18.74469503 | Y98: 12090.42393 | Z98: 0.089 | AA98: 669178.52 | AB98: 5443.8177 | AC98: 5128.509824 | AD98: 535.342816 | AE98: 12090.42381 | AF98: 0 | AG98: ='Tabla Fijo'!E92+'Tabla Fijo'!H92 -> 0 | AH98: 12090.42381 | AJ98: 11954.87161
B99: 85 | C99: 2029-05-04 | D99: 30 | E99: 0.089 | F99: 1.008216667 | G99: 2.023105081 | H99: 0.4942896982 | I99: FALSE | J99: 1 | K99: 0.4942896982 | L99: 11107.67046 | M99: 663734.7164 | N99: 5653.98354 | O99: 4922.699147 | P99: 299 | Q99: 47.84 | R99: 346.5641667 | S99: 55.45026667 | T99: 530.9877732 | U99: 84.48275862 | V99: 13.51724138 | W99: 117.154344 | X99: 18.74469503 | Y99: 12090.42393 | Z99: 0.089 | AA99: 663734.7 | AB99: 5653.98354 | AC99: 4922.699025 | AD99: 530.98776 | AE99: 12090.4238 | AF99: 0 | AG99: ='Tabla Fijo'!E93+'Tabla Fijo'!H93 -> 0 | AH99: 12090.4238 | AJ99: 11954.87159
B100: 86 | C100: 2029-06-04 | D100: 31 | E100: 0.089 | F100: 1.008463889 | G100: 2.040228418 | H100: 0.4901411975 | I100: FALSE | J100: 1 | K100: 0.4901411975 | L100: 11107.67046 | M100: 658080.7329 | N100: 5537.748256 | O100: 5043.457617 | P100: 299 | Q100: 47.84 | R100: 346.5641667 | S100: 55.45026667 | T100: 526.4645863 | U100: 84.48275862 | V100: 13.51724138 | W100: 117.154344 | X100: 18.74469503 | Y100: 12090.42393 | Z100: 0.089 | AA100: 658080.72 | AB100: 5537.748256 | AC100: 5043.457518 | AD100: 526.464576 | AE100: 12090.42382 | AF100: 0 | AG100: ='Tabla Fijo'!E94+'Tabla Fijo'!H94 -> 0 | AH100: 12090.42382 | AJ100: 11954.87162
B101: 87 | C101: 2029-07-04 | D101: 30 | E101: 0.089 | F101: 1.008216667 | G101: 2.056992295 | H101: 0.4861466922 | I101: FALSE | J101: 1 | K101: 0.4861466922 | L101: 11107.67046 | M101: 652542.9847 | N101: 5745.942269 | O101: 4839.693803 | P101: 299 | Q101: 47.84 | R101: 346.5641667 | S101: 55.45026667 | T101: 522.0343877 | U101: 84.48275862 | V101: 13.51724138 | W101: 117.154344 | X101: 18.74469503 | Y101: 12090.42393 | Z101: 0.089 | AA101: 652542.97 | AB101: 5745.942269 | AC101: 4839.693694 | AD101: 522.034376 | AE101: 12090.42381 | AF101: 0 | AG101: ='Tabla Fijo'!E95+'Tabla Fijo'!H95 -> 0 | AH101: 12090.42381 | AJ101: 11954.87161
B102: 88 | C102: 2029-08-04 | D102: 31 | E102: 0.089 | F102: 1.008463889 | G102: 2.074402449 | H102: 0.4820665346 | I102: FALSE | J102: 1 | K102: 0.4820665346 | L102: 11107.67046 | M102: 646797.0424 | N102: 5633.252159 | O102: 4956.980666 | P102: 299 | Q102: 47.84 | R102: 346.5641667 | S102: 55.45026667 | T102: 517.4376339 | U102: 84.48275862 | V102: 13.51724138 | W102: 117.154344 | X102: 18.74469503 | Y102: 12090.42393 | Z102: 0.089 | AA102: 646797.03 | AB102: 5633.252159 | AC102: 4956.980572 | AD102: 517.437624 | AE102: 12090.42383 | AF102: 0 | AG102: ='Tabla Fijo'!E96+'Tabla Fijo'!H96 -> 0 | AH102: 12090.42383 | AJ102: 11954.87162
B103: 89 | C103: 2029-09-04 | D103: 31 | E103: 0.089 | F103: 1.008463889 | G103: 2.091959961 | H103: 0.4780206212 | I103: FALSE | J103: 1 | K103: 0.4780206212 | L103: 11107.67046 | M103: 641163.7902 | N103: 5680.93138 | O103: 4913.808048 | P103: 299 | Q103: 47.84 | R103: 346.5641667 | S103: 55.45026667 | T103: 512.9310322 | U103: 84.48275862 | V103: 13.51724138 | W103: 117.154344 | X103: 18.74469503 | Y103: 12090.42393 | Z103: 0.089 | AA103: 641163.78 | AB103: 5680.93138 | AC103: 4913.80797 | AD103: 512.931024 | AE103: 12090.42385 | AF103: 0 | AG103: ='Tabla Fijo'!E97+'Tabla Fijo'!H97 -> 0 | AH103: 12090.42385 | AJ103: 11954.87164
B104: 90 | C104: 2029-10-04 | D104: 30 | E104: 0.089 | F104: 1.008216667 | G104: 2.109148898 | H104: 0.474124895 | I104: FALSE | J104: 1 | K104: 0.474124895 | L104: 11107.67046 | M104: 635482.8588 | N104: 5886.119636 | O104: 4713.164536 | P104: 299 | Q104: 47.84 | R104: 346.5641667 | S104: 55.45026667 | T104: 508.3862871 | U104: 84.48275862 | V104: 13.51724138 | W104: 117.154344 | X104: 18.74469503 | Y104: 12090.42393 | Z104: 0.089 | AA104: 635482.85 | AB104: 5886.119636 | AC104: 4713.164471 | AD104: 508.38628 | AE104: 12090.42386 | AF104: 0 | AG104: ='Tabla Fijo'!E98+'Tabla Fijo'!H98 -> 0 | AH104: 12090.42386 | AJ104: 11954.87166
B105: 91 | C105: 2029-11-04 | D105: 31 | E105: 0.089 | F105: 1.008463889 | G105: 2.1270005 | H105: 0.4701456346 | I105: FALSE | J105: 1 | K105: 0.4701456346 | L105: 11107.67046 | M105: 629596.7392 | N105: 5778.833614 | O105: 4825.159454 | P105: 299 | Q105: 47.84 | R105: 346.5641667 | S105: 55.45026667 | T105: 503.6773914 | U105: 84.48275862 | V105: 13.51724138 | W105: 117.154344 | X105: 18.74469503 | Y105: 12090.42393 | Z105: 0.089 | AA105: 629596.73 | AB105: 5778.833614 | AC105: 4825.159384 | AD105: 503.677384 | AE105: 12090.42385 | AF105: 0 | AG105: ='Tabla Fijo'!E99+'Tabla Fijo'!H99 -> 0 | AH105: 12090.42385 | AJ105: 11954.87165
B106: 92 | C106: 2029-12-04 | D106: 30 | E106: 0.089 | F106: 1.008216667 | G106: 2.144477355 | H106: 0.4663140872 | I106: FALSE | J106: 1 | K106: 0.4663140872 | L106: 11107.67046 | M106: 623817.9056 | N106: 5981.966669 | O106: 4626.649466 | P106: 299 | Q106: 47.84 | R106: 346.5641667 | S106: 55.45026667 | T106: 499.0543245 | U106: 84.48275862 | V106: 13.51724138 | W106: 117.154344 | X106: 18.74469503 | Y106: 12090.42393 | Z106: 0.089 | AA106: 623817.9 | AB106: 5981.966669 | AC106: 4626.649425 | AD106: 499.05432 | AE106: 12090.42389 | AF106: 0 | AG106: ='Tabla Fijo'!E100+'Tabla Fijo'!H100 -> 0 | AH106: 12090.42389 | AJ106: 11954.87168
B107: 93 | C107: 2030-01-04 | D107: 31 | E107: 0.089 | F107: 1.008463889 | G107: 2.162627973 | H107: 0.4624003817 | I107: FALSE | J107: 1 | K107: 0.4624003817 | L107: 11107.67046 | M107: 617835.9389 | N107: 5878.375721 | O107: 4735.025987 | P107: 299 | Q107: 47.84 | R107: 346.5641667 | S107: 55.45026667 | T107: 494.2687511 | U107: 84.48275862 | V107: 13.51724138 | W107: 117.154344 | X107: 18.74469503 | Y107: 12090.42393 | Z107: 0.089 | AA107: 617835.93 | AB107: 5878.375721 | AC107: 4735.025919 | AD107: 494.268744 | AE107: 12090.42386 | AF107: 0 | AG107: ='Tabla Fijo'!E101+'Tabla Fijo'!H101 -> 0 | AH107: 12090.42386 | AJ107: 11954.87165
B108: 94 | C108: 2030-02-04 | D108: 31 | E108: 0.089 | F108: 1.008463889 | G108: 2.180932215 | H108: 0.4585195234 | I108: FALSE | J108: 1 | K108: 0.4585195234 | L108: 11107.67046 | M108: 611957.5632 | N108: 5928.12964 | O108: 4689.974769 | P108: 299 | Q108: 47.84 | R108: 346.5641667 | S108: 55.45026667 | T108: 489.5660506 | U108: 84.48275862 | V108: 13.51724138 | W108: 117.154344 | X108: 18.74469503 | Y108: 12090.42393 | Z108: 0.089 | AA108: 611957.55 | AB108: 5928.12964 | AC108: 4689.974668 | AD108: 489.56604 | AE108: 12090.42382 | AF108: 0 | AG108: ='Tabla Fijo'!E102+'Tabla Fijo'!H102 -> 0 | AH108: 12090.42382 | AJ108: 11954.87162
B109: 95 | C109: 2030-03-04 | D109: 28 | E109: 0.089 | F109: 1.007722222 | G109: 2.197773859 | H109: 0.455005867 | I109: FALSE | J109: 1 | K109: 0.455005867 | L109: 11107.67046 | M109: 606029.4336 | N109: 6427.776501 | O109: 4195.070412 | P109: 299 | Q109: 47.84 | R109: 346.5641667 | S109: 55.45026667 | T109: 484.8235469 | U109: 84.48275862 | V109: 13.51724138 | W109: 117.154344 | X109: 18.74469503 | Y109: 12090.42393 | Z109: 0.089 | AA109: 606029.42 | AB109: 6427.776501 | AC109: 4195.070318 | AD109: 484.823536 | AE109: 12090.42383 | AF109: 0 | AG109: ='Tabla Fijo'!E103+'Tabla Fijo'!H103 -> 0 | AH109: 12090.42383 | AJ109: 11954.87162
B110: 96 | C110: 2030-04-04 | D110: 31 | E110: 0.089 | F110: 1.008463889 | G110: 2.216375572 | H110: 0.4511870698 | I110: TRUE | J110: 1 | K110: 0.4511870698 | L110: 11107.67046 | M110: 599601.6571 | N110: 6032.708657 | O110: 4595.280477 | P110: 299 | Q110: 47.84 | R110: 346.5641667 | S110: 55.45026667 | T110: 479.6813257 | U110: 84.48275862 | V110: 13.51724138 | W110: 117.154344 | X110: 18.74469503 | Y110: 12090.42393 | Z110: 0.089 | AA110: 599601.64 | AB110: 6032.708657 | AC110: 4595.280347 | AD110: 479.681312 | AE110: 12090.42379 | AF110: 0 | AG110: ='Tabla Fijo'!E104+'Tabla Fijo'!H104 -> 0 | AH110: 12090.42379 | AJ110: 11954.87158
B111: 97 | C111: 2030-05-04 | D111: 30 | E111: 0.089 | F111: 1.008216667 | G111: 2.234586792 | H111: 0.447510029 | I111: FALSE | J111: 1 | K111: 0.447510029 | L111: 11107.67046 | M111: 593568.9484 | N111: 6230.512267 | O111: 4402.303034 | P111: 299 | Q111: 47.84 | R111: 346.5641667 | S111: 55.45026667 | T111: 474.8551587 | U111: 84.48275862 | V111: 13.51724138 | W111: 117.154344 | X111: 18.74469503 | Y111: 12090.42393 | Z111: 0.089 | AA111: 593568.93 | AB111: =MIN(AA111,N111) -> 6230.512267 | AC111: 4402.302898 | AD111: 474.855144 | AE111: 12090.42378 | AF111: 0 | AG111: ='Tabla Fijo'!E105+'Tabla Fijo'!H105 -> 0 | AH111: 12090.42378 | AJ111: 11954.87158
B112: 98 | C112: 2030-06-04 | D112: 31 | E112: 0.089 | F112: 1.008463889 | G112: 2.253500086 | H112: 0.4437541433 | I112: FALSE | J112: 1 | K112: 0.4437541433 | L112: 11107.67046 | M112: 587338.4361 | N112: 6136.503196 | O112: 4501.296515 | P112: 299 | Q112: 47.84 | R112: 346.5641667 | S112: 55.45026667 | T112: 469.8707489 | U112: 84.48275862 | V112: 13.51724138 | W112: 117.154344 | X112: 18.74469503 | Y112: 12090.42393 | Z112: 0.089 | AA112: 587338.42 | AB112: 6136.503196 | AC112: 4501.296391 | AD112: 469.870736 | AE112: 12090.4238 | AF112: 0 | AG112: ='Tabla Fijo'!E106+'Tabla Fijo'!H106 -> 0 | AH112: 12090.4238 | AJ112: 11954.87159
B113: 99 | C113: 2030-07-04 | D113: 30 | E113: 0.089 | F113: 1.008216667 | G113: 2.272016345 | H113: 0.4401376787 | I113: FALSE | J113: 1 | K113: 0.4401376787 | L113: 11107.67046 | M113: 581201.9329 | N113: 6332.127911 | O113: 4310.581003 | P113: 299 | Q113: 47.84 | R113: 346.5641667 | S113: 55.45026667 | T113: 464.9615464 | U113: 84.48275862 | V113: 13.51724138 | W113: 117.154344 | X113: 18.74469503 | Y113: 12090.42393 | Z113: 0.089 | AA113: 581201.92 | AB113: 6332.127911 | AC113: 4310.580907 | AD113: 464.961536 | AE113: 12090.42383 | AF113: 0 | AG113: ='Tabla Fijo'!E107+'Tabla Fijo'!H107 -> 0 | AH113: 12090.42383 | AJ113: 11954.87162
B114: 100 | C114: 2030-08-04 | D114: 31 | E114: 0.089 | F114: 1.008463889 | G114: 2.291246439 | H114: 0.436443668 | I114: FALSE | J114: 1 | K114: 0.436443668 | L114: 11107.67046 | M114: 574869.805 | N114: 6242.036304 | O114: 4405.738311 | P114: 299 | Q114: 47.84 | R114: 346.5641667 | S114: 55.45026667 | T114: 459.895844 | U114: 84.48275862 | V114: 13.51724138 | W114: 117.154344 | X114: 18.74469503 | Y114: 12090.42393 | Z114: 0.089 | AA114: 574869.79 | AB114: 6242.036304 | AC114: 4405.738196 | AD114: 459.895832 | AE114: 12090.4238 | AF114: 0 | AG114: ='Tabla Fijo'!E108+'Tabla Fijo'!H108 -> 0 | AH114: 12090.4238 | AJ114: 11954.8716
B115: 101 | C115: 2030-09-04 | D115: 31 | E115: 0.089 | F115: 1.008463889 | G115: 2.310639294 | H115: 0.4327806605 | I115: FALSE | J115: 1 | K115: 0.4327806605 | L115: 11107.67046 | M115: 568627.7687 | N115: 6294.868206 | O115: 4357.900039 | P115: 299 | Q115: 47.84 | R115: 346.5641667 | S115: 55.45026667 | T115: 454.902215 | U115: 84.48275862 | V115: 13.51724138 | W115: 117.154344 | X115: 18.74469503 | Y115: 12090.42393 | Z115: 0.089 | AA115: 568627.75 | AB115: 6294.868206 | AC115: 4357.899895 | AD115: 454.9022 | AE115: 12090.42377 | AF115: 0 | AG115: ='Tabla Fijo'!E109+'Tabla Fijo'!H109 -> 0 | AH115: 12090.42377 | AJ115: 11954.87157
B116: 102 | C116: 2030-10-04 | D116: 30 | E116: 0.089 | F116: 1.008216667 | G116: 2.329625047 | H116: 0.4292536266 | I116: FALSE | J116: 1 | K116: 0.4292536266 | L116: 11107.67046 | M116: 562332.9005 | N116: 6487.16846 | O116: 4170.635679 | P116: 299 | Q116: 47.84 | R116: 346.5641667 | S116: 55.45026667 | T116: 449.8663204 | U116: 84.48275862 | V116: 13.51724138 | W116: 117.154344 | X116: 18.74469503 | Y116: 12090.42393 | Z116: 0.089 | AA116: 562332.88 | AB116: 6487.16846 | AC116: 4170.635527 | AD116: 449.866304 | AE116: 12090.42376 | AF116: 0 | AG116: ='Tabla Fijo'!E110+'Tabla Fijo'!H110 -> 0 | AH116: 12090.42376 | AJ116: 11954.87156
B117: 103 | C117: 2030-11-04 | D117: 31 | E117: 0.089 | F117: 1.008463889 | G117: 2.349342735 | H117: 0.4256509641 | I117: FALSE | J117: 1 | K117: 0.4256509641 | L117: 11107.67046 | M117: 555845.7321 | N117: 6403.053944 | O117: 4259.93993 | P117: 299 | Q117: 47.84 | R117: 346.5641667 | S117: 55.45026667 | T117: 444.6765856 | U117: 84.48275862 | V117: 13.51724138 | W117: 117.154344 | X117: 18.74469503 | Y117: 12090.42393 | Z117: 0.089 | AA117: 555845.71 | AB117: 6403.053944 | AC117: 4259.939761 | AD117: 444.676568 | AE117: 12090.42375 | AF117: 0 | AG117: ='Tabla Fijo'!E111+'Tabla Fijo'!H111 -> 0 | AH117: 12090.42375 | AJ117: 11954.87154
B118: 104 | C118: 2030-12-04 | D118: 30 | E118: 0.089 | F118: 1.008216667 | G118: 2.368646501 | H118: 0.422182035 | I118: FALSE | J118: 1 | K118: 0.422182035 | L118: 11107.67046 | M118: 549442.6781 | N118: 6593.083121 | O118: 4075.033196 | P118: 299 | Q118: 47.84 | R118: 346.5641667 | S118: 55.45026667 | T118: 439.5541425 | U118: 84.48275862 | V118: 13.51724138 | W118: 117.154344 | X118: 18.74469503 | Y118: 12090.42393 | Z118: 0.089 | AA118: 549442.66 | AB118: 6593.083121 | AC118: 4075.033062 | AD118: 439.554128 | AE118: 12090.42378 | AF118: 0 | AG118: ='Tabla Fijo'!E112+'Tabla Fijo'!H112 -> 0 | AH118: 12090.42378 | AJ118: 11954.87158
B119: 105 | C119: 2031-01-04 | D119: 31 | E119: 0.089 | F119: 1.008463889 | G119: 2.388694462 | H119: 0.4186387234 | I119: FALSE | J119: 1 | K119: 0.4186387234 | L119: 11107.67046 | M119: 542849.595 | N119: 6513.051804 | O119: 4160.338979 | P119: 299 | Q119: 47.84 | R119: 346.5641667 | S119: 55.45026667 | T119: 434.279676 | U119: 84.48275862 | V119: 13.51724138 | W119: 117.154344 | X119: 18.74469503 | Y119: 12090.42393 | Z119: 0.089 | AA119: 542849.58 | AB119: 6513.051804 | AC119: 4160.338865 | AD119: 434.279664 | AE119: 12090.42381 | AF119: 0 | AG119: ='Tabla Fijo'!E113+'Tabla Fijo'!H113 -> 0 | AH119: 12090.42381 | AJ119: 11954.8716
B120: 106 | C120: 2031-02-04 | D120: 31 | E120: 0.089 | F120: 1.008463889 | G120: 2.408912106 | H120: 0.4151251503 | I120: FALSE | J120: 1 | K120: 0.4151251503 | L120: 11107.67046 | M120: 536336.5432 | N120: 6568.177551 | O120: 4110.423674 | P120: 299 | Q120: 47.84 | R120: 346.5641667 | S120: 55.45026667 | T120: 429.0692346 | U120: 84.48275862 | V120: 13.51724138 | W120: 117.154344 | X120: 18.74469503 | Y120: 12090.42393 | Z120: 0.089 | AA120: 536336.53 | AB120: 6568.177551 | AC120: 4110.423573 | AD120: 429.069224 | AE120: 12090.42382 | AF120: 0 | AG120: ='Tabla Fijo'!E114+'Tabla Fijo'!H114 -> 0 | AH120: 12090.42382 | AJ120: 11954.87162
B121: 107 | C121: 2031-03-04 | D121: 28 | E121: 0.089 | F121: 1.007722222 | G121: 2.427514261 | H121: 0.4119440269 | I121: FALSE | J121: 1 | K121: 0.4119440269 | L121: 11107.67046 | M121: 529768.3656 | N121: 7016.681414 | O121: 3667.174353 | P121: 299 | Q121: 47.84 | R121: 346.5641667 | S121: 55.45026667 | T121: 423.8146925 | U121: 84.48275862 | V121: 13.51724138 | W121: 117.154344 | X121: 18.74469503 | Y121: 12090.42393 | Z121: 0.089 | AA121: 529768.35 | AB121: 7016.681414 | AC121: 3667.174245 | AD121: 423.81468 | AE121: 12090.42381 | AF121: 0 | AG121: ='Tabla Fijo'!E115+'Tabla Fijo'!H115 -> 0 | AH121: 12090.42381 | AJ121: 11954.87161
B122: 108 | C122: 2031-04-04 | D122: 31 | E122: 0.089 | F122: 1.008463889 | G122: 2.448060472 | H122: 0.4084866414 | I122: TRUE | J122: 1 | K122: 0.4084866414 | L122: 11107.67046 | M122: 522751.6842 | N122: 6683.158288 | O122: 4006.310824 | P122: 299 | Q122: 47.84 | R122: 346.5641667 | S122: 55.45026667 | T122: 418.2013474 | U122: 84.48275862 | V122: 13.51724138 | W122: 117.154344 | X122: 18.74469503 | Y122: 12090.42393 | Z122: 0.089 | AA122: 522751.67 | AB122: 6683.158288 | AC122: 4006.310715 | AD122: 418.201336 | AE122: 12090.42381 | AF122: 0 | AG122: ='Tabla Fijo'!E116+'Tabla Fijo'!H116 -> 0 | AH122: 12090.42381 | AJ122: 11954.87161
B123: 109 | C123: 2031-05-04 | D123: 30 | E123: 0.089 | F123: 1.008216667 | G123: 2.468175369 | H123: 0.4051575965 | I123: FALSE | J123: 1 | K123: 0.4051575965 | L123: 11107.67046 | M123: 516068.5259 | N123: 6867.307405 | O123: 3827.508234 | P123: 299 | Q123: 47.84 | R123: 346.5641667 | S123: 55.45026667 | T123: 412.8548208 | U123: 84.48275862 | V123: 13.51724138 | W123: 117.154344 | X123: 18.74469503 | Y123: 12090.42393 | Z123: 0.089 | AA123: 516068.51 | AB123: 6867.307405 | AC123: 3827.508116 | AD123: 412.854808 | AE123: 12090.4238 | AF123: 0 | AG123: ='Tabla Fijo'!E117+'Tabla Fijo'!H117 -> 0 | AH123: 12090.4238 | AJ123: 11954.8716
B124: 110 | C124: 2031-06-04 | D124: 31 | E124: 0.089 | F124: 1.008463889 | G124: 2.489065731 | H124: 0.4017571684 | I124: FALSE | J124: 1 | K124: 0.4017571684 | L124: 11107.67046 | M124: 509201.2185 | N124: 6797.847924 | O124: 3902.461561 | P124: 299 | Q124: 47.84 | R124: 346.5641667 | S124: 55.45026667 | T124: 407.3609748 | U124: 84.48275862 | V124: 13.51724138 | W124: 117.154344 | X124: 18.74469503 | Y124: 12090.42393 | Z124: 0.089 | AA124: 509201.2 | AB124: 6797.847924 | AC124: 3902.461419 | AD124: 407.36096 | AE124: 12090.42378 | AF124: 0 | AG124: ='Tabla Fijo'!E118+'Tabla Fijo'!H118 -> 0 | AH124: 12090.42378 | AJ124: 11954.87157
B125: 111 | C125: 2031-07-04 | D125: 30 | E125: 0.089 | F125: 1.008216667 | G125: 2.509517554 | H125: 0.3984829667 | I125: FALSE | J125: 1 | K125: 0.3984829667 | L125: 11107.67046 | M125: 502403.3706 | N125: 6979.589431 | O125: 3726.158332 | P125: 299 | Q125: 47.84 | R125: 346.5641667 | S125: 55.45026667 | T125: 401.9226965 | U125: 84.48275862 | V125: 13.51724138 | W125: 117.154344 | X125: 18.74469503 | Y125: 12090.42393 | Z125: 0.089 | AA125: 502403.35 | AB125: 6979.589431 | AC125: 3726.158179 | AD125: 401.92268 | AE125: 12090.42376 | AF125: 0 | AG125: ='Tabla Fijo'!E119+'Tabla Fijo'!H119 -> 0 | AH125: 12090.42376 | AJ125: 11954.87156
B126: 112 | C126: 2031-08-04 | D126: 31 | E126: 0.089 | F126: 1.008463889 | G126: 2.530757832 | H126: 0.3951385579 | I126: FALSE | J126: 1 | K126: 0.3951385579 | L126: 11107.67046 | M126: 495423.7812 | N126: 6914.458623 | O126: 3796.872812 | P126: 299 | Q126: 47.84 | R126: 346.5641667 | S126: 55.45026667 | T126: 396.3390249 | U126: 84.48275862 | V126: 13.51724138 | W126: 117.154344 | X126: 18.74469503 | Y126: 12090.42393 | Z126: 0.089 | AA126: 495423.76 | AB126: 6914.458623 | AC126: 3796.87265 | AD126: 396.339008 | AE126: 12090.42375 | AF126: 0 | AG126: ='Tabla Fijo'!E120+'Tabla Fijo'!H120 -> 0 | AH126: 12090.42375 | AJ126: 11954.87155
B127: 113 | C127: 2031-09-04 | D127: 31 | E127: 0.089 | F127: 1.008463889 | G127: 2.552177885 | H127: 0.3918222182 | I127: FALSE | J127: 1 | K127: 0.3918222182 | L127: 11107.67046 | M127: 488509.3226 | N127: 6972.981832 | O127: 3743.881169 | P127: 299 | Q127: 47.84 | R127: 346.5641667 | S127: 55.45026667 | T127: 390.807458 | U127: 84.48275862 | V127: 13.51724138 | W127: 117.154344 | X127: 18.74469503 | Y127: 12090.42393 | Z127: 0.089 | AA127: 488509.3 | AB127: 6972.981832 | AC127: 3743.880996 | AD127: 390.80744 | AE127: 12090.42374 | AF127: 0 | AG127: ='Tabla Fijo'!E121+'Tabla Fijo'!H121 -> 0 | AH127: 12090.42374 | AJ127: 11954.87154
B128: 114 | C128: 2031-10-04 | D128: 30 | E128: 0.089 | F128: 1.008216667 | G128: 2.57314828 | H128: 0.3886289834 | I128: FALSE | J128: 1 | K128: 0.3886289834 | L128: 11107.67046 | M128: 481536.3407 | N128: 7151.04686 | O128: 3571.394527 | P128: 299 | Q128: 47.84 | R128: 346.5641667 | S128: 55.45026667 | T128: 385.2290726 | U128: 84.48275862 | V128: 13.51724138 | W128: 117.154344 | X128: 18.74469503 | Y128: 12090.42393 | Z128: 0.089 | AA128: 481536.32 | AB128: 7151.04686 | AC128: 3571.394373 | AD128: 385.229056 | AE128: 12090.42376 | AF128: 0 | AG128: ='Tabla Fijo'!E122+'Tabla Fijo'!H122 -> 0 | AH128: 12090.42376 | AJ128: 11954.87156
B129: 115 | C129: 2031-11-04 | D129: 31 | E129: 0.089 | F129: 1.008463889 | G129: 2.594927121 | H129: 0.3853672775 | I129: FALSE | J129: 1 | K129: 0.3853672775 | L129: 11107.67046 | M129: 474385.2939 | N129: 7092.526042 | O129: 3635.636183 | P129: 299 | Q129: 47.84 | R129: 346.5641667 | S129: 55.45026667 | T129: 379.5082351 | U129: 84.48275862 | V129: 13.51724138 | W129: 117.154344 | X129: 18.74469503 | Y129: 12090.42393 | Z129: 0.089 | AA129: 474385.27 | AB129: 7092.526042 | AC129: 3635.636 | AD129: 379.508216 | AE129: 12090.42373 | AF129: 0 | AG129: ='Tabla Fijo'!E123+'Tabla Fijo'!H123 -> 0 | AH129: 12090.42373 | AJ129: 11954.87153
B130: 116 | C130: 2031-12-04 | D130: 30 | E130: 0.089 | F130: 1.008216667 | G130: 2.616248772 | H130: 0.3822266486 | I130: FALSE | J130: 1 | K130: 0.3822266486 | L130: 11107.67046 | M130: 467292.7678 | N130: 7268.081551 | O130: 3465.754695 | P130: 299 | Q130: 47.84 | R130: 346.5641667 | S130: 55.45026667 | T130: 373.8342143 | U130: 84.48275862 | V130: 13.51724138 | W130: 117.154344 | X130: 18.74469503 | Y130: 12090.42393 | Z130: 0.089 | AA130: 467292.74 | AB130: 7268.081551 | AC130: 3465.754488 | AD130: 373.834192 | AE130: 12090.4237 | AF130: 0 | AG130: ='Tabla Fijo'!E124+'Tabla Fijo'!H124 -> 0 | AH130: 12090.4237 | AJ130: 11954.8715
B131: 117 | C131: 2032-01-04 | D131: 31 | E131: 0.089 | F131: 1.008463889 | G131: 2.638392411 | H131: 0.3790186766 | I131: FALSE | J131: 1 | K131: 0.3790186766 | L131: 11107.67046 | M131: 460024.6863 | N131: 7214.072629 | O131: 3525.578082 | P131: 299 | Q131: 47.84 | R131: 346.5641667 | S131: 55.45026667 | T131: 368.019749 | U131: 84.48275862 | V131: 13.51724138 | W131: 117.154344 | X131: 18.74469503 | Y131: 12090.42393 | Z131: 0.089 | AA131: 460024.66 | AB131: 7214.072629 | AC131: 3525.57788 | AD131: 368.019728 | AE131: 12090.42371 | AF131: 0 | AG131: ='Tabla Fijo'!E125+'Tabla Fijo'!H125 -> 0 | AH131: 12090.42371 | AJ131: 11954.87151
B132: 118 | C132: 2032-02-04 | D132: 31 | E132: 0.089 | F132: 1.008463889 | G132: 2.660723471 | H132: 0.3758376287 | I132: FALSE | J132: 1 | K132: 0.3758376287 | L132: 11107.67046 | M132: 452810.6136 | N132: 7275.131738 | O132: 3470.290231 | P132: 299 | Q132: 47.84 | R132: 346.5641667 | S132: 55.45026667 | T132: 362.2484909 | U132: 84.48275862 | V132: 13.51724138 | W132: 117.154344 | X132: 18.74469503 | Y132: 12090.42393 | Z132: 0.089 | AA132: 452810.59 | AB132: 7275.131738 | AC132: 3470.290049 | AD132: 362.248472 | AE132: 12090.42373 | AF132: 0 | AG132: ='Tabla Fijo'!E126+'Tabla Fijo'!H126 -> 0 | AH132: 12090.42373 | AJ132: 11954.87153
B133: 119 | C133: 2032-03-04 | D133: 29 | E133: 0.089 | F133: 1.007969444 | G133: 2.681927959 | H133: 0.3728660931 | I133: FALSE | J133: 1 | K133: 0.3728660931 | L133: 11107.67046 | M133: 445535.4819 | N133: 7557.000189 | O133: 3194.241886 | P133: 299 | Q133: 47.84 | R133: 346.5641667 | S133: 55.45026667 | T133: 356.4283855 | U133: 84.48275862 | V133: 13.51724138 | W133: 117.154344 | X133: 18.74469503 | Y133: 12090.42393 | Z133: 0.089 | AA133: 445535.46 | AB133: 7557.000189 | AC133: 3194.241729 | AD133: 356.428368 | AE133: 12090.42376 | AF133: 0 | AG133: ='Tabla Fijo'!E127+'Tabla Fijo'!H127 -> 0 | AH133: 12090.42376 | AJ133: 11954.87155
B134: 120 | C134: 2032-04-04 | D134: 31 | E134: 0.089 | F134: 1.008463889 | G134: 2.704627499 | H134: 0.3697366829 | I134: TRUE | J134: 1 | K134: 0.3697366829 | L134: 11107.67046 | M134: 437978.4817 | N134: 7400.669255 | O134: 3356.61842 | P134: 299 | Q134: 47.84 | R134: 346.5641667 | S134: 55.45026667 | T134: 350.3827854 | U134: 84.48275862 | V134: 13.51724138 | W134: 117.154344 | X134: 18.74469503 | Y134: 12090.42393 | Z134: 0.089 | AA134: 437978.46 | AB134: 7400.669255 | AC134: 3356.618253 | AD134: 350.382768 | AE134: 12090.42375 | AF134: 0 | AG134: ='Tabla Fijo'!E128+'Tabla Fijo'!H128 -> 0 | AH134: 12090.42375 | AJ134: 11954.87155
B135: 121 | C135: 2032-05-04 | D135: 30 | E135: 0.089 | F135: 1.008216667 | G135: 2.726850522 | H135: 0.3667234386 | I135: FALSE | J135: 1 | K135: 0.3667234386 | L135: 11107.67046 | M135: 430577.8125 | N135: 7569.756101 | O135: 3193.452109 | P135: 299 | Q135: 47.84 | R135: 346.5641667 | S135: 55.45026667 | T135: 344.46225 | U135: 84.48275862 | V135: 13.51724138 | W135: 117.154344 | X135: 18.74469503 | Y135: 12090.42393 | Z135: 0.089 | AA135: 430577.79 | AB135: 7569.756101 | AC135: 3193.451942 | AD135: 344.462232 | AE135: 12090.42375 | AF135: 0 | AG135: ='Tabla Fijo'!E129+'Tabla Fijo'!H129 -> 0 | AH135: 12090.42375 | AJ135: 11954.87154
B136: 122 | C136: 2032-06-04 | D136: 31 | E136: 0.089 | F136: 1.008463889 | G136: 2.749930282 | H136: 0.3636455828 | I136: FALSE | J136: 1 | K136: 0.3636455828 | L136: 11107.67046 | M136: 423008.0564 | N136: 7527.377272 | O136: 3241.886743 | P136: 299 | Q136: 47.84 | R136: 346.5641667 | S136: 55.45026667 | T136: 338.4064451 | U136: 84.48275862 | V136: 13.51724138 | W136: 117.154344 | X136: 18.74469503 | Y136: 12090.42393 | Z136: 0.089 | AA136: 423008.03 | AB136: 7527.377272 | AC136: 3241.886541 | AD136: 338.406424 | AE136: 12090.42371 | AF136: 0 | AG136: ='Tabla Fijo'!E130+'Tabla Fijo'!H130 -> 0 | AH136: 12090.42371 | AJ136: 11954.87151
B137: 123 | C137: 2032-07-04 | D137: 30 | E137: 0.089 | F137: 1.008216667 | G137: 2.772525542 | H137: 0.3606819792 | I137: FALSE | J137: 1 | K137: 0.3606819792 | L137: 11107.67046 | M137: 415480.6791 | N137: 7693.804213 | O137: 3081.481703 | P137: 299 | Q137: 47.84 | R137: 346.5641667 | S137: 55.45026667 | T137: 332.3845433 | U137: 84.48275862 | V137: 13.51724138 | W137: 117.154344 | X137: 18.74469503 | Y137: 12090.42393 | Z137: 0.089 | AA137: 415480.65 | AB137: 7693.804213 | AC137: 3081.481488 | AD137: 332.38452 | AE137: 12090.42369 | AF137: 0 | AG137: ='Tabla Fijo'!E131+'Tabla Fijo'!H131 -> 0 | AH137: 12090.42369 | AJ137: 11954.87149
B138: 124 | C138: 2032-08-04 | D138: 31 | E138: 0.089 | F138: 1.008463889 | G138: 2.79599189 | H138: 0.3576548285 | I138: FALSE | J138: 1 | K138: 0.3576548285 | L138: 11107.67046 | M138: 407786.8749 | N138: 7656.20766 | O138: 3125.233299 | P138: 299 | Q138: 47.84 | R138: 346.5641667 | S138: 55.45026667 | T138: 326.2294999 | U138: 84.48275862 | V138: 13.51724138 | W138: 117.154344 | X138: 18.74469503 | Y138: 12090.42393 | Z138: 0.089 | AA138: 407786.85 | AB138: 7656.20766 | AC138: 3125.233109 | AD138: 326.22948 | AE138: 12090.42372 | AF138: 0 | AG138: ='Tabla Fijo'!E132+'Tabla Fijo'!H132 -> 0 | AH138: 12090.42372 | AJ138: 11954.87152
B139: 125 | C139: 2032-09-04 | D139: 31 | E139: 0.089 | F139: 1.008463889 | G139: 2.819656855 | H139: 0.3546530842 | I139: FALSE | J139: 1 | K139: 0.3546530842 | L139: 11107.67046 | M139: 400130.6672 | N139: 7721.008951 | O139: 3066.556975 | P139: 299 | Q139: 47.84 | R139: 346.5641667 | S139: 55.45026667 | T139: 320.1045338 | U139: 84.48275862 | V139: 13.51724138 | W139: 117.154344 | X139: 18.74469503 | Y139: 12090.42393 | Z139: 0.089 | AA139: 400130.64 | AB139: 7721.008951 | AC139: 3066.556766 | AD139: 320.104512 | AE139: 12090.4237 | AF139: 0 | AG139: ='Tabla Fijo'!E133+'Tabla Fijo'!H133 -> 0 | AH139: 12090.4237 | AJ139: 11954.8715
B140: 126 | C140: 2032-10-04 | D140: 30 | E140: 0.089 | F140: 1.008216667 | G140: 2.842825036 | H140: 0.3517627668 | I140: FALSE | J140: 1 | K140: 0.3517627668 | L140: 11107.67046 | M140: 392409.6583 | N140: 7883.371101 | O140: 2910.371632 | P140: 299 | Q140: 47.84 | R140: 346.5641667 | S140: 55.45026667 | T140: 313.9277266 | U140: 84.48275862 | V140: 13.51724138 | W140: 117.154344 | X140: 18.74469503 | Y140: 12090.42393 | Z140: 0.089 | AA140: 392409.63 | AB140: 7883.371101 | AC140: 2910.371423 | AD140: 313.927704 | AE140: 12090.4237 | AF140: 0 | AG140: ='Tabla Fijo'!E134+'Tabla Fijo'!H134 -> 0 | AH140: 12090.4237 | AJ140: 11954.8715
B141: 127 | C141: 2032-11-04 | D141: 31 | E141: 0.089 | F141: 1.008463889 | G141: 2.866886391 | H141: 0.3488104737 | I141: FALSE | J141: 1 | K141: 0.3488104737 | L141: 11107.67046 | M141: 384526.2872 | N141: 7853.08269 | O141: 2946.96674 | P141: 299 | Q141: 47.84 | R141: 346.5641667 | S141: 55.45026667 | T141: 307.6210297 | U141: 84.48275862 | V141: 13.51724138 | W141: 117.154344 | X141: 18.74469503 | Y141: 12090.42393 | Z141: 0.089 | AA141: 384526.26 | AB141: 7853.08269 | AC141: 2946.966532 | AD141: 307.621008 | AE141: 12090.4237 | AF141: 0 | AG141: ='Tabla Fijo'!E135+'Tabla Fijo'!H135 -> 0 | AH141: 12090.4237 | AJ141: 11954.8715
B142: 128 | C142: 2032-12-04 | D142: 30 | E142: =IF(B142=0,TASA,IF(B142=MESES_INC_TASA,E141+INCREMENTO_TASA,E141)) -> 0.089 | F142: =1 + D142 * E142 / 360 + FACTOR_SEG_DEUD -> 1.008216667 | G142: 2.890442641 | H142: 0.3459677718 | I142: =MOD(B142, MESES_INC)=0 -> FALSE | J142: 1 | K142: =H142*J142 -> 0.3459677718 | L142: =CUOTA_INIT*J142 -> 11107.67046 | M142: 376673.2045 | N142: 8012.672296 | O142: =M142 * D142 * E142 /360 -> 2793.6596 | P142: =COMISION_AMORT -> 299 | Q142: =P142*IVA -> 47.84 | R142: =SEGURO_DAÑOS_MENS -> 346.5641667 | S142: =R142*IVA -> 55.45026667 | T142: =M142 * FACTOR_SEG_DEUD -> 301.3385636 | U142: =SEGURO_INTERIORES -> 84.48275862 | V142: =U142*IVA -> 13.51724138 | W142: =SUM(N142:V142) * FACTOR_SEG_DESEMPLEO -> 117.154344 | X142: =W142*IVA -> 18.74469503 | Y142: =IF(B142>=PLAZO, 0, SUM(N142:X142)) -> 12090.42393 | Z142: =ESQUEMA -> 0.089 | AA142: =IF(B142=0,TOTAL_FINANCIADO, MAX(ROUND(AA141-N141-AF141-AG141,2), 0)) -> 376673.18 | AB142: =MIN(AA142,N142) -> 8012.672296 | AC142: =AA142 * D142 * Z142 /360 -> 2793.659418 | AD142: =AA142 * FACTOR_SEG_DEUD -> 301.338544 | AE142: =IF(AA142>0, AB142+AC142+AD142+P142+Q142+R142+S142+U142+V142+W142+X142, 0) -> 12090.42373 | AF142: =IF(ACCION_EXCEDENTE_PP="MENOS PLAZO", IF(AA142>N142, ROUND(Y142-AE142, 2), 0), 0) -> 0 | AG142: ='Tabla Fijo'!E136+'Tabla Fijo'!H136 -> 0 | AH142: 12090.42373 | AJ142: =IF(AA142> 0,AB142+AC142+AD142+P142+R142+U142+W142, 0) -> 11954.87153
B143: 129 | C143: =IF(B143=0,FECHA_1ER_PAGO,DATE(YEAR(C142),MONTH(C142)+1,4)) -> 2033-01-04 | D143: =IF(B143=0,C143-C135+1, C143-C142) -> 31 | E143: 0.089 | F143: 1.008463889 | G143: =IF(B143 = 0, 0, IF(G142=0, F143, G142 * F143 )) -> 2.914907026 | H143: =IF(G143=0, 0, 1/G143) -> 0.3430641153 | I143: FALSE | J143: =IF(B143=0, 1, IF(I143,J142*(1+INCREMENTO),J142)) -> 1 | K143: 0.3430641153 | L143: 11107.67046 | M143: =IF(B143=0,TOTAL_FINANCIADO, M142-N142) -> 368660.5322 | N143: =IF(B143=0, 0, L143-O143-T143) -> 7987.368678 | O143: 2825.373356 | P143: 299 | Q143: 47.84 | R143: 346.5641667 | S143: 55.45026667 | T143: 294.9284257 | U143: 84.48275862 | V143: 13.51724138 | W143: 117.154344 | X143: 18.74469503 | Y143: 12090.42393 | Z143: 0.089 | AA143: 368660.51 | AB143: 7987.368678 | AC143: 2825.373186 | AD143: 294.928408 | AE143: 12090.42374 | AF143: 0 | AG143: ='Tabla Fijo'!E137+'Tabla Fijo'!H137 -> 0 | AH143: =AE143+AF143 -> 12090.42374 | AJ143: 11954.87154
B144: 130 | C144: 2033-02-04 | D144: 31 | E144: 0.089 | F144: 1.008463889 | G144: 2.939578475 | H144: 0.3401848287 | I144: FALSE | J144: 1 | K144: 0.3401848287 | L144: 11107.67046 | M144: 360673.1635 | N144: 8054.972879 | O144: 2764.15905 | P144: 299 | Q144: 47.84 | R144: 346.5641667 | S144: 55.45026667 | T144: 288.5385308 | U144: 84.48275862 | V144: 13.51724138 | W144: 117.154344 | X144: 18.74469503 | Y144: 12090.42393 | Z144: 0.089 | AA144: 360673.14 | AB144: 8054.972879 | AC144: 2764.15887 | AD144: 288.538512 | AE144: 12090.42373 | AF144: 0 | AG144: ='Tabla Fijo'!E138+'Tabla Fijo'!H138 -> 0 | AH144: 12090.42373 | AJ144: 11954.87153
B145: 131 | C145: 2033-03-04 | D145: 28 | E145: 0.089 | F145: 1.007722222 | G145: 2.962278553 | H145: 0.3375779765 | I145: FALSE | J145: 1 | K145: 0.3375779765 | L145: 11107.67046 | M145: 352618.1906 | N145: 8384.674432 | O145: 2440.901475 | P145: 299 | Q145: 47.84 | R145: 346.5641667 | S145: 55.45026667 | T145: 282.0945525 | U145: 84.48275862 | V145: 13.51724138 | W145: 117.154344 | X145: 18.74469503 | Y145: 12090.42393 | Z145: 0.089 | AA145: 352618.17 | AB145: 8384.674432 | AC145: 2440.901332 | AD145: 282.094536 | AE145: 12090.42377 | AF145: 0 | AG145: ='Tabla Fijo'!E139+'Tabla Fijo'!H139 -> 0 | AH145: 12090.42377 | AJ145: 11954.87157
B146: 132 | C146: 2033-04-04 | D146: 31 | E146: 0.089 | F146: 1.008463889 | G146: 2.98735095 | H146: 0.3347447343 | I146: TRUE | J146: 1 | K146: 0.3347447343 | L146: 11107.67046 | M146: 344233.5162 | N146: 8194.116227 | O146: 2638.16742 | P146: 299 | Q146: 47.84 | R146: 346.5641667 | S146: 55.45026667 | T146: 275.386813 | U146: 84.48275862 | V146: 13.51724138 | W146: 117.154344 | X146: 18.74469503 | Y146: 12090.42393 | Z146: 0.089 | AA146: 344233.5 | AB146: 8194.116227 | AC146: 2638.167296 | AD146: 275.3868 | AE146: 12090.42379 | AF146: 0 | AG146: ='Tabla Fijo'!E140+'Tabla Fijo'!H140 -> 0 | AH146: 12090.42379 | AJ146: 11954.87159
B147: 133 | C147: 2033-05-04 | D147: 30 | E147: 0.089 | F147: 1.008216667 | G147: 3.011897017 | H147: 0.332016664 | I147: FALSE | J147: 1 | K147: 0.332016664 | L147: 11107.67046 | M147: 336039.4 | N147: 8346.546723 | O147: 2492.292216 | P147: 299 | Q147: 47.84 | R147: 346.5641667 | S147: 55.45026667 | T147: 268.83152 | U147: 84.48275862 | V147: 13.51724138 | W147: 117.154344 | X147: 18.74469503 | Y147: 12090.42393 | Z147: 0.089 | AA147: 336039.38 | AB147: 8346.546723 | AC147: 2492.292068 | AD147: 268.831504 | AE147: 12090.42377 | AF147: 0 | AG147: ='Tabla Fijo'!E141+'Tabla Fijo'!H141 -> 0 | AH147: 12090.42377 | AJ147: 11954.87156
B148: 134 | C148: 2033-06-04 | D148: 31 | E148: 0.089 | F148: 1.008463889 | G148: 3.037389379 | H148: 0.3292300971 | I148: FALSE | J148: 1 | K148: 0.3292300971 | L148: 11107.67046 | M148: 327692.8532 | N148: 8334.11456 | O148: 2511.401617 | P148: 299 | Q148: 47.84 | R148: 346.5641667 | S148: 55.45026667 | T148: 262.1542826 | U148: 84.48275862 | V148: 13.51724138 | W148: 117.154344 | X148: 18.74469503 | Y148: 12090.42393 | Z148: 0.089 | AA148: 327692.83 | AB148: 8334.11456 | AC148: 2511.401439 | AD148: 262.154264 | AE148: 12090.42374 | AF148: 0 | AG148: ='Tabla Fijo'!E142+'Tabla Fijo'!H142 -> 0 | AH148: 12090.42374 | AJ148: 11954.87153
B149: 135 | C149: 2033-07-04 | D149: 30 | E149: 0.089 | F149: 1.008216667 | G149: 3.062346595 | H149: 0.3265469695 | I149: FALSE | J149: 1 | K149: 0.3265469695 | L149: 11107.67046 | M149: 319358.7387 | N149: 8483.606157 | O149: 2368.577312 | P149: 299 | Q149: 47.84 | R149: 346.5641667 | S149: 55.45026667 | T149: 255.4869909 | U149: 84.48275862 | V149: 13.51724138 | W149: 117.154344 | X149: 18.74469503 | Y149: 12090.42393 | Z149: 0.089 | AA149: 319358.72 | AB149: 8483.606157 | AC149: 2368.577173 | AD149: 255.486976 | AE149: 12090.42378 | AF149: 0 | AG149: ='Tabla Fijo'!E143+'Tabla Fijo'!H143 -> 0 | AH149: 12090.42378 | AJ149: 11954.87158
B150: 136 | C150: 2033-08-04 | D150: 31 | E150: 0.089 | F150: 1.008463889 | G150: 3.088265956 | H150: 0.3238063089 | I150: FALSE | J150: 1 | K150: 0.3238063089 | L150: 11107.67046 | M150: 310875.1325 | N150: 8476.45788 | O150: 2382.512474 | P150: 299 | Q150: 47.84 | R150: 346.5641667 | S150: 55.45026667 | T150: 248.700106 | U150: 84.48275862 | V150: 13.51724138 | W150: 117.154344 | X150: 18.74469503 | Y150: 12090.42393 | Z150: 0.089 | AA150: 310875.11 | AB150: 8476.45788 | AC150: 2382.512301 | AD150: 248.700088 | AE150: 12090.42374 | AF150: 0 | AG150: ='Tabla Fijo'!E144+'Tabla Fijo'!H144 -> 0 | AH150: 12090.42374 | AJ150: 11954.87154
B151: 137 | C151: 2033-09-04 | D151: 31 | E151: 0.089 | F151: 1.008463889 | G151: 3.114404696 | H151: 0.3210886502 | I151: FALSE | J151: 1 | K151: 0.3210886502 | L151: 11107.67046 | M151: 302398.6746 | N151: 8548.201677 | O151: 2317.549843 | P151: 299 | Q151: 47.84 | R151: 346.5641667 | S151: 55.45026667 | T151: 241.9189397 | U151: 84.48275862 | V151: 13.51724138 | W151: 117.154344 | X151: 18.74469503 | Y151: 12090.42393 | Z151: 0.089 | AA151: 302398.65 | AB151: 8548.201677 | AC151: 2317.549654 | AD151: 241.91892 | AE151: 12090.42372 | AF151: 0 | AG151: ='Tabla Fijo'!E145+'Tabla Fijo'!H145 -> 0 | AH151: 12090.42372 | AJ151: 11954.87152
B152: 138 | C152: 2033-10-04 | D152: 30 | E152: 0.089 | F152: 1.008216667 | G152: 3.139994721 | H152: 0.318471873 | I152: FALSE | J152: 1 | K152: 0.318471873 | L152: 11107.67046 | M152: 293850.473 | N152: 8693.199074 | O152: 2179.391008 | P152: 299 | Q152: 47.84 | R152: 346.5641667 | S152: 55.45026667 | T152: 235.0803784 | U152: 84.48275862 | V152: 13.51724138 | W152: 117.154344 | X152: 18.74469503 | Y152: 12090.42393 | Z152: 0.089 | AA152: 293850.45 | AB152: 8693.199074 | AC152: 2179.390838 | AD152: 235.08036 | AE152: 12090.42374 | AF152: 0 | AG152: ='Tabla Fijo'!E146+'Tabla Fijo'!H146 -> 0 | AH152: 12090.42374 | AJ152: 11954.87154
B153: 139 | C153: 2033-11-04 | D153: 31 | E153: 0.089 | F153: 1.008463889 | G153: 3.166571288 | H153: 0.3157989855 | I153: FALSE | J153: 1 | K153: 0.3157989855 | L153: 11107.67046 | M153: 285157.2739 | N153: 8694.130978 | O153: 2185.413663 | P153: 299 | Q153: 47.84 | R153: 346.5641667 | S153: 55.45026667 | T153: 228.1258191 | U153: 84.48275862 | V153: 13.51724138 | W153: 117.154344 | X153: 18.74469503 | Y153: 12090.42393 | Z153: 0.089 | AA153: 285157.25 | AB153: 8694.130978 | AC153: 2185.41348 | AD153: 228.1258 | AE153: 12090.42373 | AF153: 0 | AG153: ='Tabla Fijo'!E147+'Tabla Fijo'!H147 -> 0 | AH153: 12090.42373 | AJ153: 11954.87153
B154: 140 | C154: 2033-12-04 | D154: 30 | E154: 0.089 | F154: 1.008216667 | G154: 3.192589948 | H154: 0.3132253174 | I154: FALSE | J154: 1 | K154: 0.3132253174 | L154: 11107.67046 | M154: 276463.1429 | N154: 8836.064969 | O154: 2050.434977 | P154: 299 | Q154: 47.84 | R154: 346.5641667 | S154: 55.45026667 | T154: 221.1705143 | U154: 84.48275862 | V154: 13.51724138 | W154: 117.154344 | X154: 18.74469503 | Y154: 12090.42393 | Z154: 0.089 | AA154: 276463.12 | AB154: 8836.064969 | AC154: 2050.434807 | AD154: 221.170496 | AE154: 12090.42374 | AF154: 0 | AG154: ='Tabla Fijo'!E148+'Tabla Fijo'!H148 -> 0 | AH154: 12090.42374 | AJ154: 11954.87154
B155: 141 | C155: 2034-01-04 | D155: 31 | E155: 0.089 | F155: 1.008463889 | G155: 3.219611675 | H155: 0.3105964635 | I155: FALSE | J155: 1 | K155: 0.3105964635 | L155: 11107.67046 | M155: 267627.0779 | N155: 8842.504608 | O155: 2051.064189 | P155: 299 | Q155: 47.84 | R155: 346.5641667 | S155: 55.45026667 | T155: 214.1016624 | U155: 84.48275862 | V155: 13.51724138 | W155: 117.154344 | X155: 18.74469503 | Y155: 12090.42393 | Z155: 0.089 | AA155: 267627.06 | AB155: 8842.504608 | AC155: 2051.064052 | AD155: 214.101648 | AE155: 12090.42378 | AF155: 0 | AG155: ='Tabla Fijo'!E149+'Tabla Fijo'!H149 -> 0 | AH155: 12090.42378 | AJ155: 11954.87158
B156: 142 | C156: 2034-02-04 | D156: 31 | E156: 0.089 | F156: 1.008463889 | G156: 3.24686211 | H156: 0.3079896731 | I156: FALSE | J156: 1 | K156: 0.3079896731 | L156: 11107.67046 | M156: 258784.5733 | N156: 8917.346585 | O156: 1983.296216 | P156: 299 | Q156: 47.84 | R156: 346.5641667 | S156: 55.45026667 | T156: 207.0276587 | U156: 84.48275862 | V156: 13.51724138 | W156: 117.154344 | X156: 18.74469503 | Y156: 12090.42393 | Z156: 0.089 | AA156: 258784.56 | AB156: 8917.346585 | AC156: 1983.296114 | AD156: 207.027648 | AE156: 12090.42382 | AF156: 0 | AG156: ='Tabla Fijo'!E150+'Tabla Fijo'!H150 -> 0 | AH156: 12090.42382 | AJ156: 11954.87162
B157: 143 | C157: 2034-03-04 | D157: 28 | E157: 0.089 | F157: 1.007722222 | G157: 3.271935101 | H157: 0.3056295339 | I157: FALSE | J157: 1 | K157: 0.3056295339 | L157: 11107.67046 | M157: 249867.2268 | N157: 9178.140209 | O157: 1729.63647 | P157: 299 | Q157: 47.84 | R157: 346.5641667 | S157: 55.45026667 | T157: 199.8937814 | U157: 84.48275862 | V157: 13.51724138 | W157: 117.154344 | X157: 18.74469503 | Y157: 12090.42393 | Z157: 0.089 | AA157: 249867.21 | AB157: 9178.140209 | AC157: 1729.636354 | AD157: 199.893768 | AE157: 12090.4238 | AF157: 0 | AG157: ='Tabla Fijo'!E151+'Tabla Fijo'!H151 -> 0 | AH157: 12090.4238 | AJ157: 11954.8716
B158: 144 | C158: 2034-04-04 | D158: 31 | E158: 0.089 | F158: 1.008463889 | G158: 3.299628396 | H158: 0.3030644303 | I158: TRUE | J158: 1 | K158: 0.3030644303 | L158: 11107.67046 | M158: 240689.0865 | N158: 9070.504774 | O158: 1844.614416 | P158: 299 | Q158: 47.84 | R158: 346.5641667 | S158: 55.45026667 | T158: 192.5512692 | U158: 84.48275862 | V158: 13.51724138 | W158: 117.154344 | X158: 18.74469503 | Y158: 12090.42393 | Z158: 0.089 | AA158: 240689.07 | AB158: 9070.504774 | AC158: 1844.614289 | AD158: 192.551256 | AE158: 12090.42379 | AF158: 0 | AG158: ='Tabla Fijo'!E152+'Tabla Fijo'!H152 -> 0 | AH158: 12090.42379 | AJ158: 11954.87159
B159: 145 | C159: 2034-05-04 | D159: 30 | E159: 0.089 | F159: 1.008216667 | G159: 3.326740343 | H159: 0.3005945451 | I159: FALSE | J159: 1 | K159: 0.3005945451 | L159: 11107.67046 | M159: 231618.5818 | N159: 9204.537779 | O159: 1717.837815 | P159: 299 | Q159: 47.84 | R159: 346.5641667 | S159: 55.45026667 | T159: 185.2948654 | U159: 84.48275862 | V159: 13.51724138 | W159: 117.154344 | X159: 18.74469503 | Y159: 12090.42393 | Z159: 0.089 | AA159: 231618.57 | AB159: 9204.537779 | AC159: 1717.837728 | AD159: 185.294856 | AE159: 12090.42384 | AF159: 0 | AG159: ='Tabla Fijo'!E153+'Tabla Fijo'!H153 -> 0 | AH159: 12090.42384 | AJ159: 11954.87163
B160: 146 | C160: 2034-06-04 | D160: 31 | E160: 0.089 | F160: 1.008463889 | G160: 3.354897504 | H160: 0.2980716993 | I160: FALSE | J160: 1 | K160: 0.2980716993 | L160: 11107.67046 | M160: 222414.044 | N160: 9225.182704 | O160: 1704.55652 | P160: 299 | Q160: 47.84 | R160: 346.5641667 | S160: 55.45026667 | T160: 177.9312352 | U160: 84.48275862 | V160: 13.51724138 | W160: 117.154344 | X160: 18.74469503 | Y160: 12090.42393 | Z160: 0.089 | AA160: 222414.03 | AB160: 9225.182704 | AC160: 1704.556413 | AD160: 177.931224 | AE160: 12090.42381 | AF160: 0 | AG160: ='Tabla Fijo'!E154+'Tabla Fijo'!H154 -> 0 | AH160: 12090.42381 | AJ160: 11954.87161
B161: 147 | C161: 2034-07-04 | D161: 30 | E161: 0.089 | F161: 1.008216667 | G161: 3.382463578 | H161: 0.2956425034 | I161: FALSE | J161: 1 | K161: 0.2956425034 | L161: 11107.67046 | M161: 213188.8613 | N161: 9355.968649 | O161: 1581.150721 | P161: 299 | Q161: 47.84 | R161: 346.5641667 | S161: 55.45026667 | T161: 170.551089 | U161: 84.48275862 | V161: 13.51724138 | W161: 117.154344 | X161: 18.74469503 | Y161: 12090.42393 | Z161: 0.089 | AA161: 213188.85 | AB161: 9355.968649 | AC161: 1581.150638 | AD161: 170.55108 | AE161: 12090.42384 | AF161: 0 | AG161: ='Tabla Fijo'!E155+'Tabla Fijo'!H155 -> 0 | AH161: 12090.42384 | AJ161: 11954.87164
B162: 148 | C162: 2034-08-04 | D162: 31 | E162: 0.089 | F162: 1.008463889 | G162: 3.411092374 | H162: 0.2931612194 | I162: FALSE | J162: 1 | K162: 0.2931612194 | L162: 11107.67046 | M162: 203832.8926 | N162: 9382.451505 | O162: 1562.152641 | P162: 299 | Q162: 47.84 | R162: 346.5641667 | S162: 55.45026667 | T162: 163.0663141 | U162: 84.48275862 | V162: 13.51724138 | W162: 117.154344 | X162: 18.74469503 | Y162: 12090.42393 | Z162: 0.089 | AA162: 203832.88 | AB162: 9382.451505 | AC162: 1562.152544 | AD162: 163.066304 | AE162: 12090.42383 | AF162: 0 | AG162: ='Tabla Fijo'!E156+'Tabla Fijo'!H156 -> 0 | AH162: 12090.42383 | AJ162: 11954.87162
B163: 149 | C163: 2034-09-04 | D163: 31 | E163: 0.089 | F163: 1.008463889 | G163: 3.439963481 | H163: 0.2907007605 | I163: FALSE | J163: 1 | K163: 0.2907007605 | L163: 11107.67046 | M163: 194450.4411 | N163: 9461.863532 | O163: 1490.246575 | P163: 299 | Q163: 47.84 | R163: 346.5641667 | S163: 55.45026667 | T163: 155.5603529 | U163: 84.48275862 | V163: 13.51724138 | W163: 117.154344 | X163: 18.74469503 | Y163: 12090.42393 | Z163: 0.089 | AA163: 194450.43 | AB163: 9461.863532 | AC163: 1490.24649 | AD163: 155.560344 | AE163: 12090.42384 | AF163: 0 | AG163: ='Tabla Fijo'!E157+'Tabla Fijo'!H157 -> 0 | AH163: 12090.42384 | AJ163: 11954.87163
B164: 150 | C164: 2034-10-04 | D164: 30 | E164: 0.089 | F164: 1.008216667 | G164: 3.468228514 | H164: 0.2883316356 | I164: FALSE | J164: 1 | K164: 0.2883316356 | L164: 11107.67046 | M164: 184988.5776 | N164: 9587.68098 | O164: 1371.998617 | P164: 299 | Q164: 47.84 | R164: 346.5641667 | S164: 55.45026667 | T164: 147.9908621 | U164: 84.48275862 | V164: 13.51724138 | W164: 117.154344 | X164: 18.74469503 | Y164: 12090.42393 | Z164: 0.089 | AA164: 184988.57 | AB164: 9587.68098 | AC164: 1371.998561 | AD164: 147.990856 | AE164: 12090.42387 | AF164: 0 | AG164: ='Tabla Fijo'!E158+'Tabla Fijo'!H158 -> 0 | AH164: 12090.42387 | AJ164: 11954.87167
B165: 151 | C165: 2034-11-04 | D165: 31 | E165: 0.089 | F165: 1.008463889 | G165: 3.497583215 | H165: 0.2859117106 | I165: FALSE | J165: 1 | K165: 0.2859117106 | L165: 11107.67046 | M165: 175400.8966 | N165: 9623.09676 | O165: 1344.252983 | P165: 299 | Q165: 47.84 | R165: 346.5641667 | S165: 55.45026667 | T165: 140.3207173 | U165: 84.48275862 | V165: 13.51724138 | W165: 117.154344 | X165: 18.74469503 | Y165: 12090.42393 | Z165: 0.089 | AA165: 175400.89 | AB165: 9623.09676 | AC165: 1344.252932 | AD165: 140.320712 | AE165: 12090.42388 | AF165: 0 | AG165: ='Tabla Fijo'!E159+'Tabla Fijo'!H159 -> 0 | AH165: 12090.42388 | AJ165: 11954.87167
B166: 152 | C166: 2034-12-04 | D166: 30 | E166: 0.089 | F166: 1.008216667 | G166: 3.52632169 | H166: 0.283581615 | I166: FALSE | J166: 1 | K166: 0.283581615 | L166: 11107.67046 | M166: 165777.7999 | N166: 9745.529538 | O166: 1229.518682 | P166: 299 | Q166: 47.84 | R166: 346.5641667 | S166: 55.45026667 | T166: 132.6222399 | U166: 84.48275862 | V166: 13.51724138 | W166: 117.154344 | X166: 18.74469503 | Y166: 12090.42393 | Z166: 0.089 | AA166: 165777.79 | AB166: 9745.529538 | AC166: 1229.518609 | AD166: 132.622232 | AE166: 12090.42385 | AF166: 0 | AG166: ='Tabla Fijo'!E160+'Tabla Fijo'!H160 -> 0 | AH166: 12090.42385 | AJ166: 11954.87165
B167: 153 | C167: 2035-01-04 | D167: 31 | E167: 0.089 | F167: 1.008463889 | G167: 3.556168085 | H167: 0.2812015563 | I167: FALSE | J167: 1 | K167: 0.2812015563 | L167: 11107.67046 | M167: 156032.2703 | N167: 9787.030661 | O167: 1195.813983 | P167: 299 | Q167: 47.84 | R167: 346.5641667 | S167: 55.45026667 | T167: 124.8258163 | U167: 84.48275862 | V167: 13.51724138 | W167: 117.154344 | X167: 18.74469503 | Y167: 12090.42393 | Z167: 0.089 | AA167: 156032.26 | AB167: 9787.030661 | AC167: 1195.813904 | AD167: 124.825808 | AE167: 12090.42384 | AF167: 0 | AG167: ='Tabla Fijo'!E161+'Tabla Fijo'!H161 -> 0 | AH167: 12090.42384 | AJ167: 11954.87164
B168: 154 | C168: 2035-02-04 | D168: 31 | E168: 0.089 | F168: 1.008463889 | G168: 3.586267097 | H168: 0.278841473 | I168: FALSE | J168: 1 | K168: 0.278841473 | L168: 11107.67046 | M168: 146245.2397 | N168: 9869.867001 | O168: 1120.807267 | P168: 299 | Q168: 47.84 | R168: 346.5641667 | S168: 55.45026667 | T168: 116.9961917 | U168: 84.48275862 | V168: 13.51724138 | W168: 117.154344 | X168: 18.74469503 | Y168: 12090.42393 | Z168: 0.089 | AA168: 146245.23 | AB168: 9869.867001 | AC168: 1120.807193 | AD168: 116.996184 | AE168: 12090.42385 | AF168: 0 | AG168: ='Tabla Fijo'!E162+'Tabla Fijo'!H162 -> 0 | AH168: 12090.42385 | AJ168: 11954.87165
B169: 155 | C169: 2035-03-04 | D169: 28 | E169: 0.089 | F169: 1.007722222 | G169: 3.613961048 | H169: 0.2767046979 | I169: FALSE | J169: 1 | K169: 0.2767046979 | L169: 11107.67046 | M169: 136375.3727 | N169: 10054.54953 | O169: 944.0206352 | P169: 299 | Q169: 47.84 | R169: 346.5641667 | S169: 55.45026667 | T169: 109.1002981 | U169: 84.48275862 | V169: 13.51724138 | W169: 117.154344 | X169: 18.74469503 | Y169: 12090.42393 | Z169: 0.089 | AA169: 136375.36 | AB169: 10054.54953 | AC169: 944.0205476 | AD169: 109.100288 | AE169: 12090.42383 | AF169: 0 | AG169: ='Tabla Fijo'!E163+'Tabla Fijo'!H163 -> 0 | AH169: 12090.42383 | AJ169: 11954.87163
B170: 156 | C170: 2035-04-04 | D170: 31 | E170: 0.089 | F170: 1.008463889 | G170: 3.644549213 | H170: 0.2743823561 | I170: TRUE | J170: 1 | K170: 0.2743823561 | L170: 11107.67046 | M170: 126320.8231 | N170: 10038.50505 | O170: 968.1087528 | P170: 299 | Q170: 47.84 | R170: 346.5641667 | S170: 55.45026667 | T170: 101.0566585 | U170: 84.48275862 | V170: 13.51724138 | W170: 117.154344 | X170: 18.74469503 | Y170: 12090.42393 | Z170: 0.089 | AA170: 126320.81 | AB170: 10038.50505 | AC170: 968.1086522 | AD170: 101.056648 | AE170: 12090.42382 | AF170: 0 | AG170: ='Tabla Fijo'!E164+'Tabla Fijo'!H164 -> 0 | AH170: 12090.42382 | AJ170: 11954.87162
B171: 157 | C171: 2035-05-04 | D171: 30 | E171: 0.089 | F171: 1.008216667 | G171: 3.674495259 | H171: 0.2721462213 | I171: FALSE | J171: 1 | K171: 0.2721462213 | L171: 11107.67046 | M171: 116282.3181 | N171: 10152.21741 | O171: 862.4271925 | P171: 299 | Q171: 47.84 | R171: 346.5641667 | S171: 55.45026667 | T171: 93.02585447 | U171: 84.48275862 | V171: 13.51724138 | W171: 117.154344 | X171: 18.74469503 | Y171: 12090.42393 | Z171: 0.089 | AA171: 116282.3 | AB171: 10152.21741 | AC171: 862.4270583 | AD171: 93.02584 | AE171: 12090.42378 | AF171: 0 | AG171: ='Tabla Fijo'!E165+'Tabla Fijo'!H165 -> 0 | AH171: 12090.42378 | AJ171: 11954.87158
B172: 158 | C172: 2035-06-04 | D172: 31 | E172: 0.089 | F172: 1.008463889 | G172: 3.705595779 | H172: 0.2698621382 | I172: FALSE | J172: 1 | K172: 0.2698621382 | L172: 11107.67046 | M172: 106130.1007 | N172: 10209.39708 | O172: 813.3692993 | P172: 299 | Q172: 47.84 | R172: 346.5641667 | S172: 55.45026667 | T172: 84.90408054 | U172: 84.48275862 | V172: 13.51724138 | W172: 117.154344 | X172: 18.74469503 | Y172: 12090.42393 | Z172: 0.089 | AA172: 106130.08 | AB172: 10209.39708 | AC172: 813.3691409 | AD172: 84.904064 | AE172: 12090.42376 | AF172: 0 | AG172: ='Tabla Fijo'!E166+'Tabla Fijo'!H166 -> 0 | AH172: 12090.42376 | AJ172: 11954.87155
B173: 159 | C173: 2035-07-04 | D173: 30 | E173: 0.089 | F173: 1.008216667 | G173: 3.736043424 | H173: 0.2676628418 | I173: FALSE | J173: 1 | K173: 0.2676628418 | L173: 11107.67046 | M173: 95920.70359 | N173: 10319.52201 | O173: 711.411885 | P173: 299 | Q173: 47.84 | R173: 346.5641667 | S173: 55.45026667 | T173: 76.73656287 | U173: 84.48275862 | V173: 13.51724138 | W173: 117.154344 | X173: 18.74469503 | Y173: 12090.42393 | Z173: 0.089 | AA173: 95920.68 | AB173: 10319.52201 | AC173: 711.41171 | AD173: 76.736544 | AE173: 12090.42374 | AF173: 0 | AG173: ='Tabla Fijo'!E167+'Tabla Fijo'!H167 -> 0 | AH173: 12090.42374 | AJ173: 11954.87154
B174: 160 | C174: 2035-08-04 | D174: 31 | E174: 0.089 | F174: 1.008463889 | G174: 3.76766488 | H174: 0.265416387 | I174: FALSE | J174: 1 | K174: 0.265416387 | L174: 11107.67046 | M174: 85601.18158 | N174: 10383.15157 | O174: 656.0379444 | P174: 299 | Q174: 47.84 | R174: 346.5641667 | S174: 55.45026667 | T174: 68.48094526 | U174: 84.48275862 | V174: 13.51724138 | W174: 117.154344 | X174: 18.74469503 | Y174: 12090.42393 | Z174: 0.089 | AA174: 85601.16 | AB174: 10383.15157 | AC174: 656.037779 | AD174: 68.480928 | AE174: 12090.42375 | AF174: 0 | AG174: ='Tabla Fijo'!E168+'Tabla Fijo'!H168 -> 0 | AH174: 12090.42375 | AJ174: 11954.87155
B175: 161 | C175: 2035-09-04 | D175: 31 | E175: 0.089 | F175: 1.008463889 | G175: 3.799553977 | H175: 0.2631887864 | I175: FALSE | J175: 1 | K175: 0.2631887864 | L175: 11107.67046 | M175: 75218.03001 | N175: 10471.03341 | O175: 576.4626244 | P175: 299 | Q175: 47.84 | R175: 346.5641667 | S175: 55.45026667 | T175: 60.17442401 | U175: 84.48275862 | V175: 13.51724138 | W175: 117.154344 | X175: 18.74469503 | Y175: 12090.42393 | Z175: 0.089 | AA175: 75218.01 | AB175: 10471.03341 | AC175: 576.4624711 | AD175: 60.174408 | AE175: 12090.42376 | AF175: 0 | AG175: ='Tabla Fijo'!E169+'Tabla Fijo'!H169 -> 0 | AH175: 12090.42376 | AJ175: 11954.87156
B176: 162 | C176: 2035-10-04 | D176: 30 | E176: 0.089 | F176: 1.008216667 | G176: 3.830773646 | H176: 0.2610438758 | I176: FALSE | J176: 1 | K176: 0.2610438758 | L176: 11107.67046 | M176: 64746.9966 | N176: 10575.66597 | O176: 480.2068914 | P176: 299 | Q176: 47.84 | R176: 346.5641667 | S176: 55.45026667 | T176: 51.79759728 | U176: 84.48275862 | V176: 13.51724138 | W176: 117.154344 | X176: 18.74469503 | Y176: 12090.42393 | Z176: 0.089 | AA176: 64746.98 | AB176: 10575.66597 | AC176: 480.2067683 | AD176: 51.797584 | AE176: 12090.4238 | AF176: 0 | AG176: ='Tabla Fijo'!E170+'Tabla Fijo'!H170 -> 0 | AH176: 12090.4238 | AJ176: 11954.87159
B177: 163 | C177: 2035-11-04 | D177: 31 | E177: 0.089 | F177: 1.008463889 | G177: 3.863196888 | H177: 0.258852973 | I177: FALSE | J177: 1 | K177: 0.258852973 | L177: 11107.67046 | M177: 54171.33063 | N177: 10649.17034 | O177: 415.1630589 | P177: 299 | Q177: 47.84 | R177: 346.5641667 | S177: 55.45026667 | T177: 43.3370645 | U177: 84.48275862 | V177: 13.51724138 | W177: 117.154344 | X177: 18.74469503 | Y177: 12090.42393 | Z177: 0.089 | AA177: 54171.31 | AB177: 10649.17034 | AC177: 415.1629008 | AD177: 43.337048 | AE177: 12090.42376 | AF177: 0 | AG177: ='Tabla Fijo'!E171+'Tabla Fijo'!H171 -> 0 | AH177: 12090.42376 | AJ177: 11954.87155
B178: 164 | C178: 2035-12-04 | D178: 30 | E178: 0.089 | F178: 1.008216667 | G178: 3.89493949 | H178: 0.2567433981 | I178: FALSE | J178: 1 | K178: 0.2567433981 | L178: 11107.67046 | M178: 43522.16029 | N178: 10750.06338 | O178: 322.7893555 | P178: 299 | Q178: 47.84 | R178: 346.5641667 | S178: 55.45026667 | T178: 34.81772823 | U178: 84.48275862 | V178: 13.51724138 | W178: 117.154344 | X178: 18.74469503 | Y178: 12090.42393 | Z178: 0.089 | AA178: 43522.14 | AB178: 10750.06338 | AC178: 322.789205 | AD178: 34.817712 | AE178: 12090.42377 | AF178: 0 | AG178: ='Tabla Fijo'!E172+'Tabla Fijo'!H172 -> 0 | AH178: 12090.42377 | AJ178: 11954.87156
B179: 165 | C179: 2036-01-04 | D179: 31 | E179: 0.089 | F179: 1.008463889 | G179: 3.927905825 | H179: 0.2545885886 | I179: FALSE | J179: 1 | K179: 0.2545885886 | L179: 11107.67046 | M179: 32772.09692 | N179: 10830.29107 | O179: 251.1617094 | P179: 299 | Q179: 47.84 | R179: 346.5641667 | S179: 55.45026667 | T179: 26.21767753 | U179: 84.48275862 | V179: 13.51724138 | W179: 117.154344 | X179: 18.74469503 | Y179: 12090.42393 | Z179: 0.089 | AA179: 32772.08 | AB179: 10830.29107 | AC179: 251.1615798 | AD179: 26.217664 | AE179: 12090.42379 | AF179: 0 | AG179: ='Tabla Fijo'!E173+'Tabla Fijo'!H173 -> 0 | AH179: 12090.42379 | AJ179: 11954.87159
B180: 166 | C180: 2036-02-04 | D180: 31 | E180: 0.089 | F180: 1.008463889 | G180: 3.961151183 | H180: 0.2524518641 | I180: FALSE | J180: 1 | K180: 0.2524518641 | L180: 11107.67046 | M180: 21941.80584 | N180: 10921.95745 | O180: 168.159562 | P180: 299 | Q180: 47.84 | R180: 346.5641667 | S180: 55.45026667 | T180: 17.55344467 | U180: 84.48275862 | V180: 13.51724138 | W180: 117.154344 | X180: 18.74469503 | Y180: 12090.42393 | Z180: 0.089 | AA180: 21941.79 | AB180: 10921.95745 | AC180: 168.1594406 | AD180: 17.553432 | AE180: 12090.4238 | AF180: 0 | AG180: ='Tabla Fijo'!E174+'Tabla Fijo'!H174 -> 0 | AH180: 12090.4238 | AJ180: 11954.87159
B181: 167 | C181: 2036-03-04 | D181: 29 | E181: 0.089 | F181: 1.007969444 | G181: 3.992719357 | H181: 0.2504558699 | I181: FALSE | J181: 1 | K181: 0.2504558699 | L181: 11107.67046 | M181: 11019.84839 | N181: 11019.84839 | O181: 79.00619082 | P181: 299 | Q181: 47.84 | R181: 346.5641667 | S181: 55.45026667 | T181: 8.815878712 | U181: 84.48275862 | V181: 13.51724138 | W181: 117.154344 | X181: 18.74469503 | Y181: 12090.42393 | Z181: 0.089 | AA181: 11019.83 | AB181: 11019.83 | AC181: 79.00605897 | AD181: 8.815864 | AE181: 12090.4054 | AF181: 0 | AG181: ='Tabla Fijo'!E175+'Tabla Fijo'!H175 -> 0 | AH181: 12090.4054 | AJ181: 11954.85319
B182: 168 | C182: 2036-04-04 | D182: 31 | E182: 0.089 | F182: 1.008463889 | G182: 4.02651329 | H182: 0.2483538307 | I182: TRUE | J182: 1 | K182: 0.2483538307 | L182: 11107.67046 | M182: 2.422893886e-08 | N182: 11107.67046 | O182: 1.856878953e-10 | P182: 299 | Q182: 47.84 | R182: 346.5641667 | S182: 55.45026667 | T182: 1.938315108e-11 | U182: 84.48275862 | V182: 13.51724138 | W182: 117.154344 | X182: 18.74469503 | Y182: 0 | Z182: 0.089 | AA182: 0 | AB182: 0 | AC182: 0 | AD182: 0 | AE182: 0 | AF182: 0 | AG182: ='Tabla Fijo'!E176+'Tabla Fijo'!H176 -> 0 | AH182: 0 | AJ182: 0
B183: 169 | C183: 2036-05-04 | D183: 30 | E183: 0.089 | F183: 1.008216667 | G183: 4.059597808 | H183: 0.2463298207 | I183: FALSE | J183: 1 | K183: 0.2463298207 | L183: 11107.67046 | M183: -11107.67046 | N183: 11198.93849 | O183: -82.38188924 | P183: 299 | Q183: 47.84 | R183: 346.5641667 | S183: 55.45026667 | T183: -8.886136368 | U183: 84.48275862 | V183: 13.51724138 | W183: 117.154344 | X183: 18.74469503 | Y183: 0 | Z183: 0.089 | AA183: 0 | AB183: 0 | AC183: 0 | AD183: 0 | AE183: 0 | AF183: 0 | AG183: ='Tabla Fijo'!E177+'Tabla Fijo'!H177 -> 0 | AH183: 0 | AJ183: 0
B184: 170 | C184: 2036-06-04 | D184: 31 | E184: 0.089 | F184: 1.008463889 | G184: 4.093957793 | H184: 0.2442624108 | I184: FALSE | J184: 1 | K184: 0.2442624108 | L184: 11107.67046 | M184: -22306.60894 | N184: 11296.47112 | O184: -170.9553724 | P184: 299 | Q184: 47.84 | R184: 346.5641667 | S184: 55.45026667 | T184: -17.84528716 | U184: 84.48275862 | V184: 13.51724138 | W184: 117.154344 | X184: 18.74469503 | Y184: 0 | Z184: 0.089 | AA184: 0 | AB184: 0 | AC184: 0 | AD184: 0 | AE184: 0 | AF184: 0 | AG184: ='Tabla Fijo'!E178+'Tabla Fijo'!H178 -> 0 | AH184: 0 | AJ184: 0
B185: 171 | C185: 2036-07-04 | D185: 30 | E185: 0.089 | F185: 1.008216667 | G185: 4.127596479 | H185: 0.2422717446 | I185: FALSE | J185: 1 | K185: 0.2422717446 | L185: 11107.67046 | M185: -33603.08006 | N185: 11383.77577 | O185: -249.2228438 | P185: 299 | Q185: 47.84 | R185: 346.5641667 | S185: 55.45026667 | T185: -26.88246405 | U185: 84.48275862 | V185: 13.51724138 | W185: 117.154344 | X185: 18.74469503 | Y185: 0 | Z185: 0.089 | AA185: 0 | AB185: 0 | AC185: 0 | AD185: 0 | AE185: 0 | AF185: 0 | AG185: ='Tabla Fijo'!E179+'Tabla Fijo'!H179 -> 0 | AH185: 0 | AJ185: 0
B186: 172 | C186: 2036-08-04 | D186: 31 | E186: 0.089 | F186: 1.008463889 | G186: 4.162531997 | H186: 0.2402383935 | I186: FALSE | J186: 1 | K186: 0.2402383935 | L186: 11107.67046 | M186: -44986.85583 | N186: 11488.43421 | O186: -344.7742646 | P186: 299 | Q186: 47.84 | R186: 346.5641667 | S186: 55.45026667 | T186: -35.98948467 | U186: 84.48275862 | V186: 13.51724138 | W186: 117.154344 | X186: 18.74469503 | Y186: 0 | Z186: 0.089 | AA186: 0 | AB186: 0 | AC186: 0 | AD186: 0 | AE186: 0 | AF186: 0 | AG186: ='Tabla Fijo'!E180+'Tabla Fijo'!H180 -> 0 | AH186: 0 | AJ186: 0
B187: 173 | C187: 2036-09-04 | D187: 31 | E187: 0.089 | F187: 1.008463889 | G187: 4.197763205 | H187: 0.2382221081 | I187: FALSE | J187: 1 | K187: 0.2382221081 | L187: 11107.67046 | M187: -56475.29004 | N187: 11585.67104 | O187: -432.8203478 | P187: 299 | Q187: 47.84 | R187: 346.5641667 | S187: 55.45026667 | T187: -45.18023203 | U187: 84.48275862 | V187: 13.51724138 | W187: 117.154344 | X187: 18.74469503 | Y187: 0 | Z187: 0.089 | AA187: 0 | AB187: 0 | AC187: 0 | AD187: 0 | AE187: 0 | AF187: 0 | AG187: ='Tabla Fijo'!E181+'Tabla Fijo'!H181 -> 0 | AH187: 0 | AJ187: 0
B188: 174 | C188: 2036-10-04 | D188: 30 | E188: 0.089 | F188: 1.008216667 | G188: 4.232254826 | H188: 0.2362806686 | I188: FALSE | J188: 1 | K188: 0.2362806686 | L188: 11107.67046 | M188: -68060.96108 | N188: 11666.90469 | O188: -504.7854613 | P188: 299 | Q188: 47.84 | R188: 346.5641667 | S188: 55.45026667 | T188: -54.44876886 | U188: 84.48275862 | V188: 13.51724138 | W188: 117.154344 | X188: 18.74469503 | Y188: 0 | Z188: 0.089 | AA188: 0 | AB188: 0 | AC188: 0 | AD188: 0 | AE188: 0 | AF188: 0 | AG188: ='Tabla Fijo'!E182+'Tabla Fijo'!H182 -> 0 | AH188: 0 | AJ188: 0
B189: 175 | C189: 2036-11-04 | D189: 31 | E189: 0.089 | F189: 1.008463889 | G189: 4.268076161 | H189: 0.2342975997 | I189: FALSE | J189: 1 | K189: 0.2342975997 | L189: 11107.67046 | M189: -79727.86577 | N189: 11782.47826 | O189: -611.0255046 | P189: 299 | Q189: 47.84 | R189: 346.5641667 | S189: 55.45026667 | T189: -63.78229262 | U189: 84.48275862 | V189: 13.51724138 | W189: 117.154344 | X189: 18.74469503 | Y189: 0 | Z189: 0.089 | AA189: 0 | AB189: 0 | AC189: 0 | AD189: 0 | AE189: 0 | AF189: 0 | AG189: ='Tabla Fijo'!E183+'Tabla Fijo'!H183 -> 0 | AH189: 0 | AJ189: 0
B190: 176 | C190: 2036-12-04 | D190: 30 | E190: 0.089 | F190: 1.008216667 | G190: 4.30314552 | H190: 0.2323881438 | I190: FALSE | J190: 1 | K190: 0.2323881438 | L190: 11107.67046 | M190: -91510.34403 | N190: 11859.58045 | O190: -678.7017182 | P190: 299 | Q190: 47.84 | R190: 346.5641667 | S190: 55.45026667 | T190: -73.20827522 | U190: 84.48275862 | V190: 13.51724138 | W190: 117.154344 | X190: 18.74469503 | Y190: 0 | Z190: 0.089 | AA190: 0 | AB190: 0 | AC190: 0 | AD190: 0 | AE190: 0 | AF190: 0 | AG190: ='Tabla Fijo'!E184+'Tabla Fijo'!H184 -> 0 | AH190: 0 | AJ190: 0
B191: 177 | C191: 2037-01-04 | D191: 31 | E191: 0.089 | F191: 1.008463889 | G191: 4.339566866 | H191: 0.2304377443 | I191: FALSE | J191: 1 | K191: 0.2304377443 | L191: 11107.67046 | M191: -103369.9245 | N191: 11982.58201 | O191: -792.2156157 | P191: 299 | Q191: 47.84 | R191: 346.5641667 | S191: 55.45026667 | T191: -82.69593958 | U191: 84.48275862 | V191: 13.51724138 | W191: 117.154344 | X191: 18.74469503 | Y191: 0 | Z191: 0.089 | AA191: 0 | AB191: 0 | AC191: 0 | AD191: 0 | AE191: 0 | AF191: 0 | AG191: ='Tabla Fijo'!E185+'Tabla Fijo'!H185 -> 0 | AH191: 0 | AJ191: 0
B192: 178 | C192: 2037-02-04 | D192: 31 | E192: 0.089 | F192: 1.008463889 | G192: 4.376296478 | H192: 0.2285037143 | I192: FALSE | J192: 1 | K192: 0.2285037143 | L192: 11107.67046 | M192: -115352.5065 | N192: 12084.00126 | O192: -884.0487928 | P192: 299 | Q192: 47.84 | R192: 346.5641667 | S192: 55.45026667 | T192: -92.2820052 | U192: 84.48275862 | V192: 13.51724138 | W192: 117.154344 | X192: 18.74469503 | Y192: 0 | Z192: 0.089 | AA192: 0 | AB192: 0 | AC192: 0 | AD192: 0 | AE192: 0 | AF192: 0 | AG192: ='Tabla Fijo'!E186+'Tabla Fijo'!H186 -> 0 | AH192: 0 | AJ192: 0
B193: 179 | C193: 2037-03-04 | D193: 28 | E193: 0.089 | F193: 1.007722222 | G193: 4.410091211 | H193: 0.2267526797 | I193: FALSE | J193: 1 | K193: 0.2267526797 | L193: 11107.67046 | M193: -127436.5078 | N193: 12091.76349 | O193: -882.1438259 | P193: 299 | Q193: 47.84 | R193: 346.5641667 | S193: 55.45026667 | T193: -101.9492062 | U193: 84.48275862 | V193: 13.51724138 | W193: 117.154344 | X193: 18.74469503 | Y193: 0 | Z193: 0.089 | AA193: 0 | AB193: 0 | AC193: 0 | AD193: 0 | AE193: 0 | AF193: 0 | AG193: ='Tabla Fijo'!E187+'Tabla Fijo'!H187 -> 0 | AH193: 0 | AJ193: 0
B194: 180 | C194: 2037-04-04 | D194: 31 | E194: 0.089 | F194: 1.008463889 | G194: 4.447417733 | H194: 0.2248495779 | I194: TRUE | J194: 1 | K194: 0.2248495779 | L194: 11107.67046 | M194: -139528.2712 | N194: 12288.62224 | O194: -1069.329168 | P194: 299 | Q194: 47.84 | R194: 346.5641667 | S194: 55.45026667 | T194: -111.622617 | U194: 84.48275862 | V194: 13.51724138 | W194: 117.154344 | X194: 18.74469503 | Y194: 0 | Z194: 0.089 | AA194: 0 | AB194: 0 | AC194: 0 | AD194: 0 | AE194: 0 | AF194: 0 | AG194: ='Tabla Fijo'!E188+'Tabla Fijo'!H188 -> 0 | AH194: 0 | AJ194: 0
B195: 181 | C195: 2037-05-04 | D195: 30 | E195: 0.089 | F195: 1.008216667 | G195: 4.483960682 | H195: 0.2230171205 | I195: FALSE | J195: 1 | K195: 0.2230171205 | L195: 11107.67046 | M195: -151816.8935 | N195: 12355.09927 | O195: -1125.975293 | P195: 299 | Q195: 47.84 | R195: 346.5641667 | S195: 55.45026667 | T195: -121.4535148 | U195: 84.48275862 | V195: 13.51724138 | W195: 117.154344 | X195: 18.74469503 | Y195: 0 | Z195: 0.089 | AA195: 0 | AB195: 0 | AC195: 0 | AD195: 0 | AE195: 0 | AF195: 0 | AG195: ='Tabla Fijo'!E189+'Tabla Fijo'!H189 -> 0 | AH195: 0 | AJ195: 0
B196: 182 | C196: 2037-06-04 | D196: 31 | E196: 0.089 | F196: 1.008463889 | G196: 4.521912427 | H196: 0.2211453707 | I196: FALSE | J196: 1 | K196: 0.2211453707 | L196: 11107.67046 | M196: -164171.9928 | N196: 12497.20397 | O196: -1258.195911 | P196: 299 | Q196: 47.84 | R196: 346.5641667 | S196: 55.45026667 | T196: -131.3375942 | U196: 84.48275862 | V196: 13.51724138 | W196: 117.154344 | X196: 18.74469503 | Y196: 0 | Z196: 0.089 | AA196: 0 | AB196: 0 | AC196: 0 | AD196: 0 | AE196: 0 | AF196: 0 | AG196: ='Tabla Fijo'!E190+'Tabla Fijo'!H190 -> 0 | AH196: 0 | AJ196: 0
B197: 183 | C197: 2037-07-04 | D197: 30 | E197: 0.089 | F197: 1.008216667 | G197: 4.559067475 | H197: 0.2193431015 | I197: FALSE | J197: 1 | K197: 0.2193431015 | L197: 11107.67046 | M197: -176669.1967 | N197: 12559.30236 | O197: -1310.296542 | P197: 299 | Q197: 47.84 | R197: 346.5641667 | S197: 55.45026667 | T197: -141.3353574 | U197: 84.48275862 | V197: 13.51724138 | W197: 117.154344 | X197: 18.74469503 | Y197: 0 | Z197: 0.089 | AA197: 0 | AB197: 0 | AC197: 0 | AD197: 0 | AE197: 0 | AF197: 0 | AG197: ='Tabla Fijo'!E191+'Tabla Fijo'!H191 -> 0 | AH197: 0 | AJ197: 0
B198: 184 | C198: 2037-08-04 | D198: 31 | E198: 0.089 | F198: 1.008463889 | G198: 4.597654915 | H198: 0.2175021872 | I198: FALSE | J198: 1 | K198: 0.2175021872 | L198: 11107.67046 | M198: -189228.4991 | N198: 12709.27945 | O198: -1450.226192 | P198: 299 | Q198: 47.84 | R198: 346.5641667 | S198: 55.45026667 | T198: -151.3827993 | U198: 84.48275862 | V198: 13.51724138 | W198: 117.154344 | X198: 18.74469503 | Y198: 0 | Z198: 0.089 | AA198: 0 | AB198: 0 | AC198: 0 | AD198: 0 | AE198: 0 | AF198: 0 | AG198: ='Tabla Fijo'!E192+'Tabla Fijo'!H192 -> 0 | AH198: 0 | AJ198: 0
B199: 185 | C199: 2037-09-04 | D199: 31 | E199: 0.089 | F199: 1.008463889 | G199: 4.636568956 | H199: 0.2156767234 | I199: FALSE | J199: 1 | K199: 0.2156767234 | L199: 11107.67046 | M199: -201937.7785 | N199: 12816.84938 | O199: -1547.628697 | P199: 299 | Q199: 47.84 | R199: 346.5641667 | S199: 55.45026667 | T199: -161.5502228 | U199: 84.48275862 | V199: 13.51724138 | W199: 117.154344 | X199: 18.74469503 | Y199: 0 | Z199: 0.089 | AA199: 0 | AB199: 0 | AC199: 0 | AD199: 0 | AE199: 0 | AF199: 0 | AG199: ='Tabla Fijo'!E193+'Tabla Fijo'!H193 -> 0 | AH199: 0 | AJ199: 0
B200: 186 | C200: 2037-10-04 | D200: 30 | E200: 0.089 | F200: 1.008216667 | G200: 4.674666097 | H200: 0.2139190221 | I200: FALSE | J200: 1 | K200: 0.2139190221 | L200: 11107.67046 | M200: -214754.6279 | N200: 12872.23765 | O200: -1592.76349 | P200: 299 | Q200: 47.84 | R200: 346.5641667 | S200: 55.45026667 | T200: -171.8037023 | U200: 84.48275862 | V200: 13.51724138 | W200: 117.154344 | X200: 18.74469503 | Y200: 0 | Z200: 0.089 | AA200: 0 | AB200: 0 | AC200: 0 | AD200: 0 | AE200: 0 | AF200: 0 | AG200: ='Tabla Fijo'!E194+'Tabla Fijo'!H194 -> 0 | AH200: 0 | AJ200: 0
B201: 187 | C201: 2037-11-04 | D201: 31 | E201: 0.089 | F201: 1.008463889 | G201: 4.714231952 | H201: 0.2121236312 | I201: FALSE | J201: 1 | K201: 0.2121236312 | L201: 11107.67046 | M201: -227626.8656 | N201: 13034.27896 | O201: -1744.507006 | P201: 299 | Q201: 47.84 | R201: 346.5641667 | S201: 55.45026667 | T201: -182.1014925 | U201: 84.48275862 | V201: 13.51724138 | W201: 117.154344 | X201: 18.74469503 | Y201: 0 | Z201: 0.089 | AA201: 0 | AB201: 0 | AC201: 0 | AD201: 0 | AE201: 0 | AF201: 0 | AG201: ='Tabla Fijo'!E195+'Tabla Fijo'!H195 -> 0 | AH201: 0 | AJ201: 0
B202: 188 | C202: 2037-12-04 | D202: 30 | E202: 0.089 | F202: 1.008216667 | G202: 4.752967224 | H202: 0.2103948866 | I202: FALSE | J202: 1 | K202: 0.2103948866 | L202: 11107.67046 | M202: -240661.1445 | N202: 13085.10286 | O202: -1784.903489 | P202: 299 | Q202: 47.84 | R202: 346.5641667 | S202: 55.45026667 | T202: -192.5289156 | U202: 84.48275862 | V202: 13.51724138 | W202: 117.154344 | X202: 18.74469503 | Y202: 0 | Z202: 0.089 | AA202: 0 | AB202: 0 | AC202: 0 | AD202: 0 | AE202: 0 | AF202: 0 | AG202: ='Tabla Fijo'!E196+'Tabla Fijo'!H196 -> 0 | AH202: 0 | AJ202: 0
B203: 189 | C203: 2038-01-04 | D203: 31 | E203: 0.089 | F203: 1.008463889 | G203: 4.793195811 | H203: 0.2086290733 | I203: FALSE | J203: 1 | K203: 0.2086290733 | L203: 11107.67046 | M203: -253746.2474 | N203: 13255.3505 | O203: -1944.683046 | P203: 299 | Q203: 47.84 | R203: 346.5641667 | S203: 55.45026667 | T203: -202.9969979 | U203: 84.48275862 | V203: 13.51724138 | W203: 117.154344 | X203: 18.74469503 | Y203: 0 | Z203: 0.089 | AA203: 0 | AB203: 0 | AC203: 0 | AD203: 0 | AE203: 0 | AF203: 0 | AG203: ='Tabla Fijo'!E197+'Tabla Fijo'!H197 -> 0 | AH203: 0 | AJ203: 0
B204: 190 | C204: 2038-02-04 | D204: 31 | E204: 0.089 | F204: 1.008463889 | G204: 4.833764887 | H204: 0.2068780802 | I204: FALSE | J204: 1 | K204: 0.2068780802 | L204: 11107.67046 | M204: -267001.5979 | N204: 13367.54232 | O204: -2046.270579 | P204: 299 | Q204: 47.84 | R204: 346.5641667 | S204: 55.45026667 | T204: -213.6012783 | U204: 84.48275862 | V204: 13.51724138 | W204: 117.154344 | X204: 18.74469503 | Y204: 0 | Z204: 0.089 | AA204: 0 | AB204: 0 | AC204: 0 | AD204: 0 | AE204: 0 | AF204: 0 | AG204: ='Tabla Fijo'!E198+'Tabla Fijo'!H198 -> 0 | AH204: 0 | AJ204: 0
... 55 more rows

Sheet Tabla Fijo
E1: TABLA DE AMORTIZACIONES
E2: CRÉDITO HIPOTECARIO PAGOS FIJOS
C4: Destino | D4: ='Parametros Fijo'!E23 -> SUSTITUCION | F4: Tasa | G4: =ESQUEMA -> 0.089 | L4: =IF(M4="","","CAT") -> CAT | M4: =IF(E248<>0,"",'Tabla Amortización Fijo'!M4) -> 0.1242059035 | P4: MENOS PLAZO
F5: Plazo | G5: =PLAZO_SIMULACION -> 14 | P5: MENOS CUOTA | Q5: =IRR(Q7:Q247,0) -> 0.009806836192
A7: Mes | B7: FECHA PAGO | C7: Saldo | D7: Amortización | E7: Prepagos | F7: Intereses | G7: Pago del crédito | H7: Apoyo Infonavit | I7: Seguro de Vida | J7: Seguro de daños | K7: =IF('Parametros Fijo'!E23="TERRENO","Seguro de desempleo","Seguro de desempleo y contenidos") -> Seguro de desempleo y contenidos | L7: Comisión Mensual | M7: Iva de comisión y Seguros | N7: Pago Mensual | Q7: =-C8+Simulación!K40+Simulación!K41 -> -977500
A8: 1 | B8: ='Tabla Amortización Fijo'!C14 -> 2022-04-04 | C8: =MTO_SOLICITADO -> 1000000 | D8: ='Tabla Amortización Fijo'!AB14 -> 0 | F8: ='Tabla Amortización Fijo'!AC14 -> 5191.666667 | G8: =D8+F8 -> 5191.666667 | I8: =(C8*0.8/1000) -> 800 | J8: ='Tabla Amortización Fijo'!R14 -> 346.5641667 | K8: ='Tabla Amortización Fijo'!W14+'Tabla Amortización Fijo'!U14 -> 151.5002654 | L8: =IF(C8<=0,,299) -> 299 | M8: =IF(C8=0,0,'Tabla Amortización Fijo'!X14+'Tabla Amortización Fijo'!V14+'Tabla Amortización Fijo'!S14+'Tabla Amortización Fijo'!Q14) -> 127.5303091 | N8: =G8+K8+J8+L8+M8+I8 -> 6916.261408 | P8: =C8-D8-E8-H8 -> 1000000 | Q8: =N8-M8+H8+E8 -> 6788.731099
A9: 2 | B9: ='Tabla Amortización Fijo'!C15 -> 2022-05-04 | C9: =IF(P8<0.01,0,P8) -> 1000000 | D9: =IF(C9<=0,0,IF(C9<D8,C9,'Tabla Amortización Fijo'!AB15)) -> 2891.003793 | F9: =IF(C9<=0,0,'Tabla Amortización Fijo'!AC15) -> 7416.666667 | G9: 10307.67046 | I9: =IF(C9<=0,0,(C9*0.8/1000)) -> 800 | J9: =IF(P8<=0.01,0,'Tabla Amortización Fijo'!R15) -> 346.5641667 | K9: =IF(D9<=0,0,'Tabla Amortización Fijo'!W15+'Tabla Amortización Fijo'!U15) -> 201.6371026 | L9: =IF(C9<=0,,299) -> 299 | M9: =IF(C9=0,0,'Tabla Amortización Fijo'!X15+'Tabla Amortización Fijo'!V15+'Tabla Amortización Fijo'!S15+'Tabla Amortización Fijo'!Q15) -> 135.5522031 | N9: =G9+K9+J9+L9+M9+I9 -> 12090.42393 | P9: =C9-D9-E9-H9 -> 997108.9962 | Q9: =N9-M9+H9+E9 -> 11954.87173
A10: 3 | B10: ='Tabla Amortización Fijo'!C16 -> 2022-06-04 | C10: =IF(P9<=0.01,0,P9) -> 997108.9962 | D10: =IF(C10<=0,0,IF(C10<D9,C10,'Tabla Amortización Fijo'!AB16)) -> 2668.250706 | F10: =IF(C10<=0,0,'Tabla Amortización Fijo'!AC16) -> 7641.732586 | G10: 10309.98329 | I10: 797.687197 | J10: =IF(P9<=0.01,0,'Tabla Amortización Fijo'!R16) -> 346.5641667 | K10: =IF(D10<=0,0,'Tabla Amortización Fijo'!W16+'Tabla Amortización Fijo'!U16) -> 201.6371026 | L10: 299 | M10: =IF(C10=0,0,'Tabla Amortización Fijo'!X16+'Tabla Amortización Fijo'!V16+'Tabla Amortización Fijo'!S16+'Tabla Amortización Fijo'!Q16) -> 135.5522031 | N10: =G10+K10+J10+L10+M10+I10 -> 12090.42396 | P10: =C10-D10-E10-H10 -> 994440.7455 | Q10: =N10-M10+H10+E10 -> 11954.87176
A11: 4 | B11: ='Tabla Amortización Fijo'!C17 -> 2022-07-04 | C11: =IF(P10<=0.01,0,P10) -> 994440.7455 | D11: =IF(C11<=0,0,IF(C11<D10,C11,'Tabla Amortización Fijo'!AB17)) -> 2936.682334 | F11: =IF(C11<=0,0,'Tabla Amortización Fijo'!AC17) -> 7375.435563 | G11: 10312.1179 | I11: 795.5525964 | J11: =IF(P10<=0.01,0,'Tabla Amortización Fijo'!R17) -> 346.5641667 | K11: =IF(D11<=0,0,'Tabla Amortización Fijo'!W17+'Tabla Amortización Fijo'!U17) -> 201.6371026 | L11: 299 | M11: =IF(C11=0,0,'Tabla Amortización Fijo'!X17+'Tabla Amortización Fijo'!V17+'Tabla Amortización Fijo'!S17+'Tabla Amortización Fijo'!Q17) -> 135.5522031 | N11: =G11+K11+J11+L11+M11+I11 -> 12090.42397 | P11: 991504.0632 | Q11: 11954.87176
A12: 5 | B12: ='Tabla Amortización Fijo'!C18 -> 2022-08-04 | C12: 991504.0632 | D12: =IF(C12<=0,0,IF(C12<D11,C12,'Tabla Amortización Fijo'!AB18)) -> 2715.690236 | F12: =IF(C12<=0,0,'Tabla Amortización Fijo'!AC18) -> 7598.777025 | G12: 10314.46726 | I12: 793.2032505 | J12: =IF(P11<=0.01,0,'Tabla Amortización Fijo'!R18) -> 346.5641667 | K12: =IF(D12<=0,0,'Tabla Amortización Fijo'!W18+'Tabla Amortización Fijo'!U18) -> 201.6371026 | L12: 299 | M12: =IF(C12=0,0,'Tabla Amortización Fijo'!X18+'Tabla Amortización Fijo'!V18+'Tabla Amortización Fijo'!S18+'Tabla Amortización Fijo'!Q18) -> 135.5522031 | N12: =G12+K12+J12+L12+M12+I12 -> 12090.42398 | P12: 988788.3729 | Q12: =N12-M12+H12+E12 -> 11954.87178
A13: 6 | B13: ='Tabla Amortización Fijo'!C19 -> 2022-09-04 | C13: 988788.3729 | D13: =IF(C13<=0,0,IF(C13<D12,C13,'Tabla Amortización Fijo'!AB19)) -> 2738.675537 | F13: =IF(C13<=0,0,'Tabla Amortización Fijo'!AC19) -> 7577.964279 | G13: 10316.63982 | I13: 791.0306983 | J13: =IF(P12<=0.01,0,'Tabla Amortización Fijo'!R19) -> 346.5641667 | K13: =IF(D13<=0,0,'Tabla Amortización Fijo'!W19+'Tabla Amortización Fijo'!U19) -> 201.6371026 | L13: 299 | M13: =IF(C13=0,0,'Tabla Amortización Fijo'!X19+'Tabla Amortización Fijo'!V19+'Tabla Amortización Fijo'!S19+'Tabla Amortización Fijo'!Q19) -> 135.5522031 | N13: 12090.42399 | P13: 986049.6974 | Q13: 11954.87178
A14: 7 | B14: ='Tabla Amortización Fijo'!C20 -> 2022-10-04 | C14: 986049.6974 | D14: =IF(C14<=0,0,IF(C14<D13,C14,'Tabla Amortización Fijo'!AB20)) -> 3005.628779 | F14: =IF(C14<=0,0,'Tabla Amortización Fijo'!AC20) -> 7313.201942 | G14: 10318.83072 | I14: 788.8397579 | J14: =IF(P13<=0.01,0,'Tabla Amortización Fijo'!R20) -> 346.5641667 | K14: =IF(D14<=0,0,'Tabla Amortización Fijo'!W20+'Tabla Amortización Fijo'!U20) -> 201.6371026 | L14: 299 | M14: =IF(C14=0,0,'Tabla Amortización Fijo'!X20+'Tabla Amortización Fijo'!V20+'Tabla Amortización Fijo'!S20+'Tabla Amortización Fijo'!Q20) -> 135.5522031 | N14: 12090.42395 | P14: 983044.0686 | Q14: 11954.87175
A15: 8 | B15: ='Tabla Amortización Fijo'!C21 -> 2022-11-04 | C15: 983044.0686 | D15: =IF(C15<=0,0,IF(C15<D14,C15,'Tabla Amortización Fijo'!AB21)) -> 2787.29469 | F15: =IF(C15<=0,0,'Tabla Amortización Fijo'!AC21) -> 7533.940525 | G15: 10321.23522 | I15: 786.4352549 | J15: =IF(P14<=0.01,0,'Tabla Amortización Fijo'!R21) -> 346.5641667 | K15: =IF(D15<=0,0,'Tabla Amortización Fijo'!W21+'Tabla Amortización Fijo'!U21) -> 201.6371026 | L15: 299 | M15: =IF(C15=0,0,'Tabla Amortización Fijo'!X21+'Tabla Amortización Fijo'!V21+'Tabla Amortización Fijo'!S21+'Tabla Amortización Fijo'!Q21) -> 135.5522031 | N15: 12090.42394 | P15: 980256.7739 | Q15: 11954.87174
A16: 9 | B16: ='Tabla Amortización Fijo'!C22 -> 2022-12-04 | C16: 980256.7739 | D16: =IF(C16<=0,0,IF(C16<D15,C16,'Tabla Amortización Fijo'!AB22)) -> 3053.227301 | F16: =IF(C16<=0,0,'Tabla Amortización Fijo'!AC22) -> 7270.237785 | G16: 10323.46509 | I16: 784.2054191 | J16: =IF(P15<=0.01,0,'Tabla Amortización Fijo'!R22) -> 346.5641667 | K16: =IF(D16<=0,0,'Tabla Amortización Fijo'!W22+'Tabla Amortización Fijo'!U22) -> 201.6371026 | L16: 299 | M16: =IF(C16=0,0,'Tabla Amortización Fijo'!X22+'Tabla Amortización Fijo'!V22+'Tabla Amortización Fijo'!S22+'Tabla Amortización Fijo'!Q22) -> 135.5522031 | N16: 12090.42398 | P16: 977203.5466 | Q16: 11954.87177
A17: 10 | B17: ='Tabla Amortización Fijo'!C23 -> 2023-01-04 | C17: 977203.5466 | D17: =IF(C17<=0,0,IF(C17<D16,C17,'Tabla Amortización Fijo'!AB23)) -> 2836.728219 | F17: =IF(C17<=0,0,'Tabla Amortización Fijo'!AC23) -> 7489.179429 | G17: 10325.90765 | I17: 781.7628373 | J17: =IF(P16<=0.01,0,'Tabla Amortización Fijo'!R23) -> 346.5641667 | K17: =IF(D17<=0,0,'Tabla Amortización Fijo'!W23+'Tabla Amortización Fijo'!U23) -> 201.6371026 | L17: 299 | M17: =IF(C17=0,0,'Tabla Amortización Fijo'!X23+'Tabla Amortización Fijo'!V23+'Tabla Amortización Fijo'!S23+'Tabla Amortización Fijo'!Q23) -> 135.5522031 | N17: 12090.42396 | P17: 974366.8184 | Q17: 11954.87175
A18: 11 | B18: ='Tabla Amortización Fijo'!C24 -> 2023-02-04 | C18: 974366.8184 | D18: =IF(C18<=0,0,IF(C18<D17,C18,'Tabla Amortización Fijo'!AB24)) -> 2860.737972 | F18: =IF(C18<=0,0,'Tabla Amortización Fijo'!AC24) -> 7467.439046 | G18: 10328.17702 | I18: 779.4934547 | J18: =IF(P17<=0.01,0,'Tabla Amortización Fijo'!R24) -> 346.5641667 | K18: =IF(D18<=0,0,'Tabla Amortización Fijo'!W24+'Tabla Amortización Fijo'!U24) -> 201.6371026 | L18: 299 | M18: =IF(C18=0,0,'Tabla Amortización Fijo'!X24+'Tabla Amortización Fijo'!V24+'Tabla Amortización Fijo'!S24+'Tabla Amortización Fijo'!Q24) -> 135.5522031 | N18: 12090.42394 | P18: 971506.0804 | Q18: 11954.87174
A19: 12 | B19: ='Tabla Amortización Fijo'!C25 -> 2023-03-04 | C19: 971506.0804 | D19: =IF(C19<=0,0,IF(C19<D18,C19,'Tabla Amortización Fijo'!AB25)) -> 3605.484616 | F19: =IF(C19<=0,0,'Tabla Amortización Fijo'!AC25) -> 6724.980976 | G19: 10330.46559 | I19: 777.2048643 | J19: =IF(P18<=0.01,0,'Tabla Amortización Fijo'!R25) -> 346.5641667 | K19: =IF(D19<=0,0,'Tabla Amortización Fijo'!W25+'Tabla Amortización Fijo'!U25) -> 201.6371026 | L19: 299 | M19: =IF(C19=0,0,'Tabla Amortización Fijo'!X25+'Tabla Amortización Fijo'!V25+'Tabla Amortización Fijo'!S25+'Tabla Amortización Fijo'!Q25) -> 135.5522031 | N19: 12090.42393 | P19: 967900.5958 | Q19: 11954.87173
A20: 13 | B20: ='Tabla Amortización Fijo'!C26 -> 2023-04-04 | C20: 967900.5958 | D20: =IF(C20<=0,0,IF(C20<D19,C20,'Tabla Amortización Fijo'!AB26)) -> 2915.467361 | F20: =IF(C20<=0,0,'Tabla Amortización Fijo'!AC26) -> 7417.882654 | G20: 10333.35002 | I20: 774.3204767 | J20: =IF(P19<=0.01,0,'Tabla Amortización Fijo'!R26) -> 346.5641667 | K20: =IF(D20<=0,0,'Tabla Amortización Fijo'!W26+'Tabla Amortización Fijo'!U26) -> 201.6371026 | L20: 299 | M20: =IF(C20=0,0,'Tabla Amortización Fijo'!X26+'Tabla Amortización Fijo'!V26+'Tabla Amortización Fijo'!S26+'Tabla Amortización Fijo'!Q26) -> 135.5522031 | N20: 12090.42396 | P20: 964985.1285 | Q20: 11954.87176
A21: 14 | B21: ='Tabla Amortización Fijo'!C27 -> 2023-05-04 | C21: 964985.1285 | D21: =IF(C21<=0,0,IF(C21<D20,C21,'Tabla Amortización Fijo'!AB27)) -> 3178.709321 | F21: =IF(C21<=0,0,'Tabla Amortización Fijo'!AC27) -> 7156.973048 | G21: 10335.68237 | I21: 771.9881028 | J21: =IF(P20<=0.01,0,'Tabla Amortización Fijo'!R27) -> 346.5641667 | K21: =IF(D21<=0,0,'Tabla Amortización Fijo'!W27+'Tabla Amortización Fijo'!U27) -> 201.6371026 | L21: 299 | M21: =IF(C21=0,0,'Tabla Amortización Fijo'!X27+'Tabla Amortización Fijo'!V27+'Tabla Amortización Fijo'!S27+'Tabla Amortización Fijo'!Q27) -> 135.5522031 | N21: 12090.42394 | P21: 961806.4191 | Q21: 11954.87174
A22: 15 | B22: ='Tabla Amortización Fijo'!C28 -> 2023-06-04 | C22: 961806.4191 | D22: =IF(C22<=0,0,IF(C22<D21,C22,'Tabla Amortización Fijo'!AB28)) -> 2967.047796 | F22: =IF(C22<=0,0,'Tabla Amortización Fijo'!AC28) -> 7371.177536 | G22: 10338.22533 | I22: 769.4451353 | J22: =IF(P21<=0.01,0,'Tabla Amortización Fijo'!R28) -> 346.5641667 | K22: =IF(D22<=0,0,'Tabla Amortización Fijo'!W28+'Tabla Amortización Fijo'!U28) -> 201.6371026 | L22: 299 | M22: =IF(C22=0,0,'Tabla Amortización Fijo'!X28+'Tabla Amortización Fijo'!V28+'Tabla Amortización Fijo'!S28+'Tabla Amortización Fijo'!Q28) -> 135.5522031 | N22: 12090.42394 | P22: 958839.3713 | Q22: 11954.87174
A23: 16 | B23: ='Tabla Amortización Fijo'!C29 -> 2023-07-04 | C23: 958839.3713 | D23: =IF(C23<=0,0,IF(C23<D22,C23,'Tabla Amortización Fijo'!AB29)) -> 3229.206959 | F23: =IF(C23<=0,0,'Tabla Amortización Fijo'!AC29) -> 7111.391994 | G23: 10340.59895 | I23: 767.0714971 | J23: =IF(P22<=0.01,0,'Tabla Amortización Fijo'!R29) -> 346.5641667 | K23: =IF(D23<=0,0,'Tabla Amortización Fijo'!W29+'Tabla Amortización Fijo'!U29) -> 201.6371026 | L23: 299 | M23: =IF(C23=0,0,'Tabla Amortización Fijo'!X29+'Tabla Amortización Fijo'!V29+'Tabla Amortización Fijo'!S29+'Tabla Amortización Fijo'!Q29) -> 135.5522031 | N23: 12090.42392 | P23: 955610.1644 | Q23: 11954.87172
A24: 17 | B24: ='Tabla Amortización Fijo'!C30 -> 2023-08-04 | C24: 955610.1644 | D24: =IF(C24<=0,0,IF(C24<D23,C24,'Tabla Amortización Fijo'!AB30)) -> 3019.492207 | F24: =IF(C24<=0,0,'Tabla Amortización Fijo'!AC30) -> 7323.690087 | G24: 10343.18229 | I24: 764.4881315 | J24: =IF(P23<=0.01,0,'Tabla Amortización Fijo'!R30) -> 346.5641667 | K24: =IF(D24<=0,0,'Tabla Amortización Fijo'!W30+'Tabla Amortización Fijo'!U30) -> 201.6371026 | L24: 299 | M24: =IF(C24=0,0,'Tabla Amortización Fijo'!X30+'Tabla Amortización Fijo'!V30+'Tabla Amortización Fijo'!S30+'Tabla Amortización Fijo'!Q30) -> 135.5522031 | N24: 12090.4239 | P24: 952590.6722 | Q24: 11954.8717
A25: 18 | B25: ='Tabla Amortización Fijo'!C31 -> 2023-09-04 | C25: 952590.6722 | D25: =IF(C25<=0,0,IF(C25<D24,C25,'Tabla Amortización Fijo'!AB31)) -> 3045.048854 | F25: =IF(C25<=0,0,'Tabla Amortización Fijo'!AC31) -> 7300.549051 | G25: 10345.59791 | I25: 762.0725377 | J25: =IF(P24<=0.01,0,'Tabla Amortización Fijo'!R31) -> 346.5641667 | K25: =IF(D25<=0,0,'Tabla Amortización Fijo'!W31+'Tabla Amortización Fijo'!U31) -> 201.6371026 | L25: 299 | M25: =IF(C25=0,0,'Tabla Amortización Fijo'!X31+'Tabla Amortización Fijo'!V31+'Tabla Amortización Fijo'!S31+'Tabla Amortización Fijo'!Q31) -> 135.5522031 | N25: 12090.42392 | P25: 949545.6233 | Q25: 11954.87171
A26: 19 | B26: ='Tabla Amortización Fijo'!C32 -> 2023-10-04 | C26: 949545.6233 | D26: =IF(C26<=0,0,IF(C26<D25,C26,'Tabla Amortización Fijo'!AB32)) -> 3305.570588 | F26: =IF(C26<=0,0,'Tabla Amortización Fijo'!AC32) -> 7042.463348 | G26: 10348.03394 | I26: 759.6364987 | J26: =IF(P25<=0.01,0,'Tabla Amortización Fijo'!R32) -> 346.5641667 | K26: =IF(D26<=0,0,'Tabla Amortización Fijo'!W32+'Tabla Amortización Fijo'!U32) -> 201.6371026 | L26: 299 | M26: =IF(C26=0,0,'Tabla Amortización Fijo'!X32+'Tabla Amortización Fijo'!V32+'Tabla Amortización Fijo'!S32+'Tabla Amortización Fijo'!Q32) -> 135.5522031 | N26: 12090.42391 | P26: 946240.0527 | Q26: 11954.8717
A27: 20 | B27: ='Tabla Amortización Fijo'!C33 -> 2023-11-04 | C27: 946240.0527 | D27: =IF(C27<=0,0,IF(C27<D26,C27,'Tabla Amortización Fijo'!AB33)) -> 3098.799791 | F27: =IF(C27<=0,0,'Tabla Amortización Fijo'!AC33) -> 7251.878605 | G27: 10350.6784 | I27: 756.9920422 | J27: =IF(P26<=0.01,0,'Tabla Amortización Fijo'!R33) -> 346.5641667 | K27: =IF(D27<=0,0,'Tabla Amortización Fijo'!W33+'Tabla Amortización Fijo'!U33) -> 201.6371026 | L27: 299 | M27: =IF(C27=0,0,'Tabla Amortización Fijo'!X33+'Tabla Amortización Fijo'!V33+'Tabla Amortización Fijo'!S33+'Tabla Amortización Fijo'!Q33) -> 135.5522031 | N27: 12090.42391 | P27: 943141.2529 | Q27: 11954.87171
A28: 21 | B28: ='Tabla Amortización Fijo'!C34 -> 2023-12-04 | C28: 943141.2529 | D28: =IF(C28<=0,0,IF(C28<D27,C28,'Tabla Amortización Fijo'!AB34)) -> 3358.193165 | F28: =IF(C28<=0,0,'Tabla Amortización Fijo'!AC34) -> 6994.964271 | G28: 10353.15744 | I28: 754.5130024 | J28: =IF(P27<=0.01,0,'Tabla Amortización Fijo'!R34) -> 346.5641667 | K28: =IF(D28<=0,0,'Tabla Amortización Fijo'!W34+'Tabla Amortización Fijo'!U34) -> 201.6371026 | L28: 299 | M28: =IF(C28=0,0,'Tabla Amortización Fijo'!X34+'Tabla Amortización Fijo'!V34+'Tabla Amortización Fijo'!S34+'Tabla Amortización Fijo'!Q34) -> 135.5522031 | N28: 12090.42391 | P28: 939783.0598 | Q28: 11954.87171
A29: 22 | B29: ='Tabla Amortización Fijo'!C35 -> 2024-01-04 | C29: 939783.0598 | D29: =IF(C29<=0,0,IF(C29<D28,C29,'Tabla Amortización Fijo'!AB35)) -> 3153.451062 | F29: =IF(C29<=0,0,'Tabla Amortización Fijo'!AC35) -> 7202.392952 | G29: 10355.84401 | I29: 751.8264478 | J29: =IF(P28<=0.01,0,'Tabla Amortización Fijo'!R35) -> 346.5641667 | K29: =IF(D29<=0,0,'Tabla Amortización Fijo'!W35+'Tabla Amortización Fijo'!U35) -> 201.6371026 | L29: 299 | M29: =IF(C29=0,0,'Tabla Amortización Fijo'!X35+'Tabla Amortización Fijo'!V35+'Tabla Amortización Fijo'!S35+'Tabla Amortización Fijo'!Q35) -> 135.5522031 | N29: 12090.42393 | P29: 936629.6087 | Q29: 11954.87173
A30: 23 | B30: ='Tabla Amortización Fijo'!C36 -> 2024-02-04 | C30: 936629.6087 | D30: =IF(C30<=0,0,IF(C30<D29,C30,'Tabla Amortización Fijo'!AB36)) -> 3180.141521 | F30: =IF(C30<=0,0,'Tabla Amortización Fijo'!AC36) -> 7178.225261 | G30: 10358.36678 | I30: 749.303687 | J30: =IF(P29<=0.01,0,'Tabla Amortización Fijo'!R36) -> 346.5641667 | K30: =IF(D30<=0,0,'Tabla Amortización Fijo'!W36+'Tabla Amortización Fijo'!U36) -> 201.6371026 | L30: 299 | M30: =IF(C30=0,0,'Tabla Amortización Fijo'!X36+'Tabla Amortización Fijo'!V36+'Tabla Amortización Fijo'!S36+'Tabla Amortización Fijo'!Q36) -> 135.5522031 | N30: 12090.42394 | P30: 933449.4672 | Q30: 11954.87174
A31: 24 | B31: ='Tabla Amortización Fijo'!C37 -> 2024-03-04 | C31: 933449.4672 | D31: =IF(C31<=0,0,IF(C31<D30,C31,'Tabla Amortización Fijo'!AB37)) -> 3668.596789 | F31: =IF(C31<=0,0,'Tabla Amortización Fijo'!AC37) -> 6692.314117 | G31: 10360.91091 | I31: 746.7595738 | J31: =IF(P30<=0.01,0,'Tabla Amortización Fijo'!R37) -> 346.5641667 | K31: =IF(D31<=0,0,'Tabla Amortización Fijo'!W37+'Tabla Amortización Fijo'!U37) -> 201.6371026 | L31: 299 | M31: =IF(C31=0,0,'Tabla Amortización Fijo'!X37+'Tabla Amortización Fijo'!V37+'Tabla Amortización Fijo'!S37+'Tabla Amortización Fijo'!Q37) -> 135.5522031 | N31: 12090.42395 | P31: 929780.8704 | Q31: 11954.87175
A32: 25 | B32: ='Tabla Amortización Fijo'!C38 -> 2024-04-04 | C32: 929780.8704 | D32: =IF(C32<=0,0,IF(C32<D31,C32,'Tabla Amortización Fijo'!AB38)) -> 3238.108482 | F32: =IF(C32<=0,0,'Tabla Amortización Fijo'!AC38) -> 7125.737279 | G32: 10363.84576 | I32: 743.8246963 | J32: =IF(P31<=0.01,0,'Tabla Amortización Fijo'!R38) -> 346.5641667 | K32: =IF(D32<=0,0,'Tabla Amortización Fijo'!W38+'Tabla Amortización Fijo'!U38) -> 201.6371026 | L32: 299 | M32: =IF(C32=0,0,'Tabla Amortización Fijo'!X38+'Tabla Amortización Fijo'!V38+'Tabla Amortización Fijo'!S38+'Tabla Amortización Fijo'!Q38) -> 135.5522031 | N32: 12090.42393 | P32: 926542.7619 | Q32: 11954.87173
A33: 26 | B33: ='Tabla Amortización Fijo'!C39 -> 2024-05-04 | C33: 926542.7619 | D33: =IF(C33<=0,0,IF(C33<D32,C33,'Tabla Amortización Fijo'!AB39)) -> 3494.577433 | F33: =IF(C33<=0,0,'Tabla Amortización Fijo'!AC39) -> 6871.858803 | G33: 10366.43624 | I33: 741.2342095 | J33: =IF(P32<=0.01,0,'Tabla Amortización Fijo'!R39) -> 346.5641667 | K33: =IF(D33<=0,0,'Tabla Amortización Fijo'!W39+'Tabla Amortización Fijo'!U39) -> 201.6371026 | L33: 299 | M33: =IF(C33=0,0,'Tabla Amortización Fijo'!X39+'Tabla Amortización Fijo'!V39+'Tabla Amortización Fijo'!S39+'Tabla Amortización Fijo'!Q39) -> 135.5522031 | N33: 12090.42392 | P33: 923048.1845 | Q33: 11954.87171
A34: 27 | B34: ='Tabla Amortización Fijo'!C40 -> 2024-06-04 | C34: 923048.1845 | D34: =IF(C34<=0,0,IF(C34<D33,C34,'Tabla Amortización Fijo'!AB40)) -> 3295.093187 | F34: =IF(C34<=0,0,'Tabla Amortización Fijo'!AC40) -> 7074.138691 | G34: 10369.23188 | I34: 738.4385476 | J34: =IF(P33<=0.01,0,'Tabla Amortización Fijo'!R40) -> 346.5641667 | K34: =IF(D34<=0,0,'Tabla Amortización Fijo'!W40+'Tabla Amortización Fijo'!U40) -> 201.6371026 | L34: 299 | M34: =IF(C34=0,0,'Tabla Amortización Fijo'!X40+'Tabla Amortización Fijo'!V40+'Tabla Amortización Fijo'!S40+'Tabla Amortización Fijo'!Q40) -> 135.5522031 | N34: 12090.4239 | P34: 919753.0913 | Q34: 11954.87169
A35: 28 | B35: ='Tabla Amortización Fijo'!C41 -> 2024-07-04 | C35: 919753.0913 | D35: =IF(C35<=0,0,IF(C35<D34,C35,'Tabla Amortización Fijo'!AB41)) -> 3550.365893 | F35: =IF(C35<=0,0,'Tabla Amortización Fijo'!AC41) -> 6821.502084 | G35: 10371.86798 | I35: 735.802473 | J35: =IF(P34<=0.01,0,'Tabla Amortización Fijo'!R41) -> 346.5641667 | K35: =IF(D35<=0,0,'Tabla Amortización Fijo'!W41+'Tabla Amortización Fijo'!U41) -> 201.6371026 | L35: 299 | M35: =IF(C35=0,0,'Tabla Amortización Fijo'!X41+'Tabla Amortización Fijo'!V41+'Tabla Amortización Fijo'!S41+'Tabla Amortización Fijo'!Q41) -> 135.5522031 | N35: 12090.42392 | P35: 916202.7254 | Q35: 11954.87172
A36: 29 | B36: ='Tabla Amortización Fijo'!C42 -> 2024-08-04 | C36: 916202.7254 | D36: =IF(C36<=0,0,IF(C36<D35,C36,'Tabla Amortización Fijo'!AB42)) -> 3353.032392 | F36: =IF(C36<=0,0,'Tabla Amortización Fijo'!AC42) -> 7021.675846 | G36: 10374.70824 | I36: 732.9621803 | J36: =IF(P35<=0.01,0,'Tabla Amortización Fijo'!R42) -> 346.5641667 | K36: =IF(D36<=0,0,'Tabla Amortización Fijo'!W42+'Tabla Amortización Fijo'!U42) -> 201.6371026 | L36: 299 | M36: =IF(C36=0,0,'Tabla Amortización Fijo'!X42+'Tabla Amortización Fijo'!V42+'Tabla Amortización Fijo'!S42+'Tabla Amortización Fijo'!Q42) -> 135.5522031 | N36: 12090.42389 | P36: 912849.693 | Q36: 11954.87169
A37: 30 | B37: ='Tabla Amortización Fijo'!C43 -> 2024-09-04 | C37: 912849.693 | D37: =IF(C37<=0,0,IF(C37<D36,C37,'Tabla Amortización Fijo'!AB43)) -> 3381.412086 | F37: =IF(C37<=0,0,'Tabla Amortización Fijo'!AC43) -> 6995.978596 | G37: 10377.39068 | I37: 730.2797544 | J37: =IF(P36<=0.01,0,'Tabla Amortización Fijo'!R43) -> 346.5641667 | K37: =IF(D37<=0,0,'Tabla Amortización Fijo'!W43+'Tabla Amortización Fijo'!U43) -> 201.6371026 | L37: 299 | M37: =IF(C37=0,0,'Tabla Amortización Fijo'!X43+'Tabla Amortización Fijo'!V43+'Tabla Amortización Fijo'!S43+'Tabla Amortización Fijo'!Q43) -> 135.5522031 | N37: 12090.42391 | P37: 909468.2809 | Q37: 11954.87171
A38: 31 | B38: ='Tabla Amortización Fijo'!C44 -> 2024-10-04 | C38: 909468.2809 | D38: =IF(C38<=0,0,IF(C38<D37,C38,'Tabla Amortización Fijo'!AB44)) -> 3634.872751 | F38: =IF(C38<=0,0,'Tabla Amortización Fijo'!AC44) -> 6745.223077 | G38: 10380.09583 | I38: 727.5746247 | J38: =IF(P37<=0.01,0,'Tabla Amortización Fijo'!R44) -> 346.5641667 | K38: =IF(D38<=0,0,'Tabla Amortización Fijo'!W44+'Tabla Amortización Fijo'!U44) -> 201.6371026 | L38: 299 | M38: =IF(C38=0,0,'Tabla Amortización Fijo'!X44+'Tabla Amortización Fijo'!V44+'Tabla Amortización Fijo'!S44+'Tabla Amortización Fijo'!Q44) -> 135.5522031 | N38: 12090.42393 | P38: 905833.4082 | Q38: 11954.87172
A39: 32 | B39: ='Tabla Amortización Fijo'!C45 -> 2024-11-04 | C39: 905833.4082 | D39: =IF(C39<=0,0,IF(C39<D38,C39,'Tabla Amortización Fijo'!AB45)) -> 3440.797141 | F39: =IF(C39<=0,0,'Tabla Amortización Fijo'!AC45) -> 6942.206606 | G39: 10383.00375 | I39: 724.6667265 | J39: =IF(P38<=0.01,0,'Tabla Amortización Fijo'!R45) -> 346.5641667 | K39: =IF(D39<=0,0,'Tabla Amortización Fijo'!W45+'Tabla Amortización Fijo'!U45) -> 201.6371026 | L39: 299 | M39: =IF(C39=0,0,'Tabla Amortización Fijo'!X45+'Tabla Amortización Fijo'!V45+'Tabla Amortización Fijo'!S45+'Tabla Amortización Fijo'!Q45) -> 135.5522031 | N39: 12090.42395 | P39: 902392.611 | Q39: 11954.87174
A40: 33 | B40: ='Tabla Amortización Fijo'!C46 -> 2024-12-04 | C40: 902392.611 | D40: =IF(C40<=0,0,IF(C40<D39,C40,'Tabla Amortización Fijo'!AB46)) -> 3693.011172 | F40: =IF(C40<=0,0,'Tabla Amortización Fijo'!AC46) -> 6692.745191 | G40: 10385.75636 | I40: 721.9140888 | J40: =IF(P39<=0.01,0,'Tabla Amortización Fijo'!R46) -> 346.5641667 | K40: =IF(D40<=0,0,'Tabla Amortización Fijo'!W46+'Tabla Amortización Fijo'!U46) -> 201.6371026 | L40: 299 | M40: =IF(C40=0,0,'Tabla Amortización Fijo'!X46+'Tabla Amortización Fijo'!V46+'Tabla Amortización Fijo'!S46+'Tabla Amortización Fijo'!Q46) -> 135.5522031 | N40: 12090.42392 | P40: 898699.5999 | Q40: 11954.87172
A41: 34 | B41: ='Tabla Amortización Fijo'!C47 -> 2025-01-04 | C41: 898699.5999 | D41: =IF(C41<=0,0,IF(C41<D40,C41,'Tabla Amortización Fijo'!AB47)) -> 3501.176902 | F41: =IF(C41<=0,0,'Tabla Amortización Fijo'!AC47) -> 6887.533879 | G41: 10388.71078 | I41: 718.9596799 | J41: =IF(P40<=0.01,0,'Tabla Amortización Fijo'!R47) -> 346.5641667 | K41: =IF(D41<=0,0,'Tabla Amortización Fijo'!W47+'Tabla Amortización Fijo'!U47) -> 201.6371026 | L41: 299 | M41: =IF(C41=0,0,'Tabla Amortización Fijo'!X47+'Tabla Amortización Fijo'!V47+'Tabla Amortización Fijo'!S47+'Tabla Amortización Fijo'!Q47) -> 135.5522031 | N41: 12090.42393 | P41: 895198.423 | Q41: 11954.87173
A42: 35 | B42: ='Tabla Amortización Fijo'!C48 -> 2025-02-04 | C42: 895198.423 | D42: =IF(C42<=0,0,IF(C42<D41,C42,'Tabla Amortización Fijo'!AB48)) -> 3530.810474 | F42: =IF(C42<=0,0,'Tabla Amortización Fijo'!AC48) -> 6860.701224 | G42: 10391.5117 | I42: 716.1587384 | J42: =IF(P41<=0.01,0,'Tabla Amortización Fijo'!R48) -> 346.5641667 | K42: =IF(D42<=0,0,'Tabla Amortización Fijo'!W48+'Tabla Amortización Fijo'!U48) -> 201.6371026 | L42: 299 | M42: =IF(C42=0,0,'Tabla Amortización Fijo'!X48+'Tabla Amortización Fijo'!V48+'Tabla Amortización Fijo'!S48+'Tabla Amortización Fijo'!Q48) -> 135.5522031 | N42: 12090.42391 | P42: 891667.6125 | Q42: 11954.87171
A43: 36 | B43: ='Tabla Amortización Fijo'!C49 -> 2025-03-04 | C43: 891667.6125 | D43: =IF(C43<=0,0,IF(C43<D42,C43,'Tabla Amortización Fijo'!AB49)) -> 4222.015008 | F43: =IF(C43<=0,0,'Tabla Amortización Fijo'!AC49) -> 6172.321345 | G43: 10394.33635 | I43: 713.33409 | J43: =IF(P42<=0.01,0,'Tabla Amortización Fijo'!R49) -> 346.5641667 | K43: =IF(D43<=0,0,'Tabla Amortización Fijo'!W49+'Tabla Amortización Fijo'!U49) -> 201.6371026 | L43: 299 | M43: =IF(C43=0,0,'Tabla Amortización Fijo'!X49+'Tabla Amortización Fijo'!V49+'Tabla Amortización Fijo'!S49+'Tabla Amortización Fijo'!Q49) -> 135.5522031 | N43: 12090.42391 | P43: 887445.5975 | Q43: 11954.87171
A44: 37 | B44: ='Tabla Amortización Fijo'!C50 -> 2025-04-04 | C44: 887445.5975 | D44: =IF(C44<=0,0,IF(C44<D43,C44,'Tabla Amortización Fijo'!AB50)) -> 3596.429528 | F44: =IF(C44<=0,0,'Tabla Amortización Fijo'!AC50) -> 6801.284397 | G44: 10397.71392 | I44: 709.956478 | J44: =IF(P43<=0.01,0,'Tabla Amortización Fijo'!R50) -> 346.5641667 | K44: =IF(D44<=0,0,'Tabla Amortización Fijo'!W50+'Tabla Amortización Fijo'!U50) -> 201.6371026 | L44: 299 | M44: =IF(C44=0,0,'Tabla Amortización Fijo'!X50+'Tabla Amortización Fijo'!V50+'Tabla Amortización Fijo'!S50+'Tabla Amortización Fijo'!Q50) -> 135.5522031 | N44: 12090.42387 | P44: 883849.168 | Q44: 11954.87167
A45: 38 | B45: ='Tabla Amortización Fijo'!C51 -> 2025-05-04 | C45: 883849.168 | D45: =IF(C45<=0,0,IF(C45<D44,C45,'Tabla Amortización Fijo'!AB51)) -> 3845.376463 | F45: =IF(C45<=0,0,'Tabla Amortización Fijo'!AC51) -> 6555.214603 | G45: 10400.59107 | I45: 707.0793344 | J45: =IF(P44<=0.01,0,'Tabla Amortización Fijo'!R51) -> 346.5641667 | K45: =IF(D45<=0,0,'Tabla Amortización Fijo'!W51+'Tabla Amortización Fijo'!U51) -> 201.6371026 | L45: 299 | M45: =IF(C45=0,0,'Tabla Amortización Fijo'!X51+'Tabla Amortización Fijo'!V51+'Tabla Amortización Fijo'!S51+'Tabla Amortización Fijo'!Q51) -> 135.5522031 | N45: 12090.42387 | P45: 880003.7915 | Q45: 11954.87167
A46: 39 | B46: ='Tabla Amortización Fijo'!C52 -> 2025-06-04 | C46: 880003.7915 | D46: =IF(C46<=0,0,IF(C46<D45,C46,'Tabla Amortización Fijo'!AB52)) -> 3659.416147 | F46: =IF(C46<=0,0,'Tabla Amortización Fijo'!AC52) -> 6744.251192 | G46: 10403.66734 | I46: 704.0030332 | J46: =IF(P45<=0.01,0,'Tabla Amortización Fijo'!R52) -> 346.5641667 | K46: =IF(D46<=0,0,'Tabla Amortización Fijo'!W52+'Tabla Amortización Fijo'!U52) -> 201.6371026 | L46: 299 | M46: =IF(C46=0,0,'Tabla Amortización Fijo'!X52+'Tabla Amortización Fijo'!V52+'Tabla Amortización Fijo'!S52+'Tabla Amortización Fijo'!Q52) -> 135.5522031 | N46: 12090.42384 | P46: 876344.3753 | Q46: 11954.87164
A47: 40 | B47: ='Tabla Amortización Fijo'!C53 -> 2025-07-04 | C47: 876344.3753 | D47: =IF(C47<=0,0,IF(C47<D46,C47,'Tabla Amortización Fijo'!AB53)) -> 3907.040842 | F47: =IF(C47<=0,0,'Tabla Amortización Fijo'!AC53) -> 6499.554003 | G47: 10406.59485 | I47: 701.0755003 | J47: =IF(P46<=0.01,0,'Tabla Amortización Fijo'!R53) -> 346.5641667 | K47: =IF(D47<=0,0,'Tabla Amortización Fijo'!W53+'Tabla Amortización Fijo'!U53) -> 201.6371026 | L47: 299 | M47: =IF(C47=0,0,'Tabla Amortización Fijo'!X53+'Tabla Amortización Fijo'!V53+'Tabla Amortización Fijo'!S53+'Tabla Amortización Fijo'!Q53) -> 135.5522031 | N47: 12090.42382 | P47: 872437.3345 | Q47: 11954.87162
A48: 41 | B48: ='Tabla Amortización Fijo'!C54 -> 2025-08-04 | C48: 872437.3345 | D48: =IF(C48<=0,0,IF(C48<D47,C48,'Tabla Amortización Fijo'!AB54)) -> 3723.457798 | F48: =IF(C48<=0,0,'Tabla Amortización Fijo'!AC54) -> 6686.262683 | G48: 10409.72048 | I48: 697.9498676 | J48: =IF(P47<=0.01,0,'Tabla Amortización Fijo'!R54) -> 346.5641667 | K48: =IF(D48<=0,0,'Tabla Amortización Fijo'!W54+'Tabla Amortización Fijo'!U54) -> 201.6371026 | L48: 299 | M48: =IF(C48=0,0,'Tabla Amortización Fijo'!X54+'Tabla Amortización Fijo'!V54+'Tabla Amortización Fijo'!S54+'Tabla Amortización Fijo'!Q54) -> 135.5522031 | N48: 12090.42382 | P48: 868713.8767 | Q48: 11954.87162
A49: 42 | B49: ='Tabla Amortización Fijo'!C55 -> 2025-09-04 | C49: 868713.8767 | D49: =IF(C49<=0,0,IF(C49<D48,C49,'Tabla Amortización Fijo'!AB55)) -> 3754.972731 | F49: =IF(C49<=0,0,'Tabla Amortización Fijo'!AC55) -> 6657.726499 | G49: 10412.69923 | I49: 694.9711014 | J49: =IF(P48<=0.01,0,'Tabla Amortización Fijo'!R55) -> 346.5641667 | K49: =IF(D49<=0,0,'Tabla Amortización Fijo'!W55+'Tabla Amortización Fijo'!U55) -> 201.6371026 | L49: 299 | M49: =IF(C49=0,0,'Tabla Amortización Fijo'!X55+'Tabla Amortización Fijo'!V55+'Tabla Amortización Fijo'!S55+'Tabla Amortización Fijo'!Q55) -> 135.5522031 | N49: 12090.4238 | P49: 864958.904 | Q49: 11954.8716
A50: 43 | B50: ='Tabla Amortización Fijo'!C56 -> 2025-10-04 | C50: 864958.904 | D50: =IF(C50<=0,0,IF(C50<D49,C50,'Tabla Amortización Fijo'!AB56)) -> 4000.591465 | F50: =IF(C50<=0,0,'Tabla Amortización Fijo'!AC56) -> 6415.111767 | G50: 10415.70323 | I50: 691.9671232 | J50: =IF(P49<=0.01,0,'Tabla Amortización Fijo'!R56) -> 346.5641667 | K50: =IF(D50<=0,0,'Tabla Amortización Fijo'!W56+'Tabla Amortización Fijo'!U56) -> 201.6371026 | L50: 299 | M50: =IF(C50=0,0,'Tabla Amortización Fijo'!X56+'Tabla Amortización Fijo'!V56+'Tabla Amortización Fijo'!S56+'Tabla Amortización Fijo'!Q56) -> 135.5522031 | N50: 12090.42383 | P50: 860958.3125 | Q50: 11954.87163
A51: 44 | B51: ='Tabla Amortización Fijo'!C57 -> 2025-11-04 | C51: 860958.3125 | D51: =IF(C51<=0,0,IF(C51<D50,C51,'Tabla Amortización Fijo'!AB57)) -> 3820.614965 | F51: =IF(C51<=0,0,'Tabla Amortización Fijo'!AC57) -> 6598.288749 | G51: 10418.90371 | I51: 688.76665 | J51: =IF(P50<=0.01,0,'Tabla Amortización Fijo'!R57) -> 346.5641667 | K51: =IF(D51<=0,0,'Tabla Amortización Fijo'!W57+'Tabla Amortización Fijo'!U57) -> 201.6371026 | L51: 299 | M51: =IF(C51=0,0,'Tabla Amortización Fijo'!X57+'Tabla Amortización Fijo'!V57+'Tabla Amortización Fijo'!S57+'Tabla Amortización Fijo'!Q57) -> 135.5522031 | N51: 12090.42384 | P51: 857137.6975 | Q51: 11954.87163
A52: 45 | B52: ='Tabla Amortización Fijo'!C58 -> 2025-12-04 | C52: 857137.6975 | D52: =IF(C52<=0,0,IF(C52<D51,C52,'Tabla Amortización Fijo'!AB58)) -> 4064.855712 | F52: =IF(C52<=0,0,'Tabla Amortización Fijo'!AC58) -> 6357.104534 | G52: 10421.96025 | I52: 685.710158 | J52: =IF(P51<=0.01,0,'Tabla Amortización Fijo'!R58) -> 346.5641667 | K52: =IF(D52<=0,0,'Tabla Amortización Fijo'!W58+'Tabla Amortización Fijo'!U58) -> 201.6371026 | L52: 299 | M52: =IF(C52=0,0,'Tabla Amortización Fijo'!X58+'Tabla Amortización Fijo'!V58+'Tabla Amortización Fijo'!S58+'Tabla Amortización Fijo'!Q58) -> 135.5522031 | N52: 12090.42388 | P52: 853072.8418 | Q52: 11954.87167
A53: 46 | B53: ='Tabla Amortización Fijo'!C59 -> 2026-01-04 | C53: 853072.8418 | D53: =IF(C53<=0,0,IF(C53<D52,C53,'Tabla Amortización Fijo'!AB59)) -> 3887.356712 | F53: =IF(C53<=0,0,'Tabla Amortización Fijo'!AC59) -> 6537.855383 | G53: 10425.2121 | I53: 682.4582735 | J53: =IF(P52<=0.01,0,'Tabla Amortización Fijo'!R59) -> 346.5641667 | K53: =IF(D53<=0,0,'Tabla Amortización Fijo'!W59+'Tabla Amortización Fijo'!U59) -> 201.6371026 | L53: 299 | M53: =IF(C53=0,0,'Tabla Amortización Fijo'!X59+'Tabla Amortización Fijo'!V59+'Tabla Amortización Fijo'!S59+'Tabla Amortización Fijo'!Q59) -> 135.5522031 | N53: 12090.42384 | P53: 849185.4851 | Q53: 11954.87164
A54: 47 | B54: ='Tabla Amortización Fijo'!C60 -> 2026-02-04 | C54: 849185.4851 | D54: =IF(C54<=0,0,IF(C54<D53,C54,'Tabla Amortización Fijo'!AB60)) -> 3920.258868 | F54: =IF(C54<=0,0,'Tabla Amortización Fijo'!AC60) -> 6508.063088 | G54: 10428.32196 | I54: 679.3483881 | J54: =IF(P53<=0.01,0,'Tabla Amortización Fijo'!R60) -> 346.5641667 | K54: =IF(D54<=0,0,'Tabla Amortización Fijo'!W60+'Tabla Amortización Fijo'!U60) -> 201.6371026 | L54: 299 | M54: =IF(C54=0,0,'Tabla Amortización Fijo'!X60+'Tabla Amortización Fijo'!V60+'Tabla Amortización Fijo'!S60+'Tabla Amortización Fijo'!Q60) -> 135.5522031 | N54: 12090.42382 | P54: 845265.2263 | Q54: 11954.87161
A55: 48 | B55: ='Tabla Amortización Fijo'!C61 -> 2026-03-04 | C55: 845265.2263 | D55: =IF(C55<=0,0,IF(C55<D54,C55,'Tabla Amortización Fijo'!AB61)) -> 4580.344546 | F55: =IF(C55<=0,0,'Tabla Amortización Fijo'!AC61) -> 5851.11362 | G55: 10431.45817 | I55: 676.212181 | J55: =IF(P54<=0.01,0,'Tabla Amortización Fijo'!R61) -> 346.5641667 | K55: =IF(D55<=0,0,'Tabla Amortización Fijo'!W61+'Tabla Amortización Fijo'!U61) -> 201.6371026 | L55: 299 | M55: =IF(C55=0,0,'Tabla Amortización Fijo'!X61+'Tabla Amortización Fijo'!V61+'Tabla Amortización Fijo'!S61+'Tabla Amortización Fijo'!Q61) -> 135.5522031 | N55: 12090.42382 | P55: 840684.8817 | Q55: 11954.87162
A56: 49 | B56: ='Tabla Amortización Fijo'!C62 -> 2026-04-04 | C56: 840684.8817 | D56: =IF(C56<=0,0,IF(C56<D55,C56,'Tabla Amortización Fijo'!AB62)) -> 3992.20703 | F56: =IF(C56<=0,0,'Tabla Amortización Fijo'!AC62) -> 6442.915434 | G56: 10435.12246 | I56: 672.5479054 | J56: =IF(P55<=0.01,0,'Tabla Amortización Fijo'!R62) -> 346.5641667 | K56: =IF(D56<=0,0,'Tabla Amortización Fijo'!W62+'Tabla Amortización Fijo'!U62) -> 201.6371026 | L56: 299 | M56: =IF(C56=0,0,'Tabla Amortización Fijo'!X62+'Tabla Amortización Fijo'!V62+'Tabla Amortización Fijo'!S62+'Tabla Amortización Fijo'!Q62) -> 135.5522031 | N56: 12090.42384 | P56: 836692.6747 | Q56: 11954.87164
A57: 50 | B57: ='Tabla Amortización Fijo'!C63 -> 2026-05-04 | C57: 836692.6747 | D57: =IF(C57<=0,0,IF(C57<D56,C57,'Tabla Amortización Fijo'!AB63)) -> 4232.845649 | F57: =IF(C57<=0,0,'Tabla Amortización Fijo'!AC63) -> 6205.470562 | G57: 10438.31621 | I57: 669.3541397 | J57: =IF(P56<=0.01,0,'Tabla Amortización Fijo'!R63) -> 346.5641667 | K57: =IF(D57<=0,0,'Tabla Amortización Fijo'!W63+'Tabla Amortización Fijo'!U63) -> 201.6371026 | L57: 299 | M57: =IF(C57=0,0,'Tabla Amortización Fijo'!X63+'Tabla Amortización Fijo'!V63+'Tabla Amortización Fijo'!S63+'Tabla Amortización Fijo'!Q63) -> 135.5522031 | N57: 12090.42382 | P57: 832459.829 | Q57: 11954.87162
A58: 51 | B58: ='Tabla Amortización Fijo'!C64 -> 2026-06-04 | C58: 832459.829 | D58: =IF(C58<=0,0,IF(C58<D57,C58,'Tabla Amortización Fijo'!AB64)) -> 4061.822962 | F58: =IF(C58<=0,0,'Tabla Amortización Fijo'!AC64) -> 6379.879488 | G58: 10441.70245 | I58: 665.9678632 | J58: =IF(P57<=0.01,0,'Tabla Amortización Fijo'!R64) -> 346.5641667 | K58: =IF(D58<=0,0,'Tabla Amortización Fijo'!W64+'Tabla Amortización Fijo'!U64) -> 201.6371026 | L58: 299 | M58: =IF(C58=0,0,'Tabla Amortización Fijo'!X64+'Tabla Amortización Fijo'!V64+'Tabla Amortización Fijo'!S64+'Tabla Amortización Fijo'!Q64) -> 135.5522031 | N58: 12090.42379 | P58: 828398.0061 | Q58: 11954.87158
A59: 52 | B59: ='Tabla Amortización Fijo'!C65 -> 2026-07-04 | C59: 828398.0061 | D59: =IF(C59<=0,0,IF(C59<D58,C59,'Tabla Amortización Fijo'!AB65)) -> 4301.000177 | F59: =IF(C59<=0,0,'Tabla Amortización Fijo'!AC65) -> 6143.951759 | G59: 10444.95194 | I59: 662.7184049 | J59: =IF(P58<=0.01,0,'Tabla Amortización Fijo'!R65) -> 346.5641667 | K59: =IF(D59<=0,0,'Tabla Amortización Fijo'!W65+'Tabla Amortización Fijo'!U65) -> 201.6371026 | L59: 299 | M59: =IF(C59=0,0,'Tabla Amortización Fijo'!X65+'Tabla Amortización Fijo'!V65+'Tabla Amortización Fijo'!S65+'Tabla Amortización Fijo'!Q65) -> 135.5522031 | N59: 12090.42381 | P59: 824097.0059 | Q59: 11954.87161
A60: 53 | B60: ='Tabla Amortización Fijo'!C66 -> 2026-08-04 | C60: 824097.0059 | D60: =IF(C60<=0,0,IF(C60<D59,C60,'Tabla Amortización Fijo'!AB66)) -> 4132.604968 | F60: =IF(C60<=0,0,'Tabla Amortización Fijo'!AC66) -> 6315.787765 | G60: 10448.39273 | I60: 659.2776047 | J60: =IF(P59<=0.01,0,'Tabla Amortización Fijo'!R66) -> 346.5641667 | K60: =IF(D60<=0,0,'Tabla Amortización Fijo'!W66+'Tabla Amortización Fijo'!U66) -> 201.6371026 | L60: 299 | M60: =IF(C60=0,0,'Tabla Amortización Fijo'!X66+'Tabla Amortización Fijo'!V66+'Tabla Amortización Fijo'!S66+'Tabla Amortización Fijo'!Q66) -> 135.5522031 | N60: 12090.42381 | P60: 819964.4009 | Q60: 11954.87161
A61: 54 | B61: ='Tabla Amortización Fijo'!C67 -> 2026-09-04 | C61: 819964.4009 | D61: =IF(C61<=0,0,IF(C61<D60,C61,'Tabla Amortización Fijo'!AB67)) -> 4167.582877 | F61: =IF(C61<=0,0,'Tabla Amortización Fijo'!AC67) -> 6284.115978 | G61: 10451.69886 | I61: 655.9715207 | J61: =IF(P60<=0.01,0,'Tabla Amortización Fijo'!R67) -> 346.5641667 | K61: =IF(D61<=0,0,'Tabla Amortización Fijo'!W67+'Tabla Amortización Fijo'!U67) -> 201.6371026 | L61: 299 | M61: =IF(C61=0,0,'Tabla Amortización Fijo'!X67+'Tabla Amortización Fijo'!V67+'Tabla Amortización Fijo'!S67+'Tabla Amortización Fijo'!Q67) -> 135.5522031 | N61: 12090.42385 | P61: 815796.818 | Q61: 11954.87165
A62: 55 | B62: ='Tabla Amortización Fijo'!C68 -> 2026-10-04 | C62: 815796.818 | D62: =IF(C62<=0,0,IF(C62<D61,C62,'Tabla Amortización Fijo'!AB68)) -> 4404.539938 | F62: =IF(C62<=0,0,'Tabla Amortización Fijo'!AC68) -> 6050.493008 | G62: 10455.03295 | I62: 652.6374544 | J62: =IF(P61<=0.01,0,'Tabla Amortización Fijo'!R68) -> 346.5641667 | K62: =IF(D62<=0,0,'Tabla Amortización Fijo'!W68+'Tabla Amortización Fijo'!U68) -> 201.6371026 | L62: 299 | M62: =IF(C62=0,0,'Tabla Amortización Fijo'!X68+'Tabla Amortización Fijo'!V68+'Tabla Amortización Fijo'!S68+'Tabla Amortización Fijo'!Q68) -> 135.5522031 | N62: 12090.42387 | P62: 811392.2781 | Q62: 11954.87167
A63: 56 | B63: ='Tabla Amortización Fijo'!C69 -> 2026-11-04 | C63: 811392.2781 | D63: =IF(C63<=0,0,IF(C63<D62,C63,'Tabla Amortización Fijo'!AB69)) -> 4240.136373 | F63: =IF(C63<=0,0,'Tabla Amortización Fijo'!AC69) -> 6218.420203 | G63: 10458.55658 | I63: 649.1138225 | J63: =IF(P62<=0.01,0,'Tabla Amortización Fijo'!R69) -> 346.5641667 | K63: =IF(D63<=0,0,'Tabla Amortización Fijo'!W69+'Tabla Amortización Fijo'!U69) -> 201.6371026 | L63: 299 | M63: =IF(C63=0,0,'Tabla Amortización Fijo'!X69+'Tabla Amortización Fijo'!V69+'Tabla Amortización Fijo'!S69+'Tabla Amortización Fijo'!Q69) -> 135.5522031 | N63: 12090.42387 | P63: 807152.1417 | Q63: 11954.87167
A64: 57 | B64: ='Tabla Amortización Fijo'!C70 -> 2026-12-04 | C64: 807152.1417 | D64: =IF(C64<=0,0,IF(C64<D63,C64,'Tabla Amortización Fijo'!AB70)) -> 4475.570362 | F64: =IF(C64<=0,0,'Tabla Amortización Fijo'!AC70) -> 5986.378298 | G64: 10461.94866 | I64: 645.7217134 | J64: =IF(P63<=0.01,0,'Tabla Amortización Fijo'!R70) -> 346.5641667 | K64: =IF(D64<=0,0,'Tabla Amortización Fijo'!W70+'Tabla Amortización Fijo'!U70) -> 201.6371026 | L64: 299 | M64: =IF(C64=0,0,'Tabla Amortización Fijo'!X70+'Tabla Amortización Fijo'!V70+'Tabla Amortización Fijo'!S70+'Tabla Amortización Fijo'!Q70) -> 135.5522031 | N64: 12090.42384 | P64: 802676.5714 | Q64: 11954.87164
A65: 58 | B65: ='Tabla Amortización Fijo'!C71 -> 2027-01-04 | C65: 802676.5714 | D65: =IF(C65<=0,0,IF(C65<D64,C65,'Tabla Amortización Fijo'!AB71)) -> 4313.905146 | F65: =IF(C65<=0,0,'Tabla Amortización Fijo'!AC71) -> 6151.62397 | G65: 10465.52912 | I65: 642.1412571 | J65: =IF(P64<=0.01,0,'Tabla Amortización Fijo'!R71) -> 346.5641667 | K65: =IF(D65<=0,0,'Tabla Amortización Fijo'!W71+'Tabla Amortización Fijo'!U71) -> 201.6371026 | L65: 299 | M65: =IF(C65=0,0,'Tabla Amortización Fijo'!X71+'Tabla Amortización Fijo'!V71+'Tabla Amortización Fijo'!S71+'Tabla Amortización Fijo'!Q71) -> 135.5522031 | N65: 12090.42384 | P65: 798362.6662 | Q65: 11954.87164
A66: 59 | B66: ='Tabla Amortización Fijo'!C72 -> 2027-02-04 | C66: 798362.6662 | D66: =IF(C66<=0,0,IF(C66<D65,C66,'Tabla Amortización Fijo'!AB72)) -> 4350.41756 | F66: =IF(C66<=0,0,'Tabla Amortización Fijo'!AC72) -> 6118.562643 | G66: 10468.9802 | I66: 638.690133 | J66: =IF(P65<=0.01,0,'Tabla Amortización Fijo'!R72) -> 346.5641667 | K66: =IF(D66<=0,0,'Tabla Amortización Fijo'!W72+'Tabla Amortización Fijo'!U72) -> 201.6371026 | L66: 299 | M66: =IF(C66=0,0,'Tabla Amortización Fijo'!X72+'Tabla Amortización Fijo'!V72+'Tabla Amortización Fijo'!S72+'Tabla Amortización Fijo'!Q72) -> 135.5522031 | N66: 12090.42381 | P66: 794012.2487 | Q66: 11954.8716
A67: 60 | B67: ='Tabla Amortización Fijo'!C73 -> 2027-03-04 | C67: 794012.2487 | D67: =IF(C67<=0,0,IF(C67<D66,C67,'Tabla Amortización Fijo'!AB73)) -> 4976.131428 | F67: =IF(C67<=0,0,'Tabla Amortización Fijo'!AC73) -> 5496.329103 | G67: 10472.46053 | I67: 635.2097989 | J67: =IF(P66<=0.01,0,'Tabla Amortización Fijo'!R73) -> 346.5641667 | K67: =IF(D67<=0,0,'Tabla Amortización Fijo'!W73+'Tabla Amortización Fijo'!U73) -> 201.6371026 | L67: 299 | M67: =IF(C67=0,0,'Tabla Amortización Fijo'!X73+'Tabla Amortización Fijo'!V73+'Tabla Amortización Fijo'!S73+'Tabla Amortización Fijo'!Q73) -> 135.5522031 | N67: 12090.4238 | P67: 789036.1172 | Q67: 11954.8716
A68: 61 | B68: ='Tabla Amortización Fijo'!C74 -> 2027-04-04 | C68: 789036.1172 | D68: =IF(C68<=0,0,IF(C68<D67,C68,'Tabla Amortización Fijo'!AB74)) -> 4429.356434 | F68: =IF(C68<=0,0,'Tabla Amortización Fijo'!AC74) -> 6047.085 | G68: 10476.44143 | I68: 631.2288938 | J68: =IF(P67<=0.01,0,'Tabla Amortización Fijo'!R74) -> 346.5641667 | K68: =IF(D68<=0,0,'Tabla Amortización Fijo'!W74+'Tabla Amortización Fijo'!U74) -> 201.6371026 | L68: 299 | M68: =IF(C68=0,0,'Tabla Amortización Fijo'!X74+'Tabla Amortización Fijo'!V74+'Tabla Amortización Fijo'!S74+'Tabla Amortización Fijo'!Q74) -> 135.5522031 | N68: 12090.4238 | P68: 784606.7608 | Q68: 11954.8716
A69: 62 | B69: ='Tabla Amortización Fijo'!C75 -> 2027-05-04 | C69: 784606.7608 | D69: =IF(C69<=0,0,IF(C69<D68,C69,'Tabla Amortización Fijo'!AB75)) -> 4660.818242 | F69: =IF(C69<=0,0,'Tabla Amortización Fijo'!AC75) -> 5819.166655 | G69: 10479.9849 | I69: 627.6854086 | J69: =IF(P68<=0.01,0,'Tabla Amortización Fijo'!R75) -> 346.5641667 | K69: =IF(D69<=0,0,'Tabla Amortización Fijo'!W75+'Tabla Amortización Fijo'!U75) -> 201.6371026 | L69: 299 | M69: =IF(C69=0,0,'Tabla Amortización Fijo'!X75+'Tabla Amortización Fijo'!V75+'Tabla Amortización Fijo'!S75+'Tabla Amortización Fijo'!Q75) -> 135.5522031 | N69: 12090.42378 | P69: 779945.9426 | Q69: 11954.87157
A70: 63 | B70: ='Tabla Amortización Fijo'!C76 -> 2027-06-04 | C70: 779945.9426 | D70: =IF(C70<=0,0,IF(C70<D69,C70,'Tabla Amortización Fijo'!AB76)) -> 4506.294663 | F70: =IF(C70<=0,0,'Tabla Amortización Fijo'!AC76) -> 5977.41887 | G70: 10483.71353 | I70: 623.956754 | J70: =IF(P69<=0.01,0,'Tabla Amortización Fijo'!R76) -> 346.5641667 | K70: =IF(D70<=0,0,'Tabla Amortización Fijo'!W76+'Tabla Amortización Fijo'!U76) -> 201.6371026 | L70: 299 | M70: =IF(C70=0,0,'Tabla Amortización Fijo'!X76+'Tabla Amortización Fijo'!V76+'Tabla Amortización Fijo'!S76+'Tabla Amortización Fijo'!Q76) -> 135.5522031 | N70: 12090.42376 | P70: 775439.6479 | Q70: 11954.87156
A71: 64 | B71: ='Tabla Amortización Fijo'!C77 -> 2027-07-04 | C71: 775439.6479 | D71: =IF(C71<=0,0,IF(C71<D70,C71,'Tabla Amortización Fijo'!AB77)) -> 4736.141353 | F71: =IF(C71<=0,0,'Tabla Amortización Fijo'!AC77) -> 5751.177256 | G71: 10487.31861 | I71: 620.3517183 | J71: =IF(P70<=0.01,0,'Tabla Amortización Fijo'!R77) -> 346.5641667 | K71: =IF(D71<=0,0,'Tabla Amortización Fijo'!W77+'Tabla Amortización Fijo'!U77) -> 201.6371026 | L71: 299 | M71: =IF(C71=0,0,'Tabla Amortización Fijo'!X77+'Tabla Amortización Fijo'!V77+'Tabla Amortización Fijo'!S77+'Tabla Amortización Fijo'!Q77) -> 135.5522031 | N71: 12090.4238 | P71: 770703.5065 | Q71: 11954.8716
A72: 65 | B72: ='Tabla Amortización Fijo'!C78 -> 2027-08-04 | C72: 770703.5065 | D72: =IF(C72<=0,0,IF(C72<D71,C72,'Tabla Amortización Fijo'!AB78)) -> 4584.521614 | F72: =IF(C72<=0,0,'Tabla Amortización Fijo'!AC78) -> 5906.585914 | G72: =D72+F72 -> 10491.10753 | I72: 616.5628052 | J72: =IF(P71<=0.01,0,'Tabla Amortización Fijo'!R78) -> 346.5641667 | K72: =IF(D72<=0,0,'Tabla Amortización Fijo'!W78+'Tabla Amortización Fijo'!U78) -> 201.6371026 | L72: 299 | M72: =IF(C72=0,0,'Tabla Amortización Fijo'!X78+'Tabla Amortización Fijo'!V78+'Tabla Amortización Fijo'!S78+'Tabla Amortización Fijo'!Q78) -> 135.5522031 | N72: 12090.42381 | P72: =C72-D72-E72-H72 -> 766118.9849 | Q72: 11954.8716
A73: 66 | B73: ='Tabla Amortización Fijo'!C79 -> 2027-09-04 | C73: 766118.9849 | D73: =IF(C73<=0,0,IF(C73<D72,C73,'Tabla Amortización Fijo'!AB79)) -> 4623.324496 | F73: =IF(C73<=0,0,'Tabla Amortización Fijo'!AC79) -> 5871.450662 | G73: 10494.77516 | I73: =IF(C73<=0,0,(C73*0.8/1000)) -> 612.8951879 | J73: =IF(P72<=0.01,0,'Tabla Amortización Fijo'!R79) -> 346.5641667 | K73: =IF(D73<=0,0,'Tabla Amortización Fijo'!W79+'Tabla Amortización Fijo'!U79) -> 201.6371026 | L73: =IF(C73<=0,,299) -> 299 | M73: =IF(C73=0,0,'Tabla Amortización Fijo'!X79+'Tabla Amortización Fijo'!V79+'Tabla Amortización Fijo'!S79+'Tabla Amortización Fijo'!Q79) -> 135.5522031 | N73: 12090.42382 | P73: 761495.6604 | Q73: 11954.87161
A74: 67 | B74: ='Tabla Amortización Fijo'!C80 -> 2027-10-04 | C74: 761495.6604 | D74: =IF(C74<=0,0,IF(C74<D73,C74,'Tabla Amortización Fijo'!AB80)) -> 4850.71445 | F74: =IF(C74<=0,0,'Tabla Amortización Fijo'!AC80) -> 5647.759404 | G74: 10498.47385 | I74: 609.1965283 | J74: =IF(P73<=0.01,0,'Tabla Amortización Fijo'!R80) -> 346.5641667 | K74: =IF(D74<=0,0,'Tabla Amortización Fijo'!W80+'Tabla Amortización Fijo'!U80) -> 201.6371026 | L74: 299 | M74: =IF(C74=0,0,'Tabla Amortización Fijo'!X80+'Tabla Amortización Fijo'!V80+'Tabla Amortización Fijo'!S80+'Tabla Amortización Fijo'!Q80) -> 135.5522031 | N74: 12090.42385 | P74: 756644.946 | Q74: =N74-M74+H74+E74 -> 11954.87165
A75: 68 | B75: ='Tabla Amortización Fijo'!C81 -> 2027-11-04 | C75: =IF(P74<=0.01,0,P74) -> 756644.946 | D75: =IF(C75<=0,0,IF(C75<D74,C75,'Tabla Amortización Fijo'!AB81)) -> 4703.511709 | F75: =IF(C75<=0,0,'Tabla Amortización Fijo'!AC81) -> 5798.842749 | G75: 10502.35446 | I75: 605.3159568 | J75: =IF(P74<=0.01,0,'Tabla Amortización Fijo'!R81) -> 346.5641667 | K75: =IF(D75<=0,0,'Tabla Amortización Fijo'!W81+'Tabla Amortización Fijo'!U81) -> 201.6371026 | L75: 299 | M75: =IF(C75=0,0,'Tabla Amortización Fijo'!X81+'Tabla Amortización Fijo'!V81+'Tabla Amortización Fijo'!S81+'Tabla Amortización Fijo'!Q81) -> 135.5522031 | N75: 12090.42389 | P75: 751941.4343 | Q75: 11954.87168
A76: 69 | B76: ='Tabla Amortización Fijo'!C82 -> 2027-12-04 | C76: 751941.4343 | D76: =IF(C76<=0,0,IF(C76<D75,C76,'Tabla Amortización Fijo'!AB82)) -> 4929.218341 | F76: =IF(C76<=0,0,'Tabla Amortización Fijo'!AC82) -> 5576.898939 | G76: 10506.11728 | I76: 601.5531474 | J76: =IF(P75<=0.01,0,'Tabla Amortización Fijo'!R82) -> 346.5641667 | K76: =IF(D76<=0,0,'Tabla Amortización Fijo'!W82+'Tabla Amortización Fijo'!U82) -> 201.6371026 | L76: 299 | M76: =IF(C76=0,0,'Tabla Amortización Fijo'!X82+'Tabla Amortización Fijo'!V82+'Tabla Amortización Fijo'!S82+'Tabla Amortización Fijo'!Q82) -> 135.5522031 | N76: =G76+K76+J76+L76+M76+I76 -> 12090.4239 | P76: 747012.2159 | Q76: 11954.8717
A77: 70 | B77: ='Tabla Amortización Fijo'!C83 -> 2028-01-04 | C77: 747012.2159 | D77: =IF(C77<=0,0,IF(C77<D76,C77,'Tabla Amortización Fijo'!AB83)) -> 4785.042065 | F77: =IF(C77<=0,0,'Tabla Amortización Fijo'!AC83) -> 5725.018576 | G77: 10510.06064 | I77: 597.6097727 | J77: =IF(P76<=0.01,0,'Tabla Amortización Fijo'!R83) -> 346.5641667 | K77: =IF(D77<=0,0,'Tabla Amortización Fijo'!W83+'Tabla Amortización Fijo'!U83) -> 201.6371026 | L77: 299 | M77: =IF(C77=0,0,'Tabla Amortización Fijo'!X83+'Tabla Amortización Fijo'!V83+'Tabla Amortización Fijo'!S83+'Tabla Amortización Fijo'!Q83) -> 135.5522031 | N77: 12090.42389 | P77: 742227.1739 | Q77: 11954.87168
A78: 71 | B78: ='Tabla Amortización Fijo'!C84 -> 2028-02-04 | C78: 742227.1739 | D78: =IF(C78<=0,0,IF(C78<D77,C78,'Tabla Amortización Fijo'!AB84)) -> 4825.54213 | F78: =IF(C78<=0,0,'Tabla Amortización Fijo'!AC84) -> 5688.346561 | G78: 10513.88869 | I78: 593.7817391 | J78: =IF(P77<=0.01,0,'Tabla Amortización Fijo'!R84) -> 346.5641667 | K78: =IF(D78<=0,0,'Tabla Amortización Fijo'!W84+'Tabla Amortización Fijo'!U84) -> 201.6371026 | L78: 299 | M78: =IF(C78=0,0,'Tabla Amortización Fijo'!X84+'Tabla Amortización Fijo'!V84+'Tabla Amortización Fijo'!S84+'Tabla Amortización Fijo'!Q84) -> 135.5522031 | N78: 12090.4239 | P78: 737401.6317 | Q78: 11954.8717
A79: 72 | B79: ='Tabla Amortización Fijo'!C85 -> 2028-03-04 | C79: 737401.6317 | D79: =IF(C79<=0,0,IF(C79<D78,C79,'Tabla Amortización Fijo'!AB85)) -> 5230.989122 | F79: =IF(C79<=0,0,'Tabla Amortización Fijo'!AC85) -> 5286.76002 | G79: 10517.74914 | I79: 589.9213054 | J79: =IF(P78<=0.01,0,'Tabla Amortización Fijo'!R85) -> 346.5641667 | K79: =IF(D79<=0,0,'Tabla Amortización Fijo'!W85+'Tabla Amortización Fijo'!U85) -> 201.6371026 | L79: 299 | M79: =IF(C79=0,0,'Tabla Amortización Fijo'!X85+'Tabla Amortización Fijo'!V85+'Tabla Amortización Fijo'!S85+'Tabla Amortización Fijo'!Q85) -> 135.5522031 | N79: 12090.42392 | P79: 732170.6426 | Q79: 11954.87172
A80: 73 | B80: ='Tabla Amortización Fijo'!C86 -> 2028-04-04 | C80: 732170.6426 | D80: =IF(C80<=0,0,IF(C80<D79,C80,'Tabla Amortización Fijo'!AB86)) -> 4910.659493 | F80: =IF(C80<=0,0,'Tabla Amortización Fijo'!AC86) -> 5611.274433 | G80: 10521.93393 | I80: 585.7365141 | J80: =IF(P79<=0.01,0,'Tabla Amortización Fijo'!R86) -> 346.5641667 | K80: =IF(D80<=0,0,'Tabla Amortización Fijo'!W86+'Tabla Amortización Fijo'!U86) -> 201.6371026 | L80: 299 | M80: =IF(C80=0,0,'Tabla Amortización Fijo'!X86+'Tabla Amortización Fijo'!V86+'Tabla Amortización Fijo'!S86+'Tabla Amortización Fijo'!Q86) -> 135.5522031 | N80: 12090.42391 | P80: 727259.9831 | Q80: 11954.87171
A81: 74 | B81: ='Tabla Amortización Fijo'!C87 -> 2028-05-04 | C81: 727259.9831 | D81: =IF(C81<=0,0,IF(C81<D80,C81,'Tabla Amortización Fijo'!AB87)) -> 5132.017598 | F81: =IF(C81<=0,0,'Tabla Amortización Fijo'!AC87) -> 5393.844852 | G81: 10525.86245 | I81: 581.8079865 | J81: =IF(P80<=0.01,0,'Tabla Amortización Fijo'!R87) -> 346.5641667 | K81: =IF(D81<=0,0,'Tabla Amortización Fijo'!W87+'Tabla Amortización Fijo'!U87) -> 201.6371026 | L81: 299 | M81: =IF(C81=0,0,'Tabla Amortización Fijo'!X87+'Tabla Amortización Fijo'!V87+'Tabla Amortización Fijo'!S87+'Tabla Amortización Fijo'!Q87) -> 135.5522031 | N81: 12090.42391 | P81: 722127.9655 | Q81: 11954.87171
A82: 75 | B82: ='Tabla Amortización Fijo'!C88 -> 2028-06-04 | C82: 722127.9655 | D82: =IF(C82<=0,0,IF(C82<D81,C82,'Tabla Amortización Fijo'!AB88)) -> 4995.659596 | F82: =IF(C82<=0,0,'Tabla Amortización Fijo'!AC88) -> 5534.308449 | G82: 10529.96804 | I82: 577.7023724 | J82: =IF(P81<=0.01,0,'Tabla Amortización Fijo'!R88) -> 346.5641667 | K82: =IF(D82<=0,0,'Tabla Amortización Fijo'!W88+'Tabla Amortización Fijo'!U88) -> 201.6371026 | L82: 299 | M82: =IF(C82=0,0,'Tabla Amortización Fijo'!X88+'Tabla Amortización Fijo'!V88+'Tabla Amortización Fijo'!S88+'Tabla Amortización Fijo'!Q88) -> 135.5522031 | N82: 12090.42389 | P82: 717132.3059 | Q82: 11954.87169
A83: 76 | B83: ='Tabla Amortización Fijo'!C89 -> 2028-07-04 | C83: 717132.3059 | D83: =IF(C83<=0,0,IF(C83<D82,C83,'Tabla Amortización Fijo'!AB89)) -> 5215.233346 | F83: =IF(C83<=0,0,'Tabla Amortización Fijo'!AC89) -> 5318.731225 | G83: 10533.96457 | I83: 573.7058447 | J83: =IF(P82<=0.01,0,'Tabla Amortización Fijo'!R89) -> 346.5641667 | K83: =IF(D83<=0,0,'Tabla Amortización Fijo'!W89+'Tabla Amortización Fijo'!U89) -> 201.6371026 | L83: 299 | M83: =IF(C83=0,0,'Tabla Amortización Fijo'!X89+'Tabla Amortización Fijo'!V89+'Tabla Amortización Fijo'!S89+'Tabla Amortización Fijo'!Q89) -> 135.5522031 | N83: 12090.42389 | P83: 711917.0726 | Q83: 11954.87168
A84: 77 | B84: ='Tabla Amortización Fijo'!C90 -> 2028-08-04 | C84: 711917.0726 | D84: =IF(C84<=0,0,IF(C84<D83,C84,'Tabla Amortización Fijo'!AB90)) -> 5082.083459 | F84: =IF(C84<=0,0,'Tabla Amortización Fijo'!AC90) -> 5456.053323 | G84: 10538.13678 | I84: 569.5336581 | J84: =IF(P83<=0.01,0,'Tabla Amortización Fijo'!R90) -> 346.5641667 | K84: =IF(D84<=0,0,'Tabla Amortización Fijo'!W90+'Tabla Amortización Fijo'!U90) -> 201.6371026 | L84: 299 | M84: =IF(C84=0,0,'Tabla Amortización Fijo'!X90+'Tabla Amortización Fijo'!V90+'Tabla Amortización Fijo'!S90+'Tabla Amortización Fijo'!Q90) -> 135.5522031 | N84: 12090.42391 | P84: 706834.9891 | Q84: 11954.87171
A85: 78 | B85: ='Tabla Amortización Fijo'!C91 -> 2028-09-04 | C85: 706834.9891 | D85: =IF(C85<=0,0,IF(C85<D84,C85,'Tabla Amortización Fijo'!AB91)) -> 5125.097649 | F85: =IF(C85<=0,0,'Tabla Amortización Fijo'!AC91) -> 5417.104826 | G85: 10542.20248 | I85: 565.4679913 | J85: =IF(P84<=0.01,0,'Tabla Amortización Fijo'!R91) -> 346.5641667 | K85: =IF(D85<=0,0,'Tabla Amortización Fijo'!W91+'Tabla Amortización Fijo'!U91) -> 201.6371026 | L85: 299 | M85: =IF(C85=0,0,'Tabla Amortización Fijo'!X91+'Tabla Amortización Fijo'!V91+'Tabla Amortización Fijo'!S91+'Tabla Amortización Fijo'!Q91) -> 135.5522031 | N85: 12090.42394 | P85: 701709.8915 | Q85: 11954.87174
A86: 79 | B86: ='Tabla Amortización Fijo'!C92 -> 2028-10-04 | C86: 701709.8915 | D86: =IF(C86<=0,0,IF(C86<D85,C86,'Tabla Amortización Fijo'!AB92)) -> 5341.954185 | F86: =IF(C86<=0,0,'Tabla Amortización Fijo'!AC92) -> 5204.348351 | G86: 10546.30254 | I86: 561.3679132 | J86: =IF(P85<=0.01,0,'Tabla Amortización Fijo'!R92) -> 346.5641667 | K86: =IF(D86<=0,0,'Tabla Amortización Fijo'!W92+'Tabla Amortización Fijo'!U92) -> 201.6371026 | L86: 299 | M86: =IF(C86=0,0,'Tabla Amortización Fijo'!X92+'Tabla Amortización Fijo'!V92+'Tabla Amortización Fijo'!S92+'Tabla Amortización Fijo'!Q92) -> 135.5522031 | N86: 12090.42392 | P86: 696367.9373 | Q86: 11954.87172
A87: 80 | B87: ='Tabla Amortización Fijo'!C93 -> 2028-11-04 | C87: 696367.9373 | D87: =IF(C87<=0,0,IF(C87<D86,C87,'Tabla Amortización Fijo'!AB93)) -> 5213.689613 | F87: =IF(C87<=0,0,'Tabla Amortización Fijo'!AC93) -> 5336.886518 | G87: 10550.57613 | I87: 557.0943498 | J87: =IF(P86<=0.01,0,'Tabla Amortización Fijo'!R93) -> 346.5641667 | K87: =IF(D87<=0,0,'Tabla Amortización Fijo'!W93+'Tabla Amortización Fijo'!U93) -> 201.6371026 | L87: 299 | M87: =IF(C87=0,0,'Tabla Amortización Fijo'!X93+'Tabla Amortización Fijo'!V93+'Tabla Amortización Fijo'!S93+'Tabla Amortización Fijo'!Q93) -> 135.5522031 | N87: 12090.42395 | P87: 691154.2477 | Q87: 11954.87175
A88: 81 | B88: ='Tabla Amortización Fijo'!C94 -> 2028-12-04 | C88: 691154.2477 | D88: =IF(C88<=0,0,IF(C88<D87,C88,'Tabla Amortización Fijo'!AB94)) -> 5428.686391 | F88: =IF(C88<=0,0,'Tabla Amortización Fijo'!AC94) -> 5126.060688 | G88: 10554.74708 | I88: 552.9233981 | J88: =IF(P87<=0.01,0,'Tabla Amortización Fijo'!R94) -> 346.5641667 | K88: =IF(D88<=0,0,'Tabla Amortización Fijo'!W94+'Tabla Amortización Fijo'!U94) -> 201.6371026 | L88: 299 | M88: =IF(C88=0,0,'Tabla Amortización Fijo'!X94+'Tabla Amortización Fijo'!V94+'Tabla Amortización Fijo'!S94+'Tabla Amortización Fijo'!Q94) -> 135.5522031 | N88: 12090.42395 | P88: 685725.5613 | Q88: 11954.87175
A89: 82 | B89: ='Tabla Amortización Fijo'!C95 -> 2029-01-04 | C89: 685725.5613 | D89: =IF(C89<=0,0,IF(C89<D88,C89,'Tabla Amortización Fijo'!AB95)) -> 5303.765501 | F89: =IF(C89<=0,0,'Tabla Amortización Fijo'!AC95) -> 5255.3245 | G89: 10559.09 | I89: 548.580449 | J89: =IF(P88<=0.01,0,'Tabla Amortización Fijo'!R95) -> 346.5641667 | K89: =IF(D89<=0,0,'Tabla Amortización Fijo'!W95+'Tabla Amortización Fijo'!U95) -> 201.6371026 | L89: 299 | M89: =IF(C89=0,0,'Tabla Amortización Fijo'!X95+'Tabla Amortización Fijo'!V95+'Tabla Amortización Fijo'!S95+'Tabla Amortización Fijo'!Q95) -> 135.5522031 | N89: 12090.42392 | P89: 680421.7958 | Q89: 11954.87172
A90: 83 | B90: ='Tabla Amortización Fijo'!C96 -> 2029-02-04 | C90: 680421.7958 | D90: =IF(C90<=0,0,IF(C90<D89,C90,'Tabla Amortización Fijo'!AB96)) -> 5348.655983 | F90: =IF(C90<=0,0,'Tabla Amortización Fijo'!AC96) -> 5214.676996 | G90: 10563.33298 | I90: 544.3374366 | J90: =IF(P89<=0.01,0,'Tabla Amortización Fijo'!R96) -> 346.5641667 | K90: =IF(D90<=0,0,'Tabla Amortización Fijo'!W96+'Tabla Amortización Fijo'!U96) -> 201.6371026 | L90: 299 | M90: =IF(C90=0,0,'Tabla Amortización Fijo'!X96+'Tabla Amortización Fijo'!V96+'Tabla Amortización Fijo'!S96+'Tabla Amortización Fijo'!Q96) -> 135.5522031 | N90: 12090.42389 | P90: 675073.1398 | Q90: 11954.87168
A91: 84 | B91: ='Tabla Amortización Fijo'!C97 -> 2029-03-04 | C91: 675073.1398 | D91: =IF(C91<=0,0,IF(C91<D90,C91,'Tabla Amortización Fijo'!AB97)) -> 5894.605658 | F91: =IF(C91<=0,0,'Tabla Amortización Fijo'!AC97) -> 4673.006222 | G91: 10567.61188 | I91: 540.0585118 | J91: =IF(P90<=0.01,0,'Tabla Amortización Fijo'!R97) -> 346.5641667 | K91: =IF(D91<=0,0,'Tabla Amortización Fijo'!W97+'Tabla Amortización Fijo'!U97) -> 201.6371026 | L91: 299 | M91: =IF(C91=0,0,'Tabla Amortización Fijo'!X97+'Tabla Amortización Fijo'!V97+'Tabla Amortización Fijo'!S97+'Tabla Amortización Fijo'!Q97) -> 135.5522031 | N91: 12090.42386 | P91: 669178.5341 | Q91: 11954.87166
A92: 85 | B92: ='Tabla Amortización Fijo'!C98 -> 2029-04-04 | C92: 669178.5341 | D92: =IF(C92<=0,0,IF(C92<D91,C92,'Tabla Amortización Fijo'!AB98)) -> 5443.8177 | F92: =IF(C92<=0,0,'Tabla Amortización Fijo'!AC98) -> 5128.509824 | G92: 10572.32752 | I92: 535.3428273 | J92: =IF(P91<=0.01,0,'Tabla Amortización Fijo'!R98) -> 346.5641667 | K92: =IF(D92<=0,0,'Tabla Amortización Fijo'!W98+'Tabla Amortización Fijo'!U98) -> 201.6371026 | L92: 299 | M92: =IF(C92=0,0,'Tabla Amortización Fijo'!X98+'Tabla Amortización Fijo'!V98+'Tabla Amortización Fijo'!S98+'Tabla Amortización Fijo'!Q98) -> 135.5522031 | N92: 12090.42382 | P92: 663734.7164 | Q92: 11954.87162
A93: 86 | B93: ='Tabla Amortización Fijo'!C99 -> 2029-05-04 | C93: 663734.7164 | D93: =IF(C93<=0,0,IF(C93<D92,C93,'Tabla Amortización Fijo'!AB99)) -> 5653.98354 | F93: =IF(C93<=0,0,'Tabla Amortización Fijo'!AC99) -> 4922.699025 | G93: 10576.68256 | I93: 530.9877732 | J93: =IF(P92<=0.01,0,'Tabla Amortización Fijo'!R99) -> 346.5641667 | K93: =IF(D93<=0,0,'Tabla Amortización Fijo'!W99+'Tabla Amortización Fijo'!U99) -> 201.6371026 | L93: 299 | M93: =IF(C93=0,0,'Tabla Amortización Fijo'!X99+'Tabla Amortización Fijo'!V99+'Tabla Amortización Fijo'!S99+'Tabla Amortización Fijo'!Q99) -> 135.5522031 | N93: 12090.42381 | P93: 658080.7329 | Q93: 11954.87161
A94: 87 | B94: ='Tabla Amortización Fijo'!C100 -> 2029-06-04 | C94: 658080.7329 | D94: =IF(C94<=0,0,IF(C94<D93,C94,'Tabla Amortización Fijo'!AB100)) -> 5537.748256 | F94: =IF(C94<=0,0,'Tabla Amortización Fijo'!AC100) -> 5043.457518 | G94: 10581.20577 | I94: 526.4645863 | J94: =IF(P93<=0.01,0,'Tabla Amortización Fijo'!R100) -> 346.5641667 | K94: =IF(D94<=0,0,'Tabla Amortización Fijo'!W100+'Tabla Amortización Fijo'!U100) -> 201.6371026 | L94: 299 | M94: =IF(C94=0,0,'Tabla Amortización Fijo'!X100+'Tabla Amortización Fijo'!V100+'Tabla Amortización Fijo'!S100+'Tabla Amortización Fijo'!Q100) -> 135.5522031 | N94: 12090.42383 | P94: 652542.9847 | Q94: 11954.87163
A95: 88 | B95: ='Tabla Amortización Fijo'!C101 -> 2029-07-04 | C95: 652542.9847 | D95: =IF(C95<=0,0,IF(C95<D94,C95,'Tabla Amortización Fijo'!AB101)) -> 5745.942269 | F95: =IF(C95<=0,0,'Tabla Amortización Fijo'!AC101) -> 4839.693694 | G95: 10585.63596 | I95: 522.0343877 | J95: =IF(P94<=0.01,0,'Tabla Amortización Fijo'!R101) -> 346.5641667 | K95: =IF(D95<=0,0,'Tabla Amortización Fijo'!W101+'Tabla Amortización Fijo'!U101) -> 201.6371026 | L95: 299 | M95: =IF(C95=0,0,'Tabla Amortización Fijo'!X101+'Tabla Amortización Fijo'!V101+'Tabla Amortización Fijo'!S101+'Tabla Amortización Fijo'!Q101) -> 135.5522031 | N95: 12090.42382 | P95: 646797.0424 | Q95: 11954.87162
A96: 89 | B96: ='Tabla Amortización Fijo'!C102 -> 2029-08-04 | C96: 646797.0424 | D96: =IF(C96<=0,0,IF(C96<D95,C96,'Tabla Amortización Fijo'!AB102)) -> 5633.252159 | F96: =IF(C96<=0,0,'Tabla Amortización Fijo'!AC102) -> 4956.980572 | G96: 10590.23273 | I96: 517.4376339 | J96: =IF(P95<=0.01,0,'Tabla Amortización Fijo'!R102) -> 346.5641667 | K96: =IF(D96<=0,0,'Tabla Amortización Fijo'!W102+'Tabla Amortización Fijo'!U102) -> 201.6371026 | L96: 299 | M96: =IF(C96=0,0,'Tabla Amortización Fijo'!X102+'Tabla Amortización Fijo'!V102+'Tabla Amortización Fijo'!S102+'Tabla Amortización Fijo'!Q102) -> 135.5522031 | N96: 12090.42384 | P96: 641163.7902 | Q96: 11954.87163
A97: 90 | B97: ='Tabla Amortización Fijo'!C103 -> 2029-09-04 | C97: 641163.7902 | D97: =IF(C97<=0,0,IF(C97<D96,C97,'Tabla Amortización Fijo'!AB103)) -> 5680.93138 | F97: =IF(C97<=0,0,'Tabla Amortización Fijo'!AC103) -> 4913.80797 | G97: 10594.73935 | I97: 512.9310322 | J97: =IF(P96<=0.01,0,'Tabla Amortización Fijo'!R103) -> 346.5641667 | K97: =IF(D97<=0,0,'Tabla Amortización Fijo'!W103+'Tabla Amortización Fijo'!U103) -> 201.6371026 | L97: 299 | M97: =IF(C97=0,0,'Tabla Amortización Fijo'!X103+'Tabla Amortización Fijo'!V103+'Tabla Amortización Fijo'!S103+'Tabla Amortización Fijo'!Q103) -> 135.5522031 | N97: 12090.42385 | P97: 635482.8588 | Q97: 11954.87165
A98: 91 | B98: ='Tabla Amortización Fijo'!C104 -> 2029-10-04 | C98: 635482.8588 | D98: =IF(C98<=0,0,IF(C98<D97,C98,'Tabla Amortización Fijo'!AB104)) -> 5886.119636 | F98: =IF(C98<=0,0,'Tabla Amortización Fijo'!AC104) -> 4713.164471 | G98: 10599.28411 | I98: 508.3862871 | J98: =IF(P97<=0.01,0,'Tabla Amortización Fijo'!R104) -> 346.5641667 | K98: =IF(D98<=0,0,'Tabla Amortización Fijo'!W104+'Tabla Amortización Fijo'!U104) -> 201.6371026 | L98: 299 | M98: =IF(C98=0,0,'Tabla Amortización Fijo'!X104+'Tabla Amortización Fijo'!V104+'Tabla Amortización Fijo'!S104+'Tabla Amortización Fijo'!Q104) -> 135.5522031 | N98: 12090.42387 | P98: 629596.7392 | Q98: 11954.87166
A99: 92 | B99: ='Tabla Amortización Fijo'!C105 -> 2029-11-04 | C99: 629596.7392 | D99: =IF(C99<=0,0,IF(C99<D98,C99,'Tabla Amortización Fijo'!AB105)) -> 5778.833614 | F99: =IF(C99<=0,0,'Tabla Amortización Fijo'!AC105) -> 4825.159384 | G99: 10603.993 | I99: 503.6773914 | J99: =IF(P98<=0.01,0,'Tabla Amortización Fijo'!R105) -> 346.5641667 | K99: =IF(D99<=0,0,'Tabla Amortización Fijo'!W105+'Tabla Amortización Fijo'!U105) -> 201.6371026 | L99: 299 | M99: =IF(C99=0,0,'Tabla Amortización Fijo'!X105+'Tabla Amortización Fijo'!V105+'Tabla Amortización Fijo'!S105+'Tabla Amortización Fijo'!Q105) -> 135.5522031 | N99: 12090.42386 | P99: 623817.9056 | Q99: 11954.87166
A100: 93 | B100: ='Tabla Amortización Fijo'!C106 -> 2029-12-04 | C100: 623817.9056 | D100: =IF(C100<=0,0,IF(C100<D99,C100,'Tabla Amortización Fijo'!AB106)) -> 5981.966669 | F100: =IF(C100<=0,0,'Tabla Amortización Fijo'!AC106) -> 4626.649425 | G100: 10608.61609 | I100: 499.0543245 | J100: =IF(P99<=0.01,0,'Tabla Amortización Fijo'!R106) -> 346.5641667 | K100: =IF(D100<=0,0,'Tabla Amortización Fijo'!W106+'Tabla Amortización Fijo'!U106) -> 201.6371026 | L100: 299 | M100: =IF(C100=0,0,'Tabla Amortización Fijo'!X106+'Tabla Amortización Fijo'!V106+'Tabla Amortización Fijo'!S106+'Tabla Amortización Fijo'!Q106) -> 135.5522031 | N100: 12090.42389 | P100: 617835.9389 | Q100: 11954.87169
A101: 94 | B101: ='Tabla Amortización Fijo'!C107 -> 2030-01-04 | C101: 617835.9389 | D101: =IF(C101<=0,0,IF(C101<D100,C101,'Tabla Amortización Fijo'!AB107)) -> 5878.375721 | F101: =IF(C101<=0,0,'Tabla Amortización Fijo'!AC107) -> 4735.025919 | G101: 10613.40164 | I101: 494.2687511 | J101: =IF(P100<=0.01,0,'Tabla Amortización Fijo'!R107) -> 346.5641667 | K101: =IF(D101<=0,0,'Tabla Amortización Fijo'!W107+'Tabla Amortización Fijo'!U107) -> 201.6371026 | L101: 299 | M101: =IF(C101=0,0,'Tabla Amortización Fijo'!X107+'Tabla Amortización Fijo'!V107+'Tabla Amortización Fijo'!S107+'Tabla Amortización Fijo'!Q107) -> 135.5522031 | N101: 12090.42386 | P101: 611957.5632 | Q101: 11954.87166
A102: 95 | B102: ='Tabla Amortización Fijo'!C108 -> 2030-02-04 | C102: 611957.5632 | D102: =IF(C102<=0,0,IF(C102<D101,C102,'Tabla Amortización Fijo'!AB108)) -> 5928.12964 | F102: =IF(C102<=0,0,'Tabla Amortización Fijo'!AC108) -> 4689.974668 | G102: 10618.10431 | I102: 489.5660506 | J102: =IF(P101<=0.01,0,'Tabla Amortización Fijo'!R108) -> 346.5641667 | K102: =IF(D102<=0,0,'Tabla Amortización Fijo'!W108+'Tabla Amortización Fijo'!U108) -> 201.6371026 | L102: 299 | M102: =IF(C102=0,0,'Tabla Amortización Fijo'!X108+'Tabla Amortización Fijo'!V108+'Tabla Amortización Fijo'!S108+'Tabla Amortización Fijo'!Q108) -> 135.5522031 | N102: 12090.42383 | P102: 606029.4336 | Q102: 11954.87163
A103: 96 | B103: ='Tabla Amortización Fijo'!C109 -> 2030-03-04 | C103: 606029.4336 | D103: =IF(C103<=0,0,IF(C103<D102,C103,'Tabla Amortización Fijo'!AB109)) -> 6427.776501 | F103: =IF(C103<=0,0,'Tabla Amortización Fijo'!AC109) -> 4195.070318 | G103: 10622.84682 | I103: 484.8235469 | J103: =IF(P102<=0.01,0,'Tabla Amortización Fijo'!R109) -> 346.5641667 | K103: =IF(D103<=0,0,'Tabla Amortización Fijo'!W109+'Tabla Amortización Fijo'!U109) -> 201.6371026 | L103: 299 | M103: =IF(C103=0,0,'Tabla Amortización Fijo'!X109+'Tabla Amortización Fijo'!V109+'Tabla Amortización Fijo'!S109+'Tabla Amortización Fijo'!Q109) -> 135.5522031 | N103: 12090.42384 | P103: 599601.6571 | Q103: 11954.87164
A104: 97 | B104: ='Tabla Amortización Fijo'!C110 -> 2030-04-04 | C104: 599601.6571 | D104: =IF(C104<=0,0,IF(C104<D103,C104,'Tabla Amortización Fijo'!AB110)) -> 6032.708657 | F104: =IF(C104<=0,0,'Tabla Amortización Fijo'!AC110) -> 4595.280347 | G104: 10627.989 | I104: 479.6813257 | J104: =IF(P103<=0.01,0,'Tabla Amortización Fijo'!R110) -> 346.5641667 | K104: =IF(D104<=0,0,'Tabla Amortización Fijo'!W110+'Tabla Amortización Fijo'!U110) -> 201.6371026 | L104: 299 | M104: =IF(C104=0,0,'Tabla Amortización Fijo'!X110+'Tabla Amortización Fijo'!V110+'Tabla Amortización Fijo'!S110+'Tabla Amortización Fijo'!Q110) -> 135.5522031 | N104: 12090.4238 | P104: 593568.9484 | Q104: 11954.8716
A105: 98 | B105: ='Tabla Amortización Fijo'!C111 -> 2030-05-04 | C105: 593568.9484 | D105: =IF(C105<=0,0,IF(C105<D104,C105,'Tabla Amortización Fijo'!AB111)) -> 6230.512267 | F105: =IF(C105<=0,0,'Tabla Amortización Fijo'!AC111) -> 4402.302898 | G105: 10632.81516 | I105: 474.8551587 | J105: =IF(P104<=0.01,0,'Tabla Amortización Fijo'!R111) -> 346.5641667 | K105: =IF(D105<=0,0,'Tabla Amortización Fijo'!W111+'Tabla Amortización Fijo'!U111) -> 201.6371026 | L105: 299 | M105: =IF(C105=0,0,'Tabla Amortización Fijo'!X111+'Tabla Amortización Fijo'!V111+'Tabla Amortización Fijo'!S111+'Tabla Amortización Fijo'!Q111) -> 135.5522031 | N105: 12090.4238 | P105: 587338.4361 | Q105: 11954.87159
A106: 99 | B106: ='Tabla Amortización Fijo'!C112 -> 2030-06-04 | C106: 587338.4361 | D106: =IF(C106<=0,0,IF(C106<D105,C106,'Tabla Amortización Fijo'!AB112)) -> 6136.503196 | F106: =IF(C106<=0,0,'Tabla Amortización Fijo'!AC112) -> 4501.296391 | G106: 10637.79959 | I106: 469.8707489 | J106: =IF(P105<=0.01,0,'Tabla Amortización Fijo'!R112) -> 346.5641667 | K106: =IF(D106<=0,0,'Tabla Amortización Fijo'!W112+'Tabla Amortización Fijo'!U112) -> 201.6371026 | L106: 299 | M106: =IF(C106=0,0,'Tabla Amortización Fijo'!X112+'Tabla Amortización Fijo'!V112+'Tabla Amortización Fijo'!S112+'Tabla Amortización Fijo'!Q112) -> 135.5522031 | N106: 12090.42381 | P106: 581201.9329 | Q106: 11954.87161
A107: 100 | B107: ='Tabla Amortización Fijo'!C113 -> 2030-07-04 | C107: 581201.9329 | D107: =IF(C107<=0,0,IF(C107<D106,C107,'Tabla Amortización Fijo'!AB113)) -> 6332.127911 | F107: =IF(C107<=0,0,'Tabla Amortización Fijo'!AC113) -> 4310.580907 | G107: 10642.70882 | I107: 464.9615464 | J107: =IF(P106<=0.01,0,'Tabla Amortización Fijo'!R113) -> 346.5641667 | K107: =IF(D107<=0,0,'Tabla Amortización Fijo'!W113+'Tabla Amortización Fijo'!U113) -> 201.6371026 | L107: 299 | M107: =IF(C107=0,0,'Tabla Amortización Fijo'!X113+'Tabla Amortización Fijo'!V113+'Tabla Amortización Fijo'!S113+'Tabla Amortización Fijo'!Q113) -> 135.5522031 | N107: 12090.42384 | P107: 574869.805 | Q107: 11954.87163
A108: 101 | B108: ='Tabla Amortización Fijo'!C114 -> 2030-08-04 | C108: 574869.805 | D108: =IF(C108<=0,0,IF(C108<D107,C108,'Tabla Amortización Fijo'!AB114)) -> 6242.036304 | F108: =IF(C108<=0,0,'Tabla Amortización Fijo'!AC114) -> 4405.738196 | G108: 10647.7745 | I108: 459.895844 | J108: =IF(P107<=0.01,0,'Tabla Amortización Fijo'!R114) -> 346.5641667 | K108: =IF(D108<=0,0,'Tabla Amortización Fijo'!W114+'Tabla Amortización Fijo'!U114) -> 201.6371026 | L108: 299 | M108: =IF(C108=0,0,'Tabla Amortización Fijo'!X114+'Tabla Amortización Fijo'!V114+'Tabla Amortización Fijo'!S114+'Tabla Amortización Fijo'!Q114) -> 135.5522031 | N108: 12090.42382 | P108: 568627.7687 | Q108: 11954.87161
A109: 102 | B109: ='Tabla Amortización Fijo'!C115 -> 2030-09-04 | C109: 568627.7687 | D109: =IF(C109<=0,0,IF(C109<D108,C109,'Tabla Amortización Fijo'!AB115)) -> 6294.868206 | F109: =IF(C109<=0,0,'Tabla Amortización Fijo'!AC115) -> 4357.899895 | G109: 10652.7681 | I109: 454.902215 | J109: =IF(P108<=0.01,0,'Tabla Amortización Fijo'!R115) -> 346.5641667 | K109: =IF(D109<=0,0,'Tabla Amortización Fijo'!W115+'Tabla Amortización Fijo'!U115) -> 201.6371026 | L109: 299 | M109: =IF(C109=0,0,'Tabla Amortización Fijo'!X115+'Tabla Amortización Fijo'!V115+'Tabla Amortización Fijo'!S115+'Tabla Amortización Fijo'!Q115) -> 135.5522031 | N109: 12090.42379 | P109: 562332.9005 | Q109: 11954.87159
A110: 103 | B110: ='Tabla Amortización Fijo'!C116 -> 2030-10-04 | C110: 562332.9005 | D110: =IF(C110<=0,0,IF(C110<D109,C110,'Tabla Amortización Fijo'!AB116)) -> 6487.16846 | F110: =IF(C110<=0,0,'Tabla Amortización Fijo'!AC116) -> 4170.635527 | G110: 10657.80399 | I110: 449.8663204 | J110: =IF(P109<=0.01,0,'Tabla Amortización Fijo'!R116) -> 346.5641667 | K110: =IF(D110<=0,0,'Tabla Amortización Fijo'!W116+'Tabla Amortización Fijo'!U116) -> 201.6371026 | L110: 299 | M110: =IF(C110=0,0,'Tabla Amortización Fijo'!X116+'Tabla Amortización Fijo'!V116+'Tabla Amortización Fijo'!S116+'Tabla Amortización Fijo'!Q116) -> 135.5522031 | N110: 12090.42378 | P110: 555845.7321 | Q110: 11954.87158
A111: 104 | B111: ='Tabla Amortización Fijo'!C117 -> 2030-11-04 | C111: 555845.7321 | D111: =IF(C111<=0,0,IF(C111<D110,C111,'Tabla Amortización Fijo'!AB117)) -> 6403.053944 | F111: =IF(C111<=0,0,'Tabla Amortización Fijo'!AC117) -> 4259.939761 | G111: 10662.9937 | I111: 444.6765856 | J111: =IF(P110<=0.01,0,'Tabla Amortización Fijo'!R117) -> 346.5641667 | K111: =IF(D111<=0,0,'Tabla Amortización Fijo'!W117+'Tabla Amortización Fijo'!U117) -> 201.6371026 | L111: 299 | M111: =IF(C111=0,0,'Tabla Amortización Fijo'!X117+'Tabla Amortización Fijo'!V117+'Tabla Amortización Fijo'!S117+'Tabla Amortización Fijo'!Q117) -> 135.5522031 | N111: 12090.42376 | P111: 549442.6781 | Q111: 11954.87156
A112: 105 | B112: ='Tabla Amortización Fijo'!C118 -> 2030-12-04 | C112: 549442.6781 | D112: =IF(C112<=0,0,IF(C112<D111,C112,'Tabla Amortización Fijo'!AB118)) -> 6593.083121 | F112: =IF(C112<=0,0,'Tabla Amortización Fijo'!AC118) -> 4075.033062 | G112: 10668.11618 | I112: 439.5541425 | J112: =IF(P111<=0.01,0,'Tabla Amortización Fijo'!R118) -> 346.5641667 | K112: =IF(D112<=0,0,'Tabla Amortización Fijo'!W118+'Tabla Amortización Fijo'!U118) -> 201.6371026 | L112: 299 | M112: =IF(C112=0,0,'Tabla Amortización Fijo'!X118+'Tabla Amortización Fijo'!V118+'Tabla Amortización Fijo'!S118+'Tabla Amortización Fijo'!Q118) -> 135.5522031 | N112: 12090.4238 | P112: 542849.595 | Q112: 11954.87159
A113: 106 | B113: ='Tabla Amortización Fijo'!C119 -> 2031-01-04 | C113: 542849.595 | D113: =IF(C113<=0,0,IF(C113<D112,C113,'Tabla Amortización Fijo'!AB119)) -> 6513.051804 | F113: =IF(C113<=0,0,'Tabla Amortización Fijo'!AC119) -> 4160.338865 | G113: 10673.39067 | I113: 434.279676 | J113: =IF(P112<=0.01,0,'Tabla Amortización Fijo'!R119) -> 346.5641667 | K113: =IF(D113<=0,0,'Tabla Amortización Fijo'!W119+'Tabla Amortización Fijo'!U119) -> 201.6371026 | L113: 299 | M113: =IF(C113=0,0,'Tabla Amortización Fijo'!X119+'Tabla Amortización Fijo'!V119+'Tabla Amortización Fijo'!S119+'Tabla Amortización Fijo'!Q119) -> 135.5522031 | N113: 12090.42382 | P113: 536336.5432 | Q113: 11954.87161
A114: 107 | B114: ='Tabla Amortización Fijo'!C120 -> 2031-02-04 | C114: 536336.5432 | D114: =IF(C114<=0,0,IF(C114<D113,C114,'Tabla Amortización Fijo'!AB120)) -> 6568.177551 | F114: =IF(C114<=0,0,'Tabla Amortización Fijo'!AC120) -> 4110.423573 | G114: 10678.60112 | I114: 429.0692346 | J114: =IF(P113<=0.01,0,'Tabla Amortización Fijo'!R120) -> 346.5641667 | K114: =IF(D114<=0,0,'Tabla Amortización Fijo'!W120+'Tabla Amortización Fijo'!U120) -> 201.6371026 | L114: 299 | M114: =IF(C114=0,0,'Tabla Amortización Fijo'!X120+'Tabla Amortización Fijo'!V120+'Tabla Amortización Fijo'!S120+'Tabla Amortización Fijo'!Q120) -> 135.5522031 | N114: 12090.42383 | P114: 529768.3656 | Q114: 11954.87163
A115: 108 | B115: ='Tabla Amortización Fijo'!C121 -> 2031-03-04 | C115: 529768.3656 | D115: =IF(C115<=0,0,IF(C115<D114,C115,'Tabla Amortización Fijo'!AB121)) -> 7016.681414 | F115: =IF(C115<=0,0,'Tabla Amortización Fijo'!AC121) -> 3667.174245 | G115: 10683.85566 | I115: 423.8146925 | J115: =IF(P114<=0.01,0,'Tabla Amortización Fijo'!R121) -> 346.5641667 | K115: =IF(D115<=0,0,'Tabla Amortización Fijo'!W121+'Tabla Amortización Fijo'!U121) -> 201.6371026 | L115: 299 | M115: =IF(C115=0,0,'Tabla Amortización Fijo'!X121+'Tabla Amortización Fijo'!V121+'Tabla Amortización Fijo'!S121+'Tabla Amortización Fijo'!Q121) -> 135.5522031 | N115: 12090.42382 | P115: 522751.6842 | Q115: 11954.87162
A116: 109 | B116: ='Tabla Amortización Fijo'!C122 -> 2031-04-04 | C116: 522751.6842 | D116: =IF(C116<=0,0,IF(C116<D115,C116,'Tabla Amortización Fijo'!AB122)) -> 6683.158288 | F116: =IF(C116<=0,0,'Tabla Amortización Fijo'!AC122) -> 4006.310715 | G116: 10689.469 | I116: 418.2013474 | J116: =IF(P115<=0.01,0,'Tabla Amortización Fijo'!R122) -> 346.5641667 | K116: =IF(D116<=0,0,'Tabla Amortización Fijo'!W122+'Tabla Amortización Fijo'!U122) -> 201.6371026 | L116: 299 | M116: =IF(C116=0,0,'Tabla Amortización Fijo'!X122+'Tabla Amortización Fijo'!V122+'Tabla Amortización Fijo'!S122+'Tabla Amortización Fijo'!Q122) -> 135.5522031 | N116: 12090.42382 | P116: 516068.5259 | Q116: 11954.87162
A117: 110 | B117: ='Tabla Amortización Fijo'!C123 -> 2031-05-04 | C117: 516068.5259 | D117: =IF(C117<=0,0,IF(C117<D116,C117,'Tabla Amortización Fijo'!AB123)) -> 6867.307405 | F117: =IF(C117<=0,0,'Tabla Amortización Fijo'!AC123) -> 3827.508116 | G117: 10694.81552 | I117: 412.8548208 | J117: =IF(P116<=0.01,0,'Tabla Amortización Fijo'!R123) -> 346.5641667 | K117: =IF(D117<=0,0,'Tabla Amortización Fijo'!W123+'Tabla Amortización Fijo'!U123) -> 201.6371026 | L117: 299 | M117: =IF(C117=0,0,'Tabla Amortización Fijo'!X123+'Tabla Amortización Fijo'!V123+'Tabla Amortización Fijo'!S123+'Tabla Amortización Fijo'!Q123) -> 135.5522031 | N117: 12090.42381 | P117: 509201.2185 | Q117: 11954.87161
A118: 111 | B118: ='Tabla Amortización Fijo'!C124 -> 2031-06-04 | C118: 509201.2185 | D118: =IF(C118<=0,0,IF(C118<D117,C118,'Tabla Amortización Fijo'!AB124)) -> 6797.847924 | F118: =IF(C118<=0,0,'Tabla Amortización Fijo'!AC124) -> 3902.461419 | G118: 10700.30934 | I118: 407.3609748 | J118: =IF(P117<=0.01,0,'Tabla Amortización Fijo'!R124) -> 346.5641667 | K118: =IF(D118<=0,0,'Tabla Amortización Fijo'!W124+'Tabla Amortización Fijo'!U124) -> 201.6371026 | L118: 299 | M118: =IF(C118=0,0,'Tabla Amortización Fijo'!X124+'Tabla Amortización Fijo'!V124+'Tabla Amortización Fijo'!S124+'Tabla Amortización Fijo'!Q124) -> 135.5522031 | N118: 12090.42379 | P118: 502403.3706 | Q118: 11954.87159
A119: 112 | B119: ='Tabla Amortización Fijo'!C125 -> 2031-07-04 | C119: 502403.3706 | D119: =IF(C119<=0,0,IF(C119<D118,C119,'Tabla Amortización Fijo'!AB125)) -> 6979.589431 | F119: =IF(C119<=0,0,'Tabla Amortización Fijo'!AC125) -> 3726.158179 | G119: 10705.74761 | I119: 401.9226965 | J119: =IF(P118<=0.01,0,'Tabla Amortización Fijo'!R125) -> 346.5641667 | K119: =IF(D119<=0,0,'Tabla Amortización Fijo'!W125+'Tabla Amortización Fijo'!U125) -> 201.6371026 | L119: 299 | M119: =IF(C119=0,0,'Tabla Amortización Fijo'!X125+'Tabla Amortización Fijo'!V125+'Tabla Amortización Fijo'!S125+'Tabla Amortización Fijo'!Q125) -> 135.5522031 | N119: 12090.42378 | P119: 495423.7812 | Q119: 11954.87158
A120: 113 | B120: ='Tabla Amortización Fijo'!C126 -> 2031-08-04 | C120: 495423.7812 | D120: =IF(C120<=0,0,IF(C120<D119,C120,'Tabla Amortización Fijo'!AB126)) -> 6914.458623 | F120: =IF(C120<=0,0,'Tabla Amortización Fijo'!AC126) -> 3796.87265 | G120: 10711.33127 | I120: 396.3390249 | J120: =IF(P119<=0.01,0,'Tabla Amortización Fijo'!R126) -> 346.5641667 | K120: =IF(D120<=0,0,'Tabla Amortización Fijo'!W126+'Tabla Amortización Fijo'!U126) -> 201.6371026 | L120: 299 | M120: =IF(C120=0,0,'Tabla Amortización Fijo'!X126+'Tabla Amortización Fijo'!V126+'Tabla Amortización Fijo'!S126+'Tabla Amortización Fijo'!Q126) -> 135.5522031 | N120: 12090.42377 | P120: 488509.3226 | Q120: 11954.87157
A121: 114 | B121: ='Tabla Amortización Fijo'!C127 -> 2031-09-04 | C121: 488509.3226 | D121: =IF(C121<=0,0,IF(C121<D120,C121,'Tabla Amortización Fijo'!AB127)) -> 6972.981832 | F121: =IF(C121<=0,0,'Tabla Amortización Fijo'!AC127) -> 3743.880996 | G121: 10716.86283 | I121: 390.807458 | J121: =IF(P120<=0.01,0,'Tabla Amortización Fijo'!R127) -> 346.5641667 | K121: =IF(D121<=0,0,'Tabla Amortización Fijo'!W127+'Tabla Amortización Fijo'!U127) -> 201.6371026 | L121: 299 | M121: =IF(C121=0,0,'Tabla Amortización Fijo'!X127+'Tabla Amortización Fijo'!V127+'Tabla Amortización Fijo'!S127+'Tabla Amortización Fijo'!Q127) -> 135.5522031 | N121: 12090.42376 | P121: 481536.3407 | Q121: 11954.87156
A122: 115 | B122: ='Tabla Amortización Fijo'!C128 -> 2031-10-04 | C122: 481536.3407 | D122: =IF(C122<=0,0,IF(C122<D121,C122,'Tabla Amortización Fijo'!AB128)) -> 7151.04686 | F122: =IF(C122<=0,0,'Tabla Amortización Fijo'!AC128) -> 3571.394373 | G122: 10722.44123 | I122: 385.2290726 | J122: =IF(P121<=0.01,0,'Tabla Amortización Fijo'!R128) -> 346.5641667 | K122: =IF(D122<=0,0,'Tabla Amortización Fijo'!W128+'Tabla Amortización Fijo'!U128) -> 201.6371026 | L122: 299 | M122: =IF(C122=0,0,'Tabla Amortización Fijo'!X128+'Tabla Amortización Fijo'!V128+'Tabla Amortización Fijo'!S128+'Tabla Amortización Fijo'!Q128) -> 135.5522031 | N122: 12090.42378 | P122: 474385.2939 | Q122: 11954.87158
A123: 116 | B123: ='Tabla Amortización Fijo'!C129 -> 2031-11-04 | C123: 474385.2939 | D123: =IF(C123<=0,0,IF(C123<D122,C123,'Tabla Amortización Fijo'!AB129)) -> 7092.526042 | F123: =IF(C123<=0,0,'Tabla Amortización Fijo'!AC129) -> 3635.636 | G123: 10728.16204 | I123: 379.5082351 | J123: =IF(P122<=0.01,0,'Tabla Amortización Fijo'!R129) -> 346.5641667 | K123: =IF(D123<=0,0,'Tabla Amortización Fijo'!W129+'Tabla Amortización Fijo'!U129) -> 201.6371026 | L123: 299 | M123: =IF(C123=0,0,'Tabla Amortización Fijo'!X129+'Tabla Amortización Fijo'!V129+'Tabla Amortización Fijo'!S129+'Tabla Amortización Fijo'!Q129) -> 135.5522031 | N123: 12090.42375 | P123: 467292.7678 | Q123: 11954.87155
A124: 117 | B124: ='Tabla Amortización Fijo'!C130 -> 2031-12-04 | C124: 467292.7678 | D124: =IF(C124<=0,0,IF(C124<D123,C124,'Tabla Amortización Fijo'!AB130)) -> 7268.081551 | F124: =IF(C124<=0,0,'Tabla Amortización Fijo'!AC130) -> 3465.754488 | G124: 10733.83604 | I124: 373.8342143 | J124: =IF(P123<=0.01,0,'Tabla Amortización Fijo'!R130) -> 346.5641667 | K124: =IF(D124<=0,0,'Tabla Amortización Fijo'!W130+'Tabla Amortización Fijo'!U130) -> 201.6371026 | L124: 299 | M124: =IF(C124=0,0,'Tabla Amortización Fijo'!X130+'Tabla Amortización Fijo'!V130+'Tabla Amortización Fijo'!S130+'Tabla Amortización Fijo'!Q130) -> 135.5522031 | N124: 12090.42373 | P124: 460024.6863 | Q124: 11954.87152
A125: 118 | B125: ='Tabla Amortización Fijo'!C131 -> 2032-01-04 | C125: 460024.6863 | D125: =IF(C125<=0,0,IF(C125<D124,C125,'Tabla Amortización Fijo'!AB131)) -> 7214.072629 | F125: =IF(C125<=0,0,'Tabla Amortización Fijo'!AC131) -> 3525.57788 | G125: 10739.65051 | I125: 368.019749 | J125: =IF(P124<=0.01,0,'Tabla Amortización Fijo'!R131) -> 346.5641667 | K125: =IF(D125<=0,0,'Tabla Amortización Fijo'!W131+'Tabla Amortización Fijo'!U131) -> 201.6371026 | L125: 299 | M125: =IF(C125=0,0,'Tabla Amortización Fijo'!X131+'Tabla Amortización Fijo'!V131+'Tabla Amortización Fijo'!S131+'Tabla Amortización Fijo'!Q131) -> 135.5522031 | N125: 12090.42373 | P125: 452810.6136 | Q125: 11954.87153
A126: 119 | B126: ='Tabla Amortización Fijo'!C132 -> 2032-02-04 | C126: 452810.6136 | D126: =IF(C126<=0,0,IF(C126<D125,C126,'Tabla Amortización Fijo'!AB132)) -> 7275.131738 | F126: =IF(C126<=0,0,'Tabla Amortización Fijo'!AC132) -> 3470.290049 | G126: 10745.42179 | I126: 362.2484909 | J126: =IF(P125<=0.01,0,'Tabla Amortización Fijo'!R132) -> 346.5641667 | K126: =IF(D126<=0,0,'Tabla Amortización Fijo'!W132+'Tabla Amortización Fijo'!U132) -> 201.6371026 | L126: 299 | M126: =IF(C126=0,0,'Tabla Amortización Fijo'!X132+'Tabla Amortización Fijo'!V132+'Tabla Amortización Fijo'!S132+'Tabla Amortización Fijo'!Q132) -> 135.5522031 | N126: 12090.42375 | P126: 445535.4819 | Q126: 11954.87155
A127: 120 | B127: ='Tabla Amortización Fijo'!C133 -> 2032-03-04 | C127: 445535.4819 | D127: =IF(C127<=0,0,IF(C127<D126,C127,'Tabla Amortización Fijo'!AB133)) -> 7557.000189 | F127: =IF(C127<=0,0,'Tabla Amortización Fijo'!AC133) -> 3194.241729 | G127: 10751.24192 | I127: 356.4283855 | J127: =IF(P126<=0.01,0,'Tabla Amortización Fijo'!R133) -> 346.5641667 | K127: =IF(D127<=0,0,'Tabla Amortización Fijo'!W133+'Tabla Amortización Fijo'!U133) -> 201.6371026 | L127: 299 | M127: =IF(C127=0,0,'Tabla Amortización Fijo'!X133+'Tabla Amortización Fijo'!V133+'Tabla Amortización Fijo'!S133+'Tabla Amortización Fijo'!Q133) -> 135.5522031 | N127: 12090.42377 | P127: 437978.4817 | Q127: 11954.87157
A128: 121 | B128: ='Tabla Amortización Fijo'!C134 -> 2032-04-04 | C128: 437978.4817 | D128: =IF(C128<=0,0,IF(C128<D127,C128,'Tabla Amortización Fijo'!AB134)) -> 7400.669255 | F128: =IF(C128<=0,0,'Tabla Amortización Fijo'!AC134) -> 3356.618253 | G128: 10757.28751 | I128: 350.3827854 | J128: =IF(P127<=0.01,0,'Tabla Amortización Fijo'!R134) -> 346.5641667 | K128: =IF(D128<=0,0,'Tabla Amortización Fijo'!W134+'Tabla Amortización Fijo'!U134) -> 201.6371026 | L128: 299 | M128: =IF(C128=0,0,'Tabla Amortización Fijo'!X134+'Tabla Amortización Fijo'!V134+'Tabla Amortización Fijo'!S134+'Tabla Amortización Fijo'!Q134) -> 135.5522031 | N128: 12090.42377 | P128: 430577.8125 | Q128: 11954.87156
A129: 122 | B129: ='Tabla Amortización Fijo'!C135 -> 2032-05-04 | C129: 430577.8125 | D129: =IF(C129<=0,0,IF(C129<D128,C129,'Tabla Amortización Fijo'!AB135)) -> 7569.756101 | F129: =IF(C129<=0,0,'Tabla Amortización Fijo'!AC135) -> 3193.451942 | G129: 10763.20804 | I129: 344.46225 | J129: =IF(P128<=0.01,0,'Tabla Amortización Fijo'!R135) -> 346.5641667 | K129: =IF(D129<=0,0,'Tabla Amortización Fijo'!W135+'Tabla Amortización Fijo'!U135) -> 201.6371026 | L129: 299 | M129: =IF(C129=0,0,'Tabla Amortización Fijo'!X135+'Tabla Amortización Fijo'!V135+'Tabla Amortización Fijo'!S135+'Tabla Amortización Fijo'!Q135) -> 135.5522031 | N129: 12090.42377 | P129: 423008.0564 | Q129: 11954.87156
A130: 123 | B130: ='Tabla Amortización Fijo'!C136 -> 2032-06-04 | C130: 423008.0564 | D130: =IF(C130<=0,0,IF(C130<D129,C130,'Tabla Amortización Fijo'!AB136)) -> 7527.377272 | F130: =IF(C130<=0,0,'Tabla Amortización Fijo'!AC136) -> 3241.886541 | G130: 10769.26381 | I130: 338.4064451 | J130: =IF(P129<=0.01,0,'Tabla Amortización Fijo'!R136) -> 346.5641667 | K130: =IF(D130<=0,0,'Tabla Amortización Fijo'!W136+'Tabla Amortización Fijo'!U136) -> 201.6371026 | L130: 299 | M130: =IF(C130=0,0,'Tabla Amortización Fijo'!X136+'Tabla Amortización Fijo'!V136+'Tabla Amortización Fijo'!S136+'Tabla Amortización Fijo'!Q136) -> 135.5522031 | N130: 12090.42373 | P130: 415480.6791 | Q130: 11954.87153
A131: 124 | B131: ='Tabla Amortización Fijo'!C137 -> 2032-07-04 | C131: 415480.6791 | D131: =IF(C131<=0,0,IF(C131<D130,C131,'Tabla Amortización Fijo'!AB137)) -> 7693.804213 | F131: =IF(C131<=0,0,'Tabla Amortización Fijo'!AC137) -> 3081.481488 | G131: 10775.2857 | I131: 332.3845433 | J131: =IF(P130<=0.01,0,'Tabla Amortización Fijo'!R137) -> 346.5641667 | K131: =IF(D131<=0,0,'Tabla Amortización Fijo'!W137+'Tabla Amortización Fijo'!U137) -> 201.6371026 | L131: 299 | M131: =IF(C131=0,0,'Tabla Amortización Fijo'!X137+'Tabla Amortización Fijo'!V137+'Tabla Amortización Fijo'!S137+'Tabla Amortización Fijo'!Q137) -> 135.5522031 | N131: 12090.42372 | P131: 407786.8749 | Q131: 11954.87151
A132: 125 | B132: ='Tabla Amortización Fijo'!C138 -> 2032-08-04 | C132: 407786.8749 | D132: =IF(C132<=0,0,IF(C132<D131,C132,'Tabla Amortización Fijo'!AB138)) -> 7656.20766 | F132: =IF(C132<=0,0,'Tabla Amortización Fijo'!AC138) -> 3125.233109 | G132: 10781.44077 | I132: 326.2294999 | J132: =IF(P131<=0.01,0,'Tabla Amortización Fijo'!R138) -> 346.5641667 | K132: =IF(D132<=0,0,'Tabla Amortización Fijo'!W138+'Tabla Amortización Fijo'!U138) -> 201.6371026 | L132: 299 | M132: =IF(C132=0,0,'Tabla Amortización Fijo'!X138+'Tabla Amortización Fijo'!V138+'Tabla Amortización Fijo'!S138+'Tabla Amortización Fijo'!Q138) -> 135.5522031 | N132: 12090.42374 | P132: 400130.6672 | Q132: 11954.87154
A133: 126 | B133: ='Tabla Amortización Fijo'!C139 -> 2032-09-04 | C133: 400130.6672 | D133: =IF(C133<=0,0,IF(C133<D132,C133,'Tabla Amortización Fijo'!AB139)) -> 7721.008951 | F133: =IF(C133<=0,0,'Tabla Amortización Fijo'!AC139) -> 3066.556766 | G133: 10787.56572 | I133: 320.1045338 | J133: =IF(P132<=0.01,0,'Tabla Amortización Fijo'!R139) -> 346.5641667 | K133: =IF(D133<=0,0,'Tabla Amortización Fijo'!W139+'Tabla Amortización Fijo'!U139) -> 201.6371026 | L133: 299 | M133: =IF(C133=0,0,'Tabla Amortización Fijo'!X139+'Tabla Amortización Fijo'!V139+'Tabla Amortización Fijo'!S139+'Tabla Amortización Fijo'!Q139) -> 135.5522031 | N133: 12090.42372 | P133: 392409.6583 | Q133: 11954.87152
A134: 127 | B134: ='Tabla Amortización Fijo'!C140 -> 2032-10-04 | C134: 392409.6583 | D134: =IF(C134<=0,0,IF(C134<D133,C134,'Tabla Amortización Fijo'!AB140)) -> 7883.371101 | F134: =IF(C134<=0,0,'Tabla Amortización Fijo'!AC140) -> 2910.371423 | G134: 10793.74252 | I134: 313.9277266 | J134: =IF(P133<=0.01,0,'Tabla Amortización Fijo'!R140) -> 346.5641667 | K134: =IF(D134<=0,0,'Tabla Amortización Fijo'!W140+'Tabla Amortización Fijo'!U140) -> 201.6371026 | L134: 299 | M134: =IF(C134=0,0,'Tabla Amortización Fijo'!X140+'Tabla Amortización Fijo'!V140+'Tabla Amortización Fijo'!S140+'Tabla Amortización Fijo'!Q140) -> 135.5522031 | N134: 12090.42372 | P134: 384526.2872 | Q134: 11954.87152
A135: 128 | B135: ='Tabla Amortización Fijo'!C141 -> 2032-11-04 | C135: 384526.2872 | D135: =IF(C135<=0,0,IF(C135<D134,C135,'Tabla Amortización Fijo'!AB141)) -> 7853.08269 | F135: =IF(C135<=0,0,'Tabla Amortización Fijo'!AC141) -> 2946.966532 | G135: 10800.04922 | I135: 307.6210297 | J135: =IF(P134<=0.01,0,'Tabla Amortización Fijo'!R141) -> 346.5641667 | K135: =IF(D135<=0,0,'Tabla Amortización Fijo'!W141+'Tabla Amortización Fijo'!U141) -> 201.6371026 | L135: 299 | M135: =IF(C135=0,0,'Tabla Amortización Fijo'!X141+'Tabla Amortización Fijo'!V141+'Tabla Amortización Fijo'!S141+'Tabla Amortización Fijo'!Q141) -> 135.5522031 | N135: 12090.42372 | P135: 376673.2045 | Q135: 11954.87152
A136: 129 | B136: ='Tabla Amortización Fijo'!C142 -> 2032-12-04 | C136: 376673.2045 | D136: =IF(C136<=0,0,IF(C136<D135,C136,'Tabla Amortización Fijo'!AB142)) -> 8012.672296 | F136: =IF(C136<=0,0,'Tabla Amortización Fijo'!AC142) -> 2793.659418 | G136: =D136+F136 -> 10806.33171 | I136: 301.3385636 | J136: =IF(P135<=0.01,0,'Tabla Amortización Fijo'!R142) -> 346.5641667 | K136: =IF(D136<=0,0,'Tabla Amortización Fijo'!W142+'Tabla Amortización Fijo'!U142) -> 201.6371026 | L136: 299 | M136: =IF(C136=0,0,'Tabla Amortización Fijo'!X142+'Tabla Amortización Fijo'!V142+'Tabla Amortización Fijo'!S142+'Tabla Amortización Fijo'!Q142) -> 135.5522031 | N136: 12090.42375 | P136: =C136-D136-E136-H136 -> 368660.5322 | Q136: 11954.87155
A137: 130 | B137: ='Tabla Amortización Fijo'!C143 -> 2033-01-04 | C137: 368660.5322 | D137: =IF(C137<=0,0,IF(C137<D136,C137,'Tabla Amortización Fijo'!AB143)) -> 7987.368678 | F137: =IF(C137<=0,0,'Tabla Amortización Fijo'!AC143) -> 2825.373186 | G137: 10812.74186 | I137: =IF(C137<=0,0,(C137*0.8/1000)) -> 294.9284257 | J137: =IF(P136<=0.01,0,'Tabla Amortización Fijo'!R143) -> 346.5641667 | K137: =IF(D137<=0,0,'Tabla Amortización Fijo'!W143+'Tabla Amortización Fijo'!U143) -> 201.6371026 | L137: =IF(C137<=0,,299) -> 299 | M137: =IF(C137=0,0,'Tabla Amortización Fijo'!X143+'Tabla Amortización Fijo'!V143+'Tabla Amortización Fijo'!S143+'Tabla Amortización Fijo'!Q143) -> 135.5522031 | N137: 12090.42376 | P137: 360673.1635 | Q137: 11954.87156
A138: 131 | B138: ='Tabla Amortización Fijo'!C144 -> 2033-02-04 | C138: 360673.1635 | D138: =IF(C138<=0,0,IF(C138<D137,C138,'Tabla Amortización Fijo'!AB144)) -> 8054.972879 | F138: =IF(C138<=0,0,'Tabla Amortización Fijo'!AC144) -> 2764.15887 | G138: 10819.13175 | I138: 288.5385308 | J138: =IF(P137<=0.01,0,'Tabla Amortización Fijo'!R144) -> 346.5641667 | K138: =IF(D138<=0,0,'Tabla Amortización Fijo'!W144+'Tabla Amortización Fijo'!U144) -> 201.6371026 | L138: 299 | M138: =IF(C138=0,0,'Tabla Amortización Fijo'!X144+'Tabla Amortización Fijo'!V144+'Tabla Amortización Fijo'!S144+'Tabla Amortización Fijo'!Q144) -> 135.5522031 | N138: 12090.42375 | P138: 352618.1906 | Q138: =N138-M138+H138+E138 -> 11954.87155
A139: 132 | B139: ='Tabla Amortización Fijo'!C145 -> 2033-03-04 | C139: =IF(P138<=0.01,0,P138) -> 352618.1906 | D139: =IF(C139<=0,0,IF(C139<D138,C139,'Tabla Amortización Fijo'!AB145)) -> 8384.674432 | F139: =IF(C139<=0,0,'Tabla Amortización Fijo'!AC145) -> 2440.901332 | G139: 10825.57576 | I139: 282.0945525 | J139: =IF(P138<=0.01,0,'Tabla Amortización Fijo'!R145) -> 346.5641667 | K139: =IF(D139<=0,0,'Tabla Amortización Fijo'!W145+'Tabla Amortización Fijo'!U145) -> 201.6371026 | L139: 299 | M139: =IF(C139=0,0,'Tabla Amortización Fijo'!X145+'Tabla Amortización Fijo'!V145+'Tabla Amortización Fijo'!S145+'Tabla Amortización Fijo'!Q145) -> 135.5522031 | N139: 12090.42379 | P139: 344233.5162 | Q139: 11954.87159
A140: 133 | B140: ='Tabla Amortización Fijo'!C146 -> 2033-04-04 | C140: 344233.5162 | D140: =IF(C140<=0,0,IF(C140<D139,C140,'Tabla Amortización Fijo'!AB146)) -> 8194.116227 | F140: =IF(C140<=0,0,'Tabla Amortización Fijo'!AC146) -> 2638.167296 | G140: 10832.28352 | I140: 275.386813 | J140: =IF(P139<=0.01,0,'Tabla Amortización Fijo'!R146) -> 346.5641667 | K140: =IF(D140<=0,0,'Tabla Amortización Fijo'!W146+'Tabla Amortización Fijo'!U146) -> 201.6371026 | L140: 299 | M140: =IF(C140=0,0,'Tabla Amortización Fijo'!X146+'Tabla Amortización Fijo'!V146+'Tabla Amortización Fijo'!S146+'Tabla Amortización Fijo'!Q146) -> 135.5522031 | N140: =G140+K140+J140+L140+M140+I140 -> 12090.42381 | P140: 336039.4 | Q140: 11954.8716
A141: 134 | B141: ='Tabla Amortización Fijo'!C147 -> 2033-05-04 | C141: 336039.4 | D141: =IF(C141<=0,0,IF(C141<D140,C141,'Tabla Amortización Fijo'!AB147)) -> 8346.546723 | F141: =IF(C141<=0,0,'Tabla Amortización Fijo'!AC147) -> 2492.292068 | G141: 10838.83879 | I141: 268.83152 | J141: =IF(P140<=0.01,0,'Tabla Amortización Fijo'!R147) -> 346.5641667 | K141: =IF(D141<=0,0,'Tabla Amortización Fijo'!W147+'Tabla Amortización Fijo'!U147) -> 201.6371026 | L141: 299 | M141: =IF(C141=0,0,'Tabla Amortización Fijo'!X147+'Tabla Amortización Fijo'!V147+'Tabla Amortización Fijo'!S147+'Tabla Amortización Fijo'!Q147) -> 135.5522031 | N141: 12090.42378 | P141: 327692.8532 | Q141: 11954.87158
A142: 135 | B142: ='Tabla Amortización Fijo'!C148 -> 2033-06-04 | C142: 327692.8532 | D142: =IF(C142<=0,0,IF(C142<D141,C142,'Tabla Amortización Fijo'!AB148)) -> 8334.11456 | F142: =IF(C142<=0,0,'Tabla Amortización Fijo'!AC148) -> 2511.401439 | G142: 10845.516 | I142: 262.1542826 | J142: =IF(P141<=0.01,0,'Tabla Amortización Fijo'!R148) -> 346.5641667 | K142: =IF(D142<=0,0,'Tabla Amortización Fijo'!W148+'Tabla Amortización Fijo'!U148) -> 201.6371026 | L142: 299 | M142: =IF(C142=0,0,'Tabla Amortización Fijo'!X148+'Tabla Amortización Fijo'!V148+'Tabla Amortización Fijo'!S148+'Tabla Amortización Fijo'!Q148) -> 135.5522031 | N142: 12090.42375 | P142: 319358.7387 | Q142: 11954.87155
A143: 136 | B143: ='Tabla Amortización Fijo'!C149 -> 2033-07-04 | C143: 319358.7387 | D143: =IF(C143<=0,0,IF(C143<D142,C143,'Tabla Amortización Fijo'!AB149)) -> 8483.606157 | F143: =IF(C143<=0,0,'Tabla Amortización Fijo'!AC149) -> 2368.577173 | G143: 10852.18333 | I143: 255.4869909 | J143: =IF(P142<=0.01,0,'Tabla Amortización Fijo'!R149) -> 346.5641667 | K143: =IF(D143<=0,0,'Tabla Amortización Fijo'!W149+'Tabla Amortización Fijo'!U149) -> 201.6371026 | L143: 299 | M143: =IF(C143=0,0,'Tabla Amortización Fijo'!X149+'Tabla Amortización Fijo'!V149+'Tabla Amortización Fijo'!S149+'Tabla Amortización Fijo'!Q149) -> 135.5522031 | N143: 12090.42379 | P143: 310875.1325 | Q143: 11954.87159
A144: 137 | B144: ='Tabla Amortización Fijo'!C150 -> 2033-08-04 | C144: 310875.1325 | D144: =IF(C144<=0,0,IF(C144<D143,C144,'Tabla Amortización Fijo'!AB150)) -> 8476.45788 | F144: =IF(C144<=0,0,'Tabla Amortización Fijo'!AC150) -> 2382.512301 | G144: 10858.97018 | I144: 248.700106 | J144: =IF(P143<=0.01,0,'Tabla Amortización Fijo'!R150) -> 346.5641667 | K144: =IF(D144<=0,0,'Tabla Amortización Fijo'!W150+'Tabla Amortización Fijo'!U150) -> 201.6371026 | L144: 299 | M144: =IF(C144=0,0,'Tabla Amortización Fijo'!X150+'Tabla Amortización Fijo'!V150+'Tabla Amortización Fijo'!S150+'Tabla Amortización Fijo'!Q150) -> 135.5522031 | N144: 12090.42376 | P144: 302398.6746 | Q144: 11954.87156
A145: 138 | B145: ='Tabla Amortización Fijo'!C151 -> 2033-09-04 | C145: 302398.6746 | D145: =IF(C145<=0,0,IF(C145<D144,C145,'Tabla Amortización Fijo'!AB151)) -> 8548.201677 | F145: =IF(C145<=0,0,'Tabla Amortización Fijo'!AC151) -> 2317.549654 | G145: 10865.75133 | I145: 241.9189397 | J145: =IF(P144<=0.01,0,'Tabla Amortización Fijo'!R151) -> 346.5641667 | K145: =IF(D145<=0,0,'Tabla Amortización Fijo'!W151+'Tabla Amortización Fijo'!U151) -> 201.6371026 | L145: 299 | M145: =IF(C145=0,0,'Tabla Amortización Fijo'!X151+'Tabla Amortización Fijo'!V151+'Tabla Amortización Fijo'!S151+'Tabla Amortización Fijo'!Q151) -> 135.5522031 | N145: 12090.42374 | P145: 293850.473 | Q145: 11954.87154
A146: 139 | B146: ='Tabla Amortización Fijo'!C152 -> 2033-10-04 | C146: 293850.473 | D146: =IF(C146<=0,0,IF(C146<D145,C146,'Tabla Amortización Fijo'!AB152)) -> 8693.199074 | F146: =IF(C146<=0,0,'Tabla Amortización Fijo'!AC152) -> 2179.390838 | G146: 10872.58991 | I146: 235.0803784 | J146: =IF(P145<=0.01,0,'Tabla Amortización Fijo'!R152) -> 346.5641667 | K146: =IF(D146<=0,0,'Tabla Amortización Fijo'!W152+'Tabla Amortización Fijo'!U152) -> 201.6371026 | L146: 299 | M146: =IF(C146=0,0,'Tabla Amortización Fijo'!X152+'Tabla Amortización Fijo'!V152+'Tabla Amortización Fijo'!S152+'Tabla Amortización Fijo'!Q152) -> 135.5522031 | N146: 12090.42376 | P146: 285157.2739 | Q146: 11954.87156
A147: 140 | B147: ='Tabla Amortización Fijo'!C153 -> 2033-11-04 | C147: 285157.2739 | D147: =IF(C147<=0,0,IF(C147<D146,C147,'Tabla Amortización Fijo'!AB153)) -> 8694.130978 | F147: =IF(C147<=0,0,'Tabla Amortización Fijo'!AC153) -> 2185.41348 | G147: 10879.54446 | I147: 228.1258191 | J147: =IF(P146<=0.01,0,'Tabla Amortización Fijo'!R153) -> 346.5641667 | K147: =IF(D147<=0,0,'Tabla Amortización Fijo'!W153+'Tabla Amortización Fijo'!U153) -> 201.6371026 | L147: 299 | M147: =IF(C147=0,0,'Tabla Amortización Fijo'!X153+'Tabla Amortización Fijo'!V153+'Tabla Amortización Fijo'!S153+'Tabla Amortización Fijo'!Q153) -> 135.5522031 | N147: 12090.42375 | P147: 276463.1429 | Q147: 11954.87155
A148: 141 | B148: ='Tabla Amortización Fijo'!C154 -> 2033-12-04 | C148: 276463.1429 | D148: =IF(C148<=0,0,IF(C148<D147,C148,'Tabla Amortización Fijo'!AB154)) -> 8836.064969 | F148: =IF(C148<=0,0,'Tabla Amortización Fijo'!AC154) -> 2050.434807 | G148: 10886.49978 | I148: 221.1705143 | J148: =IF(P147<=0.01,0,'Tabla Amortización Fijo'!R154) -> 346.5641667 | K148: =IF(D148<=0,0,'Tabla Amortización Fijo'!W154+'Tabla Amortización Fijo'!U154) -> 201.6371026 | L148: 299 | M148: =IF(C148=0,0,'Tabla Amortización Fijo'!X154+'Tabla Amortización Fijo'!V154+'Tabla Amortización Fijo'!S154+'Tabla Amortización Fijo'!Q154) -> 135.5522031 | N148: 12090.42376 | P148: 267627.0779 | Q148: 11954.87156
A149: 142 | B149: ='Tabla Amortización Fijo'!C155 -> 2034-01-04 | C149: 267627.0779 | D149: =IF(C149<=0,0,IF(C149<D148,C149,'Tabla Amortización Fijo'!AB155)) -> 8842.504608 | F149: =IF(C149<=0,0,'Tabla Amortización Fijo'!AC155) -> 2051.064052 | G149: 10893.56866 | I149: 214.1016624 | J149: =IF(P148<=0.01,0,'Tabla Amortización Fijo'!R155) -> 346.5641667 | K149: =IF(D149<=0,0,'Tabla Amortización Fijo'!W155+'Tabla Amortización Fijo'!U155) -> 201.6371026 | L149: 299 | M149: =IF(C149=0,0,'Tabla Amortización Fijo'!X155+'Tabla Amortización Fijo'!V155+'Tabla Amortización Fijo'!S155+'Tabla Amortización Fijo'!Q155) -> 135.5522031 | N149: 12090.42379 | P149: 258784.5733 | Q149: 11954.87159
A150: 143 | B150: ='Tabla Amortización Fijo'!C156 -> 2034-02-04 | C150: 258784.5733 | D150: =IF(C150<=0,0,IF(C150<D149,C150,'Tabla Amortización Fijo'!AB156)) -> 8917.346585 | F150: =IF(C150<=0,0,'Tabla Amortización Fijo'!AC156) -> 1983.296114 | G150: 10900.6427 | I150: 207.0276587 | J150: =IF(P149<=0.01,0,'Tabla Amortización Fijo'!R156) -> 346.5641667 | K150: =IF(D150<=0,0,'Tabla Amortización Fijo'!W156+'Tabla Amortización Fijo'!U156) -> 201.6371026 | L150: 299 | M150: =IF(C150=0,0,'Tabla Amortización Fijo'!X156+'Tabla Amortización Fijo'!V156+'Tabla Amortización Fijo'!S156+'Tabla Amortización Fijo'!Q156) -> 135.5522031 | N150: 12090.42383 | P150: 249867.2268 | Q150: 11954.87163
A151: 144 | B151: ='Tabla Amortización Fijo'!C157 -> 2034-03-04 | C151: 249867.2268 | D151: =IF(C151<=0,0,IF(C151<D150,C151,'Tabla Amortización Fijo'!AB157)) -> 9178.140209 | F151: =IF(C151<=0,0,'Tabla Amortización Fijo'!AC157) -> 1729.636354 | G151: 10907.77656 | I151: 199.8937814 | J151: =IF(P150<=0.01,0,'Tabla Amortización Fijo'!R157) -> 346.5641667 | K151: =IF(D151<=0,0,'Tabla Amortización Fijo'!W157+'Tabla Amortización Fijo'!U157) -> 201.6371026 | L151: 299 | M151: =IF(C151=0,0,'Tabla Amortización Fijo'!X157+'Tabla Amortización Fijo'!V157+'Tabla Amortización Fijo'!S157+'Tabla Amortización Fijo'!Q157) -> 135.5522031 | N151: 12090.42382 | P151: 240689.0865 | Q151: 11954.87161
A152: 145 | B152: ='Tabla Amortización Fijo'!C158 -> 2034-04-04 | C152: 240689.0865 | D152: =IF(C152<=0,0,IF(C152<D151,C152,'Tabla Amortización Fijo'!AB158)) -> 9070.504774 | F152: =IF(C152<=0,0,'Tabla Amortización Fijo'!AC158) -> 1844.614289 | G152: 10915.11906 | I152: 192.5512692 | J152: =IF(P151<=0.01,0,'Tabla Amortización Fijo'!R158) -> 346.5641667 | K152: =IF(D152<=0,0,'Tabla Amortización Fijo'!W158+'Tabla Amortización Fijo'!U158) -> 201.6371026 | L152: 299 | M152: =IF(C152=0,0,'Tabla Amortización Fijo'!X158+'Tabla Amortización Fijo'!V158+'Tabla Amortización Fijo'!S158+'Tabla Amortización Fijo'!Q158) -> 135.5522031 | N152: 12090.42381 | P152: 231618.5818 | Q152: 11954.8716
A153: 146 | B153: ='Tabla Amortización Fijo'!C159 -> 2034-05-04 | C153: 231618.5818 | D153: =IF(C153<=0,0,IF(C153<D152,C153,'Tabla Amortización Fijo'!AB159)) -> 9204.537779 | F153: =IF(C153<=0,0,'Tabla Amortización Fijo'!AC159) -> 1717.837728 | G153: 10922.37551 | I153: 185.2948654 | J153: =IF(P152<=0.01,0,'Tabla Amortización Fijo'!R159) -> 346.5641667 | K153: =IF(D153<=0,0,'Tabla Amortización Fijo'!W159+'Tabla Amortización Fijo'!U159) -> 201.6371026 | L153: 299 | M153: =IF(C153=0,0,'Tabla Amortización Fijo'!X159+'Tabla Amortización Fijo'!V159+'Tabla Amortización Fijo'!S159+'Tabla Amortización Fijo'!Q159) -> 135.5522031 | N153: 12090.42384 | P153: 222414.044 | Q153: 11954.87164
A154: 147 | B154: ='Tabla Amortización Fijo'!C160 -> 2034-06-04 | C154: 222414.044 | D154: =IF(C154<=0,0,IF(C154<D153,C154,'Tabla Amortización Fijo'!AB160)) -> 9225.182704 | F154: =IF(C154<=0,0,'Tabla Amortización Fijo'!AC160) -> 1704.556413 | G154: 10929.73912 | I154: 177.9312352 | J154: =IF(P153<=0.01,0,'Tabla Amortización Fijo'!R160) -> 346.5641667 | K154: =IF(D154<=0,0,'Tabla Amortización Fijo'!W160+'Tabla Amortización Fijo'!U160) -> 201.6371026 | L154: 299 | M154: =IF(C154=0,0,'Tabla Amortización Fijo'!X160+'Tabla Amortización Fijo'!V160+'Tabla Amortización Fijo'!S160+'Tabla Amortización Fijo'!Q160) -> 135.5522031 | N154: 12090.42382 | P154: 213188.8613 | Q154: 11954.87162
A155: 148 | B155: ='Tabla Amortización Fijo'!C161 -> 2034-07-04 | C155: 213188.8613 | D155: =IF(C155<=0,0,IF(C155<D154,C155,'Tabla Amortización Fijo'!AB161)) -> 9355.968649 | F155: =IF(C155<=0,0,'Tabla Amortización Fijo'!AC161) -> 1581.150638 | G155: 10937.11929 | I155: 170.551089 | J155: =IF(P154<=0.01,0,'Tabla Amortización Fijo'!R161) -> 346.5641667 | K155: =IF(D155<=0,0,'Tabla Amortización Fijo'!W161+'Tabla Amortización Fijo'!U161) -> 201.6371026 | L155: 299 | M155: =IF(C155=0,0,'Tabla Amortización Fijo'!X161+'Tabla Amortización Fijo'!V161+'Tabla Amortización Fijo'!S161+'Tabla Amortización Fijo'!Q161) -> 135.5522031 | N155: 12090.42385 | P155: 203832.8926 | Q155: 11954.87165
A156: 149 | B156: ='Tabla Amortización Fijo'!C162 -> 2034-08-04 | C156: 203832.8926 | D156: =IF(C156<=0,0,IF(C156<D155,C156,'Tabla Amortización Fijo'!AB162)) -> 9382.451505 | F156: =IF(C156<=0,0,'Tabla Amortización Fijo'!AC162) -> 1562.152544 | G156: 10944.60405 | I156: 163.0663141 | J156: =IF(P155<=0.01,0,'Tabla Amortización Fijo'!R162) -> 346.5641667 | K156: =IF(D156<=0,0,'Tabla Amortización Fijo'!W162+'Tabla Amortización Fijo'!U162) -> 201.6371026 | L156: 299 | M156: =IF(C156=0,0,'Tabla Amortización Fijo'!X162+'Tabla Amortización Fijo'!V162+'Tabla Amortización Fijo'!S162+'Tabla Amortización Fijo'!Q162) -> 135.5522031 | N156: 12090.42384 | P156: 194450.4411 | Q156: 11954.87163
A157: 150 | B157: ='Tabla Amortización Fijo'!C163 -> 2034-09-04 | C157: 194450.4411 | D157: =IF(C157<=0,0,IF(C157<D156,C157,'Tabla Amortización Fijo'!AB163)) -> 9461.863532 | F157: =IF(C157<=0,0,'Tabla Amortización Fijo'!AC163) -> 1490.24649 | G157: 10952.11002 | I157: 155.5603529 | J157: =IF(P156<=0.01,0,'Tabla Amortización Fijo'!R163) -> 346.5641667 | K157: =IF(D157<=0,0,'Tabla Amortización Fijo'!W163+'Tabla Amortización Fijo'!U163) -> 201.6371026 | L157: 299 | M157: =IF(C157=0,0,'Tabla Amortización Fijo'!X163+'Tabla Amortización Fijo'!V163+'Tabla Amortización Fijo'!S163+'Tabla Amortización Fijo'!Q163) -> 135.5522031 | N157: 12090.42385 | P157: 184988.5776 | Q157: 11954.87164
A158: 151 | B158: ='Tabla Amortización Fijo'!C164 -> 2034-10-04 | C158: 184988.5776 | D158: =IF(C158<=0,0,IF(C158<D157,C158,'Tabla Amortización Fijo'!AB164)) -> 9587.68098 | F158: =IF(C158<=0,0,'Tabla Amortización Fijo'!AC164) -> 1371.998561 | G158: 10959.67954 | I158: 147.9908621 | J158: =IF(P157<=0.01,0,'Tabla Amortización Fijo'!R164) -> 346.5641667 | K158: =IF(D158<=0,0,'Tabla Amortización Fijo'!W164+'Tabla Amortización Fijo'!U164) -> 201.6371026 | L158: 299 | M158: =IF(C158=0,0,'Tabla Amortización Fijo'!X164+'Tabla Amortización Fijo'!V164+'Tabla Amortización Fijo'!S164+'Tabla Amortización Fijo'!Q164) -> 135.5522031 | N158: 12090.42388 | P158: 175400.8966 | Q158: 11954.87167
A159: 152 | B159: ='Tabla Amortización Fijo'!C165 -> 2034-11-04 | C159: 175400.8966 | D159: =IF(C159<=0,0,IF(C159<D158,C159,'Tabla Amortización Fijo'!AB165)) -> 9623.09676 | F159: =IF(C159<=0,0,'Tabla Amortización Fijo'!AC165) -> 1344.252932 | G159: 10967.34969 | I159: 140.3207173 | J159: =IF(P158<=0.01,0,'Tabla Amortización Fijo'!R165) -> 346.5641667 | K159: =IF(D159<=0,0,'Tabla Amortización Fijo'!W165+'Tabla Amortización Fijo'!U165) -> 201.6371026 | L159: 299 | M159: =IF(C159=0,0,'Tabla Amortización Fijo'!X165+'Tabla Amortización Fijo'!V165+'Tabla Amortización Fijo'!S165+'Tabla Amortización Fijo'!Q165) -> 135.5522031 | N159: 12090.42388 | P159: 165777.7999 | Q159: 11954.87168
A160: 153 | B160: ='Tabla Amortización Fijo'!C166 -> 2034-12-04 | C160: 165777.7999 | D160: =IF(C160<=0,0,IF(C160<D159,C160,'Tabla Amortización Fijo'!AB166)) -> 9745.529538 | F160: =IF(C160<=0,0,'Tabla Amortización Fijo'!AC166) -> 1229.518609 | G160: 10975.04815 | I160: 132.6222399 | J160: =IF(P159<=0.01,0,'Tabla Amortización Fijo'!R166) -> 346.5641667 | K160: =IF(D160<=0,0,'Tabla Amortización Fijo'!W166+'Tabla Amortización Fijo'!U166) -> 201.6371026 | L160: 299 | M160: =IF(C160=0,0,'Tabla Amortización Fijo'!X166+'Tabla Amortización Fijo'!V166+'Tabla Amortización Fijo'!S166+'Tabla Amortización Fijo'!Q166) -> 135.5522031 | N160: 12090.42386 | P160: 156032.2703 | Q160: 11954.87166
A161: 154 | B161: ='Tabla Amortización Fijo'!C167 -> 2035-01-04 | C161: 156032.2703 | D161: =IF(C161<=0,0,IF(C161<D160,C161,'Tabla Amortización Fijo'!AB167)) -> 9787.030661 | F161: =IF(C161<=0,0,'Tabla Amortización Fijo'!AC167) -> 1195.813904 | G161: 10982.84456 | I161: 124.8258163 | J161: =IF(P160<=0.01,0,'Tabla Amortización Fijo'!R167) -> 346.5641667 | K161: =IF(D161<=0,0,'Tabla Amortización Fijo'!W167+'Tabla Amortización Fijo'!U167) -> 201.6371026 | L161: 299 | M161: =IF(C161=0,0,'Tabla Amortización Fijo'!X167+'Tabla Amortización Fijo'!V167+'Tabla Amortización Fijo'!S167+'Tabla Amortización Fijo'!Q167) -> 135.5522031 | N161: 12090.42385 | P161: 146245.2397 | Q161: 11954.87165
A162: 155 | B162: ='Tabla Amortización Fijo'!C168 -> 2035-02-04 | C162: 146245.2397 | D162: =IF(C162<=0,0,IF(C162<D161,C162,'Tabla Amortización Fijo'!AB168)) -> 9869.867001 | F162: =IF(C162<=0,0,'Tabla Amortización Fijo'!AC168) -> 1120.807193 | G162: 10990.67419 | I162: 116.9961917 | J162: =IF(P161<=0.01,0,'Tabla Amortización Fijo'!R168) -> 346.5641667 | K162: =IF(D162<=0,0,'Tabla Amortización Fijo'!W168+'Tabla Amortización Fijo'!U168) -> 201.6371026 | L162: 299 | M162: =IF(C162=0,0,'Tabla Amortización Fijo'!X168+'Tabla Amortización Fijo'!V168+'Tabla Amortización Fijo'!S168+'Tabla Amortización Fijo'!Q168) -> 135.5522031 | N162: 12090.42386 | P162: 136375.3727 | Q162: 11954.87165
A163: 156 | B163: ='Tabla Amortización Fijo'!C169 -> 2035-03-04 | C163: 136375.3727 | D163: =IF(C163<=0,0,IF(C163<D162,C163,'Tabla Amortización Fijo'!AB169)) -> 10054.54953 | F163: =IF(C163<=0,0,'Tabla Amortización Fijo'!AC169) -> 944.0205476 | G163: 10998.57007 | I163: 109.1002981 | J163: =IF(P162<=0.01,0,'Tabla Amortización Fijo'!R169) -> 346.5641667 | K163: =IF(D163<=0,0,'Tabla Amortización Fijo'!W169+'Tabla Amortización Fijo'!U169) -> 201.6371026 | L163: 299 | M163: =IF(C163=0,0,'Tabla Amortización Fijo'!X169+'Tabla Amortización Fijo'!V169+'Tabla Amortización Fijo'!S169+'Tabla Amortización Fijo'!Q169) -> 135.5522031 | N163: 12090.42384 | P163: 126320.8231 | Q163: 11954.87164
A164: 157 | B164: ='Tabla Amortización Fijo'!C170 -> 2035-04-04 | C164: 126320.8231 | D164: =IF(C164<=0,0,IF(C164<D163,C164,'Tabla Amortización Fijo'!AB170)) -> 10038.50505 | F164: =IF(C164<=0,0,'Tabla Amortización Fijo'!AC170) -> 968.1086522 | G164: 11006.6137 | I164: 101.0566585 | J164: =IF(P163<=0.01,0,'Tabla Amortización Fijo'!R170) -> 346.5641667 | K164: =IF(D164<=0,0,'Tabla Amortización Fijo'!W170+'Tabla Amortización Fijo'!U170) -> 201.6371026 | L164: 299 | M164: =IF(C164=0,0,'Tabla Amortización Fijo'!X170+'Tabla Amortización Fijo'!V170+'Tabla Amortización Fijo'!S170+'Tabla Amortización Fijo'!Q170) -> 135.5522031 | N164: 12090.42383 | P164: 116282.3181 | Q164: 11954.87163
A165: 158 | B165: ='Tabla Amortización Fijo'!C171 -> 2035-05-04 | C165: 116282.3181 | D165: =IF(C165<=0,0,IF(C165<D164,C165,'Tabla Amortización Fijo'!AB171)) -> 10152.21741 | F165: =IF(C165<=0,0,'Tabla Amortización Fijo'!AC171) -> 862.4270583 | G165: 11014.64447 | I165: 93.02585447 | J165: =IF(P164<=0.01,0,'Tabla Amortización Fijo'!R171) -> 346.5641667 | K165: =IF(D165<=0,0,'Tabla Amortización Fijo'!W171+'Tabla Amortización Fijo'!U171) -> 201.6371026 | L165: 299 | M165: =IF(C165=0,0,'Tabla Amortización Fijo'!X171+'Tabla Amortización Fijo'!V171+'Tabla Amortización Fijo'!S171+'Tabla Amortización Fijo'!Q171) -> 135.5522031 | N165: 12090.4238 | P165: 106130.1007 | Q165: 11954.87159
A166: 159 | B166: ='Tabla Amortización Fijo'!C172 -> 2035-06-04 | C166: 106130.1007 | D166: =IF(C166<=0,0,IF(C166<D165,C166,'Tabla Amortización Fijo'!AB172)) -> 10209.39708 | F166: =IF(C166<=0,0,'Tabla Amortización Fijo'!AC172) -> 813.3691409 | G166: 11022.76622 | I166: 84.90408054 | J166: =IF(P165<=0.01,0,'Tabla Amortización Fijo'!R172) -> 346.5641667 | K166: =IF(D166<=0,0,'Tabla Amortización Fijo'!W172+'Tabla Amortización Fijo'!U172) -> 201.6371026 | L166: 299 | M166: =IF(C166=0,0,'Tabla Amortización Fijo'!X172+'Tabla Amortización Fijo'!V172+'Tabla Amortización Fijo'!S172+'Tabla Amortización Fijo'!Q172) -> 135.5522031 | N166: 12090.42377 | P166: 95920.70359 | Q166: 11954.87157
A167: 160 | B167: ='Tabla Amortización Fijo'!C173 -> 2035-07-04 | C167: 95920.70359 | D167: =IF(C167<=0,0,IF(C167<D166,C167,'Tabla Amortización Fijo'!AB173)) -> 10319.52201 | F167: =IF(C167<=0,0,'Tabla Amortización Fijo'!AC173) -> 711.41171 | G167: 11030.93372 | I167: 76.73656287 | J167: =IF(P166<=0.01,0,'Tabla Amortización Fijo'!R173) -> 346.5641667 | K167: =IF(D167<=0,0,'Tabla Amortización Fijo'!W173+'Tabla Amortización Fijo'!U173) -> 201.6371026 | L167: 299 | M167: =IF(C167=0,0,'Tabla Amortización Fijo'!X173+'Tabla Amortización Fijo'!V173+'Tabla Amortización Fijo'!S173+'Tabla Amortización Fijo'!Q173) -> 135.5522031 | N167: 12090.42376 | P167: 85601.18158 | Q167: 11954.87155
A168: 161 | B168: ='Tabla Amortización Fijo'!C174 -> 2035-08-04 | C168: 85601.18158 | D168: =IF(C168<=0,0,IF(C168<D167,C168,'Tabla Amortización Fijo'!AB174)) -> 10383.15157 | F168: =IF(C168<=0,0,'Tabla Amortización Fijo'!AC174) -> 656.037779 | G168: 11039.18935 | I168: 68.48094526 | J168: =IF(P167<=0.01,0,'Tabla Amortización Fijo'!R174) -> 346.5641667 | K168: =IF(D168<=0,0,'Tabla Amortización Fijo'!W174+'Tabla Amortización Fijo'!U174) -> 201.6371026 | L168: 299 | M168: =IF(C168=0,0,'Tabla Amortización Fijo'!X174+'Tabla Amortización Fijo'!V174+'Tabla Amortización Fijo'!S174+'Tabla Amortización Fijo'!Q174) -> 135.5522031 | N168: 12090.42377 | P168: 75218.03001 | Q168: 11954.87156
A169: 162 | B169: ='Tabla Amortización Fijo'!C175 -> 2035-09-04 | C169: 75218.03001 | D169: =IF(C169<=0,0,IF(C169<D168,C169,'Tabla Amortización Fijo'!AB175)) -> 10471.03341 | F169: =IF(C169<=0,0,'Tabla Amortización Fijo'!AC175) -> 576.4624711 | G169: 11047.49588 | I169: 60.17442401 | J169: =IF(P168<=0.01,0,'Tabla Amortización Fijo'!R175) -> 346.5641667 | K169: =IF(D169<=0,0,'Tabla Amortización Fijo'!W175+'Tabla Amortización Fijo'!U175) -> 201.6371026 | L169: 299 | M169: =IF(C169=0,0,'Tabla Amortización Fijo'!X175+'Tabla Amortización Fijo'!V175+'Tabla Amortización Fijo'!S175+'Tabla Amortización Fijo'!Q175) -> 135.5522031 | N169: 12090.42378 | P169: 64746.9966 | Q169: 11954.87158
A170: 163 | B170: ='Tabla Amortización Fijo'!C176 -> 2035-10-04 | C170: 64746.9966 | D170: =IF(C170<=0,0,IF(C170<D169,C170,'Tabla Amortización Fijo'!AB176)) -> 10575.66597 | F170: =IF(C170<=0,0,'Tabla Amortización Fijo'!AC176) -> 480.2067683 | G170: 11055.87274 | I170: 51.79759728 | J170: =IF(P169<=0.01,0,'Tabla Amortización Fijo'!R176) -> 346.5641667 | K170: =IF(D170<=0,0,'Tabla Amortización Fijo'!W176+'Tabla Amortización Fijo'!U176) -> 201.6371026 | L170: 299 | M170: =IF(C170=0,0,'Tabla Amortización Fijo'!X176+'Tabla Amortización Fijo'!V176+'Tabla Amortización Fijo'!S176+'Tabla Amortización Fijo'!Q176) -> 135.5522031 | N170: 12090.42381 | P170: 54171.33063 | Q170: 11954.87161
A171: 164 | B171: ='Tabla Amortización Fijo'!C177 -> 2035-11-04 | C171: 54171.33063 | D171: =IF(C171<=0,0,IF(C171<D170,C171,'Tabla Amortización Fijo'!AB177)) -> 10649.17034 | F171: =IF(C171<=0,0,'Tabla Amortización Fijo'!AC177) -> 415.1629008 | G171: 11064.33324 | I171: 43.3370645 | J171: =IF(P170<=0.01,0,'Tabla Amortización Fijo'!R177) -> 346.5641667 | K171: =IF(D171<=0,0,'Tabla Amortización Fijo'!W177+'Tabla Amortización Fijo'!U177) -> 201.6371026 | L171: 299 | M171: =IF(C171=0,0,'Tabla Amortización Fijo'!X177+'Tabla Amortización Fijo'!V177+'Tabla Amortización Fijo'!S177+'Tabla Amortización Fijo'!Q177) -> 135.5522031 | N171: 12090.42377 | P171: 43522.16029 | Q171: 11954.87157
A172: 165 | B172: ='Tabla Amortización Fijo'!C178 -> 2035-12-04 | C172: 43522.16029 | D172: =IF(C172<=0,0,IF(C172<D171,C172,'Tabla Amortización Fijo'!AB178)) -> 10750.06338 | F172: =IF(C172<=0,0,'Tabla Amortización Fijo'!AC178) -> 322.789205 | G172: 11072.85258 | I172: 34.81772823 | J172: =IF(P171<=0.01,0,'Tabla Amortización Fijo'!R178) -> 346.5641667 | K172: =IF(D172<=0,0,'Tabla Amortización Fijo'!W178+'Tabla Amortización Fijo'!U178) -> 201.6371026 | L172: 299 | M172: =IF(C172=0,0,'Tabla Amortización Fijo'!X178+'Tabla Amortización Fijo'!V178+'Tabla Amortización Fijo'!S178+'Tabla Amortización Fijo'!Q178) -> 135.5522031 | N172: 12090.42378 | P172: 32772.09692 | Q172: 11954.87158
A173: 166 | B173: ='Tabla Amortización Fijo'!C179 -> 2036-01-04 | C173: 32772.09692 | D173: =IF(C173<=0,0,IF(C173<D172,C173,'Tabla Amortización Fijo'!AB179)) -> 10830.29107 | F173: =IF(C173<=0,0,'Tabla Amortización Fijo'!AC179) -> 251.1615798 | G173: 11081.45265 | I173: 26.21767753 | J173: =IF(P172<=0.01,0,'Tabla Amortización Fijo'!R179) -> 346.5641667 | K173: =IF(D173<=0,0,'Tabla Amortización Fijo'!W179+'Tabla Amortización Fijo'!U179) -> 201.6371026 | L173: 299 | M173: =IF(C173=0,0,'Tabla Amortización Fijo'!X179+'Tabla Amortización Fijo'!V179+'Tabla Amortización Fijo'!S179+'Tabla Amortización Fijo'!Q179) -> 135.5522031 | N173: 12090.4238 | P173: 21941.80584 | Q173: 11954.8716
A174: 167 | B174: ='Tabla Amortización Fijo'!C180 -> 2036-02-04 | C174: 21941.80584 | D174: =IF(C174<=0,0,IF(C174<D173,C174,'Tabla Amortización Fijo'!AB180)) -> 10921.95745 | F174: =IF(C174<=0,0,'Tabla Amortización Fijo'!AC180) -> 168.1594406 | G174: 11090.11689 | I174: 17.55344467 | J174: =IF(P173<=0.01,0,'Tabla Amortización Fijo'!R180) -> 346.5641667 | K174: =IF(D174<=0,0,'Tabla Amortización Fijo'!W180+'Tabla Amortización Fijo'!U180) -> 201.6371026 | L174: 299 | M174: =IF(C174=0,0,'Tabla Amortización Fijo'!X180+'Tabla Amortización Fijo'!V180+'Tabla Amortización Fijo'!S180+'Tabla Amortización Fijo'!Q180) -> 135.5522031 | N174: 12090.42381 | P174: 11019.84839 | Q174: 11954.87161
A175: 168 | B175: ='Tabla Amortización Fijo'!C181 -> 2036-03-04 | C175: 11019.84839 | D175: =IF(C175<=0,0,IF(C175<D174,C175,'Tabla Amortización Fijo'!AB181)) -> 11019.83 | F175: =IF(C175<=0,0,'Tabla Amortización Fijo'!AC181) -> 79.00605897 | G175: 11098.83606 | I175: 8.815878712 | J175: =IF(P174<=0.01,0,'Tabla Amortización Fijo'!R181) -> 346.5641667 | K175: =IF(D175<=0,0,'Tabla Amortización Fijo'!W181+'Tabla Amortización Fijo'!U181) -> 201.6371026 | L175: 299 | M175: =IF(C175=0,0,'Tabla Amortización Fijo'!X181+'Tabla Amortización Fijo'!V181+'Tabla Amortización Fijo'!S181+'Tabla Amortización Fijo'!Q181) -> 135.5522031 | N175: 12090.40541 | P175: 0.01839018038 | Q175: 11954.85321
A176: 169 | B176: ='Tabla Amortización Fijo'!C182 -> 2036-04-04 | C176: 0.01839018038 | D176: =IF(C176<=0,0,IF(C176<D175,C176,'Tabla Amortización Fijo'!AB182)) -> 0.01839018038 | F176: =IF(C176<=0,0,'Tabla Amortización Fijo'!AC182) -> 0 | G176: 0.01839018038 | I176: 1.47121443e-05 | J176: =IF(P175<=0.01,0,'Tabla Amortización Fijo'!R182) -> 346.5641667 | K176: =IF(D176<=0,0,'Tabla Amortización Fijo'!W182+'Tabla Amortización Fijo'!U182) -> 201.6371026 | L176: 299 | M176: =IF(C176=0,0,'Tabla Amortización Fijo'!X182+'Tabla Amortización Fijo'!V182+'Tabla Amortización Fijo'!S182+'Tabla Amortización Fijo'!Q182) -> 135.5522031 | N176: 982.7718772 | P176: 0 | Q176: 847.2196741
A177: 170 | B177: ='Tabla Amortización Fijo'!C183 -> 2036-05-04 | C177: 0 | D177: =IF(C177<=0,0,IF(C177<D176,C177,'Tabla Amortización Fijo'!AB183)) -> 0 | F177: =IF(C177<=0,0,'Tabla Amortización Fijo'!AC183) -> 0 | G177: 0 | I177: 0 | J177: =IF(P176<=0.01,0,'Tabla Amortización Fijo'!R183) -> 0 | K177: =IF(D177<=0,0,'Tabla Amortización Fijo'!W183+'Tabla Amortización Fijo'!U183) -> 0 | L177: 0 | M177: =IF(C177=0,0,'Tabla Amortización Fijo'!X183+'Tabla Amortización Fijo'!V183+'Tabla Amortización Fijo'!S183+'Tabla Amortización Fijo'!Q183) -> 0 | N177: 0 | P177: 0 | Q177: 0
A178: 171 | B178: ='Tabla Amortización Fijo'!C184 -> 2036-06-04 | C178: 0 | D178: =IF(C178<=0,0,IF(C178<D177,C178,'Tabla Amortización Fijo'!AB184)) -> 0 | F178: =IF(C178<=0,0,'Tabla Amortización Fijo'!AC184) -> 0 | G178: 0 | I178: 0 | J178: =IF(P177<=0.01,0,'Tabla Amortización Fijo'!R184) -> 0 | K178: =IF(D178<=0,0,'Tabla Amortización Fijo'!W184+'Tabla Amortización Fijo'!U184) -> 0 | L178: 0 | M178: =IF(C178=0,0,'Tabla Amortización Fijo'!X184+'Tabla Amortización Fijo'!V184+'Tabla Amortización Fijo'!S184+'Tabla Amortización Fijo'!Q184) -> 0 | N178: 0 | P178: 0 | Q178: 0
A179: 172 | B179: ='Tabla Amortización Fijo'!C185 -> 2036-07-04 | C179: 0 | D179: =IF(C179<=0,0,IF(C179<D178,C179,'Tabla Amortización Fijo'!AB185)) -> 0 | F179: =IF(C179<=0,0,'Tabla Amortización Fijo'!AC185) -> 0 | G179: 0 | I179: 0 | J179: =IF(P178<=0.01,0,'Tabla Amortización Fijo'!R185) -> 0 | K179: =IF(D179<=0,0,'Tabla Amortización Fijo'!W185+'Tabla Amortización Fijo'!U185) -> 0 | L179: 0 | M179: =IF(C179=0,0,'Tabla Amortización Fijo'!X185+'Tabla Amortización Fijo'!V185+'Tabla Amortización Fijo'!S185+'Tabla Amortización Fijo'!Q185) -> 0 | N179: 0 | P179: 0 | Q179: 0
A180: 173 | B180: ='Tabla Amortización Fijo'!C186 -> 2036-08-04 | C180: 0 | D180: =IF(C180<=0,0,IF(C180<D179,C180,'Tabla Amortización Fijo'!AB186)) -> 0 | F180: =IF(C180<=0,0,'Tabla Amortización Fijo'!AC186) -> 0 | G180: 0 | I180: 0 | J180: =IF(P179<=0.01,0,'Tabla Amortización Fijo'!R186) -> 0 | K180: =IF(D180<=0,0,'Tabla Amortización Fijo'!W186+'Tabla Amortización Fijo'!U186) -> 0 | L180: 0 | M180: =IF(C180=0,0,'Tabla Amortización Fijo'!X186+'Tabla Amortización Fijo'!V186+'Tabla Amortización Fijo'!S186+'Tabla Amortización Fijo'!Q186) -> 0 | N180: 0 | P180: 0 | Q180: 0
A181: 174 | B181: ='Tabla Amortización Fijo'!C187 -> 2036-09-04 | C181: 0 | D181: =IF(C181<=0,0,IF(C181<D180,C181,'Tabla Amortización Fijo'!AB187)) -> 0 | F181: =IF(C181<=0,0,'Tabla Amortización Fijo'!AC187) -> 0 | G181: 0 | I181: 0 | J181: =IF(P180<=0.01,0,'Tabla Amortización Fijo'!R187) -> 0 | K181: =IF(D181<=0,0,'Tabla Amortización Fijo'!W187+'Tabla Amortización Fijo'!U187) -> 0 | L181: 0 | M181: =IF(C181=0,0,'Tabla Amortización Fijo'!X187+'Tabla Amortización Fijo'!V187+'Tabla Amortización Fijo'!S187+'Tabla Amortización Fijo'!Q187) -> 0 | N181: 0 | P181: 0 | Q181: 0
A182: 175 | B182: ='Tabla Amortización Fijo'!C188 -> 2036-10-04 | C182: 0 | D182: =IF(C182<=0,0,IF(C182<D181,C182,'Tabla Amortización Fijo'!AB188)) -> 0 | F182: =IF(C182<=0,0,'Tabla Amortización Fijo'!AC188) -> 0 | G182: 0 | I182: 0 | J182: =IF(P181<=0.01,0,'Tabla Amortización Fijo'!R188) -> 0 | K182: =IF(D182<=0,0,'Tabla Amortización Fijo'!W188+'Tabla Amortización Fijo'!U188) -> 0 | L182: 0 | M182: =IF(C182=0,0,'Tabla Amortización Fijo'!X188+'Tabla Amortización Fijo'!V188+'Tabla Amortización Fijo'!S188+'Tabla Amortización Fijo'!Q188) -> 0 | N182: 0 | P182: 0 | Q182: 0
A183: 176 | B183: ='Tabla Amortización Fijo'!C189 -> 2036-11-04 | C183: 0 | D183: =IF(C183<=0,0,IF(C183<D182,C183,'Tabla Amortización Fijo'!AB189)) -> 0 | F183: =IF(C183<=0,0,'Tabla Amortización Fijo'!AC189) -> 0 | G183: 0 | I183: 0 | J183: =IF(P182<=0.01,0,'Tabla Amortización Fijo'!R189) -> 0 | K183: =IF(D183<=0,0,'Tabla Amortización Fijo'!W189+'Tabla Amortización Fijo'!U189) -> 0 | L183: 0 | M183: =IF(C183=0,0,'Tabla Amortización Fijo'!X189+'Tabla Amortización Fijo'!V189+'Tabla Amortización Fijo'!S189+'Tabla Amortización Fijo'!Q189) -> 0 | N183: 0 | P183: 0 | Q183: 0
A184: 177 | B184: ='Tabla Amortización Fijo'!C190 -> 2036-12-04 | C184: 0 | D184: =IF(C184<=0,0,IF(C184<D183,C184,'Tabla Amortización Fijo'!AB190)) -> 0 | F184: =IF(C184<=0,0,'Tabla Amortización Fijo'!AC190) -> 0 | G184: 0 | I184: 0 | J184: =IF(P183<=0.01,0,'Tabla Amortización Fijo'!R190) -> 0 | K184: =IF(D184<=0,0,'Tabla Amortización Fijo'!W190+'Tabla Amortización Fijo'!U190) -> 0 | L184: 0 | M184: =IF(C184=0,0,'Tabla Amortización Fijo'!X190+'Tabla Amortización Fijo'!V190+'Tabla Amortización Fijo'!S190+'Tabla Amortización Fijo'!Q190) -> 0 | N184: 0 | P184: 0 | Q184: 0
A185: 178 | B185: ='Tabla Amortización Fijo'!C191 -> 2037-01-04 | C185: 0 | D185: =IF(C185<=0,0,IF(C185<D184,C185,'Tabla Amortización Fijo'!AB191)) -> 0 | F185: =IF(C185<=0,0,'Tabla Amortización Fijo'!AC191) -> 0 | G185: 0 | I185: 0 | J185: =IF(P184<=0.01,0,'Tabla Amortización Fijo'!R191) -> 0 | K185: =IF(D185<=0,0,'Tabla Amortización Fijo'!W191+'Tabla Amortización Fijo'!U191) -> 0 | L185: 0 | M185: =IF(C185=0,0,'Tabla Amortización Fijo'!X191+'Tabla Amortización Fijo'!V191+'Tabla Amortización Fijo'!S191+'Tabla Amortización Fijo'!Q191) -> 0 | N185: 0 | P185: 0 | Q185: 0
A186: 179 | B186: ='Tabla Amortización Fijo'!C192 -> 2037-02-04 | C186: 0 | D186: =IF(C186<=0,0,IF(C186<D185,C186,'Tabla Amortización Fijo'!AB192)) -> 0 | F186: =IF(C186<=0,0,'Tabla Amortización Fijo'!AC192) -> 0 | G186: 0 | I186: 0 | J186: =IF(P185<=0.01,0,'Tabla Amortización Fijo'!R192) -> 0 | K186: =IF(D186<=0,0,'Tabla Amortización Fijo'!W192+'Tabla Amortización Fijo'!U192) -> 0 | L186: 0 | M186: =IF(C186=0,0,'Tabla Amortización Fijo'!X192+'Tabla Amortización Fijo'!V192+'Tabla Amortización Fijo'!S192+'Tabla Amortización Fijo'!Q192) -> 0 | N186: 0 | P186: 0 | Q186: 0
A187: 180 | B187: ='Tabla Amortización Fijo'!C193 -> 2037-03-04 | C187: 0 | D187: =IF(C187<=0,0,IF(C187<D186,C187,'Tabla Amortización Fijo'!AB193)) -> 0 | F187: =IF(C187<=0,0,'Tabla Amortización Fijo'!AC193) -> 0 | G187: 0 | I187: 0 | J187: =IF(P186<=0.01,0,'Tabla Amortización Fijo'!R193) -> 0 | K187: =IF(D187<=0,0,'Tabla Amortización Fijo'!W193+'Tabla Amortización Fijo'!U193) -> 0 | L187: 0 | M187: =IF(C187=0,0,'Tabla Amortización Fijo'!X193+'Tabla Amortización Fijo'!V193+'Tabla Amortización Fijo'!S193+'Tabla Amortización Fijo'!Q193) -> 0 | N187: 0 | P187: 0 | Q187: 0
A188: 181 | B188: ='Tabla Amortización Fijo'!C194 -> 2037-04-04 | C188: 0 | D188: =IF(C188<=0,0,IF(C188<D187,C188,'Tabla Amortización Fijo'!AB194)) -> 0 | F188: =IF(C188<=0,0,'Tabla Amortización Fijo'!AC194) -> 0 | G188: 0 | I188: 0 | J188: =IF(P187<=0.01,0,'Tabla Amortización Fijo'!R194) -> 0 | K188: =IF(D188<=0,0,'Tabla Amortización Fijo'!W194+'Tabla Amortización Fijo'!U194) -> 0 | L188: 0 | M188: =IF(C188=0,0,'Tabla Amortización Fijo'!X194+'Tabla Amortización Fijo'!V194+'Tabla Amortización Fijo'!S194+'Tabla Amortización Fijo'!Q194) -> 0 | N188: 0 | P188: 0 | Q188: 0
A189: 182 | B189: ='Tabla Amortización Fijo'!C195 -> 2037-05-04 | C189: 0 | D189: =IF(C189<=0,0,IF(C189<D188,C189,'Tabla Amortización Fijo'!AB195)) -> 0 | F189: =IF(C189<=0,0,'Tabla Amortización Fijo'!AC195) -> 0 | G189: 0 | I189: 0 | J189: =IF(P188<=0.01,0,'Tabla Amortización Fijo'!R195) -> 0 | K189: =IF(D189<=0,0,'Tabla Amortización Fijo'!W195+'Tabla Amortización Fijo'!U195) -> 0 | L189: 0 | M189: =IF(C189=0,0,'Tabla Amortización Fijo'!X195+'Tabla Amortización Fijo'!V195+'Tabla Amortización Fijo'!S195+'Tabla Amortización Fijo'!Q195) -> 0 | N189: 0 | P189: 0 | Q189: 0
A190: 183 | B190: ='Tabla Amortización Fijo'!C196 -> 2037-06-04 | C190: 0 | D190: =IF(C190<=0,0,IF(C190<D189,C190,'Tabla Amortización Fijo'!AB196)) -> 0 | F190: =IF(C190<=0,0,'Tabla Amortización Fijo'!AC196) -> 0 | G190: 0 | I190: 0 | J190: =IF(P189<=0.01,0,'Tabla Amortización Fijo'!R196) -> 0 | K190: =IF(D190<=0,0,'Tabla Amortización Fijo'!W196+'Tabla Amortización Fijo'!U196) -> 0 | L190: 0 | M190: =IF(C190=0,0,'Tabla Amortización Fijo'!X196+'Tabla Amortización Fijo'!V196+'Tabla Amortización Fijo'!S196+'Tabla Amortización Fijo'!Q196) -> 0 | N190: 0 | P190: 0 | Q190: 0
A191: 184 | B191: ='Tabla Amortización Fijo'!C197 -> 2037-07-04 | C191: 0 | D191: =IF(C191<=0,0,IF(C191<D190,C191,'Tabla Amortización Fijo'!AB197)) -> 0 | F191: =IF(C191<=0,0,'Tabla Amortización Fijo'!AC197) -> 0 | G191: 0 | I191: 0 | J191: =IF(P190<=0.01,0,'Tabla Amortización Fijo'!R197) -> 0 | K191: =IF(D191<=0,0,'Tabla Amortización Fijo'!W197+'Tabla Amortización Fijo'!U197) -> 0 | L191: 0 | M191: =IF(C191=0,0,'Tabla Amortización Fijo'!X197+'Tabla Amortización Fijo'!V197+'Tabla Amortización Fijo'!S197+'Tabla Amortización Fijo'!Q197) -> 0 | N191: 0 | P191: 0 | Q191: 0
A192: 185 | B192: ='Tabla Amortización Fijo'!C198 -> 2037-08-04 | C192: 0 | D192: =IF(C192<=0,0,IF(C192<D191,C192,'Tabla Amortización Fijo'!AB198)) -> 0 | F192: =IF(C192<=0,0,'Tabla Amortización Fijo'!AC198) -> 0 | G192: 0 | I192: 0 | J192: =IF(P191<=0.01,0,'Tabla Amortización Fijo'!R198) -> 0 | K192: =IF(D192<=0,0,'Tabla Amortización Fijo'!W198+'Tabla Amortización Fijo'!U198) -> 0 | L192: 0 | M192: =IF(C192=0,0,'Tabla Amortización Fijo'!X198+'Tabla Amortización Fijo'!V198+'Tabla Amortización Fijo'!S198+'Tabla Amortización Fijo'!Q198) -> 0 | N192: 0 | P192: 0 | Q192: 0
A193: 186 | B193: ='Tabla Amortización Fijo'!C199 -> 2037-09-04 | C193: 0 | D193: =IF(C193<=0,0,IF(C193<D192,C193,'Tabla Amortización Fijo'!AB199)) -> 0 | F193: =IF(C193<=0,0,'Tabla Amortización Fijo'!AC199) -> 0 | G193: 0 | I193: 0 | J193: =IF(P192<=0.01,0,'Tabla Amortización Fijo'!R199) -> 0 | K193: =IF(D193<=0,0,'Tabla Amortización Fijo'!W199+'Tabla Amortización Fijo'!U199) -> 0 | L193: 0 | M193: =IF(C193=0,0,'Tabla Amortización Fijo'!X199+'Tabla Amortización Fijo'!V199+'Tabla Amortización Fijo'!S199+'Tabla Amortización Fijo'!Q199) -> 0 | N193: 0 | P193: 0 | Q193: 0
A194: 187 | B194: ='Tabla Amortización Fijo'!C200 -> 2037-10-04 | C194: 0 | D194: =IF(C194<=0,0,IF(C194<D193,C194,'Tabla Amortización Fijo'!AB200)) -> 0 | F194: =IF(C194<=0,0,'Tabla Amortización Fijo'!AC200) -> 0 | G194: 0 | I194: 0 | J194: =IF(P193<=0.01,0,'Tabla Amortización Fijo'!R200) -> 0 | K194: =IF(D194<=0,0,'Tabla Amortización Fijo'!W200+'Tabla Amortización Fijo'!U200) -> 0 | L194: 0 | M194: =IF(C194=0,0,'Tabla Amortización Fijo'!X200+'Tabla Amortización Fijo'!V200+'Tabla Amortización Fijo'!S200+'Tabla Amortización Fijo'!Q200) -> 0 | N194: 0 | P194: 0 | Q194: 0
A195: 188 | B195: ='Tabla Amortización Fijo'!C201 -> 2037-11-04 | C195: 0 | D195: =IF(C195<=0,0,IF(C195<D194,C195,'Tabla Amortización Fijo'!AB201)) -> 0 | F195: =IF(C195<=0,0,'Tabla Amortización Fijo'!AC201) -> 0 | G195: 0 | I195: 0 | J195: =IF(P194<=0.01,0,'Tabla Amortización Fijo'!R201) -> 0 | K195: =IF(D195<=0,0,'Tabla Amortización Fijo'!W201+'Tabla Amortización Fijo'!U201) -> 0 | L195: 0 | M195: =IF(C195=0,0,'Tabla Amortización Fijo'!X201+'Tabla Amortización Fijo'!V201+'Tabla Amortización Fijo'!S201+'Tabla Amortización Fijo'!Q201) -> 0 | N195: 0 | P195: 0 | Q195: 0
A196: 189 | B196: ='Tabla Amortización Fijo'!C202 -> 2037-12-04 | C196: 0 | D196: =IF(C196<=0,0,IF(C196<D195,C196,'Tabla Amortización Fijo'!AB202)) -> 0 | F196: =IF(C196<=0,0,'Tabla Amortización Fijo'!AC202) -> 0 | G196: 0 | I196: 0 | J196: =IF(P195<=0.01,0,'Tabla Amortización Fijo'!R202) -> 0 | K196: =IF(D196<=0,0,'Tabla Amortización Fijo'!W202+'Tabla Amortización Fijo'!U202) -> 0 | L196: 0 | M196: =IF(C196=0,0,'Tabla Amortización Fijo'!X202+'Tabla Amortización Fijo'!V202+'Tabla Amortización Fijo'!S202+'Tabla Amortización Fijo'!Q202) -> 0 | N196: 0 | P196: 0 | Q196: 0
A197: 190 | B197: ='Tabla Amortización Fijo'!C203 -> 2038-01-04 | C197: 0 | D197: =IF(C197<=0,0,IF(C197<D196,C197,'Tabla Amortización Fijo'!AB203)) -> 0 | F197: =IF(C197<=0,0,'Tabla Amortización Fijo'!AC203) -> 0 | G197: 0 | I197: 0 | J197: =IF(P196<=0.01,0,'Tabla Amortización Fijo'!R203) -> 0 | K197: =IF(D197<=0,0,'Tabla Amortización Fijo'!W203+'Tabla Amortización Fijo'!U203) -> 0 | L197: 0 | M197: =IF(C197=0,0,'Tabla Amortización Fijo'!X203+'Tabla Amortización Fijo'!V203+'Tabla Amortización Fijo'!S203+'Tabla Amortización Fijo'!Q203) -> 0 | N197: 0 | P197: 0 | Q197: 0
A198: 191 | B198: ='Tabla Amortización Fijo'!C204 -> 2038-02-04 | C198: 0 | D198: =IF(C198<=0,0,IF(C198<D197,C198,'Tabla Amortización Fijo'!AB204)) -> 0 | F198: =IF(C198<=0,0,'Tabla Amortización Fijo'!AC204) -> 0 | G198: 0 | I198: 0 | J198: =IF(P197<=0.01,0,'Tabla Amortización Fijo'!R204) -> 0 | K198: =IF(D198<=0,0,'Tabla Amortización Fijo'!W204+'Tabla Amortización Fijo'!U204) -> 0 | L198: 0 | M198: =IF(C198=0,0,'Tabla Amortización Fijo'!X204+'Tabla Amortización Fijo'!V204+'Tabla Amortización Fijo'!S204+'Tabla Amortización Fijo'!Q204) -> 0 | N198: 0 | P198: 0 | Q198: 0
A199: 192 | B199: ='Tabla Amortización Fijo'!C205 -> 2038-03-04 | C199: 0 | D199: =IF(C199<=0,0,IF(C199<D198,C199,'Tabla Amortización Fijo'!AB205)) -> 0 | F199: =IF(C199<=0,0,'Tabla Amortización Fijo'!AC205) -> 0 | G199: 0 | I199: 0 | J199: =IF(P198<=0.01,0,'Tabla Amortización Fijo'!R205) -> 0 | K199: =IF(D199<=0,0,'Tabla Amortización Fijo'!W205+'Tabla Amortización Fijo'!U205) -> 0 | L199: 0 | M199: =IF(C199=0,0,'Tabla Amortización Fijo'!X205+'Tabla Amortización Fijo'!V205+'Tabla Amortización Fijo'!S205+'Tabla Amortización Fijo'!Q205) -> 0 | N199: 0 | P199: 0 | Q199: 0
A200: 193 | B200: ='Tabla Amortización Fijo'!C206 -> 2038-04-04 | C200: 0 | D200: =IF(C200<=0,0,IF(C200<D199,C200,'Tabla Amortización Fijo'!AB206)) -> 0 | F200: =IF(C200<=0,0,'Tabla Amortización Fijo'!AC206) -> 0 | G200: =D200+F200 -> 0 | I200: 0 | J200: =IF(P199<=0.01,0,'Tabla Amortización Fijo'!R206) -> 0 | K200: =IF(D200<=0,0,'Tabla Amortización Fijo'!W206+'Tabla Amortización Fijo'!U206) -> 0 | L200: 0 | M200: =IF(C200=0,0,'Tabla Amortización Fijo'!X206+'Tabla Amortización Fijo'!V206+'Tabla Amortización Fijo'!S206+'Tabla Amortización Fijo'!Q206) -> 0 | N200: 0 | P200: =C200-D200-E200-H200 -> 0 | Q200: 0
A201: 194 | B201: ='Tabla Amortización Fijo'!C207 -> 2038-05-04 | C201: 0 | D201: =IF(C201<=0,0,IF(C201<D200,C201,'Tabla Amortización Fijo'!AB207)) -> 0 | F201: =IF(C201<=0,0,'Tabla Amortización Fijo'!AC207) -> 0 | G201: 0 | I201: =IF(C201<=0,0,(C201*0.8/1000)) -> 0 | J201: =IF(P200<=0.01,0,'Tabla Amortización Fijo'!R207) -> 0 | K201: =IF(D201<=0,0,'Tabla Amortización Fijo'!W207+'Tabla Amortización Fijo'!U207) -> 0 | L201: =IF(C201<=0,,299) -> 0 | M201: =IF(C201=0,0,'Tabla Amortización Fijo'!X207+'Tabla Amortización Fijo'!V207+'Tabla Amortización Fijo'!S207+'Tabla Amortización Fijo'!Q207) -> 0 | N201: 0 | P201: 0 | Q201: 0
A202: 195 | B202: ='Tabla Amortización Fijo'!C208 -> 2038-06-04 | C202: 0 | D202: =IF(C202<=0,0,IF(C202<D201,C202,'Tabla Amortización Fijo'!AB208)) -> 0 | F202: =IF(C202<=0,0,'Tabla Amortización Fijo'!AC208) -> 0 | G202: 0 | I202: 0 | J202: =IF(P201<=0.01,0,'Tabla Amortización Fijo'!R208) -> 0 | K202: =IF(D202<=0,0,'Tabla Amortización Fijo'!W208+'Tabla Amortización Fijo'!U208) -> 0 | L202: 0 | M202: =IF(C202=0,0,'Tabla Amortización Fijo'!X208+'Tabla Amortización Fijo'!V208+'Tabla Amortización Fijo'!S208+'Tabla Amortización Fijo'!Q208) -> 0 | N202: 0 | P202: 0 | Q202: =N202-M202+H202+E202 -> 0
... 46 more rows

Sheet Tabla Amortización Crec (hidden)
B1: Tabla de Amortización >> Hipotecario >> Tasas Pagos Puntuales>>Cuotas Fijas
B3: Monto Solicitado | C3: Plazo años | D3: Plazo Meses | E3: Tipo | F3: ¿Cómo aplicar el Beneficio PP? | G3: Suma de Ingresos | H3: Esquema | J3: Total Financiado | K3: % Comisión Apert | L3: Comisión Apertura | M3: CAT
B4: =IF( OR('Parametro Destino'!C2=8,'Parametro Destino'!C2=3,'Parametro Destino'!C2=4), MIN('Parametro Destino'!F3,Simulación!H25), MIN(Simulación!H25,'Parametro Destino'!C7,'Parametro Destino'!F2)) -> 1000000 | C4: ='Parametro Destino'!F5 -> 15 | D4: =PLAZO_ANIOSCREC*12 -> 180 | E4: ADQUISICIÓN | F4: ='Tabla Crec'!H5 -> 0 | G4: SI | H4: =Simulación!L25 -> 0.089 | J4: =MTO_SOLICITADO_CRE -> 1000000 | K4: 0.01 | L4: =COMISION_APERTCREC *TOTAL_FINANCIADOCREC -> 10000 | M4: =(1+IRR(AJ13:AJ259,0))^(360/30)-1 -> 0.1225426975
B6: Valor Inmueble | C6: Presupuesto Construcción | D6: Valor Inmueble actual | E6: Suma Asegurada Daños | J6: Base Avalúo | K6: Costo Avaluo Base | L6: Subtotal Avalúo (Base + Honorarios) | M6: IVA Avalúo | N6: Total Avalúo
B7: =Simulación!H23 -> 5000000 | C7: 1000000 | D7: 2000000 | E7: =VALOR_INMUEBLECREC*0.7 -> 3500000 | J7: =IF(DESTINOCREC ="CONSTRUCCIÓN", IF(VALOR_INMUEB_ACTCREC> 0, VALOR_INMUEB_ACTCREC, VALOR_INMUEBLECREC-PRES_CONSTRUCCIONCREC), VALOR_INMUEBLECREC) -> 5000000 | K7: =MTO_BASE_AVALUOCREC*FACTOR_AVALUOCREC -> 12500 | L7: =MTO_AVALUOCREC + HONORARIOS_AVALUOCREC -> 12500 | M7: =SUBTOT_AVALUOCREC * IVACREC -> 2000 | N7: =SUBTOT_AVALUOCREC + IVA_AVALUOCREC -> 14500
B9: Fecha Apertura | C9: Fecha 1er Pago | K9: Suma Inversos | L9: Cuota Nivelada Base | AJ9: Monto Inicial CAT
B10: =TODAY() -> 2022-03-15 | C10: =IF(DAY(FECHA_APERTURA)<= 19, DATE(YEAR(DATE(YEAR(FECHA_APERTURACREC),MONTH(FECHA_APERTURACREC)+2,)), MONTH(DATE(YEAR(FECHA_APERTURACREC),MONTH(FECHA_APERTURACREC)+2,)), 4), DATE(YEAR(DATE(YEAR(FECHA_APERTURACREC),MONTH(FECHA_APERTURACREC)+3,)), MONTH(DATE(YEAR(FECHA_APERTURACREC),MONTH(FECHA_APERTURACREC)+3,)), 4)) -> 2022-04-04 | K10: =SUMIF(B14:B259, CONCATENATE("<",PLAZOCREC),K14:K259) -> 105.146139 | L10: =J4/K10 -> 9510.572712 | AJ10: =MTO_SOLICITADO_CRE - MTO_COMISION_APERTCREC - SUBTOT_AVALUOCREC -> 977500
B12: Pago | C12: Fecha | D12: Dias Reales | E12: Tasa Periodo | F12: Prorrateo | G12: Potencia | H12: Inverso | I12: Aplica Incremento | J12: Ajuste | K12: Inverso Ajuste | L12: Cuota Nivelada Periodo | M12: Saldo | N12: Capital | O12: Interés (Dias Reales) | P12: Comision | Q12: IVA Comisión | R12: Seguro Daños | S12: IVA Seguro Daños | T12: Seguro Vida | U12: Seguro Interiores | V12: IVA Seguro Interiores | W12: Seguro Desempleo | X12: IVA Seguro Desempleo | Y12: Total a Pagar Ordinario | Z12: Tasa Pago Puntual | AA12: Saldo Pago Puntual | AB12: Capital Pago Puntual | AC12: Interés | AD12: Seguro Vida Pago Puntual | AE12: Total Pago Puntual | AF12: Aportación Capital Pago Puntual | AG12: Prepegago | AH12: Total a Pagar Pago Puntual | AJ12: Total CAT
AJ13: =AJ10*-1 -> -977500
B14: 0 | C14: =IF(B14=0,FECHA_1ER_PAGOCREC,DATE(YEAR(C13),MONTH(C13)+2,)) -> 2022-04-04 | D14: =IF(B14=0,C14-B10+1, C14-C13) -> 21 | E14: =IF(B14=0,TASACREC,IF(B14=MESES_INC_TASACREC,E13+INCREMENTO_TASACREC,E13)) -> 0.089 | F14: =1 + D14 * E14 / 360 + FACTOR_SEG_DEUDCREC -> 1.005991667 | G14: =IF(B14 = 0, 0, IF(G13=0, F14, G13 * F14 )) -> 0 | H14: =IF(G14=0, 0, 1/G14) -> 0 | I14: =MOD(B14, MESES_INCCREC)=0 -> TRUE | J14: =IF(B14=0, 1, IF(I14,J12*(1+INCREMENTO_CREC),J12)) -> 1 | K14: =H14*J14 -> 0 | L14: =CUOTA_INTCREC*J14 -> 9510.572712 | M14: =IF(B14=0,TOTAL_FINANCIADOCREC, M12-N12) -> 1000000 | N14: =IF(B14=0, 0, L14-O14-T14) -> 0 | O14: =M14 * D14 * E14 /360 -> 5191.666667 | P14: =COMISION_AMORTCREC -> 299 | Q14: =P14*IVACREC -> 47.84 | R14: =SEGURO_DAÑOS_MENS -> 346.5641667 | S14: =R14*IVACREC -> 55.45026667 | T14: =M14 * FACTOR_SEG_DEUDCREC -> 800 | U14: =SEGURO_INTERIORESCREC -> 84.48275862 | V14: =U14*IVACREC -> 13.51724138 | W14: =SUM(N14:V14) * FACTOR_SEG_DESEMPLEOCREC -> 67.01750678 | X14: =W14*IVACREC -> 10.72280108 | Y14: =IF(B14>=PLAZOCREC, 0, SUM(N14:X14)) -> 6916.261408 | Z14: =IF(B14>=MESES_PAG_PUNTCREC,TASACREC-DISMINUCION_TASACREC,TASACREC) -> 0.089 | AA14: =IF(B14=0,TOTAL_FINANCIADOCREC, MAX(ROUND(AA13-N13-AF13,2), 0)) -> 1000000 | AB14: =MIN(AA14,N14) -> 0 | AC14: =AA14 * D14 * Z14 /360 -> 5191.666667 | AD14: =AA14 * FACTOR_SEG_DEUDCREC -> 800 | AE14: =IF(AA14>0, AB14+AC14+AD14+P14+Q14+R14+S14+U14+V14+W14+X14, 0) -> 6916.261408 | AF14: =IF(ACCION_EXCEDENTE_PPCREC="MENOS PLAZO", IF(AA14>N14, ROUND(Y14-AE14, 2), 0), 0) -> 0 | AG14: ='Tabla Crec'!E8+'Tabla Crec'!H8 -> 0 | AH14: =AE14+AF14 -> 6916.261408 | AJ14: =IF(AA14> 0,AB14+AC14+AD14+P14+R14+U14+W14, 0) -> 6788.731099
B15: 1 | C15: =IF(B15=0,FECHA_1ER_PAGO,DATE(YEAR(C14),MONTH(C14)+1,4)) -> 2022-05-04 | D15: =IF(B15=0,C15-C10+1, C15-C14) -> 30 | E15: 0.089 | F15: =1 + D15 * E15 / 360 + FACTOR_SEG_DEUDCREC -> 1.008216667 | G15: =IF(B15 = 0, 0, IF(G14=0, F15, G14 * F15 )) -> 1.008216667 | H15: =IF(G15=0, 0, 1/G15) -> 0.9918502967 | I15: =MOD(B15, MESES_INCCREC)=0 -> FALSE | J15: =IF(B15=0, 1, IF(I15,J14*(1+INCREMENTO_CREC),J14)) -> 1 | K15: =H15*J15 -> 0.9918502967 | L15: =CUOTA_INTCREC*J15 -> 9510.572712 | M15: =IF(B15=0,TOTAL_FINANCIADOCREC, M14-N14) -> 1000000 | N15: =IF(B15=0, 0, L15-O15-T15) -> 1293.906045 | O15: 7416.666667 | P15: 299 | Q15: 47.84 | R15: 346.5641667 | S15: 55.45026667 | T15: 800 | U15: 84.48275862 | V15: 13.51724138 | W15: 101.502786 | X15: 16.24044576 | Y15: 10475.17038 | Z15: 0.089 | AA15: =IF(B15=0,TOTAL_FINANCIADOCREC, MAX(ROUND(AA14-N14-AF14-AG14,2), 0)) -> 1000000 | AB15: 1293.906045 | AC15: =AA15 * D15 * Z15 /360 -> 7416.666667 | AD15: 800 | AE15: 10475.17038 | AF15: 0 | AG15: ='Tabla Crec'!E9+'Tabla Crec'!H9 -> 0 | AH15: =AE15+AF15 -> 10475.17038 | AJ15: =IF(AA15> 0,AB15+AC15+AD15+P15+R15+U15+W15, 0) -> 10342.12242
B16: 2 | C16: 2022-06-04 | D16: =IF(B16=0,C16-'Parametros Crec'!C9+1, C16-C15) -> 31 | E16: 0.089 | F16: =1 + D16 * E16 / 360 + FACTOR_SEG_DEUDCREC -> 1.008463889 | G16: 1.016750101 | H16: =IF(G16=0, 0, 1/G16) -> 0.9835258433 | I16: FALSE | J16: 1 | K16: 0.9835258433 | L16: 9510.572712 | M16: 998706.094 | N16: 1057.6353 | O16: 7653.972537 | P16: 299 | Q16: 47.84 | R16: 346.5641667 | S16: 55.45026667 | T16: 798.9648752 | U16: 84.48275862 | V16: 13.51724138 | W16: 101.502786 | X16: 16.24044576 | Y16: 10475.17038 | Z16: 0.089 | AA16: 998706.09 | AB16: 1057.6353 | AC16: 7653.972506 | AD16: 798.964872 | AE16: 10475.17034 | AF16: 0 | AG16: ='Tabla Crec'!E10+'Tabla Crec'!H10 -> 0 | AH16: 10475.17034 | AJ16: 10342.12239
B17: 3 | C17: 2022-07-04 | D17: =IF(B17=0,C17-'Parametros Crec'!C15+1, C17-C16) -> 30 | E17: 0.089 | F17: 1.008216667 | G17: 1.025104397 | H17: 0.9755103995 | I17: FALSE | J17: 1 | K17: 0.9755103995 | L17: 9510.572712 | M17: 997648.4587 | N17: 1313.227876 | O17: 7399.226068 | P17: 299 | Q17: 47.84 | R17: 346.5641667 | S17: 55.45026667 | T17: 798.1187669 | U17: =SEGURO_INTERIORESCREC -> 84.48275862 | V17: 13.51724138 | W17: 101.502786 | X17: 16.24044576 | Y17: 10475.17038 | Z17: 0.089 | AA17: 997648.45 | AB17: 1313.227876 | AC17: 7399.226004 | AD17: 798.11876 | AE17: 10475.17031 | AF17: 0 | AG17: ='Tabla Crec'!E11+'Tabla Crec'!H11 -> 0 | AH17: 10475.17031 | AJ17: 10342.12235
B18: 4 | C18: 2022-08-04 | D18: =IF(B18=0,C18-'Parametros Crec'!C16+1, C18-C17) -> 31 | E18: 0.089 | F18: 1.008463889 | G18: 1.033780767 | H18: 0.9673230844 | I18: FALSE | J18: 1 | K18: 0.9673230844 | L18: 9510.572712 | M18: 996335.2308 | N18: 1077.702022 | O18: 7635.802505 | P18: 299 | Q18: 47.84 | R18: 346.5641667 | S18: 55.45026667 | T18: 797.0681846 | U18: 84.48275862 | V18: 13.51724138 | W18: 101.502786 | X18: 16.24044576 | Y18: 10475.17038 | Z18: 0.089 | AA18: 996335.22 | AB18: 1077.702022 | AC18: 7635.802422 | AD18: 797.068176 | AE18: 10475.17029 | AF18: 0 | AG18: ='Tabla Crec'!E12+'Tabla Crec'!H12 -> 0 | AH18: 10475.17029 | AJ18: 10342.12233
B19: 5 | C19: 2022-09-04 | D19: =IF(B19=0,C19-#REF!+1, C19-C18) -> 31 | E19: 0.089 | F19: 1.008463889 | G19: 1.042530572 | H19: 0.9592044842 | I19: FALSE | J19: 1 | K19: 0.9592044842 | L19: 9510.572712 | M19: 995257.5288 | N19: =IF(B19=0, 0, L19-O19-T19) -> 1086.823573 | O19: 7627.543116 | P19: 299 | Q19: 47.84 | R19: 346.5641667 | S19: 55.45026667 | T19: 796.206023 | U19: 84.48275862 | V19: 13.51724138 | W19: 101.502786 | X19: 16.24044576 | Y19: 10475.17038 | Z19: 0.089 | AA19: 995257.52 | AB19: =MIN(AA19,N19) -> 1086.823573 | AC19: 7627.543049 | AD19: 796.206016 | AE19: 10475.1703 | AF19: 0 | AG19: ='Tabla Crec'!E13+'Tabla Crec'!H13 -> 0 | AH19: 10475.1703 | AJ19: 10342.12235
B20: 6 | C20: 2022-10-04 | D20: =IF(B20=0,C20-C12+1, C20-C19) -> 30 | E20: 0.089 | F20: 1.008216667 | G20: 1.051096699 | H20: 0.9513872523 | I20: FALSE | J20: 1 | K20: 0.9513872523 | L20: 9510.572712 | M20: 994170.7052 | N20: 1341.803417 | O20: 7373.43273 | P20: 299 | Q20: 47.84 | R20: 346.5641667 | S20: 55.45026667 | T20: 795.3365641 | U20: 84.48275862 | V20: 13.51724138 | W20: 101.502786 | X20: 16.24044576 | Y20: 10475.17038 | Z20: 0.089 | AA20: 994170.7 | AB20: 1341.803417 | AC20: 7373.432692 | AD20: 795.33656 | AE20: 10475.17033 | AF20: 0 | AG20: ='Tabla Crec'!E14+'Tabla Crec'!H14 -> 0 | AH20: 10475.17033 | AJ20: 10342.12238
B21: 7 | C21: 2022-11-04 | D21: 31 | E21: 0.089 | F21: 1.008463889 | G21: 1.059993064 | H21: 0.9434023992 | I21: FALSE | J21: 1 | K21: 0.9434023992 | L21: 9510.572712 | M21: 992828.9018 | N21: 1107.379202 | O21: 7608.930389 | P21: 299 | Q21: 47.84 | R21: 346.5641667 | S21: 55.45026667 | T21: 794.2631214 | U21: 84.48275862 | V21: 13.51724138 | W21: 101.502786 | X21: 16.24044576 | Y21: 10475.17038 | Z21: 0.089 | AA21: 992828.9 | AB21: 1107.379202 | AC21: 7608.930375 | AD21: 794.26312 | AE21: 10475.17036 | AF21: 0 | AG21: ='Tabla Crec'!E15+'Tabla Crec'!H15 -> 0 | AH21: 10475.17036 | AJ21: 10342.12241
B22: 8 | C22: 2022-12-04 | D22: 30 | E22: 0.089 | F22: 1.008216667 | G22: 1.068702674 | H22: 0.9357139496 | I22: FALSE | J22: 1 | K22: 0.9357139496 | L22: 9510.572712 | M22: 991721.5226 | N22: 1361.927535 | O22: 7355.267959 | P22: 299 | Q22: 47.84 | R22: 346.5641667 | S22: 55.45026667 | T22: 793.3772181 | U22: 84.48275862 | V22: 13.51724138 | W22: 101.502786 | X22: 16.24044576 | Y22: 10475.17038 | Z22: 0.089 | AA22: 991721.52 | AB22: 1361.927535 | AC22: 7355.26794 | AD22: 793.377216 | AE22: 10475.17036 | AF22: 0 | AG22: ='Tabla Crec'!E16+'Tabla Crec'!H16 -> 0 | AH22: 10475.17036 | AJ22: 10342.1224
B23: 9 | C23: 2023-01-04 | D23: 31 | E23: 0.089 | F23: 1.008463889 | G23: 1.077748055 | H23: 0.9278606402 | I23: FALSE | J23: 1 | K23: 0.9278606402 | L23: 9510.572712 | M23: 990359.595 | N23: 1128.279139 | O23: 7590.005896 | P23: 299 | Q23: 47.84 | R23: 346.5641667 | S23: 55.45026667 | T23: 792.287676 | U23: 84.48275862 | V23: 13.51724138 | W23: 101.502786 | X23: 16.24044576 | Y23: 10475.17038 | Z23: 0.089 | AA23: 990359.59 | AB23: 1128.279139 | AC23: 7590.005858 | AD23: 792.287672 | AE23: 10475.17033 | AF23: 0 | AG23: ='Tabla Crec'!E17+'Tabla Crec'!H17 -> 0 | AH23: 10475.17033 | AJ23: 10342.12238
B24: 10 | C24: 2023-02-04 | D24: 31 | E24: 0.089 | F24: 1.008463889 | G24: 1.086869994 | H24: 0.9200732425 | I24: FALSE | J24: 1 | K24: 0.9200732425 | L24: 9510.572712 | M24: 989231.3159 | N24: 1137.828769 | O24: 7581.35889 | P24: 299 | Q24: 47.84 | R24: 346.5641667 | S24: 55.45026667 | T24: 791.3850527 | U24: 84.48275862 | V24: 13.51724138 | W24: 101.502786 | X24: 16.24044576 | Y24: 10475.17038 | Z24: 0.089 | AA24: 989231.31 | AB24: 1137.828769 | AC24: 7581.358845 | AD24: 791.385048 | AE24: 10475.17033 | AF24: 0 | AG24: ='Tabla Crec'!E18+'Tabla Crec'!H18 -> 0 | AH24: 10475.17033 | AJ24: 10342.12237
B25: 11 | C25: 2023-03-04 | D25: 28 | E25: 0.089 | F25: 1.007722222 | G25: 1.095263046 | H25: 0.9130226785 | I25: FALSE | J25: 1 | K25: 0.9130226785 | L25: 9510.572712 | M25: 988093.4871 | N25: 1880.295228 | O25: 6839.802694 | P25: 299 | Q25: 47.84 | R25: 346.5641667 | S25: 55.45026667 | T25: 790.4747897 | U25: 84.48275862 | V25: 13.51724138 | W25: 101.502786 | X25: 16.24044576 | Y25: 10475.17038 | Z25: 0.089 | AA25: 988093.48 | AB25: 1880.295228 | AC25: 6839.802645 | AD25: 790.474784 | AE25: 10475.17032 | AF25: 0 | AG25: ='Tabla Crec'!E19+'Tabla Crec'!H19 -> 0 | AH25: 10475.17032 | AJ25: 10342.12237
B26: 12 | C26: 2023-04-04 | D26: 31 | E26: 0.089 | F26: 1.008463889 | G26: 1.104533231 | H26: =IF(G26=0, 0, 1/G26) -> 0.9053598136 | I26: =MOD(B26, MESES_INCCREC)=0 -> TRUE | J26: =IF(B26=0, 1, IF(I26,J25*(1+INCREMENTO_CREC),J25)) -> 1.023 | K26: 0.9261830894 | L26: =CUOTA_INTCREC*J26 -> 9729.315884 | M26: 986213.1919 | N26: 1382.117007 | O26: 7558.228323 | P26: 299 | Q26: 47.84 | R26: 346.5641667 | S26: 55.45026667 | T26: 788.9705535 | U26: 84.48275862 | V26: 13.51724138 | W26: 103.6464691 | X26: 16.58343506 | Y26: 10696.40022 | Z26: 0.089 | AA26: 986213.18 | AB26: 1382.117007 | AC26: 7558.228232 | AD26: 788.970544 | AE26: 10696.40012 | AF26: 0 | AG26: ='Tabla Crec'!E20+'Tabla Crec'!H20 -> 0 | AH26: =AE26+AF26 -> 10696.40012 | AJ26: 10563.00918 | AK26: =AJ26/AJ25 -> 1.021357977
B27: 13 | C27: 2023-05-04 | D27: 30 | E27: 0.089 | F27: 1.008216667 | G27: 1.113608812 | H27: 0.8979813998 | I27: FALSE | J27: 1.023 | K27: 0.918634972 | L27: 9729.315884 | M27: 984831.0749 | N27: 1637.287219 | O27: 7304.163805 | P27: 299 | Q27: 47.84 | R27: 346.5641667 | S27: 55.45026667 | T27: 787.8648599 | U27: 84.48275862 | V27: 13.51724138 | W27: 103.6464691 | X27: 16.58343506 | Y27: 10696.40022 | Z27: 0.089 | AA27: 984831.06 | AB27: 1637.287219 | AC27: 7304.163695 | AD27: 787.864848 | AE27: 10696.4001 | AF27: 0 | AG27: ='Tabla Crec'!E21+'Tabla Crec'!H21 -> 0 | AH27: 10696.4001 | AJ27: 10563.00916
B28: 14 | C28: 2023-06-04 | D28: 31 | E28: 0.089 | F28: 1.008463889 | G28: 1.123034273 | H28: 0.8904447742 | I28: FALSE | J28: 1.023 | K28: 0.910925004 | L28: 9729.315884 | M28: 983193.7877 | N28: 1407.672909 | O28: 7535.087945 | P28: 299 | Q28: 47.84 | R28: 346.5641667 | S28: 55.45026667 | T28: 786.5550301 | U28: 84.48275862 | V28: 13.51724138 | W28: 103.6464691 | X28: 16.58343506 | Y28: 10696.40022 | Z28: 0.089 | AA28: 983193.77 | AB28: 1407.672909 | AC28: 7535.08781 | AD28: 786.555016 | AE28: 10696.40007 | AF28: 0 | AG28: ='Tabla Crec'!E22+'Tabla Crec'!H22 -> 0 | AH28: 10696.40007 | AJ28: 10563.00913
B29: 15 | C29: 2023-07-04 | D29: 30 | E29: 0.089 | F29: 1.008216667 | G29: 1.132261872 | H29: 0.8831879135 | I29: FALSE | J29: 1.023 | K29: 0.9035012355 | L29: 9729.315884 | M29: 981786.1148 | N29: 1662.306641 | O29: 7281.580351 | P29: 299 | Q29: 47.84 | R29: 346.5641667 | S29: 55.45026667 | T29: 785.4288918 | U29: 84.48275862 | V29: 13.51724138 | W29: 103.6464691 | X29: 16.58343506 | Y29: 10696.40022 | Z29: 0.089 | AA29: 981786.1 | AB29: 1662.306641 | AC29: 7281.580242 | AD29: 785.42888 | AE29: 10696.4001 | AF29: 0 | AG29: ='Tabla Crec'!E23+'Tabla Crec'!H23 -> 0 | AH29: 10696.4001 | AJ29: 10563.00916
B30: 16 | C30: 2023-08-04 | D30: 31 | E30: 0.089 | F30: 1.008463889 | G30: 1.14184521 | H30: 0.8757754474 | I30: FALSE | J30: =IF(B30=0, 1, IF(I30,J29*(1+INCREMENTO_CREC),J29)) -> 1.023 | K30: 0.8959182827 | L30: 9729.315884 | M30: 980123.8081 | N30: 1433.656875 | O30: 7511.559963 | P30: 299 | Q30: 47.84 | R30: 346.5641667 | S30: 55.45026667 | T30: 784.0990465 | U30: 84.48275862 | V30: 13.51724138 | W30: 103.6464691 | X30: 16.58343506 | Y30: 10696.40022 | Z30: 0.089 | AA30: 980123.79 | AB30: 1433.656875 | AC30: 7511.559824 | AD30: 784.099032 | AE30: 10696.40007 | AF30: 0 | AG30: ='Tabla Crec'!E24+'Tabla Crec'!H24 -> 0 | AH30: 10696.40007 | AJ30: 10563.00913
B31: 17 | C31: 2023-09-04 | D31: 31 | E31: 0.089 | F31: 1.008463889 | G31: 1.151509661 | H31: 0.8684251931 | I31: FALSE | J31: 1.023 | K31: 0.8883989725 | L31: 9729.315884 | M31: 978690.1512 | N31: 1445.791187 | O31: 7500.572576 | P31: 299 | Q31: 47.84 | R31: 346.5641667 | S31: 55.45026667 | T31: 782.952121 | U31: 84.48275862 | V31: 13.51724138 | W31: 103.6464691 | X31: 16.58343506 | Y31: 10696.40022 | Z31: 0.089 | AA31: 978690.13 | AB31: 1445.791187 | AC31: 7500.572413 | AD31: 782.952104 | AE31: 10696.40004 | AF31: 0 | AG31: ='Tabla Crec'!E25+'Tabla Crec'!H25 -> 0 | AH31: 10696.40004 | AJ31: 10563.0091
B32: 18 | C32: 2023-10-04 | D32: 30 | E32: 0.089 | F32: 1.008216667 | G32: 1.160971232 | H32: 0.8613477854 | I32: FALSE | J32: 1.023 | K32: 0.8811587845 | L32: 9729.315884 | M32: 977244.3601 | N32: 1699.624726 | O32: 7247.89567 | P32: 299 | Q32: 47.84 | R32: 346.5641667 | S32: 55.45026667 | T32: 781.795488 | U32: 84.48275862 | V32: 13.51724138 | W32: 103.6464691 | X32: 16.58343506 | Y32: 10696.40022 | Z32: 0.089 | AA32: 977244.34 | AB32: 1699.624726 | AC32: 7247.895522 | AD32: 781.795472 | AE32: 10696.40006 | AF32: 0 | AG32: ='Tabla Crec'!E26+'Tabla Crec'!H26 -> 0 | AH32: 10696.40006 | AJ32: 10563.00911
B33: 19 | C33: 2023-11-04 | D33: 31 | E33: 0.089 | F33: 1.008463889 | G33: 1.170797564 | H33: 0.8541186203 | I33: FALSE | J33: 1.023 | K33: 0.8737633486 | L33: 9729.315884 | M33: 975544.7353 | N33: 1472.413638 | O33: 7476.466458 | P33: 299 | Q33: 47.84 | R33: 346.5641667 | S33: 55.45026667 | T33: 780.4357883 | U33: 84.48275862 | V33: 13.51724138 | W33: 103.6464691 | X33: 16.58343506 | Y33: 10696.40022 | Z33: 0.089 | AA33: 975544.72 | AB33: 1472.413638 | AC33: 7476.46634 | AD33: 780.435776 | AE33: 10696.40009 | AF33: 0 | AG33: ='Tabla Crec'!E27+'Tabla Crec'!H27 -> 0 | AH33: 10696.40009 | AJ33: 10563.00915
B34: 20 | C34: 2023-12-04 | D34: 30 | E34: 0.089 | F34: 1.008216667 | G34: 1.180417617 | H34: 0.847157807 | I34: FALSE | J34: 1.023 | K34: 0.8666424366 | L34: 9729.315884 | M34: 974072.3217 | N34: 1725.688308 | O34: 7224.369719 | P34: 299 | Q34: 47.84 | R34: 346.5641667 | S34: 55.45026667 | T34: 779.2578574 | U34: 84.48275862 | V34: 13.51724138 | W34: 103.6464691 | X34: 16.58343506 | Y34: 10696.40022 | Z34: 0.089 | AA34: 974072.31 | AB34: 1725.688308 | AC34: 7224.369633 | AD34: 779.257848 | AE34: 10696.40013 | AF34: 0 | AG34: ='Tabla Crec'!E28+'Tabla Crec'!H28 -> 0 | AH34: 10696.40013 | AJ34: 10563.00918
B35: 21 | C35: 2024-01-04 | D35: 31 | E35: 0.089 | F35: 1.008463889 | G35: 1.190408541 | H35: 0.8400477363 | I35: FALSE | J35: 1.023 | K35: 0.8593688342 | L35: 9729.315884 | M35: 972346.6334 | N35: 1499.482018 | O35: 7451.95656 | P35: 299 | Q35: 47.84 | R35: 346.5641667 | S35: 55.45026667 | T35: 777.8773067 | U35: 84.48275862 | V35: 13.51724138 | W35: 103.6464691 | X35: 16.58343506 | Y35: 10696.40022 | Z35: 0.089 | AA35: 972346.62 | AB35: 1499.482018 | AC35: 7451.956457 | AD35: 777.877296 | AE35: 10696.40011 | AF35: 0 | AG35: ='Tabla Crec'!E29+'Tabla Crec'!H29 -> 0 | AH35: 10696.40011 | AJ35: 10563.00917
B36: 22 | C36: 2024-02-04 | D36: 31 | E36: 0.089 | F36: 1.008463889 | G36: 1.200484026 | H36: 0.8329973394 | I36: FALSE | J36: 1.023 | K36: 0.8521562782 | L36: 9729.315884 | M36: 970847.1514 | N36: 1512.173467 | O36: 7440.464696 | P36: 299 | Q36: 47.84 | R36: 346.5641667 | S36: 55.45026667 | T36: 776.6777211 | U36: 84.48275862 | V36: 13.51724138 | W36: 103.6464691 | X36: 16.58343506 | Y36: 10696.40022 | Z36: 0.089 | AA36: 970847.14 | AB36: 1512.173467 | AC36: 7440.464609 | AD36: 776.677712 | AE36: 10696.40013 | AF36: 0 | AG36: ='Tabla Crec'!E30+'Tabla Crec'!H30 -> 0 | AH36: 10696.40013 | AJ36: 10563.00918
B37: 23 | C37: 2024-03-04 | D37: 29 | E37: 0.089 | F37: 1.007969444 | G37: 1.210051217 | H37: 0.8264113004 | I37: FALSE | J37: 1.023 | K37: 0.8454187603 | L37: 9729.315884 | M37: 969334.9779 | N37: 2004.25463 | O37: 6949.593272 | P37: 299 | Q37: 47.84 | R37: 346.5641667 | S37: 55.45026667 | T37: 775.4679823 | U37: 84.48275862 | V37: 13.51724138 | W37: 103.6464691 | X37: 16.58343506 | Y37: 10696.40022 | Z37: 0.089 | AA37: 969334.97 | AB37: 2004.25463 | AC37: 6949.593215 | AD37: 775.467976 | AE37: 10696.40016 | AF37: 0 | AG37: ='Tabla Crec'!E31+'Tabla Crec'!H31 -> 0 | AH37: 10696.40016 | AJ37: 10563.00922
B38: 24 | C38: 2024-04-04 | D38: 31 | E38: 0.089 | F38: 1.008463889 | G38: 1.220292956 | H38: 0.8194753521 | I38: TRUE | J38: 1.046529 | K38: 0.8576047208 | L38: 9953.090149 | M38: 967330.7233 | N38: 1765.710389 | O38: 7413.515182 | P38: 299 | Q38: 47.84 | R38: 346.5641667 | S38: 55.45026667 | T38: 773.8645786 | U38: 84.48275862 | V38: 13.51724138 | W38: 105.8394569 | X38: 16.93431311 | Y38: 10922.71835 | Z38: 0.089 | AA38: 967330.72 | AB38: 1765.710389 | AC38: 7413.515157 | AD38: 773.864576 | AE38: 10922.71833 | AF38: 0 | AG38: ='Tabla Crec'!E32+'Tabla Crec'!H32 -> 0 | AH38: 10922.71833 | AJ38: 10788.9765
B39: 25 | C39: 2024-05-04 | D39: 30 | E39: 0.089 | F39: 1.008216667 | G39: 1.230319697 | H39: 0.8127968712 | I39: FALSE | J39: 1.046529 | K39: 0.8506154968 | L39: 9953.090149 | M39: 965565.0129 | N39: 2019.364294 | O39: 7161.273846 | P39: 299 | Q39: 47.84 | R39: 346.5641667 | S39: 55.45026667 | T39: 772.4520103 | U39: 84.48275862 | V39: 13.51724138 | W39: 105.8394569 | X39: 16.93431311 | Y39: 10922.71835 | Z39: 0.089 | AA39: 965565.01 | AB39: 2019.364294 | AC39: 7161.273824 | AD39: 772.452008 | AE39: 10922.71833 | AF39: 0 | AG39: ='Tabla Crec'!E33+'Tabla Crec'!H33 -> 0 | AH39: 10922.71833 | AJ39: 10788.97651
B40: 26 | C40: 2024-06-04 | D40: 31 | E40: 0.089 | F40: 1.008463889 | G40: 1.240732986 | H40: 0.8059751867 | I40: FALSE | J40: 1.046529 | K40: 0.8434764062 | L40: 9953.090149 | M40: 963545.6486 | N40: 1797.74684 | O40: 7384.50679 | P40: 299 | Q40: 47.84 | R40: 346.5641667 | S40: 55.45026667 | T40: 770.8365189 | U40: 84.48275862 | V40: 13.51724138 | W40: 105.8394569 | X40: 16.93431311 | Y40: 10922.71835 | Z40: 0.089 | AA40: 963545.65 | AB40: 1797.74684 | AC40: 7384.506801 | AD40: 770.83652 | AE40: 10922.71836 | AF40: 0 | AG40: ='Tabla Crec'!E34+'Tabla Crec'!H34 -> 0 | AH40: 10922.71836 | AJ40: 10788.97654
B41: 27 | C41: 2024-07-04 | D41: 30 | E41: 0.089 | F41: 1.008216667 | G41: 1.250927675 | H41: 0.7994067281 | I41: FALSE | J41: 1.046529 | K41: 0.8366023238 | L41: 9953.090149 | M41: 961747.9017 | N41: 2050.728223 | O41: 7132.963605 | P41: 299 | Q41: 47.84 | R41: 346.5641667 | S41: 55.45026667 | T41: 769.3983214 | U41: 84.48275862 | V41: 13.51724138 | W41: 105.8394569 | X41: 16.93431311 | Y41: 10922.71835 | Z41: 0.089 | AA41: 961747.9 | AB41: 2050.728223 | AC41: 7132.963592 | AD41: 769.39832 | AE41: 10922.71834 | AF41: 0 | AG41: ='Tabla Crec'!E35+'Tabla Crec'!H35 -> 0 | AH41: 10922.71834 | AJ41: 10788.97652
B42: 28 | C42: 2024-08-04 | D42: 31 | E42: 0.089 | F42: 1.008463889 | G42: 1.261515388 | H42: 0.7926974252 | I42: FALSE | J42: 1.046529 | K42: 0.8295808437 | L42: 9953.090149 | M42: 959697.1735 | N42: 1830.319906 | O42: 7355.012505 | P42: 299 | Q42: 47.84 | R42: 346.5641667 | S42: 55.45026667 | T42: 767.7577388 | U42: 84.48275862 | V42: 13.51724138 | W42: 105.8394569 | X42: 16.93431311 | Y42: 10922.71835 | Z42: 0.089 | AA42: 959697.17 | AB42: 1830.319906 | AC42: 7355.012478 | AD42: 767.757736 | AE42: 10922.71832 | AF42: 0 | AG42: ='Tabla Crec'!E36+'Tabla Crec'!H36 -> 0 | AH42: 10922.71832 | AJ42: 10788.9765
B43: 29 | C43: 2024-09-04 | D43: 31 | E43: 0.089 | F43: 1.008463889 | G43: 1.272192714 | H43: 0.7860444324 | I43: FALSE | J43: 1.046529 | K43: 0.8226182938 | L43: 9953.090149 | M43: 957866.8536 | N43: 1845.81153 | O43: 7340.985136 | P43: 299 | Q43: 47.84 | R43: 346.5641667 | S43: 55.45026667 | T43: 766.2934829 | U43: 84.48275862 | V43: 13.51724138 | W43: 105.8394569 | X43: 16.93431311 | Y43: 10922.71835 | Z43: 0.089 | AA43: 957866.85 | AB43: 1845.81153 | AC43: 7340.985109 | AD43: 766.29348 | AE43: 10922.71832 | AF43: 0 | AG43: ='Tabla Crec'!E37+'Tabla Crec'!H37 -> 0 | AH43: 10922.71832 | AJ43: 10788.9765
B44: 30 | C44: 2024-10-04 | D44: 30 | E44: 0.089 | F44: 1.008216667 | G44: 1.282645898 | H44: 0.7796384036 | I44: FALSE | J44: 1.046529 | K44: 0.8159141988 | L44: 9953.090149 | M44: 956021.0421 | N44: 2097.78392 | O44: 7090.489395 | P44: 299 | Q44: 47.84 | R44: 346.5641667 | S44: 55.45026667 | T44: 764.8168337 | U44: 84.48275862 | V44: 13.51724138 | W44: 105.8394569 | X44: 16.93431311 | Y44: 10922.71835 | Z44: 0.089 | AA44: 956021.04 | AB44: 2097.78392 | AC44: 7090.48938 | AD44: 764.816832 | AE44: 10922.71834 | AF44: 0 | AG44: ='Tabla Crec'!E38+'Tabla Crec'!H38 -> 0 | AH44: 10922.71834 | AJ44: 10788.97651
B45: 31 | C45: 2024-11-04 | D45: 31 | E45: 0.089 | F45: 1.008463889 | G45: 1.29350207 | H45: 0.7730950133 | I45: FALSE | J45: 1.046529 | K45: 0.8090663511 | L45: 9953.090149 | M45: 953923.2582 | N45: 1879.189684 | O45: 7310.761859 | P45: 299 | Q45: 47.84 | R45: 346.5641667 | S45: 55.45026667 | T45: 763.1386065 | U45: 84.48275862 | V45: 13.51724138 | W45: 105.8394569 | X45: 16.93431311 | Y45: 10922.71835 | Z45: 0.089 | AA45: 953923.26 | AB45: 1879.189684 | AC45: 7310.761873 | AD45: 763.138608 | AE45: 10922.71837 | AF45: 0 | AG45: ='Tabla Crec'!E39+'Tabla Crec'!H39 -> 0 | AH45: 10922.71837 | AJ45: 10788.97655
B46: 32 | C46: 2024-12-04 | D46: 30 | E46: 0.089 | F46: 1.008216667 | G46: 1.304130345 | H46: 0.7667945183 | I46: FALSE | J46: 1.046529 | K46: 0.8024727005 | L46: 9953.090149 | M46: 952044.0685 | N46: 2130.461387 | O46: 7060.993508 | P46: 299 | Q46: 47.84 | R46: 346.5641667 | S46: 55.45026667 | T46: 761.6352548 | U46: 84.48275862 | V46: 13.51724138 | W46: 105.8394569 | X46: 16.93431311 | Y46: 10922.71835 | Z46: 0.089 | AA46: 952044.07 | AB46: 2130.461387 | AC46: 7060.993519 | AD46: 761.635256 | AE46: 10922.71837 | AF46: 0 | AG46: ='Tabla Crec'!E40+'Tabla Crec'!H40 -> 0 | AH46: 10922.71837 | AJ46: 10788.97654
B47: 33 | C47: 2025-01-04 | D47: 31 | E47: 0.089 | F47: 1.008463889 | G47: 1.31516836 | H47: 0.7603589249 | I47: FALSE | J47: 1.046529 | K47: 0.7957376653 | L47: 9953.090149 | M47: 949913.6071 | N47: 1913.126925 | O47: 7280.032339 | P47: 299 | Q47: 47.84 | R47: 346.5641667 | S47: 55.45026667 | T47: 759.9308857 | U47: 84.48275862 | V47: 13.51724138 | W47: 105.8394569 | X47: 16.93431311 | Y47: 10922.71835 | Z47: 0.089 | AA47: 949913.61 | AB47: 1913.126925 | AC47: 7280.032361 | AD47: 759.930888 | AE47: 10922.71838 | AF47: 0 | AG47: ='Tabla Crec'!E41+'Tabla Crec'!H41 -> 0 | AH47: 10922.71838 | AJ47: 10788.97656
B48: 34 | C48: 2025-02-04 | D48: 31 | E48: 0.089 | F48: 1.008463889 | G48: 1.326299799 | H48: 0.7539773444 | I48: FALSE | J48: 1.046529 | K48: 0.7890591562 | L48: 9953.090149 | M48: 948000.4802 | N48: 1929.319419 | O48: 7265.370347 | P48: 299 | Q48: 47.84 | R48: 346.5641667 | S48: 55.45026667 | T48: 758.4003841 | U48: 84.48275862 | V48: 13.51724138 | W48: 105.8394569 | X48: 16.93431311 | Y48: 10922.71835 | Z48: 0.089 | AA48: 948000.48 | AB48: 1929.319419 | AC48: 7265.370345 | AD48: 758.400384 | AE48: 10922.71835 | AF48: 0 | AG48: ='Tabla Crec'!E42+'Tabla Crec'!H42 -> 0 | AH48: 10922.71835 | AJ48: 10788.97653
B49: 35 | C49: 2025-03-04 | D49: 28 | E49: 0.089 | F49: 1.007722222 | G49: 1.33654178 | H49: 0.748199581 | I49: FALSE | J49: 1.046529 | K49: 0.7830125593 | L49: 9953.090149 | M49: 946071.1608 | N49: 2647.318408 | O49: 6548.914813 | P49: 299 | Q49: 47.84 | R49: 346.5641667 | S49: 55.45026667 | T49: 756.8569286 | U49: 84.48275862 | V49: 13.51724138 | W49: 105.8394569 | X49: 16.93431311 | Y49: 10922.71835 | Z49: 0.089 | AA49: 946071.16 | AB49: 2647.318408 | AC49: 6548.914808 | AD49: 756.856928 | AE49: 10922.71835 | AF49: 0 | AG49: ='Tabla Crec'!E43+'Tabla Crec'!H43 -> 0 | AH49: 10922.71835 | AJ49: 10788.97653
B50: 36 | C50: 2025-04-04 | D50: 31 | E50: 0.089 | F50: 1.008463889 | G50: 1.347854121 | H50: 0.7419200521 | I50: TRUE | J50: 1.070599167 | K50: 0.7942989897 | L50: 10182.01122 | M50: 943423.8423 | N50: 2196.976646 | O50: 7230.295503 | P50: 299 | Q50: 47.84 | R50: 346.5641667 | S50: 55.45026667 | T50: 754.7390739 | U50: 84.48275862 | V50: 13.51724138 | W50: 108.0828834 | X50: 17.29326135 | Y50: 11154.2418 | Z50: 0.089 | AA50: 943423.84 | AB50: 2196.976646 | AC50: 7230.295485 | AD50: 754.739072 | AE50: 11154.24178 | AF50: 0 | AG50: ='Tabla Crec'!E44+'Tabla Crec'!H44 -> 0 | AH50: 11154.24178 | AJ50: 11020.14101
